Workbook

Sheet ChangeLog
A1: Date | B1: Person | C1: Notes
A2: 2012-12-05 | B2: MW | C2: Deleted hidden indexed income. (I made it previously as a test sheet)
C3: Added FlipSelection Macro. Filetype changed to .xlsm
C4: Created Mean Income Raw. Copied data from Mean income by age 12-5.xlsx (modified to include combined gender avg)
C5: Created WageIndex+Base. Included projections based on wage inc projection.
C6: Removed wage index series from Index Factor, replaced with reference to WageIndex+Base.
D7: Replaced index series reference in IncomeDistr.
C8: Created Contribution. Notice unlike TotalCont(2) it gives individual rather than aggregated contribution values.
D9: Fixed total contribution formula in Benvs.Cont and replaced reference to Contribution.
D10: Aggregated Benefits needs work!
A11: 2012-12-06 | B11: MW | C11: Decreased values in Contribution by 0.018, which resulted in total contribution in BenvsCon. to be closer to true value.
C12: Created AggregatedCont and AggregatedBenefit. Made reference in Benvs.Con.
C13: Extended years for LifetimeEarn and IndexLifetimeEarn
A14: 2012-12-07 | B14: Michelle | C14: Added a tab called smorgasbord because it has a bunch of data that can be used.
C15: It contains the following:
D16: Average percent wage changes for the different age groups, over the past 20-50 years.
D17: Percent of people working age 62+.
D18: Percent of people receiving benefits age 62+.
D19: Total population working for age groups; this can be used to find the employment rate and with
E20: total population and working population, this can calculate the employment rate. We can take the
E21: average employment rate over the past 20 years and apply it to the model.
A23: 2012-12-09 | B23: Matt | C23: Added tabs for Mortality and Fertility that are read year to year.
C24: Hid old Mortality Fertility Tab
C25: Looking for way to introduce changes over time to data
A26: 2012-12-11 | B26: Katie | C26: Added Percentage of people working to the new working lives tab for people 62+
C27: Worked with data for percent of people collecting benefits ages 62+, but didn’t integrate it in the model because I need help with what the formulas are currently doing
C28: Looked into how we could change our unemployment rates at each age range based on Michelle's data in "smorgasbord"
B29: MW | C29: Smoothed out 2011 income distribution in 2011 Income-Age Dist and value-pasted them into IncomeDist
C30: Added RetiredLives
C31: Calculated annual Benefit numbers in Benefit and used RetiredLives to calculate AggregatedBenefit
... 38 more rows

Sheet RangeNames
A1: Name | B1: Location | C1: Description
A2: benadj | B2: PIAadjust | C2: Adjustment factors for early/late retirement benefit amount
A3: birthyear | B3: PIAadjust | C3: Year of birth index
A4: indexyr | B4: WageIndex+Base+COLA | C4: Year for wage/base/cola index
A5: COLA | B5: WageIndex+Base+COLA | C5: COLA factors
A6: mort | B6: Mortality | C6: Mortality array
A7: mrtage | B7: Mortality | C7: Mortality age index
A8: mrtyr | B8: Mortality | C8: Mortality year index

Sheet MortalityFertility
A1: Exact | C1: Mortality Table | G1: Survival Table | J1: Survival Rates used to find | L1: Cells Referenced in | N1: Fertility | O1: Data for Fertility Rate
A2: Age | C2: Male | D2: Female | E2: Average of M&F | J2: population at each age | L2: What If Function | N2: For Population | O2: Age of Mother | P2: Birth Rate Per 1000 Births | Q2: BR for W
A3: 0 | C3: 0.007379 | D3: 0.006096 | E3: 0.0067375 | G3: =1-E3 -> 0.9932625 | H3: =G3 -> 0.9932625 | J3: =H3*$L$4 -> 4042958.225 | L3: Age 0-4 | N3: 0 | O3: 10 to 14 years old | P3: 0.6 | Q3: =P3/1000 -> 0.0006
A4: 1 | C4: 0.000494 | D4: 0.000434 | E4: 0.000464 | G4: 0.999536 | H4: =G4*H3 -> 0.9928016262 | J4: =H4*$L$4 -> 4041082.292 | L4: 4070382.426 | N4: 0 | O4: 15 to 19 years old | P4: 41.5 | Q4: =P4/1000 -> 0.0415
A5: 2 | C5: 0.000317 | D5: 0.000256 | E5: 0.0002865 | G5: 0.9997135 | H5: =G5*H4 -> 0.9925171885 | J5: =H5*$L$4 -> 4039924.522 | L5: Total Pop 0-4 | N5: 0 | O5: 20 to 24 years old | P5: 103 | Q5: 0.103
A6: 3 | C6: 0.000241 | D6: 0.000192 | E6: 0.0002165 | G6: 0.9997835 | H6: 0.9923023086 | J6: =H6*$L$4 -> 4039049.878 | L6: 20201362 | N6: 0 | O6: 25 to 29 years old | P6: 115.1 | Q6: 0.1151
A7: 4 | C7: 0.0002 | D7: 0.000148 | E7: 0.000174 | G7: 0.999826 | H7: 0.992129648 | J7: =H7*$L$4 -> 4038347.084 | L7: Age 5-9 | N7: 0 | O7: 30 to 34 years old | P7: 99.3 | Q7: 0.0993
A8: 5 | C8: 0.000179 | D8: 0.000136 | E8: 0.0001575 | G8: 0.9998425 | H8: 0.9919733875 | J8: =H8*$L$8 -> 4070833.64 | L8: 4103773.035 | N8: 0 | O8: 35 to 39 years old | P8: 46.9 | Q8: 0.0469
A9: 6 | C9: 0.000166 | D9: 0.000128 | E9: 0.000147 | G9: 0.999853 | H9: 0.9918275675 | J9: =H9*$L$8 -> 4070235.227 | L9: Total Pop 5-9 | N9: 0 | O9: 40 to 44 years old | P9: 9.8 | Q9: 0.0098
A10: 7 | C10: 0.000152 | D10: 0.000122 | E10: 0.000137 | G10: 0.999863 | H10: 0.9916916871 | J10: =H10*$L$8 -> 4069677.605 | L10: 20348657 | N10: 0 | O10: 45 to 54 years old | P10: 0.7 | Q10: 0.0007
A11: 8 | C11: 0.000133 | D11: 0.000115 | E11: 0.000124 | G11: 0.999876 | H11: 0.9915687173 | J11: =H11*$L$8 -> 4069172.965 | L11: Age 10-14 | N11: 0 | O11: 55 and Older | P11: 0 | Q11: 0
A12: 9 | C12: 0.000108 | D12: 0.000106 | E12: 0.000107 | G12: 0.999893 | H12: 0.9914626195 | J12: =H12*$L$8 -> 4068737.563 | L12: 4172697.339 | N12: 0
A13: 10 | C13: 8.9e-05 | D13: 0.0001 | E13: 9.45e-05 | G13: 0.9999055 | H13: 0.9913689262 | J13: =H13*$L$12 -> 4136682.48 | L13: Total Pop 10-14 | N13: 0.0003
A14: 11 | C14: 9.4e-05 | D14: 0.000102 | E14: 9.8e-05 | G14: 0.999902 | H14: 0.9912717721 | J14: =H14*$L$12 -> 4136277.086 | L14: 20677194 | N14: 0.0003
A15: 12 | C15: 0.000145 | D15: 0.00012 | E15: 0.0001325 | G15: 0.9998675 | H15: 0.9911404286 | J15: =H15*$L$12 -> 4135729.029 | L15: Age 15-19 | N15: 0.0003
A16: 13 | C16: 0.000252 | D16: 0.000157 | E16: 0.0002045 | G16: 0.9997955 | H16: 0.9909377404 | J16: =H16*$L$12 -> 4134883.272 | L16: 4457064.148 | N16: 0.0003
A17: 14 | C17: 0.000401 | D17: 0.000209 | E17: 0.000305 | G17: 0.999695 | H17: 0.9906355043 | J17: =H17*$L$12 -> 4133622.133 | L17: Total Pop 15-19 | N17: 0.0003
A18: 15 | C18: 0.000563 | D18: 0.000267 | E18: 0.000415 | G18: 0.999585 | H18: 0.9902243906 | J18: =H18*$L$16 -> 4413493.63 | L18: 22040343 | N18: 0.02075
A19: 16 | C19: 0.000719 | D19: 0.000323 | E19: 0.000521 | G19: 0.999479 | H19: 0.9897084837 | J19: =H19*$L$16 -> 4411194.199 | L19: Age 20-24 | N19: 0.02075
A20: 17 | C20: 0.000873 | D20: 0.000369 | E20: 0.000621 | G20: 0.999379 | H20: 0.9890938747 | J20: =H20*$L$16 -> 4408454.848 | L20: 4383625.57 | N20: 0.02075
A21: 18 | C21: 0.001017 | D21: 0.000401 | E21: 0.000709 | G21: 0.999291 | H21: 0.9883926072 | J21: =H21*$L$16 -> 4405329.253 | L21: Total Pop 20-24 | N21: 0.02075
A22: 19 | C22: 0.001148 | D22: 0.000422 | E22: 0.000785 | G22: 0.999215 | H22: 0.987616719 | J22: =H22*$L$16 -> 4401871.07 | L22: 21585999 | N22: 0.02075
A23: 20 | C23: 0.001285 | D23: 0.000441 | E23: 0.000863 | G23: 0.999137 | H23: 0.9867644058 | J23: =H23*$L$20 -> 4325605.681 | L23: Age 25-29 | N23: 0.0515
A24: 21 | C24: 0.001412 | D24: 0.000463 | E24: 0.0009375 | G24: 0.9990625 | H24: 0.9858393141 | J24: =H24*$L$20 -> 4321550.425 | L24: 4306527.669 | N24: 0.0515
A25: 22 | C25: 0.001493 | D25: 0.000483 | E25: 0.000988 | G25: 0.999012 | H25: 0.9848653049 | J25: =H25*$L$20 -> 4317280.733 | L25: Total Pop 20-24 | N25: 0.0515
A26: 23 | C26: 0.001513 | D26: 0.000499 | E26: 0.001006 | G26: 0.998994 | H26: 0.9838745304 | J26: =H26*$L$20 -> 4312937.549 | L26: 21101849 | N26: 0.0515
A27: 24 | C27: 0.001487 | D27: 0.000513 | E27: 0.001 | G27: 0.999 | H27: 0.9828906559 | J27: =H27*$L$20 -> 4308624.612 | L27: Age 30-34 | N27: 0.0515
A28: 25 | C28: 0.001446 | D28: 0.000528 | E28: 0.000987 | G28: 0.999013 | H28: 0.9819205428 | J28: =H28*$L$24 -> 4228667.986 | L28: 4095320.736 | N28: 0.05755
A29: 26 | C29: 0.001412 | D29: 0.000544 | E29: 0.000978 | G29: 0.999022 | H29: 0.9809602245 | J29: =H29*$L$24 -> 4224532.349 | L29: Total Pop 30-34 | N29: 0.05755
A30: 27 | C30: 0.001389 | D30: 0.000563 | E30: 0.000976 | G30: 0.999024 | H30: 0.9800028073 | J30: =H30*$L$24 -> 4220409.205 | L30: 19962099 | N30: 0.05755
A31: 28 | C31: 0.001388 | D31: 0.000585 | E31: 0.0009865 | G31: 0.9990135 | H31: 0.9790360345 | J31: =H31*$L$24 -> 4216245.772 | L31: Age 35-39 | N31: 0.05755
... 38 more rows

Sheet Mortality
B1: 2012 | C1: 2013 | D1: 2014 | E1: 2015 | F1: 2016 | G1: 2017 | H1: 2018 | I1: 2019 | J1: 2020 | K1: 2021 | L1: 2022 | M1: 2023 | N1: 2024 | O1: 2025 | P1: 2026 | Q1: 2027 | R1: 2028 | S1: 2029 | T1: 2030 | U1: 2031 | V1: 2032 | W1: 2033 | X1: 2034 | Y1: 2035 | Z1: 2036 | AA1: 2037 | AB1: 2038 | AC1: 2039 | AD1: 2040 | AE1: 2041 | AF1: 2042 | AG1: 2043 | AH1: 2044 | AI1: 2045 | AJ1: 2046 | AK1: 2047 | AL1: 2048 | AM1: 2049 | AN1: 2050 | AO1: 2051 | AP1: 2052 | AQ1: 2053 | AR1: 2054 | AS1: 2055 | AT1: 2056 | AU1: 2057 | AV1: 2058 | AW1: 2059 | AX1: 2060 | AY1: 2061 | AZ1: 2062 | BA1: 2063 | BB1: 2064 | BC1: 2065 | BD1: 2066 | BE1: 2067 | BF1: 2068 | BG1: 2069 | BH1: 2070 | BI1: 2071 | BJ1: 2072 | BK1: 2073 | BL1: 2074 | BM1: 2075 | BN1: 2076 | BO1: 2077 | BP1: 2078 | BQ1: 2079 | BR1: 2080 | BS1: 2081 | BT1: 2082 | BU1: 2083 | BV1: 2084 | BW1: 2085 | BX1: 2086 | BY1: 2087 | BZ1: 2088 | CA1: 2089 | CB1: 2090 | CC1: 2091 | CD1: 2092 | CE1: 2093 | CF1: 2094 | CG1: 2095 | CH1: 2096 | CI1: 2097 | CJ1: 2098 | CK1: 2099 | CL1: 2100 | CM1: 2101 | CN1: 2102 | CO1: 2103 | CP1: 2104 | CQ1: 2105 | CR1: 2106 | CS1: 2107 | CT1: 2108 | CU1: 2109 | CV1: 2110 | CW1: 2111 | CX1: 2112
A2: Change:
A3: Age | B3: Average of M&F
A4: 0 | B4: 0.0067375 | C4: =IF(C$2=0,$B$4:$B$124,$B$4:$B$124*C$2) -> 0.0067375 | D4: =IF(D$2=0,$B$4:$B$124,$B$4:$B$124*D$2) -> 0.0067375 | E4: 0.0067375 | F4: 0.0067375 | G4: 0.0067375 | H4: 0.0067375 | I4: 0.0067375 | J4: 0.0067375 | K4: 0.0067375 | L4: 0.0067375 | M4: 0.0067375 | N4: 0.0067375 | O4: 0.0067375 | P4: 0.0067375 | Q4: 0.0067375 | R4: 0.0067375 | S4: 0.0067375 | T4: 0.0067375 | U4: 0.0067375 | V4: 0.0067375 | W4: 0.0067375 | X4: 0.0067375 | Y4: 0.0067375 | Z4: 0.0067375 | AA4: 0.0067375 | AB4: 0.0067375 | AC4: 0.0067375 | AD4: 0.0067375 | AE4: 0.0067375 | AF4: 0.0067375 | AG4: 0.0067375 | AH4: 0.0067375 | AI4: 0.0067375 | AJ4: 0.0067375 | AK4: 0.0067375 | AL4: 0.0067375 | AM4: 0.0067375 | AN4: 0.0067375 | AO4: 0.0067375 | AP4: 0.0067375 | AQ4: 0.0067375 | AR4: 0.0067375 | AS4: 0.0067375 | AT4: 0.0067375 | AU4: 0.0067375 | AV4: 0.0067375 | AW4: 0.0067375 | AX4: 0.0067375 | AY4: 0.0067375 | AZ4: 0.0067375 | BA4: 0.0067375 | BB4: 0.0067375 | BC4: 0.0067375 | BD4: 0.0067375 | BE4: 0.0067375 | BF4: 0.0067375 | BG4: 0.0067375 | BH4: 0.0067375 | BI4: 0.0067375 | BJ4: 0.0067375 | BK4: 0.0067375 | BL4: 0.0067375 | BM4: 0.0067375 | BN4: 0.0067375 | BO4: 0.0067375 | BP4: =IF(BP$2=0,$B$4:$B$124,$B$4:$B$124*BP$2) -> 0.0067375 | BQ4: 0.0067375 | BR4: 0.0067375 | BS4: 0.0067375 | BT4: 0.0067375 | BU4: 0.0067375 | BV4: 0.0067375 | BW4: 0.0067375 | BX4: 0.0067375 | BY4: 0.0067375 | BZ4: 0.0067375 | CA4: 0.0067375 | CB4: 0.0067375 | CC4: 0.0067375 | CD4: 0.0067375 | CE4: 0.0067375 | CF4: 0.0067375 | CG4: 0.0067375 | CH4: 0.0067375 | CI4: 0.0067375 | CJ4: 0.0067375 | CK4: 0.0067375 | CL4: 0.0067375 | CM4: 0.0067375 | CN4: 0.0067375 | CO4: 0.0067375 | CP4: 0.0067375 | CQ4: 0.0067375 | CR4: 0.0067375 | CS4: 0.0067375 | CT4: 0.0067375 | CU4: 0.0067375 | CV4: 0.0067375 | CW4: 0.0067375 | CX4: 0.0067375
A5: 1 | B5: 0.000464 | C5: =IF(C$2=0,$B$4:$B$124,$B$4:$B$124*C$2) -> 0.000464 | D5: 0.000464 | E5: 0.000464 | F5: 0.000464 | G5: 0.000464 | H5: 0.000464 | I5: 0.000464 | J5: 0.000464 | K5: 0.000464 | L5: 0.000464 | M5: 0.000464 | N5: 0.000464 | O5: 0.000464 | P5: 0.000464 | Q5: 0.000464 | R5: 0.000464 | S5: 0.000464 | T5: 0.000464 | U5: 0.000464 | V5: 0.000464 | W5: 0.000464 | X5: 0.000464 | Y5: 0.000464 | Z5: 0.000464 | AA5: 0.000464 | AB5: 0.000464 | AC5: 0.000464 | AD5: 0.000464 | AE5: 0.000464 | AF5: 0.000464 | AG5: 0.000464 | AH5: 0.000464 | AI5: 0.000464 | AJ5: 0.000464 | AK5: 0.000464 | AL5: 0.000464 | AM5: 0.000464 | AN5: 0.000464 | AO5: 0.000464 | AP5: 0.000464 | AQ5: 0.000464 | AR5: 0.000464 | AS5: 0.000464 | AT5: 0.000464 | AU5: 0.000464 | AV5: 0.000464 | AW5: 0.000464 | AX5: 0.000464 | AY5: 0.000464 | AZ5: 0.000464 | BA5: 0.000464 | BB5: 0.000464 | BC5: 0.000464 | BD5: 0.000464 | BE5: 0.000464 | BF5: 0.000464 | BG5: 0.000464 | BH5: 0.000464 | BI5: 0.000464 | BJ5: 0.000464 | BK5: 0.000464 | BL5: 0.000464 | BM5: 0.000464 | BN5: 0.000464 | BO5: 0.000464 | BP5: 0.000464 | BQ5: 0.000464 | BR5: 0.000464 | BS5: 0.000464 | BT5: 0.000464 | BU5: 0.000464 | BV5: 0.000464 | BW5: 0.000464 | BX5: 0.000464 | BY5: 0.000464 | BZ5: 0.000464 | CA5: 0.000464 | CB5: 0.000464 | CC5: 0.000464 | CD5: 0.000464 | CE5: 0.000464 | CF5: 0.000464 | CG5: 0.000464 | CH5: 0.000464 | CI5: 0.000464 | CJ5: 0.000464 | CK5: 0.000464 | CL5: 0.000464 | CM5: 0.000464 | CN5: 0.000464 | CO5: 0.000464 | CP5: 0.000464 | CQ5: 0.000464 | CR5: 0.000464 | CS5: 0.000464 | CT5: 0.000464 | CU5: 0.000464 | CV5: 0.000464 | CW5: 0.000464 | CX5: 0.000464
A6: 2 | B6: 0.0002865 | C6: 0.0002865 | D6: =IF(D$2=0,$B$4:$B$124,$B$4:$B$124*D$2) -> 0.0002865 | E6: 0.0002865 | F6: 0.0002865 | G6: 0.0002865 | H6: 0.0002865 | I6: 0.0002865 | J6: 0.0002865 | K6: 0.0002865 | L6: 0.0002865 | M6: 0.0002865 | N6: 0.0002865 | O6: 0.0002865 | P6: 0.0002865 | Q6: 0.0002865 | R6: 0.0002865 | S6: 0.0002865 | T6: 0.0002865 | U6: 0.0002865 | V6: 0.0002865 | W6: 0.0002865 | X6: 0.0002865 | Y6: 0.0002865 | Z6: 0.0002865 | AA6: 0.0002865 | AB6: 0.0002865 | AC6: 0.0002865 | AD6: 0.0002865 | AE6: 0.0002865 | AF6: 0.0002865 | AG6: 0.0002865 | AH6: 0.0002865 | AI6: 0.0002865 | AJ6: 0.0002865 | AK6: 0.0002865 | AL6: 0.0002865 | AM6: 0.0002865 | AN6: 0.0002865 | AO6: 0.0002865 | AP6: 0.0002865 | AQ6: 0.0002865 | AR6: 0.0002865 | AS6: 0.0002865 | AT6: 0.0002865 | AU6: 0.0002865 | AV6: 0.0002865 | AW6: 0.0002865 | AX6: 0.0002865 | AY6: 0.0002865 | AZ6: 0.0002865 | BA6: 0.0002865 | BB6: 0.0002865 | BC6: 0.0002865 | BD6: 0.0002865 | BE6: 0.0002865 | BF6: 0.0002865 | BG6: 0.0002865 | BH6: 0.0002865 | BI6: 0.0002865 | BJ6: 0.0002865 | BK6: 0.0002865 | BL6: 0.0002865 | BM6: 0.0002865 | BN6: 0.0002865 | BO6: 0.0002865 | BP6: 0.0002865 | BQ6: 0.0002865 | BR6: 0.0002865 | BS6: 0.0002865 | BT6: 0.0002865 | BU6: 0.0002865 | BV6: 0.0002865 | BW6: 0.0002865 | BX6: 0.0002865 | BY6: 0.0002865 | BZ6: 0.0002865 | CA6: 0.0002865 | CB6: 0.0002865 | CC6: 0.0002865 | CD6: 0.0002865 | CE6: 0.0002865 | CF6: 0.0002865 | CG6: 0.0002865 | CH6: 0.0002865 | CI6: 0.0002865 | CJ6: 0.0002865 | CK6: 0.0002865 | CL6: 0.0002865 | CM6: 0.0002865 | CN6: 0.0002865 | CO6: 0.0002865 | CP6: 0.0002865 | CQ6: 0.0002865 | CR6: 0.0002865 | CS6: 0.0002865 | CT6: 0.0002865 | CU6: 0.0002865 | CV6: 0.0002865 | CW6: 0.0002865 | CX6: 0.0002865
A7: 3 | B7: 0.0002165 | C7: 0.0002165 | D7: 0.0002165 | E7: 0.0002165 | F7: 0.0002165 | G7: 0.0002165 | H7: 0.0002165 | I7: 0.0002165 | J7: 0.0002165 | K7: 0.0002165 | L7: 0.0002165 | M7: 0.0002165 | N7: 0.0002165 | O7: 0.0002165 | P7: 0.0002165 | Q7: 0.0002165 | R7: 0.0002165 | S7: 0.0002165 | T7: 0.0002165 | U7: 0.0002165 | V7: 0.0002165 | W7: 0.0002165 | X7: 0.0002165 | Y7: 0.0002165 | Z7: 0.0002165 | AA7: 0.0002165 | AB7: 0.0002165 | AC7: 0.0002165 | AD7: 0.0002165 | AE7: 0.0002165 | AF7: 0.0002165 | AG7: 0.0002165 | AH7: 0.0002165 | AI7: 0.0002165 | AJ7: 0.0002165 | AK7: 0.0002165 | AL7: 0.0002165 | AM7: 0.0002165 | AN7: 0.0002165 | AO7: 0.0002165 | AP7: 0.0002165 | AQ7: 0.0002165 | AR7: 0.0002165 | AS7: 0.0002165 | AT7: 0.0002165 | AU7: 0.0002165 | AV7: 0.0002165 | AW7: 0.0002165 | AX7: 0.0002165 | AY7: 0.0002165 | AZ7: 0.0002165 | BA7: 0.0002165 | BB7: 0.0002165 | BC7: 0.0002165 | BD7: 0.0002165 | BE7: 0.0002165 | BF7: 0.0002165 | BG7: 0.0002165 | BH7: 0.0002165 | BI7: 0.0002165 | BJ7: 0.0002165 | BK7: 0.0002165 | BL7: 0.0002165 | BM7: 0.0002165 | BN7: 0.0002165 | BO7: 0.0002165 | BP7: 0.0002165 | BQ7: 0.0002165 | BR7: 0.0002165 | BS7: 0.0002165 | BT7: 0.0002165 | BU7: 0.0002165 | BV7: 0.0002165 | BW7: 0.0002165 | BX7: 0.0002165 | BY7: 0.0002165 | BZ7: 0.0002165 | CA7: 0.0002165 | CB7: 0.0002165 | CC7: 0.0002165 | CD7: 0.0002165 | CE7: 0.0002165 | CF7: 0.0002165 | CG7: 0.0002165 | CH7: 0.0002165 | CI7: 0.0002165 | CJ7: 0.0002165 | CK7: 0.0002165 | CL7: 0.0002165 | CM7: 0.0002165 | CN7: 0.0002165 | CO7: 0.0002165 | CP7: 0.0002165 | CQ7: 0.0002165 | CR7: 0.0002165 | CS7: 0.0002165 | CT7: 0.0002165 | CU7: 0.0002165 | CV7: 0.0002165 | CW7: 0.0002165 | CX7: 0.0002165
A8: 4 | B8: 0.000174 | C8: 0.000174 | D8: 0.000174 | E8: 0.000174 | F8: 0.000174 | G8: 0.000174 | H8: 0.000174 | I8: 0.000174 | J8: 0.000174 | K8: 0.000174 | L8: 0.000174 | M8: 0.000174 | N8: 0.000174 | O8: 0.000174 | P8: 0.000174 | Q8: 0.000174 | R8: 0.000174 | S8: 0.000174 | T8: 0.000174 | U8: 0.000174 | V8: 0.000174 | W8: 0.000174 | X8: 0.000174 | Y8: 0.000174 | Z8: 0.000174 | AA8: 0.000174 | AB8: 0.000174 | AC8: 0.000174 | AD8: 0.000174 | AE8: 0.000174 | AF8: 0.000174 | AG8: 0.000174 | AH8: 0.000174 | AI8: 0.000174 | AJ8: 0.000174 | AK8: 0.000174 | AL8: 0.000174 | AM8: 0.000174 | AN8: 0.000174 | AO8: 0.000174 | AP8: 0.000174 | AQ8: 0.000174 | AR8: 0.000174 | AS8: 0.000174 | AT8: 0.000174 | AU8: 0.000174 | AV8: 0.000174 | AW8: 0.000174 | AX8: 0.000174 | AY8: 0.000174 | AZ8: 0.000174 | BA8: 0.000174 | BB8: 0.000174 | BC8: 0.000174 | BD8: 0.000174 | BE8: 0.000174 | BF8: 0.000174 | BG8: 0.000174 | BH8: 0.000174 | BI8: 0.000174 | BJ8: 0.000174 | BK8: 0.000174 | BL8: 0.000174 | BM8: 0.000174 | BN8: 0.000174 | BO8: 0.000174 | BP8: 0.000174 | BQ8: 0.000174 | BR8: 0.000174 | BS8: 0.000174 | BT8: 0.000174 | BU8: 0.000174 | BV8: 0.000174 | BW8: 0.000174 | BX8: 0.000174 | BY8: 0.000174 | BZ8: 0.000174 | CA8: 0.000174 | CB8: 0.000174 | CC8: 0.000174 | CD8: 0.000174 | CE8: 0.000174 | CF8: 0.000174 | CG8: 0.000174 | CH8: 0.000174 | CI8: 0.000174 | CJ8: 0.000174 | CK8: 0.000174 | CL8: 0.000174 | CM8: 0.000174 | CN8: 0.000174 | CO8: 0.000174 | CP8: 0.000174 | CQ8: 0.000174 | CR8: 0.000174 | CS8: 0.000174 | CT8: 0.000174 | CU8: 0.000174 | CV8: 0.000174 | CW8: 0.000174 | CX8: 0.000174
A9: 5 | B9: 0.0001575 | C9: 0.0001575 | D9: 0.0001575 | E9: 0.0001575 | F9: 0.0001575 | G9: 0.0001575 | H9: 0.0001575 | I9: 0.0001575 | J9: 0.0001575 | K9: 0.0001575 | L9: 0.0001575 | M9: 0.0001575 | N9: 0.0001575 | O9: 0.0001575 | P9: 0.0001575 | Q9: 0.0001575 | R9: 0.0001575 | S9: 0.0001575 | T9: 0.0001575 | U9: 0.0001575 | V9: 0.0001575 | W9: 0.0001575 | X9: 0.0001575 | Y9: 0.0001575 | Z9: 0.0001575 | AA9: 0.0001575 | AB9: 0.0001575 | AC9: 0.0001575 | AD9: 0.0001575 | AE9: 0.0001575 | AF9: 0.0001575 | AG9: 0.0001575 | AH9: 0.0001575 | AI9: 0.0001575 | AJ9: 0.0001575 | AK9: 0.0001575 | AL9: 0.0001575 | AM9: 0.0001575 | AN9: 0.0001575 | AO9: 0.0001575 | AP9: 0.0001575 | AQ9: 0.0001575 | AR9: 0.0001575 | AS9: 0.0001575 | AT9: 0.0001575 | AU9: 0.0001575 | AV9: 0.0001575 | AW9: 0.0001575 | AX9: 0.0001575 | AY9: 0.0001575 | AZ9: 0.0001575 | BA9: 0.0001575 | BB9: 0.0001575 | BC9: 0.0001575 | BD9: 0.0001575 | BE9: 0.0001575 | BF9: 0.0001575 | BG9: 0.0001575 | BH9: 0.0001575 | BI9: 0.0001575 | BJ9: 0.0001575 | BK9: 0.0001575 | BL9: 0.0001575 | BM9: 0.0001575 | BN9: 0.0001575 | BO9: =IF(BO$2=0,$B$4:$B$124,$B$4:$B$124*BO$2) -> 0.0001575 | BP9: 0.0001575 | BQ9: 0.0001575 | BR9: 0.0001575 | BS9: 0.0001575 | BT9: 0.0001575 | BU9: 0.0001575 | BV9: 0.0001575 | BW9: 0.0001575 | BX9: 0.0001575 | BY9: 0.0001575 | BZ9: 0.0001575 | CA9: 0.0001575 | CB9: 0.0001575 | CC9: 0.0001575 | CD9: 0.0001575 | CE9: 0.0001575 | CF9: 0.0001575 | CG9: 0.0001575 | CH9: 0.0001575 | CI9: 0.0001575 | CJ9: 0.0001575 | CK9: 0.0001575 | CL9: 0.0001575 | CM9: 0.0001575 | CN9: 0.0001575 | CO9: 0.0001575 | CP9: 0.0001575 | CQ9: 0.0001575 | CR9: 0.0001575 | CS9: 0.0001575 | CT9: 0.0001575 | CU9: 0.0001575 | CV9: 0.0001575 | CW9: 0.0001575 | CX9: 0.0001575
A10: 6 | B10: 0.000147 | C10: 0.000147 | D10: =IF(D$2=0,$B$4:$B$124,$B$4:$B$124*D$2) -> 0.000147 | E10: 0.000147 | F10: 0.000147 | G10: 0.000147 | H10: 0.000147 | I10: 0.000147 | J10: 0.000147 | K10: 0.000147 | L10: 0.000147 | M10: 0.000147 | N10: 0.000147 | O10: 0.000147 | P10: 0.000147 | Q10: 0.000147 | R10: 0.000147 | S10: 0.000147 | T10: 0.000147 | U10: 0.000147 | V10: 0.000147 | W10: 0.000147 | X10: 0.000147 | Y10: 0.000147 | Z10: 0.000147 | AA10: 0.000147 | AB10: 0.000147 | AC10: 0.000147 | AD10: 0.000147 | AE10: 0.000147 | AF10: 0.000147 | AG10: 0.000147 | AH10: 0.000147 | AI10: 0.000147 | AJ10: 0.000147 | AK10: 0.000147 | AL10: 0.000147 | AM10: 0.000147 | AN10: 0.000147 | AO10: 0.000147 | AP10: 0.000147 | AQ10: 0.000147 | AR10: 0.000147 | AS10: 0.000147 | AT10: 0.000147 | AU10: 0.000147 | AV10: 0.000147 | AW10: 0.000147 | AX10: 0.000147 | AY10: 0.000147 | AZ10: 0.000147 | BA10: 0.000147 | BB10: 0.000147 | BC10: 0.000147 | BD10: 0.000147 | BE10: 0.000147 | BF10: 0.000147 | BG10: 0.000147 | BH10: 0.000147 | BI10: 0.000147 | BJ10: 0.000147 | BK10: 0.000147 | BL10: 0.000147 | BM10: 0.000147 | BN10: 0.000147 | BO10: 0.000147 | BP10: 0.000147 | BQ10: 0.000147 | BR10: 0.000147 | BS10: 0.000147 | BT10: 0.000147 | BU10: 0.000147 | BV10: 0.000147 | BW10: 0.000147 | BX10: 0.000147 | BY10: 0.000147 | BZ10: 0.000147 | CA10: 0.000147 | CB10: 0.000147 | CC10: 0.000147 | CD10: 0.000147 | CE10: 0.000147 | CF10: 0.000147 | CG10: 0.000147 | CH10: 0.000147 | CI10: 0.000147 | CJ10: 0.000147 | CK10: 0.000147 | CL10: 0.000147 | CM10: 0.000147 | CN10: 0.000147 | CO10: 0.000147 | CP10: 0.000147 | CQ10: 0.000147 | CR10: 0.000147 | CS10: 0.000147 | CT10: 0.000147 | CU10: 0.000147 | CV10: 0.000147 | CW10: 0.000147 | CX10: 0.000147
A11: 7 | B11: 0.000137 | C11: 0.000137 | D11: 0.000137 | E11: 0.000137 | F11: 0.000137 | G11: 0.000137 | H11: 0.000137 | I11: 0.000137 | J11: 0.000137 | K11: 0.000137 | L11: 0.000137 | M11: 0.000137 | N11: 0.000137 | O11: 0.000137 | P11: 0.000137 | Q11: 0.000137 | R11: 0.000137 | S11: 0.000137 | T11: 0.000137 | U11: 0.000137 | V11: 0.000137 | W11: 0.000137 | X11: 0.000137 | Y11: 0.000137 | Z11: 0.000137 | AA11: 0.000137 | AB11: 0.000137 | AC11: 0.000137 | AD11: 0.000137 | AE11: 0.000137 | AF11: 0.000137 | AG11: 0.000137 | AH11: 0.000137 | AI11: 0.000137 | AJ11: 0.000137 | AK11: 0.000137 | AL11: 0.000137 | AM11: 0.000137 | AN11: 0.000137 | AO11: 0.000137 | AP11: 0.000137 | AQ11: 0.000137 | AR11: 0.000137 | AS11: 0.000137 | AT11: 0.000137 | AU11: 0.000137 | AV11: 0.000137 | AW11: 0.000137 | AX11: 0.000137 | AY11: 0.000137 | AZ11: 0.000137 | BA11: 0.000137 | BB11: 0.000137 | BC11: 0.000137 | BD11: 0.000137 | BE11: 0.000137 | BF11: 0.000137 | BG11: 0.000137 | BH11: 0.000137 | BI11: 0.000137 | BJ11: 0.000137 | BK11: 0.000137 | BL11: 0.000137 | BM11: 0.000137 | BN11: 0.000137 | BO11: 0.000137 | BP11: 0.000137 | BQ11: 0.000137 | BR11: 0.000137 | BS11: 0.000137 | BT11: 0.000137 | BU11: 0.000137 | BV11: 0.000137 | BW11: 0.000137 | BX11: 0.000137 | BY11: 0.000137 | BZ11: 0.000137 | CA11: 0.000137 | CB11: 0.000137 | CC11: 0.000137 | CD11: 0.000137 | CE11: 0.000137 | CF11: 0.000137 | CG11: 0.000137 | CH11: 0.000137 | CI11: 0.000137 | CJ11: 0.000137 | CK11: 0.000137 | CL11: 0.000137 | CM11: 0.000137 | CN11: 0.000137 | CO11: 0.000137 | CP11: 0.000137 | CQ11: 0.000137 | CR11: 0.000137 | CS11: 0.000137 | CT11: 0.000137 | CU11: 0.000137 | CV11: 0.000137 | CW11: 0.000137 | CX11: 0.000137
A12: 8 | B12: 0.000124 | C12: 0.000124 | D12: 0.000124 | E12: 0.000124 | F12: 0.000124 | G12: 0.000124 | H12: 0.000124 | I12: 0.000124 | J12: 0.000124 | K12: 0.000124 | L12: 0.000124 | M12: 0.000124 | N12: 0.000124 | O12: 0.000124 | P12: 0.000124 | Q12: 0.000124 | R12: 0.000124 | S12: 0.000124 | T12: 0.000124 | U12: 0.000124 | V12: 0.000124 | W12: 0.000124 | X12: 0.000124 | Y12: 0.000124 | Z12: 0.000124 | AA12: 0.000124 | AB12: 0.000124 | AC12: 0.000124 | AD12: 0.000124 | AE12: 0.000124 | AF12: 0.000124 | AG12: 0.000124 | AH12: 0.000124 | AI12: 0.000124 | AJ12: 0.000124 | AK12: 0.000124 | AL12: 0.000124 | AM12: 0.000124 | AN12: 0.000124 | AO12: 0.000124 | AP12: 0.000124 | AQ12: 0.000124 | AR12: 0.000124 | AS12: 0.000124 | AT12: 0.000124 | AU12: 0.000124 | AV12: 0.000124 | AW12: 0.000124 | AX12: 0.000124 | AY12: 0.000124 | AZ12: 0.000124 | BA12: 0.000124 | BB12: 0.000124 | BC12: 0.000124 | BD12: 0.000124 | BE12: 0.000124 | BF12: 0.000124 | BG12: 0.000124 | BH12: 0.000124 | BI12: 0.000124 | BJ12: 0.000124 | BK12: 0.000124 | BL12: 0.000124 | BM12: 0.000124 | BN12: 0.000124 | BO12: 0.000124 | BP12: 0.000124 | BQ12: 0.000124 | BR12: 0.000124 | BS12: 0.000124 | BT12: 0.000124 | BU12: 0.000124 | BV12: 0.000124 | BW12: 0.000124 | BX12: 0.000124 | BY12: 0.000124 | BZ12: 0.000124 | CA12: 0.000124 | CB12: 0.000124 | CC12: 0.000124 | CD12: 0.000124 | CE12: 0.000124 | CF12: 0.000124 | CG12: 0.000124 | CH12: 0.000124 | CI12: 0.000124 | CJ12: 0.000124 | CK12: 0.000124 | CL12: 0.000124 | CM12: 0.000124 | CN12: 0.000124 | CO12: 0.000124 | CP12: 0.000124 | CQ12: 0.000124 | CR12: 0.000124 | CS12: 0.000124 | CT12: 0.000124 | CU12: 0.000124 | CV12: 0.000124 | CW12: 0.000124 | CX12: 0.000124
A13: 9 | B13: 0.000107 | C13: 0.000107 | D13: 0.000107 | E13: 0.000107 | F13: 0.000107 | G13: 0.000107 | H13: 0.000107 | I13: 0.000107 | J13: 0.000107 | K13: 0.000107 | L13: 0.000107 | M13: 0.000107 | N13: 0.000107 | O13: 0.000107 | P13: 0.000107 | Q13: 0.000107 | R13: 0.000107 | S13: 0.000107 | T13: 0.000107 | U13: 0.000107 | V13: 0.000107 | W13: 0.000107 | X13: 0.000107 | Y13: 0.000107 | Z13: 0.000107 | AA13: 0.000107 | AB13: 0.000107 | AC13: 0.000107 | AD13: 0.000107 | AE13: 0.000107 | AF13: 0.000107 | AG13: 0.000107 | AH13: 0.000107 | AI13: 0.000107 | AJ13: 0.000107 | AK13: 0.000107 | AL13: 0.000107 | AM13: 0.000107 | AN13: 0.000107 | AO13: 0.000107 | AP13: 0.000107 | AQ13: 0.000107 | AR13: 0.000107 | AS13: 0.000107 | AT13: 0.000107 | AU13: 0.000107 | AV13: 0.000107 | AW13: 0.000107 | AX13: 0.000107 | AY13: 0.000107 | AZ13: 0.000107 | BA13: 0.000107 | BB13: 0.000107 | BC13: 0.000107 | BD13: 0.000107 | BE13: 0.000107 | BF13: 0.000107 | BG13: 0.000107 | BH13: 0.000107 | BI13: 0.000107 | BJ13: 0.000107 | BK13: 0.000107 | BL13: 0.000107 | BM13: 0.000107 | BN13: 0.000107 | BO13: =IF(BO$2=0,$B$4:$B$124,$B$4:$B$124*BO$2) -> 0.000107 | BP13: 0.000107 | BQ13: 0.000107 | BR13: 0.000107 | BS13: 0.000107 | BT13: 0.000107 | BU13: 0.000107 | BV13: 0.000107 | BW13: 0.000107 | BX13: 0.000107 | BY13: 0.000107 | BZ13: 0.000107 | CA13: 0.000107 | CB13: 0.000107 | CC13: 0.000107 | CD13: 0.000107 | CE13: 0.000107 | CF13: 0.000107 | CG13: 0.000107 | CH13: 0.000107 | CI13: 0.000107 | CJ13: 0.000107 | CK13: 0.000107 | CL13: 0.000107 | CM13: 0.000107 | CN13: 0.000107 | CO13: 0.000107 | CP13: 0.000107 | CQ13: 0.000107 | CR13: 0.000107 | CS13: 0.000107 | CT13: 0.000107 | CU13: 0.000107 | CV13: 0.000107 | CW13: 0.000107 | CX13: 0.000107
A14: 10 | B14: 9.45e-05 | C14: 9.45e-05 | D14: =IF(D$2=0,$B$4:$B$124,$B$4:$B$124*D$2) -> 9.45e-05 | E14: 9.45e-05 | F14: 9.45e-05 | G14: 9.45e-05 | H14: 9.45e-05 | I14: 9.45e-05 | J14: 9.45e-05 | K14: 9.45e-05 | L14: 9.45e-05 | M14: 9.45e-05 | N14: 9.45e-05 | O14: 9.45e-05 | P14: 9.45e-05 | Q14: 9.45e-05 | R14: 9.45e-05 | S14: 9.45e-05 | T14: 9.45e-05 | U14: 9.45e-05 | V14: 9.45e-05 | W14: 9.45e-05 | X14: 9.45e-05 | Y14: 9.45e-05 | Z14: 9.45e-05 | AA14: 9.45e-05 | AB14: 9.45e-05 | AC14: 9.45e-05 | AD14: 9.45e-05 | AE14: 9.45e-05 | AF14: 9.45e-05 | AG14: 9.45e-05 | AH14: 9.45e-05 | AI14: 9.45e-05 | AJ14: 9.45e-05 | AK14: 9.45e-05 | AL14: 9.45e-05 | AM14: 9.45e-05 | AN14: 9.45e-05 | AO14: 9.45e-05 | AP14: 9.45e-05 | AQ14: 9.45e-05 | AR14: 9.45e-05 | AS14: 9.45e-05 | AT14: 9.45e-05 | AU14: 9.45e-05 | AV14: 9.45e-05 | AW14: 9.45e-05 | AX14: 9.45e-05 | AY14: 9.45e-05 | AZ14: 9.45e-05 | BA14: 9.45e-05 | BB14: 9.45e-05 | BC14: 9.45e-05 | BD14: 9.45e-05 | BE14: 9.45e-05 | BF14: 9.45e-05 | BG14: 9.45e-05 | BH14: 9.45e-05 | BI14: 9.45e-05 | BJ14: 9.45e-05 | BK14: 9.45e-05 | BL14: 9.45e-05 | BM14: 9.45e-05 | BN14: 9.45e-05 | BO14: 9.45e-05 | BP14: 9.45e-05 | BQ14: 9.45e-05 | BR14: 9.45e-05 | BS14: 9.45e-05 | BT14: 9.45e-05 | BU14: 9.45e-05 | BV14: 9.45e-05 | BW14: 9.45e-05 | BX14: 9.45e-05 | BY14: 9.45e-05 | BZ14: 9.45e-05 | CA14: 9.45e-05 | CB14: 9.45e-05 | CC14: 9.45e-05 | CD14: 9.45e-05 | CE14: 9.45e-05 | CF14: 9.45e-05 | CG14: 9.45e-05 | CH14: 9.45e-05 | CI14: 9.45e-05 | CJ14: 9.45e-05 | CK14: 9.45e-05 | CL14: 9.45e-05 | CM14: 9.45e-05 | CN14: 9.45e-05 | CO14: 9.45e-05 | CP14: 9.45e-05 | CQ14: 9.45e-05 | CR14: 9.45e-05 | CS14: 9.45e-05 | CT14: 9.45e-05 | CU14: 9.45e-05 | CV14: 9.45e-05 | CW14: 9.45e-05 | CX14: 9.45e-05
A15: 11 | B15: 9.8e-05 | C15: 9.8e-05 | D15: 9.8e-05 | E15: 9.8e-05 | F15: 9.8e-05 | G15: 9.8e-05 | H15: 9.8e-05 | I15: 9.8e-05 | J15: 9.8e-05 | K15: 9.8e-05 | L15: 9.8e-05 | M15: 9.8e-05 | N15: 9.8e-05 | O15: 9.8e-05 | P15: 9.8e-05 | Q15: 9.8e-05 | R15: 9.8e-05 | S15: 9.8e-05 | T15: 9.8e-05 | U15: 9.8e-05 | V15: 9.8e-05 | W15: 9.8e-05 | X15: 9.8e-05 | Y15: 9.8e-05 | Z15: 9.8e-05 | AA15: 9.8e-05 | AB15: 9.8e-05 | AC15: 9.8e-05 | AD15: 9.8e-05 | AE15: 9.8e-05 | AF15: 9.8e-05 | AG15: 9.8e-05 | AH15: 9.8e-05 | AI15: 9.8e-05 | AJ15: 9.8e-05 | AK15: 9.8e-05 | AL15: 9.8e-05 | AM15: 9.8e-05 | AN15: 9.8e-05 | AO15: 9.8e-05 | AP15: 9.8e-05 | AQ15: 9.8e-05 | AR15: 9.8e-05 | AS15: 9.8e-05 | AT15: 9.8e-05 | AU15: 9.8e-05 | AV15: 9.8e-05 | AW15: 9.8e-05 | AX15: 9.8e-05 | AY15: 9.8e-05 | AZ15: 9.8e-05 | BA15: 9.8e-05 | BB15: 9.8e-05 | BC15: 9.8e-05 | BD15: 9.8e-05 | BE15: 9.8e-05 | BF15: 9.8e-05 | BG15: 9.8e-05 | BH15: 9.8e-05 | BI15: 9.8e-05 | BJ15: 9.8e-05 | BK15: 9.8e-05 | BL15: 9.8e-05 | BM15: 9.8e-05 | BN15: 9.8e-05 | BO15: 9.8e-05 | BP15: 9.8e-05 | BQ15: 9.8e-05 | BR15: 9.8e-05 | BS15: 9.8e-05 | BT15: 9.8e-05 | BU15: 9.8e-05 | BV15: 9.8e-05 | BW15: 9.8e-05 | BX15: 9.8e-05 | BY15: 9.8e-05 | BZ15: 9.8e-05 | CA15: 9.8e-05 | CB15: 9.8e-05 | CC15: 9.8e-05 | CD15: 9.8e-05 | CE15: 9.8e-05 | CF15: 9.8e-05 | CG15: 9.8e-05 | CH15: 9.8e-05 | CI15: 9.8e-05 | CJ15: 9.8e-05 | CK15: 9.8e-05 | CL15: 9.8e-05 | CM15: 9.8e-05 | CN15: 9.8e-05 | CO15: 9.8e-05 | CP15: 9.8e-05 | CQ15: 9.8e-05 | CR15: 9.8e-05 | CS15: 9.8e-05 | CT15: 9.8e-05 | CU15: 9.8e-05 | CV15: 9.8e-05 | CW15: 9.8e-05 | CX15: 9.8e-05
A16: 12 | B16: 0.0001325 | C16: 0.0001325 | D16: 0.0001325 | E16: 0.0001325 | F16: 0.0001325 | G16: 0.0001325 | H16: 0.0001325 | I16: 0.0001325 | J16: 0.0001325 | K16: 0.0001325 | L16: 0.0001325 | M16: 0.0001325 | N16: 0.0001325 | O16: 0.0001325 | P16: 0.0001325 | Q16: 0.0001325 | R16: 0.0001325 | S16: 0.0001325 | T16: 0.0001325 | U16: 0.0001325 | V16: 0.0001325 | W16: 0.0001325 | X16: 0.0001325 | Y16: 0.0001325 | Z16: 0.0001325 | AA16: 0.0001325 | AB16: 0.0001325 | AC16: 0.0001325 | AD16: 0.0001325 | AE16: 0.0001325 | AF16: 0.0001325 | AG16: 0.0001325 | AH16: 0.0001325 | AI16: 0.0001325 | AJ16: 0.0001325 | AK16: 0.0001325 | AL16: 0.0001325 | AM16: 0.0001325 | AN16: 0.0001325 | AO16: 0.0001325 | AP16: 0.0001325 | AQ16: 0.0001325 | AR16: 0.0001325 | AS16: 0.0001325 | AT16: 0.0001325 | AU16: 0.0001325 | AV16: 0.0001325 | AW16: 0.0001325 | AX16: 0.0001325 | AY16: 0.0001325 | AZ16: 0.0001325 | BA16: 0.0001325 | BB16: 0.0001325 | BC16: 0.0001325 | BD16: 0.0001325 | BE16: 0.0001325 | BF16: 0.0001325 | BG16: 0.0001325 | BH16: 0.0001325 | BI16: 0.0001325 | BJ16: 0.0001325 | BK16: 0.0001325 | BL16: 0.0001325 | BM16: 0.0001325 | BN16: 0.0001325 | BO16: 0.0001325 | BP16: 0.0001325 | BQ16: 0.0001325 | BR16: 0.0001325 | BS16: 0.0001325 | BT16: 0.0001325 | BU16: 0.0001325 | BV16: 0.0001325 | BW16: 0.0001325 | BX16: 0.0001325 | BY16: 0.0001325 | BZ16: 0.0001325 | CA16: 0.0001325 | CB16: 0.0001325 | CC16: 0.0001325 | CD16: 0.0001325 | CE16: 0.0001325 | CF16: 0.0001325 | CG16: 0.0001325 | CH16: 0.0001325 | CI16: 0.0001325 | CJ16: 0.0001325 | CK16: 0.0001325 | CL16: 0.0001325 | CM16: 0.0001325 | CN16: 0.0001325 | CO16: 0.0001325 | CP16: 0.0001325 | CQ16: 0.0001325 | CR16: 0.0001325 | CS16: 0.0001325 | CT16: 0.0001325 | CU16: 0.0001325 | CV16: 0.0001325 | CW16: 0.0001325 | CX16: 0.0001325
A17: 13 | B17: 0.0002045 | C17: 0.0002045 | D17: 0.0002045 | E17: 0.0002045 | F17: 0.0002045 | G17: 0.0002045 | H17: 0.0002045 | I17: 0.0002045 | J17: 0.0002045 | K17: 0.0002045 | L17: 0.0002045 | M17: 0.0002045 | N17: 0.0002045 | O17: 0.0002045 | P17: 0.0002045 | Q17: 0.0002045 | R17: 0.0002045 | S17: 0.0002045 | T17: 0.0002045 | U17: 0.0002045 | V17: 0.0002045 | W17: 0.0002045 | X17: 0.0002045 | Y17: 0.0002045 | Z17: 0.0002045 | AA17: 0.0002045 | AB17: 0.0002045 | AC17: 0.0002045 | AD17: 0.0002045 | AE17: 0.0002045 | AF17: 0.0002045 | AG17: 0.0002045 | AH17: 0.0002045 | AI17: 0.0002045 | AJ17: 0.0002045 | AK17: 0.0002045 | AL17: 0.0002045 | AM17: 0.0002045 | AN17: 0.0002045 | AO17: 0.0002045 | AP17: 0.0002045 | AQ17: 0.0002045 | AR17: 0.0002045 | AS17: 0.0002045 | AT17: 0.0002045 | AU17: 0.0002045 | AV17: 0.0002045 | AW17: 0.0002045 | AX17: 0.0002045 | AY17: 0.0002045 | AZ17: 0.0002045 | BA17: 0.0002045 | BB17: 0.0002045 | BC17: 0.0002045 | BD17: 0.0002045 | BE17: 0.0002045 | BF17: 0.0002045 | BG17: 0.0002045 | BH17: 0.0002045 | BI17: 0.0002045 | BJ17: 0.0002045 | BK17: 0.0002045 | BL17: 0.0002045 | BM17: 0.0002045 | BN17: 0.0002045 | BO17: =IF(BO$2=0,$B$4:$B$124,$B$4:$B$124*BO$2) -> 0.0002045 | BP17: 0.0002045 | BQ17: 0.0002045 | BR17: 0.0002045 | BS17: 0.0002045 | BT17: 0.0002045 | BU17: 0.0002045 | BV17: 0.0002045 | BW17: 0.0002045 | BX17: 0.0002045 | BY17: 0.0002045 | BZ17: 0.0002045 | CA17: 0.0002045 | CB17: 0.0002045 | CC17: 0.0002045 | CD17: 0.0002045 | CE17: 0.0002045 | CF17: 0.0002045 | CG17: 0.0002045 | CH17: 0.0002045 | CI17: 0.0002045 | CJ17: 0.0002045 | CK17: 0.0002045 | CL17: 0.0002045 | CM17: 0.0002045 | CN17: 0.0002045 | CO17: 0.0002045 | CP17: 0.0002045 | CQ17: 0.0002045 | CR17: 0.0002045 | CS17: 0.0002045 | CT17: 0.0002045 | CU17: 0.0002045 | CV17: 0.0002045 | CW17: 0.0002045 | CX17: 0.0002045
A18: 14 | B18: 0.000305 | C18: 0.000305 | D18: =IF(D$2=0,$B$4:$B$124,$B$4:$B$124*D$2) -> 0.000305 | E18: 0.000305 | F18: 0.000305 | G18: 0.000305 | H18: 0.000305 | I18: 0.000305 | J18: 0.000305 | K18: 0.000305 | L18: 0.000305 | M18: 0.000305 | N18: 0.000305 | O18: 0.000305 | P18: 0.000305 | Q18: 0.000305 | R18: 0.000305 | S18: 0.000305 | T18: 0.000305 | U18: 0.000305 | V18: 0.000305 | W18: 0.000305 | X18: 0.000305 | Y18: 0.000305 | Z18: 0.000305 | AA18: 0.000305 | AB18: 0.000305 | AC18: 0.000305 | AD18: 0.000305 | AE18: 0.000305 | AF18: 0.000305 | AG18: 0.000305 | AH18: 0.000305 | AI18: 0.000305 | AJ18: 0.000305 | AK18: 0.000305 | AL18: 0.000305 | AM18: 0.000305 | AN18: 0.000305 | AO18: 0.000305 | AP18: 0.000305 | AQ18: 0.000305 | AR18: 0.000305 | AS18: 0.000305 | AT18: 0.000305 | AU18: 0.000305 | AV18: 0.000305 | AW18: 0.000305 | AX18: 0.000305 | AY18: 0.000305 | AZ18: 0.000305 | BA18: 0.000305 | BB18: 0.000305 | BC18: 0.000305 | BD18: 0.000305 | BE18: 0.000305 | BF18: 0.000305 | BG18: 0.000305 | BH18: 0.000305 | BI18: 0.000305 | BJ18: 0.000305 | BK18: 0.000305 | BL18: 0.000305 | BM18: 0.000305 | BN18: 0.000305 | BO18: 0.000305 | BP18: 0.000305 | BQ18: 0.000305 | BR18: 0.000305 | BS18: 0.000305 | BT18: 0.000305 | BU18: 0.000305 | BV18: 0.000305 | BW18: 0.000305 | BX18: 0.000305 | BY18: 0.000305 | BZ18: 0.000305 | CA18: 0.000305 | CB18: 0.000305 | CC18: 0.000305 | CD18: 0.000305 | CE18: 0.000305 | CF18: 0.000305 | CG18: 0.000305 | CH18: 0.000305 | CI18: 0.000305 | CJ18: 0.000305 | CK18: 0.000305 | CL18: 0.000305 | CM18: 0.000305 | CN18: 0.000305 | CO18: 0.000305 | CP18: 0.000305 | CQ18: 0.000305 | CR18: 0.000305 | CS18: 0.000305 | CT18: 0.000305 | CU18: 0.000305 | CV18: 0.000305 | CW18: 0.000305 | CX18: 0.000305
A19: 15 | B19: 0.000415 | C19: 0.000415 | D19: 0.000415 | E19: 0.000415 | F19: 0.000415 | G19: 0.000415 | H19: 0.000415 | I19: 0.000415 | J19: 0.000415 | K19: 0.000415 | L19: 0.000415 | M19: 0.000415 | N19: 0.000415 | O19: 0.000415 | P19: 0.000415 | Q19: 0.000415 | R19: 0.000415 | S19: 0.000415 | T19: 0.000415 | U19: 0.000415 | V19: 0.000415 | W19: 0.000415 | X19: 0.000415 | Y19: 0.000415 | Z19: 0.000415 | AA19: 0.000415 | AB19: 0.000415 | AC19: 0.000415 | AD19: 0.000415 | AE19: 0.000415 | AF19: 0.000415 | AG19: 0.000415 | AH19: 0.000415 | AI19: 0.000415 | AJ19: 0.000415 | AK19: 0.000415 | AL19: 0.000415 | AM19: 0.000415 | AN19: 0.000415 | AO19: 0.000415 | AP19: 0.000415 | AQ19: 0.000415 | AR19: 0.000415 | AS19: 0.000415 | AT19: 0.000415 | AU19: 0.000415 | AV19: 0.000415 | AW19: 0.000415 | AX19: 0.000415 | AY19: 0.000415 | AZ19: 0.000415 | BA19: 0.000415 | BB19: 0.000415 | BC19: 0.000415 | BD19: 0.000415 | BE19: 0.000415 | BF19: 0.000415 | BG19: 0.000415 | BH19: 0.000415 | BI19: 0.000415 | BJ19: 0.000415 | BK19: 0.000415 | BL19: 0.000415 | BM19: 0.000415 | BN19: 0.000415 | BO19: 0.000415 | BP19: 0.000415 | BQ19: 0.000415 | BR19: 0.000415 | BS19: 0.000415 | BT19: 0.000415 | BU19: 0.000415 | BV19: 0.000415 | BW19: 0.000415 | BX19: 0.000415 | BY19: 0.000415 | BZ19: 0.000415 | CA19: 0.000415 | CB19: 0.000415 | CC19: 0.000415 | CD19: 0.000415 | CE19: 0.000415 | CF19: 0.000415 | CG19: 0.000415 | CH19: 0.000415 | CI19: 0.000415 | CJ19: 0.000415 | CK19: 0.000415 | CL19: 0.000415 | CM19: 0.000415 | CN19: 0.000415 | CO19: 0.000415 | CP19: 0.000415 | CQ19: 0.000415 | CR19: 0.000415 | CS19: 0.000415 | CT19: 0.000415 | CU19: 0.000415 | CV19: 0.000415 | CW19: 0.000415 | CX19: 0.000415
A20: 16 | B20: 0.000521 | C20: 0.000521 | D20: 0.000521 | E20: 0.000521 | F20: 0.000521 | G20: 0.000521 | H20: 0.000521 | I20: 0.000521 | J20: 0.000521 | K20: 0.000521 | L20: 0.000521 | M20: 0.000521 | N20: 0.000521 | O20: 0.000521 | P20: 0.000521 | Q20: 0.000521 | R20: 0.000521 | S20: 0.000521 | T20: 0.000521 | U20: 0.000521 | V20: 0.000521 | W20: 0.000521 | X20: 0.000521 | Y20: 0.000521 | Z20: 0.000521 | AA20: 0.000521 | AB20: 0.000521 | AC20: 0.000521 | AD20: 0.000521 | AE20: 0.000521 | AF20: 0.000521 | AG20: 0.000521 | AH20: 0.000521 | AI20: 0.000521 | AJ20: 0.000521 | AK20: 0.000521 | AL20: 0.000521 | AM20: 0.000521 | AN20: 0.000521 | AO20: 0.000521 | AP20: 0.000521 | AQ20: 0.000521 | AR20: 0.000521 | AS20: 0.000521 | AT20: 0.000521 | AU20: 0.000521 | AV20: 0.000521 | AW20: 0.000521 | AX20: 0.000521 | AY20: 0.000521 | AZ20: 0.000521 | BA20: 0.000521 | BB20: 0.000521 | BC20: 0.000521 | BD20: 0.000521 | BE20: 0.000521 | BF20: 0.000521 | BG20: 0.000521 | BH20: 0.000521 | BI20: 0.000521 | BJ20: 0.000521 | BK20: 0.000521 | BL20: 0.000521 | BM20: 0.000521 | BN20: 0.000521 | BO20: 0.000521 | BP20: 0.000521 | BQ20: 0.000521 | BR20: 0.000521 | BS20: 0.000521 | BT20: 0.000521 | BU20: 0.000521 | BV20: 0.000521 | BW20: 0.000521 | BX20: 0.000521 | BY20: 0.000521 | BZ20: 0.000521 | CA20: 0.000521 | CB20: 0.000521 | CC20: 0.000521 | CD20: 0.000521 | CE20: 0.000521 | CF20: 0.000521 | CG20: 0.000521 | CH20: 0.000521 | CI20: 0.000521 | CJ20: 0.000521 | CK20: 0.000521 | CL20: 0.000521 | CM20: 0.000521 | CN20: 0.000521 | CO20: 0.000521 | CP20: 0.000521 | CQ20: 0.000521 | CR20: 0.000521 | CS20: 0.000521 | CT20: 0.000521 | CU20: 0.000521 | CV20: 0.000521 | CW20: 0.000521 | CX20: 0.000521
A21: 17 | B21: 0.000621 | C21: 0.000621 | D21: 0.000621 | E21: 0.000621 | F21: 0.000621 | G21: 0.000621 | H21: 0.000621 | I21: 0.000621 | J21: 0.000621 | K21: 0.000621 | L21: 0.000621 | M21: 0.000621 | N21: 0.000621 | O21: 0.000621 | P21: 0.000621 | Q21: 0.000621 | R21: 0.000621 | S21: 0.000621 | T21: 0.000621 | U21: 0.000621 | V21: 0.000621 | W21: 0.000621 | X21: 0.000621 | Y21: 0.000621 | Z21: 0.000621 | AA21: 0.000621 | AB21: 0.000621 | AC21: 0.000621 | AD21: 0.000621 | AE21: 0.000621 | AF21: 0.000621 | AG21: 0.000621 | AH21: 0.000621 | AI21: 0.000621 | AJ21: 0.000621 | AK21: 0.000621 | AL21: 0.000621 | AM21: 0.000621 | AN21: 0.000621 | AO21: 0.000621 | AP21: 0.000621 | AQ21: 0.000621 | AR21: 0.000621 | AS21: 0.000621 | AT21: 0.000621 | AU21: 0.000621 | AV21: 0.000621 | AW21: 0.000621 | AX21: 0.000621 | AY21: 0.000621 | AZ21: 0.000621 | BA21: 0.000621 | BB21: 0.000621 | BC21: 0.000621 | BD21: 0.000621 | BE21: 0.000621 | BF21: 0.000621 | BG21: 0.000621 | BH21: 0.000621 | BI21: 0.000621 | BJ21: 0.000621 | BK21: 0.000621 | BL21: 0.000621 | BM21: 0.000621 | BN21: 0.000621 | BO21: =IF(BO$2=0,$B$4:$B$124,$B$4:$B$124*BO$2) -> 0.000621 | BP21: 0.000621 | BQ21: 0.000621 | BR21: 0.000621 | BS21: 0.000621 | BT21: 0.000621 | BU21: 0.000621 | BV21: 0.000621 | BW21: 0.000621 | BX21: 0.000621 | BY21: 0.000621 | BZ21: 0.000621 | CA21: 0.000621 | CB21: 0.000621 | CC21: 0.000621 | CD21: 0.000621 | CE21: 0.000621 | CF21: 0.000621 | CG21: 0.000621 | CH21: 0.000621 | CI21: 0.000621 | CJ21: 0.000621 | CK21: 0.000621 | CL21: 0.000621 | CM21: 0.000621 | CN21: 0.000621 | CO21: 0.000621 | CP21: 0.000621 | CQ21: 0.000621 | CR21: 0.000621 | CS21: 0.000621 | CT21: 0.000621 | CU21: 0.000621 | CV21: 0.000621 | CW21: 0.000621 | CX21: 0.000621
A22: 18 | B22: 0.000709 | C22: 0.000709 | D22: =IF(D$2=0,$B$4:$B$124,$B$4:$B$124*D$2) -> 0.000709 | E22: 0.000709 | F22: 0.000709 | G22: 0.000709 | H22: 0.000709 | I22: 0.000709 | J22: 0.000709 | K22: 0.000709 | L22: 0.000709 | M22: 0.000709 | N22: 0.000709 | O22: 0.000709 | P22: 0.000709 | Q22: 0.000709 | R22: 0.000709 | S22: 0.000709 | T22: 0.000709 | U22: 0.000709 | V22: 0.000709 | W22: 0.000709 | X22: 0.000709 | Y22: 0.000709 | Z22: 0.000709 | AA22: 0.000709 | AB22: 0.000709 | AC22: 0.000709 | AD22: 0.000709 | AE22: 0.000709 | AF22: 0.000709 | AG22: 0.000709 | AH22: 0.000709 | AI22: 0.000709 | AJ22: 0.000709 | AK22: 0.000709 | AL22: 0.000709 | AM22: 0.000709 | AN22: 0.000709 | AO22: 0.000709 | AP22: 0.000709 | AQ22: 0.000709 | AR22: 0.000709 | AS22: 0.000709 | AT22: 0.000709 | AU22: 0.000709 | AV22: 0.000709 | AW22: 0.000709 | AX22: 0.000709 | AY22: 0.000709 | AZ22: 0.000709 | BA22: 0.000709 | BB22: 0.000709 | BC22: 0.000709 | BD22: 0.000709 | BE22: 0.000709 | BF22: 0.000709 | BG22: 0.000709 | BH22: 0.000709 | BI22: 0.000709 | BJ22: 0.000709 | BK22: 0.000709 | BL22: 0.000709 | BM22: 0.000709 | BN22: 0.000709 | BO22: 0.000709 | BP22: 0.000709 | BQ22: 0.000709 | BR22: 0.000709 | BS22: 0.000709 | BT22: 0.000709 | BU22: 0.000709 | BV22: 0.000709 | BW22: 0.000709 | BX22: 0.000709 | BY22: 0.000709 | BZ22: 0.000709 | CA22: 0.000709 | CB22: 0.000709 | CC22: 0.000709 | CD22: 0.000709 | CE22: 0.000709 | CF22: 0.000709 | CG22: 0.000709 | CH22: 0.000709 | CI22: 0.000709 | CJ22: 0.000709 | CK22: 0.000709 | CL22: 0.000709 | CM22: 0.000709 | CN22: 0.000709 | CO22: 0.000709 | CP22: 0.000709 | CQ22: 0.000709 | CR22: 0.000709 | CS22: 0.000709 | CT22: 0.000709 | CU22: 0.000709 | CV22: 0.000709 | CW22: 0.000709 | CX22: 0.000709
A23: 19 | B23: 0.000785 | C23: 0.000785 | D23: 0.000785 | E23: 0.000785 | F23: 0.000785 | G23: 0.000785 | H23: 0.000785 | I23: 0.000785 | J23: 0.000785 | K23: 0.000785 | L23: 0.000785 | M23: 0.000785 | N23: 0.000785 | O23: 0.000785 | P23: 0.000785 | Q23: 0.000785 | R23: 0.000785 | S23: 0.000785 | T23: 0.000785 | U23: 0.000785 | V23: 0.000785 | W23: 0.000785 | X23: 0.000785 | Y23: 0.000785 | Z23: 0.000785 | AA23: 0.000785 | AB23: 0.000785 | AC23: 0.000785 | AD23: 0.000785 | AE23: 0.000785 | AF23: 0.000785 | AG23: 0.000785 | AH23: 0.000785 | AI23: 0.000785 | AJ23: 0.000785 | AK23: 0.000785 | AL23: 0.000785 | AM23: 0.000785 | AN23: 0.000785 | AO23: 0.000785 | AP23: 0.000785 | AQ23: 0.000785 | AR23: 0.000785 | AS23: 0.000785 | AT23: 0.000785 | AU23: 0.000785 | AV23: 0.000785 | AW23: 0.000785 | AX23: 0.000785 | AY23: 0.000785 | AZ23: 0.000785 | BA23: 0.000785 | BB23: 0.000785 | BC23: 0.000785 | BD23: 0.000785 | BE23: 0.000785 | BF23: 0.000785 | BG23: 0.000785 | BH23: 0.000785 | BI23: 0.000785 | BJ23: 0.000785 | BK23: 0.000785 | BL23: 0.000785 | BM23: 0.000785 | BN23: 0.000785 | BO23: 0.000785 | BP23: 0.000785 | BQ23: 0.000785 | BR23: 0.000785 | BS23: 0.000785 | BT23: 0.000785 | BU23: 0.000785 | BV23: 0.000785 | BW23: 0.000785 | BX23: 0.000785 | BY23: 0.000785 | BZ23: 0.000785 | CA23: 0.000785 | CB23: 0.000785 | CC23: 0.000785 | CD23: 0.000785 | CE23: 0.000785 | CF23: 0.000785 | CG23: 0.000785 | CH23: 0.000785 | CI23: 0.000785 | CJ23: 0.000785 | CK23: 0.000785 | CL23: 0.000785 | CM23: 0.000785 | CN23: 0.000785 | CO23: 0.000785 | CP23: 0.000785 | CQ23: 0.000785 | CR23: 0.000785 | CS23: 0.000785 | CT23: 0.000785 | CU23: 0.000785 | CV23: 0.000785 | CW23: 0.000785 | CX23: 0.000785
A24: 20 | B24: 0.000863 | C24: 0.000863 | D24: 0.000863 | E24: 0.000863 | F24: 0.000863 | G24: 0.000863 | H24: 0.000863 | I24: 0.000863 | J24: 0.000863 | K24: 0.000863 | L24: 0.000863 | M24: 0.000863 | N24: 0.000863 | O24: 0.000863 | P24: 0.000863 | Q24: 0.000863 | R24: 0.000863 | S24: 0.000863 | T24: 0.000863 | U24: 0.000863 | V24: 0.000863 | W24: 0.000863 | X24: 0.000863 | Y24: 0.000863 | Z24: 0.000863 | AA24: 0.000863 | AB24: 0.000863 | AC24: 0.000863 | AD24: 0.000863 | AE24: 0.000863 | AF24: 0.000863 | AG24: 0.000863 | AH24: 0.000863 | AI24: 0.000863 | AJ24: 0.000863 | AK24: 0.000863 | AL24: 0.000863 | AM24: 0.000863 | AN24: 0.000863 | AO24: 0.000863 | AP24: 0.000863 | AQ24: 0.000863 | AR24: 0.000863 | AS24: 0.000863 | AT24: 0.000863 | AU24: 0.000863 | AV24: 0.000863 | AW24: 0.000863 | AX24: 0.000863 | AY24: 0.000863 | AZ24: 0.000863 | BA24: 0.000863 | BB24: 0.000863 | BC24: 0.000863 | BD24: 0.000863 | BE24: 0.000863 | BF24: 0.000863 | BG24: 0.000863 | BH24: 0.000863 | BI24: 0.000863 | BJ24: 0.000863 | BK24: 0.000863 | BL24: 0.000863 | BM24: 0.000863 | BN24: 0.000863 | BO24: 0.000863 | BP24: 0.000863 | BQ24: 0.000863 | BR24: 0.000863 | BS24: 0.000863 | BT24: 0.000863 | BU24: 0.000863 | BV24: 0.000863 | BW24: 0.000863 | BX24: 0.000863 | BY24: 0.000863 | BZ24: 0.000863 | CA24: 0.000863 | CB24: 0.000863 | CC24: 0.000863 | CD24: 0.000863 | CE24: 0.000863 | CF24: 0.000863 | CG24: 0.000863 | CH24: 0.000863 | CI24: 0.000863 | CJ24: 0.000863 | CK24: 0.000863 | CL24: 0.000863 | CM24: 0.000863 | CN24: 0.000863 | CO24: 0.000863 | CP24: 0.000863 | CQ24: 0.000863 | CR24: 0.000863 | CS24: 0.000863 | CT24: 0.000863 | CU24: 0.000863 | CV24: 0.000863 | CW24: 0.000863 | CX24: 0.000863
A25: 21 | B25: 0.0009375 | C25: 0.0009375 | D25: 0.0009375 | E25: 0.0009375 | F25: 0.0009375 | G25: 0.0009375 | H25: 0.0009375 | I25: 0.0009375 | J25: 0.0009375 | K25: 0.0009375 | L25: 0.0009375 | M25: 0.0009375 | N25: 0.0009375 | O25: 0.0009375 | P25: 0.0009375 | Q25: 0.0009375 | R25: 0.0009375 | S25: 0.0009375 | T25: 0.0009375 | U25: 0.0009375 | V25: 0.0009375 | W25: 0.0009375 | X25: 0.0009375 | Y25: 0.0009375 | Z25: 0.0009375 | AA25: 0.0009375 | AB25: 0.0009375 | AC25: 0.0009375 | AD25: 0.0009375 | AE25: 0.0009375 | AF25: 0.0009375 | AG25: 0.0009375 | AH25: 0.0009375 | AI25: 0.0009375 | AJ25: 0.0009375 | AK25: 0.0009375 | AL25: 0.0009375 | AM25: 0.0009375 | AN25: 0.0009375 | AO25: 0.0009375 | AP25: 0.0009375 | AQ25: 0.0009375 | AR25: 0.0009375 | AS25: 0.0009375 | AT25: 0.0009375 | AU25: 0.0009375 | AV25: 0.0009375 | AW25: 0.0009375 | AX25: 0.0009375 | AY25: 0.0009375 | AZ25: 0.0009375 | BA25: 0.0009375 | BB25: 0.0009375 | BC25: 0.0009375 | BD25: 0.0009375 | BE25: 0.0009375 | BF25: 0.0009375 | BG25: 0.0009375 | BH25: 0.0009375 | BI25: 0.0009375 | BJ25: 0.0009375 | BK25: 0.0009375 | BL25: 0.0009375 | BM25: 0.0009375 | BN25: 0.0009375 | BO25: =IF(BO$2=0,$B$4:$B$124,$B$4:$B$124*BO$2) -> 0.0009375 | BP25: 0.0009375 | BQ25: 0.0009375 | BR25: 0.0009375 | BS25: 0.0009375 | BT25: 0.0009375 | BU25: 0.0009375 | BV25: 0.0009375 | BW25: 0.0009375 | BX25: 0.0009375 | BY25: 0.0009375 | BZ25: 0.0009375 | CA25: 0.0009375 | CB25: 0.0009375 | CC25: 0.0009375 | CD25: 0.0009375 | CE25: 0.0009375 | CF25: 0.0009375 | CG25: 0.0009375 | CH25: 0.0009375 | CI25: 0.0009375 | CJ25: 0.0009375 | CK25: 0.0009375 | CL25: 0.0009375 | CM25: 0.0009375 | CN25: 0.0009375 | CO25: 0.0009375 | CP25: 0.0009375 | CQ25: 0.0009375 | CR25: 0.0009375 | CS25: 0.0009375 | CT25: 0.0009375 | CU25: 0.0009375 | CV25: 0.0009375 | CW25: 0.0009375 | CX25: 0.0009375
A26: 22 | B26: 0.000988 | C26: 0.000988 | D26: =IF(D$2=0,$B$4:$B$124,$B$4:$B$124*D$2) -> 0.000988 | E26: 0.000988 | F26: 0.000988 | G26: 0.000988 | H26: 0.000988 | I26: 0.000988 | J26: 0.000988 | K26: 0.000988 | L26: 0.000988 | M26: 0.000988 | N26: 0.000988 | O26: 0.000988 | P26: 0.000988 | Q26: 0.000988 | R26: 0.000988 | S26: 0.000988 | T26: 0.000988 | U26: 0.000988 | V26: 0.000988 | W26: 0.000988 | X26: 0.000988 | Y26: 0.000988 | Z26: 0.000988 | AA26: 0.000988 | AB26: 0.000988 | AC26: 0.000988 | AD26: 0.000988 | AE26: 0.000988 | AF26: 0.000988 | AG26: 0.000988 | AH26: 0.000988 | AI26: 0.000988 | AJ26: 0.000988 | AK26: 0.000988 | AL26: 0.000988 | AM26: 0.000988 | AN26: 0.000988 | AO26: 0.000988 | AP26: 0.000988 | AQ26: 0.000988 | AR26: 0.000988 | AS26: 0.000988 | AT26: 0.000988 | AU26: 0.000988 | AV26: 0.000988 | AW26: 0.000988 | AX26: 0.000988 | AY26: 0.000988 | AZ26: 0.000988 | BA26: 0.000988 | BB26: 0.000988 | BC26: 0.000988 | BD26: 0.000988 | BE26: 0.000988 | BF26: 0.000988 | BG26: 0.000988 | BH26: 0.000988 | BI26: 0.000988 | BJ26: 0.000988 | BK26: 0.000988 | BL26: 0.000988 | BM26: 0.000988 | BN26: 0.000988 | BO26: 0.000988 | BP26: 0.000988 | BQ26: 0.000988 | BR26: 0.000988 | BS26: 0.000988 | BT26: 0.000988 | BU26: 0.000988 | BV26: 0.000988 | BW26: 0.000988 | BX26: 0.000988 | BY26: 0.000988 | BZ26: 0.000988 | CA26: 0.000988 | CB26: 0.000988 | CC26: 0.000988 | CD26: 0.000988 | CE26: 0.000988 | CF26: 0.000988 | CG26: 0.000988 | CH26: 0.000988 | CI26: 0.000988 | CJ26: 0.000988 | CK26: 0.000988 | CL26: 0.000988 | CM26: 0.000988 | CN26: 0.000988 | CO26: 0.000988 | CP26: 0.000988 | CQ26: 0.000988 | CR26: 0.000988 | CS26: 0.000988 | CT26: 0.000988 | CU26: 0.000988 | CV26: 0.000988 | CW26: 0.000988 | CX26: 0.000988
A27: 23 | B27: 0.001006 | C27: 0.001006 | D27: 0.001006 | E27: 0.001006 | F27: 0.001006 | G27: 0.001006 | H27: 0.001006 | I27: 0.001006 | J27: 0.001006 | K27: 0.001006 | L27: 0.001006 | M27: 0.001006 | N27: 0.001006 | O27: 0.001006 | P27: 0.001006 | Q27: 0.001006 | R27: 0.001006 | S27: 0.001006 | T27: 0.001006 | U27: 0.001006 | V27: 0.001006 | W27: 0.001006 | X27: 0.001006 | Y27: 0.001006 | Z27: 0.001006 | AA27: 0.001006 | AB27: 0.001006 | AC27: 0.001006 | AD27: 0.001006 | AE27: 0.001006 | AF27: 0.001006 | AG27: 0.001006 | AH27: 0.001006 | AI27: 0.001006 | AJ27: 0.001006 | AK27: 0.001006 | AL27: 0.001006 | AM27: 0.001006 | AN27: 0.001006 | AO27: 0.001006 | AP27: 0.001006 | AQ27: 0.001006 | AR27: 0.001006 | AS27: 0.001006 | AT27: 0.001006 | AU27: 0.001006 | AV27: 0.001006 | AW27: 0.001006 | AX27: 0.001006 | AY27: 0.001006 | AZ27: 0.001006 | BA27: 0.001006 | BB27: 0.001006 | BC27: 0.001006 | BD27: 0.001006 | BE27: 0.001006 | BF27: 0.001006 | BG27: 0.001006 | BH27: 0.001006 | BI27: 0.001006 | BJ27: 0.001006 | BK27: 0.001006 | BL27: 0.001006 | BM27: 0.001006 | BN27: 0.001006 | BO27: 0.001006 | BP27: 0.001006 | BQ27: 0.001006 | BR27: 0.001006 | BS27: 0.001006 | BT27: 0.001006 | BU27: 0.001006 | BV27: 0.001006 | BW27: 0.001006 | BX27: 0.001006 | BY27: 0.001006 | BZ27: 0.001006 | CA27: 0.001006 | CB27: 0.001006 | CC27: 0.001006 | CD27: 0.001006 | CE27: 0.001006 | CF27: 0.001006 | CG27: 0.001006 | CH27: 0.001006 | CI27: 0.001006 | CJ27: 0.001006 | CK27: 0.001006 | CL27: 0.001006 | CM27: 0.001006 | CN27: 0.001006 | CO27: 0.001006 | CP27: 0.001006 | CQ27: 0.001006 | CR27: 0.001006 | CS27: 0.001006 | CT27: 0.001006 | CU27: 0.001006 | CV27: 0.001006 | CW27: 0.001006 | CX27: 0.001006
A28: 24 | B28: 0.001 | C28: 0.001 | D28: 0.001 | E28: 0.001 | F28: 0.001 | G28: 0.001 | H28: 0.001 | I28: 0.001 | J28: 0.001 | K28: 0.001 | L28: 0.001 | M28: 0.001 | N28: 0.001 | O28: 0.001 | P28: 0.001 | Q28: 0.001 | R28: 0.001 | S28: 0.001 | T28: 0.001 | U28: 0.001 | V28: 0.001 | W28: 0.001 | X28: 0.001 | Y28: 0.001 | Z28: 0.001 | AA28: 0.001 | AB28: 0.001 | AC28: 0.001 | AD28: 0.001 | AE28: 0.001 | AF28: 0.001 | AG28: 0.001 | AH28: 0.001 | AI28: 0.001 | AJ28: 0.001 | AK28: 0.001 | AL28: 0.001 | AM28: 0.001 | AN28: 0.001 | AO28: 0.001 | AP28: 0.001 | AQ28: 0.001 | AR28: 0.001 | AS28: 0.001 | AT28: 0.001 | AU28: 0.001 | AV28: 0.001 | AW28: 0.001 | AX28: 0.001 | AY28: 0.001 | AZ28: 0.001 | BA28: 0.001 | BB28: 0.001 | BC28: 0.001 | BD28: 0.001 | BE28: 0.001 | BF28: 0.001 | BG28: 0.001 | BH28: 0.001 | BI28: 0.001 | BJ28: 0.001 | BK28: 0.001 | BL28: 0.001 | BM28: 0.001 | BN28: 0.001 | BO28: 0.001 | BP28: 0.001 | BQ28: 0.001 | BR28: 0.001 | BS28: 0.001 | BT28: 0.001 | BU28: 0.001 | BV28: 0.001 | BW28: 0.001 | BX28: 0.001 | BY28: 0.001 | BZ28: 0.001 | CA28: 0.001 | CB28: 0.001 | CC28: 0.001 | CD28: 0.001 | CE28: 0.001 | CF28: 0.001 | CG28: 0.001 | CH28: 0.001 | CI28: 0.001 | CJ28: 0.001 | CK28: 0.001 | CL28: 0.001 | CM28: 0.001 | CN28: 0.001 | CO28: 0.001 | CP28: 0.001 | CQ28: 0.001 | CR28: 0.001 | CS28: 0.001 | CT28: 0.001 | CU28: 0.001 | CV28: 0.001 | CW28: 0.001 | CX28: 0.001
A29: 25 | B29: 0.000987 | C29: 0.000987 | D29: 0.000987 | E29: 0.000987 | F29: 0.000987 | G29: 0.000987 | H29: 0.000987 | I29: 0.000987 | J29: 0.000987 | K29: 0.000987 | L29: 0.000987 | M29: 0.000987 | N29: 0.000987 | O29: 0.000987 | P29: 0.000987 | Q29: 0.000987 | R29: 0.000987 | S29: 0.000987 | T29: 0.000987 | U29: 0.000987 | V29: 0.000987 | W29: 0.000987 | X29: 0.000987 | Y29: 0.000987 | Z29: 0.000987 | AA29: 0.000987 | AB29: 0.000987 | AC29: 0.000987 | AD29: 0.000987 | AE29: 0.000987 | AF29: 0.000987 | AG29: 0.000987 | AH29: 0.000987 | AI29: 0.000987 | AJ29: 0.000987 | AK29: 0.000987 | AL29: 0.000987 | AM29: 0.000987 | AN29: 0.000987 | AO29: 0.000987 | AP29: 0.000987 | AQ29: 0.000987 | AR29: 0.000987 | AS29: 0.000987 | AT29: 0.000987 | AU29: 0.000987 | AV29: 0.000987 | AW29: 0.000987 | AX29: 0.000987 | AY29: 0.000987 | AZ29: 0.000987 | BA29: 0.000987 | BB29: 0.000987 | BC29: 0.000987 | BD29: 0.000987 | BE29: 0.000987 | BF29: 0.000987 | BG29: 0.000987 | BH29: 0.000987 | BI29: 0.000987 | BJ29: 0.000987 | BK29: 0.000987 | BL29: 0.000987 | BM29: 0.000987 | BN29: 0.000987 | BO29: =IF(BO$2=0,$B$4:$B$124,$B$4:$B$124*BO$2) -> 0.000987 | BP29: 0.000987 | BQ29: 0.000987 | BR29: 0.000987 | BS29: 0.000987 | BT29: 0.000987 | BU29: 0.000987 | BV29: 0.000987 | BW29: 0.000987 | BX29: 0.000987 | BY29: 0.000987 | BZ29: 0.000987 | CA29: 0.000987 | CB29: 0.000987 | CC29: 0.000987 | CD29: 0.000987 | CE29: 0.000987 | CF29: 0.000987 | CG29: 0.000987 | CH29: 0.000987 | CI29: 0.000987 | CJ29: 0.000987 | CK29: 0.000987 | CL29: 0.000987 | CM29: 0.000987 | CN29: 0.000987 | CO29: 0.000987 | CP29: 0.000987 | CQ29: 0.000987 | CR29: 0.000987 | CS29: 0.000987 | CT29: 0.000987 | CU29: 0.000987 | CV29: 0.000987 | CW29: 0.000987 | CX29: 0.000987
A30: 26 | B30: 0.000978 | C30: 0.000978 | D30: =IF(D$2=0,$B$4:$B$124,$B$4:$B$124*D$2) -> 0.000978 | E30: 0.000978 | F30: 0.000978 | G30: 0.000978 | H30: 0.000978 | I30: 0.000978 | J30: 0.000978 | K30: 0.000978 | L30: 0.000978 | M30: 0.000978 | N30: 0.000978 | O30: 0.000978 | P30: 0.000978 | Q30: 0.000978 | R30: 0.000978 | S30: 0.000978 | T30: 0.000978 | U30: 0.000978 | V30: 0.000978 | W30: 0.000978 | X30: 0.000978 | Y30: 0.000978 | Z30: 0.000978 | AA30: 0.000978 | AB30: 0.000978 | AC30: 0.000978 | AD30: 0.000978 | AE30: 0.000978 | AF30: 0.000978 | AG30: 0.000978 | AH30: 0.000978 | AI30: 0.000978 | AJ30: 0.000978 | AK30: 0.000978 | AL30: 0.000978 | AM30: 0.000978 | AN30: 0.000978 | AO30: 0.000978 | AP30: 0.000978 | AQ30: 0.000978 | AR30: 0.000978 | AS30: 0.000978 | AT30: 0.000978 | AU30: 0.000978 | AV30: 0.000978 | AW30: 0.000978 | AX30: 0.000978 | AY30: 0.000978 | AZ30: 0.000978 | BA30: 0.000978 | BB30: 0.000978 | BC30: 0.000978 | BD30: 0.000978 | BE30: 0.000978 | BF30: 0.000978 | BG30: 0.000978 | BH30: 0.000978 | BI30: 0.000978 | BJ30: 0.000978 | BK30: 0.000978 | BL30: 0.000978 | BM30: 0.000978 | BN30: 0.000978 | BO30: 0.000978 | BP30: 0.000978 | BQ30: 0.000978 | BR30: 0.000978 | BS30: 0.000978 | BT30: 0.000978 | BU30: 0.000978 | BV30: 0.000978 | BW30: 0.000978 | BX30: 0.000978 | BY30: 0.000978 | BZ30: 0.000978 | CA30: 0.000978 | CB30: 0.000978 | CC30: 0.000978 | CD30: 0.000978 | CE30: 0.000978 | CF30: 0.000978 | CG30: 0.000978 | CH30: 0.000978 | CI30: 0.000978 | CJ30: 0.000978 | CK30: 0.000978 | CL30: 0.000978 | CM30: 0.000978 | CN30: 0.000978 | CO30: 0.000978 | CP30: 0.000978 | CQ30: 0.000978 | CR30: 0.000978 | CS30: 0.000978 | CT30: 0.000978 | CU30: 0.000978 | CV30: 0.000978 | CW30: 0.000978 | CX30: 0.000978
A31: 27 | B31: 0.000976 | C31: 0.000976 | D31: 0.000976 | E31: 0.000976 | F31: 0.000976 | G31: 0.000976 | H31: 0.000976 | I31: 0.000976 | J31: 0.000976 | K31: 0.000976 | L31: 0.000976 | M31: 0.000976 | N31: 0.000976 | O31: 0.000976 | P31: 0.000976 | Q31: 0.000976 | R31: 0.000976 | S31: 0.000976 | T31: 0.000976 | U31: 0.000976 | V31: 0.000976 | W31: 0.000976 | X31: 0.000976 | Y31: 0.000976 | Z31: 0.000976 | AA31: 0.000976 | AB31: 0.000976 | AC31: 0.000976 | AD31: 0.000976 | AE31: 0.000976 | AF31: 0.000976 | AG31: 0.000976 | AH31: 0.000976 | AI31: 0.000976 | AJ31: 0.000976 | AK31: 0.000976 | AL31: 0.000976 | AM31: 0.000976 | AN31: 0.000976 | AO31: 0.000976 | AP31: 0.000976 | AQ31: 0.000976 | AR31: 0.000976 | AS31: 0.000976 | AT31: 0.000976 | AU31: 0.000976 | AV31: 0.000976 | AW31: 0.000976 | AX31: 0.000976 | AY31: 0.000976 | AZ31: 0.000976 | BA31: 0.000976 | BB31: 0.000976 | BC31: 0.000976 | BD31: 0.000976 | BE31: 0.000976 | BF31: 0.000976 | BG31: 0.000976 | BH31: 0.000976 | BI31: 0.000976 | BJ31: 0.000976 | BK31: 0.000976 | BL31: 0.000976 | BM31: 0.000976 | BN31: 0.000976 | BO31: 0.000976 | BP31: 0.000976 | BQ31: 0.000976 | BR31: 0.000976 | BS31: 0.000976 | BT31: 0.000976 | BU31: 0.000976 | BV31: 0.000976 | BW31: 0.000976 | BX31: 0.000976 | BY31: 0.000976 | BZ31: 0.000976 | CA31: 0.000976 | CB31: 0.000976 | CC31: 0.000976 | CD31: 0.000976 | CE31: 0.000976 | CF31: 0.000976 | CG31: 0.000976 | CH31: 0.000976 | CI31: 0.000976 | CJ31: 0.000976 | CK31: 0.000976 | CL31: 0.000976 | CM31: 0.000976 | CN31: 0.000976 | CO31: 0.000976 | CP31: 0.000976 | CQ31: 0.000976 | CR31: 0.000976 | CS31: 0.000976 | CT31: 0.000976 | CU31: 0.000976 | CV31: 0.000976 | CW31: 0.000976 | CX31: 0.000976
... 38 more rows

Sheet Fertility
B1: 2012 | C1: 2013 | D1: 2014 | E1: 2015 | F1: 2016 | G1: 2017 | H1: 2018 | I1: 2019 | J1: 2020 | K1: 2021 | L1: 2022 | M1: 2023 | N1: 2024 | O1: 2025 | P1: 2026 | Q1: 2027 | R1: 2028 | S1: 2029 | T1: 2030 | U1: 2031 | V1: 2032 | W1: 2033 | X1: 2034 | Y1: 2035 | Z1: 2036 | AA1: 2037 | AB1: 2038 | AC1: 2039 | AD1: 2040 | AE1: 2041 | AF1: 2042 | AG1: 2043 | AH1: 2044 | AI1: 2045 | AJ1: 2046 | AK1: 2047 | AL1: 2048 | AM1: 2049 | AN1: 2050 | AO1: 2051 | AP1: 2052 | AQ1: 2053 | AR1: 2054 | AS1: 2055 | AT1: 2056 | AU1: 2057 | AV1: 2058 | AW1: 2059 | AX1: 2060 | AY1: 2061 | AZ1: 2062 | BA1: 2063 | BB1: 2064 | BC1: 2065 | BD1: 2066 | BE1: 2067 | BF1: 2068 | BG1: 2069 | BH1: 2070 | BI1: 2071 | BJ1: 2072 | BK1: 2073 | BL1: 2074 | BM1: 2075 | BN1: 2076 | BO1: 2077 | BP1: 2078 | BQ1: 2079 | BR1: 2080 | BS1: 2081 | BT1: 2082 | BU1: 2083 | BV1: 2084 | BW1: 2085 | BX1: 2086 | BY1: 2087 | BZ1: 2088 | CA1: 2089 | CB1: 2090 | CC1: 2091 | CD1: 2092 | CE1: 2093 | CF1: 2094 | CG1: 2095 | CH1: 2096 | CI1: 2097 | CJ1: 2098 | CK1: 2099 | CL1: 2100 | CM1: 2101 | CN1: 2102 | CO1: 2103 | CP1: 2104 | CQ1: 2105 | CR1: 2106 | CS1: 2107 | CT1: 2108 | CU1: 2109 | CV1: 2110 | CW1: 2111 | CX1: 2112
A2: Change: | C2: 0 | D2: 0 | E2: 0 | F2: 0 | G2: 0 | H2: 0 | I2: 0 | J2: 0 | K2: 0 | L2: 0 | M2: 0 | N2: 0 | O2: 0 | P2: 0 | Q2: 0 | R2: 0 | S2: 0 | T2: 0 | U2: 0 | V2: 0 | W2: 0 | X2: 0 | Y2: 0 | Z2: 0 | AA2: 0 | AB2: 0 | AC2: 0 | AD2: 0 | AE2: 0 | AF2: 0 | AG2: 0 | AH2: 0 | AI2: 0 | AJ2: 0 | AK2: 0 | AL2: 0 | AM2: 0 | AN2: 0 | AO2: 0 | AP2: 0 | AQ2: 0 | AR2: 0 | AS2: 0 | AT2: 0 | AU2: 0 | AV2: 0 | AW2: 0 | AX2: 0 | AY2: 0 | AZ2: 0 | BA2: 0 | BB2: 0 | BC2: 0 | BD2: 0 | BE2: 0 | BF2: 0 | BG2: 0 | BH2: 0 | BI2: 0 | BJ2: 0 | BK2: 0 | BL2: 0 | BM2: 0 | BN2: 0 | BO2: 0 | BP2: 0 | BQ2: 0 | BR2: 0 | BS2: 0 | BT2: 0 | BU2: 0 | BV2: 0 | BW2: 0 | BX2: 0 | BY2: 0 | BZ2: 0 | CA2: 0 | CB2: 0 | CC2: 0 | CD2: 0 | CE2: 0 | CF2: 0 | CG2: 0 | CH2: 0 | CI2: 0 | CJ2: 0 | CK2: 0 | CL2: 0 | CM2: 0 | CN2: 0 | CO2: 0 | CP2: 0 | CQ2: 0 | CR2: 0 | CS2: 0 | CT2: 0 | CU2: 0 | CV2: 0 | CW2: 0 | CX2: 0
A3: Age
A4: 0 | B4: 0 | C4: =IF(C$2=0,$B$4:$B$124,$B$4:$B$124*C$2) -> 0 | D4: =IF(D$2=0,$B$4:$B$124,$B$4:$B$124*D$2) -> 0 | E4: 0 | F4: 0 | G4: 0 | H4: 0 | I4: 0 | J4: 0 | K4: 0 | L4: 0 | M4: 0 | N4: 0 | O4: 0 | P4: 0 | Q4: 0 | R4: 0 | S4: 0 | T4: 0 | U4: 0 | V4: 0 | W4: 0 | X4: 0 | Y4: 0 | Z4: 0 | AA4: 0 | AB4: 0 | AC4: 0 | AD4: 0 | AE4: 0 | AF4: 0 | AG4: 0 | AH4: 0 | AI4: 0 | AJ4: 0 | AK4: 0 | AL4: 0 | AM4: 0 | AN4: 0 | AO4: 0 | AP4: 0 | AQ4: 0 | AR4: 0 | AS4: 0 | AT4: 0 | AU4: 0 | AV4: 0 | AW4: 0 | AX4: 0 | AY4: 0 | AZ4: 0 | BA4: 0 | BB4: 0 | BC4: 0 | BD4: 0 | BE4: 0 | BF4: 0 | BG4: 0 | BH4: 0 | BI4: 0 | BJ4: 0 | BK4: 0 | BL4: 0 | BM4: 0 | BN4: 0 | BO4: 0 | BP4: =IF(BP$2=0,$B$4:$B$124,$B$4:$B$124*BP$2) -> 0 | BQ4: 0 | BR4: 0 | BS4: 0 | BT4: 0 | BU4: 0 | BV4: 0 | BW4: 0 | BX4: 0 | BY4: 0 | BZ4: 0 | CA4: 0 | CB4: 0 | CC4: 0 | CD4: 0 | CE4: 0 | CF4: 0 | CG4: 0 | CH4: 0 | CI4: 0 | CJ4: 0 | CK4: 0 | CL4: 0 | CM4: 0 | CN4: 0 | CO4: 0 | CP4: 0 | CQ4: 0 | CR4: 0 | CS4: 0 | CT4: 0 | CU4: 0 | CV4: 0 | CW4: 0 | CX4: 0
A5: 1 | B5: 0 | C5: =IF(C$2=0,$B$4:$B$124,$B$4:$B$124*C$2) -> 0 | D5: 0 | E5: 0 | F5: 0 | G5: 0 | H5: 0 | I5: 0 | J5: 0 | K5: 0 | L5: 0 | M5: 0 | N5: 0 | O5: 0 | P5: 0 | Q5: 0 | R5: 0 | S5: 0 | T5: 0 | U5: 0 | V5: 0 | W5: 0 | X5: 0 | Y5: 0 | Z5: 0 | AA5: 0 | AB5: 0 | AC5: 0 | AD5: 0 | AE5: 0 | AF5: 0 | AG5: 0 | AH5: 0 | AI5: 0 | AJ5: 0 | AK5: 0 | AL5: 0 | AM5: 0 | AN5: 0 | AO5: 0 | AP5: 0 | AQ5: 0 | AR5: 0 | AS5: 0 | AT5: 0 | AU5: 0 | AV5: 0 | AW5: 0 | AX5: 0 | AY5: 0 | AZ5: 0 | BA5: 0 | BB5: 0 | BC5: 0 | BD5: 0 | BE5: 0 | BF5: 0 | BG5: 0 | BH5: 0 | BI5: 0 | BJ5: 0 | BK5: 0 | BL5: 0 | BM5: 0 | BN5: 0 | BO5: 0 | BP5: 0 | BQ5: 0 | BR5: 0 | BS5: 0 | BT5: 0 | BU5: 0 | BV5: 0 | BW5: 0 | BX5: 0 | BY5: 0 | BZ5: 0 | CA5: 0 | CB5: 0 | CC5: 0 | CD5: 0 | CE5: 0 | CF5: 0 | CG5: 0 | CH5: 0 | CI5: 0 | CJ5: 0 | CK5: 0 | CL5: 0 | CM5: 0 | CN5: 0 | CO5: 0 | CP5: 0 | CQ5: 0 | CR5: 0 | CS5: 0 | CT5: 0 | CU5: 0 | CV5: 0 | CW5: 0 | CX5: 0
A6: 2 | B6: 0 | D6: 0 | E6: 0 | F6: 0 | G6: 0 | H6: 0 | I6: 0 | J6: 0 | K6: 0 | L6: 0 | M6: 0 | N6: 0 | O6: 0 | P6: 0 | Q6: 0 | R6: 0 | S6: 0 | T6: 0 | U6: 0 | V6: 0 | W6: 0 | X6: 0 | Y6: 0 | Z6: 0 | AA6: 0 | AB6: 0 | AC6: 0 | AD6: 0 | AE6: 0 | AF6: 0 | AG6: 0 | AH6: 0 | AI6: 0 | AJ6: 0 | AK6: 0 | AL6: 0 | AM6: 0 | AN6: 0 | AO6: 0 | AP6: 0 | AQ6: 0 | AR6: 0 | AS6: 0 | AT6: 0 | AU6: 0 | AV6: 0 | AW6: 0 | AX6: 0 | AY6: 0 | AZ6: 0 | BA6: 0 | BB6: 0 | BC6: 0 | BD6: 0 | BE6: 0 | BF6: 0 | BG6: 0 | BH6: 0 | BI6: 0 | BJ6: 0 | BK6: 0 | BL6: 0 | BM6: 0 | BN6: 0 | BO6: 0 | BP6: 0 | BQ6: 0 | BR6: 0 | BS6: 0 | BT6: 0 | BU6: 0 | BV6: 0 | BW6: 0 | BX6: 0 | BY6: 0 | BZ6: 0 | CA6: 0 | CB6: 0 | CC6: 0 | CD6: 0 | CE6: 0 | CF6: 0 | CG6: 0 | CH6: 0 | CI6: 0 | CJ6: 0 | CK6: 0 | CL6: 0 | CM6: 0 | CN6: 0 | CO6: 0 | CP6: 0 | CQ6: 0 | CR6: 0 | CS6: 0 | CT6: 0 | CU6: 0 | CV6: 0 | CW6: 0 | CX6: 0
A7: 3 | B7: 0 | C7: 0 | D7: 0 | E7: 0 | F7: 0 | G7: 0 | H7: 0 | I7: 0 | J7: 0 | K7: 0 | L7: 0 | M7: 0 | N7: 0 | O7: 0 | P7: 0 | Q7: 0 | R7: 0 | S7: 0 | T7: 0 | U7: 0 | V7: 0 | W7: 0 | X7: 0 | Y7: 0 | Z7: 0 | AA7: 0 | AB7: 0 | AC7: 0 | AD7: 0 | AE7: 0 | AF7: 0 | AG7: 0 | AH7: 0 | AI7: 0 | AJ7: 0 | AK7: 0 | AL7: 0 | AM7: 0 | AN7: 0 | AO7: 0 | AP7: 0 | AQ7: 0 | AR7: 0 | AS7: 0 | AT7: 0 | AU7: 0 | AV7: 0 | AW7: 0 | AX7: 0 | AY7: 0 | AZ7: 0 | BA7: 0 | BB7: 0 | BC7: 0 | BD7: 0 | BE7: 0 | BF7: 0 | BG7: 0 | BH7: 0 | BI7: 0 | BJ7: 0 | BK7: 0 | BL7: 0 | BM7: 0 | BN7: 0 | BO7: =IF(BO$2=0,$B$4:$B$124,$B$4:$B$124*BO$2) -> 0 | BP7: 0 | BQ7: 0 | BR7: 0 | BS7: 0 | BT7: 0 | BU7: 0 | BV7: 0 | BW7: 0 | BX7: 0 | BY7: 0 | BZ7: 0 | CA7: 0 | CB7: 0 | CC7: 0 | CD7: 0 | CE7: 0 | CF7: 0 | CG7: 0 | CH7: 0 | CI7: 0 | CJ7: 0 | CK7: 0 | CL7: 0 | CM7: 0 | CN7: 0 | CO7: 0 | CP7: 0 | CQ7: 0 | CR7: 0 | CS7: 0 | CT7: 0 | CU7: 0 | CV7: 0 | CW7: 0 | CX7: 0
A8: 4 | B8: 0 | C8: 0 | D8: 0 | E8: 0 | F8: 0 | G8: 0 | H8: 0 | I8: 0 | J8: 0 | K8: 0 | L8: 0 | M8: 0 | N8: 0 | O8: 0 | P8: 0 | Q8: 0 | R8: 0 | S8: 0 | T8: 0 | U8: 0 | V8: 0 | W8: 0 | X8: 0 | Y8: 0 | Z8: 0 | AA8: 0 | AB8: 0 | AC8: 0 | AD8: 0 | AE8: 0 | AF8: 0 | AG8: 0 | AH8: 0 | AI8: 0 | AJ8: 0 | AK8: 0 | AL8: 0 | AM8: 0 | AN8: 0 | AO8: 0 | AP8: 0 | AQ8: 0 | AR8: 0 | AS8: 0 | AT8: 0 | AU8: 0 | AV8: 0 | AW8: 0 | AX8: 0 | AY8: 0 | AZ8: 0 | BA8: 0 | BB8: 0 | BC8: 0 | BD8: 0 | BE8: 0 | BF8: 0 | BG8: 0 | BH8: 0 | BI8: 0 | BJ8: 0 | BK8: 0 | BL8: 0 | BM8: 0 | BN8: 0 | BO8: 0 | BP8: 0 | BQ8: 0 | BR8: 0 | BS8: 0 | BT8: 0 | BU8: 0 | BV8: 0 | BW8: 0 | BX8: 0 | BY8: 0 | BZ8: 0 | CA8: 0 | CB8: 0 | CC8: 0 | CD8: 0 | CE8: 0 | CF8: 0 | CG8: 0 | CH8: 0 | CI8: 0 | CJ8: 0 | CK8: 0 | CL8: 0 | CM8: 0 | CN8: 0 | CO8: 0 | CP8: 0 | CQ8: 0 | CR8: 0 | CS8: 0 | CT8: 0 | CU8: 0 | CV8: 0 | CW8: 0 | CX8: 0
A9: 5 | B9: 0 | C9: 0 | D9: 0 | E9: 0 | F9: 0 | G9: 0 | H9: 0 | I9: 0 | J9: 0 | K9: 0 | L9: 0 | M9: 0 | N9: 0 | O9: 0 | P9: 0 | Q9: 0 | R9: 0 | S9: 0 | T9: 0 | U9: 0 | V9: 0 | W9: 0 | X9: 0 | Y9: 0 | Z9: 0 | AA9: 0 | AB9: 0 | AC9: 0 | AD9: 0 | AE9: 0 | AF9: 0 | AG9: 0 | AH9: 0 | AI9: 0 | AJ9: 0 | AK9: 0 | AL9: 0 | AM9: 0 | AN9: 0 | AO9: 0 | AP9: 0 | AQ9: 0 | AR9: 0 | AS9: 0 | AT9: 0 | AU9: 0 | AV9: 0 | AW9: 0 | AX9: 0 | AY9: 0 | AZ9: 0 | BA9: 0 | BB9: 0 | BC9: 0 | BD9: 0 | BE9: 0 | BF9: 0 | BG9: 0 | BH9: 0 | BI9: 0 | BJ9: 0 | BK9: 0 | BL9: 0 | BM9: 0 | BN9: 0 | BO9: 0 | BP9: 0 | BQ9: 0 | BR9: 0 | BS9: 0 | BT9: 0 | BU9: 0 | BV9: 0 | BW9: 0 | BX9: 0 | BY9: 0 | BZ9: 0 | CA9: 0 | CB9: 0 | CC9: 0 | CD9: 0 | CE9: 0 | CF9: 0 | CG9: 0 | CH9: 0 | CI9: 0 | CJ9: 0 | CK9: 0 | CL9: 0 | CM9: 0 | CN9: 0 | CO9: 0 | CP9: 0 | CQ9: 0 | CR9: 0 | CS9: 0 | CT9: 0 | CU9: 0 | CV9: 0 | CW9: 0 | CX9: 0
A10: 6 | B10: 0 | C10: 0 | D10: 0 | E10: 0 | F10: 0 | G10: 0 | H10: 0 | I10: 0 | J10: 0 | K10: 0 | L10: 0 | M10: 0 | N10: 0 | O10: 0 | P10: 0 | Q10: 0 | R10: 0 | S10: 0 | T10: 0 | U10: 0 | V10: 0 | W10: 0 | X10: 0 | Y10: 0 | Z10: 0 | AA10: 0 | AB10: 0 | AC10: 0 | AD10: 0 | AE10: 0 | AF10: 0 | AG10: 0 | AH10: 0 | AI10: 0 | AJ10: 0 | AK10: 0 | AL10: 0 | AM10: 0 | AN10: 0 | AO10: 0 | AP10: 0 | AQ10: 0 | AR10: 0 | AS10: 0 | AT10: 0 | AU10: 0 | AV10: 0 | AW10: 0 | AX10: 0 | AY10: 0 | AZ10: 0 | BA10: 0 | BB10: 0 | BC10: 0 | BD10: 0 | BE10: 0 | BF10: 0 | BG10: 0 | BH10: 0 | BI10: 0 | BJ10: 0 | BK10: 0 | BL10: 0 | BM10: 0 | BN10: 0 | BO10: 0 | BP10: 0 | BQ10: 0 | BR10: 0 | BS10: 0 | BT10: 0 | BU10: 0 | BV10: 0 | BW10: 0 | BX10: 0 | BY10: 0 | BZ10: 0 | CA10: 0 | CB10: 0 | CC10: 0 | CD10: 0 | CE10: 0 | CF10: 0 | CG10: 0 | CH10: 0 | CI10: 0 | CJ10: 0 | CK10: 0 | CL10: 0 | CM10: 0 | CN10: 0 | CO10: 0 | CP10: 0 | CQ10: 0 | CR10: 0 | CS10: 0 | CT10: 0 | CU10: 0 | CV10: 0 | CW10: 0 | CX10: 0
A11: 7 | B11: 0 | C11: 0 | D11: 0 | E11: 0 | F11: 0 | G11: 0 | H11: 0 | I11: 0 | J11: 0 | K11: 0 | L11: 0 | M11: 0 | N11: 0 | O11: 0 | P11: 0 | Q11: 0 | R11: 0 | S11: 0 | T11: 0 | U11: 0 | V11: 0 | W11: 0 | X11: 0 | Y11: 0 | Z11: 0 | AA11: 0 | AB11: 0 | AC11: 0 | AD11: 0 | AE11: 0 | AF11: 0 | AG11: 0 | AH11: 0 | AI11: 0 | AJ11: 0 | AK11: 0 | AL11: 0 | AM11: 0 | AN11: 0 | AO11: 0 | AP11: 0 | AQ11: 0 | AR11: 0 | AS11: 0 | AT11: 0 | AU11: 0 | AV11: 0 | AW11: 0 | AX11: 0 | AY11: 0 | AZ11: 0 | BA11: 0 | BB11: 0 | BC11: 0 | BD11: 0 | BE11: 0 | BF11: 0 | BG11: 0 | BH11: 0 | BI11: 0 | BJ11: 0 | BK11: 0 | BL11: 0 | BM11: 0 | BN11: =IF(BN$2=0,$B$4:$B$124,$B$4:$B$124*BN$2) -> 0 | BO11: 0 | BP11: 0 | BQ11: 0 | BR11: 0 | BS11: 0 | BT11: 0 | BU11: 0 | BV11: 0 | BW11: 0 | BX11: 0 | BY11: 0 | BZ11: =IF(BZ$2=0,$B$4:$B$124,$B$4:$B$124*BZ$2) -> 0 | CA11: 0 | CB11: 0 | CC11: 0 | CD11: 0 | CE11: 0 | CF11: 0 | CG11: 0 | CH11: 0 | CI11: 0 | CJ11: 0 | CK11: 0 | CL11: 0 | CM11: 0 | CN11: 0 | CO11: 0 | CP11: =IF(CP$2=0,$B$4:$B$124,$B$4:$B$124*CP$2) -> 0 | CQ11: 0 | CR11: 0 | CS11: 0 | CT11: 0 | CU11: 0 | CV11: 0 | CW11: 0 | CX11: 0
A12: 8 | B12: 0 | C12: 0 | D12: 0 | E12: 0 | F12: 0 | G12: 0 | H12: 0 | I12: 0 | J12: 0 | K12: 0 | L12: 0 | M12: 0 | N12: 0 | O12: 0 | P12: 0 | Q12: 0 | R12: 0 | S12: =IF(S$2=0,$B$4:$B$124,$B$4:$B$124*S$2) -> 0 | T12: 0 | U12: 0 | V12: 0 | W12: 0 | X12: 0 | Y12: 0 | Z12: 0 | AA12: 0 | AB12: 0 | AC12: 0 | AD12: 0 | AE12: 0 | AF12: 0 | AG12: 0 | AH12: 0 | AI12: =IF(AI$2=0,$B$4:$B$124,$B$4:$B$124*AI$2) -> 0 | AJ12: 0 | AK12: 0 | AL12: 0 | AM12: 0 | AN12: 0 | AO12: 0 | AP12: 0 | AQ12: 0 | AR12: 0 | AS12: 0 | AT12: 0 | AU12: 0 | AV12: 0 | AW12: 0 | AX12: 0 | AY12: =IF(AY$2=0,$B$4:$B$124,$B$4:$B$124*AY$2) -> 0 | AZ12: 0 | BA12: 0 | BB12: 0 | BC12: 0 | BD12: 0 | BE12: 0 | BF12: 0 | BG12: 0 | BH12: 0 | BI12: 0 | BJ12: 0 | BK12: 0 | BL12: 0 | BM12: 0 | BN12: 0 | BO12: 0 | BP12: 0 | BQ12: 0 | BR12: 0 | BS12: 0 | BT12: 0 | BU12: 0 | BV12: 0 | BW12: 0 | BX12: 0 | BY12: 0 | BZ12: 0 | CA12: 0 | CB12: 0 | CC12: 0 | CD12: 0 | CE12: 0 | CF12: 0 | CG12: 0 | CH12: 0 | CI12: 0 | CJ12: 0 | CK12: 0 | CL12: 0 | CM12: 0 | CN12: 0 | CO12: 0 | CP12: 0 | CQ12: 0 | CR12: 0 | CS12: 0 | CT12: 0 | CU12: 0 | CV12: 0 | CW12: 0 | CX12: 0
A13: 9 | B13: 0 | C13: 0 | D13: 0 | E13: 0 | F13: 0 | G13: 0 | H13: 0 | I13: 0 | J13: 0 | K13: 0 | L13: 0 | M13: 0 | N13: 0 | O13: 0 | P13: 0 | Q13: 0 | R13: 0 | S13: 0 | T13: 0 | U13: 0 | V13: 0 | W13: 0 | X13: 0 | Y13: 0 | Z13: 0 | AA13: 0 | AB13: 0 | AC13: 0 | AD13: 0 | AE13: 0 | AF13: 0 | AG13: 0 | AH13: 0 | AI13: 0 | AJ13: 0 | AK13: 0 | AL13: 0 | AM13: 0 | AN13: 0 | AO13: 0 | AP13: 0 | AQ13: 0 | AR13: 0 | AS13: 0 | AT13: 0 | AU13: 0 | AV13: 0 | AW13: 0 | AX13: 0 | AY13: 0 | AZ13: 0 | BA13: 0 | BB13: 0 | BC13: 0 | BD13: 0 | BE13: 0 | BF13: 0 | BG13: 0 | BH13: 0 | BI13: 0 | BJ13: 0 | BK13: 0 | BL13: 0 | BM13: 0 | BN13: 0 | BO13: 0 | BP13: 0 | BQ13: 0 | BR13: 0 | BS13: 0 | BT13: 0 | BU13: 0 | BV13: 0 | BW13: 0 | BX13: 0 | BY13: 0 | BZ13: 0 | CA13: 0 | CB13: 0 | CC13: 0 | CD13: 0 | CE13: 0 | CF13: 0 | CG13: 0 | CH13: 0 | CI13: 0 | CJ13: 0 | CK13: 0 | CL13: 0 | CM13: 0 | CN13: 0 | CO13: 0 | CP13: 0 | CQ13: 0 | CR13: 0 | CS13: 0 | CT13: 0 | CU13: 0 | CV13: 0 | CW13: 0 | CX13: 0
A14: 10 | B14: 0.0003 | C14: 0.0003 | D14: 0.0003 | E14: 0.0003 | F14: 0.0003 | G14: 0.0003 | H14: 0.0003 | I14: 0.0003 | J14: 0.0003 | K14: 0.0003 | L14: 0.0003 | M14: 0.0003 | N14: 0.0003 | O14: 0.0003 | P14: 0.0003 | Q14: 0.0003 | R14: 0.0003 | S14: 0.0003 | T14: 0.0003 | U14: 0.0003 | V14: 0.0003 | W14: 0.0003 | X14: 0.0003 | Y14: 0.0003 | Z14: 0.0003 | AA14: 0.0003 | AB14: 0.0003 | AC14: 0.0003 | AD14: 0.0003 | AE14: 0.0003 | AF14: 0.0003 | AG14: 0.0003 | AH14: 0.0003 | AI14: 0.0003 | AJ14: 0.0003 | AK14: 0.0003 | AL14: 0.0003 | AM14: 0.0003 | AN14: 0.0003 | AO14: 0.0003 | AP14: 0.0003 | AQ14: 0.0003 | AR14: 0.0003 | AS14: 0.0003 | AT14: 0.0003 | AU14: 0.0003 | AV14: 0.0003 | AW14: 0.0003 | AX14: 0.0003 | AY14: 0.0003 | AZ14: 0.0003 | BA14: 0.0003 | BB14: 0.0003 | BC14: 0.0003 | BD14: 0.0003 | BE14: 0.0003 | BF14: 0.0003 | BG14: 0.0003 | BH14: 0.0003 | BI14: 0.0003 | BJ14: 0.0003 | BK14: 0.0003 | BL14: 0.0003 | BM14: 0.0003 | BN14: 0.0003 | BO14: 0.0003 | BP14: 0.0003 | BQ14: 0.0003 | BR14: 0.0003 | BS14: 0.0003 | BT14: 0.0003 | BU14: 0.0003 | BV14: 0.0003 | BW14: 0.0003 | BX14: 0.0003 | BY14: 0.0003 | BZ14: 0.0003 | CA14: 0.0003 | CB14: 0.0003 | CC14: 0.0003 | CD14: 0.0003 | CE14: 0.0003 | CF14: 0.0003 | CG14: 0.0003 | CH14: 0.0003 | CI14: 0.0003 | CJ14: 0.0003 | CK14: 0.0003 | CL14: 0.0003 | CM14: 0.0003 | CN14: 0.0003 | CO14: 0.0003 | CP14: 0.0003 | CQ14: 0.0003 | CR14: 0.0003 | CS14: 0.0003 | CT14: 0.0003 | CU14: 0.0003 | CV14: 0.0003 | CW14: 0.0003 | CX14: 0.0003
A15: 11 | B15: 0.0003 | C15: 0.0003 | D15: 0.0003 | E15: 0.0003 | F15: 0.0003 | G15: 0.0003 | H15: 0.0003 | I15: 0.0003 | J15: 0.0003 | K15: 0.0003 | L15: 0.0003 | M15: 0.0003 | N15: 0.0003 | O15: 0.0003 | P15: 0.0003 | Q15: 0.0003 | R15: 0.0003 | S15: 0.0003 | T15: 0.0003 | U15: 0.0003 | V15: 0.0003 | W15: 0.0003 | X15: 0.0003 | Y15: 0.0003 | Z15: 0.0003 | AA15: 0.0003 | AB15: 0.0003 | AC15: 0.0003 | AD15: 0.0003 | AE15: 0.0003 | AF15: 0.0003 | AG15: 0.0003 | AH15: 0.0003 | AI15: 0.0003 | AJ15: 0.0003 | AK15: 0.0003 | AL15: 0.0003 | AM15: 0.0003 | AN15: 0.0003 | AO15: 0.0003 | AP15: 0.0003 | AQ15: 0.0003 | AR15: 0.0003 | AS15: 0.0003 | AT15: 0.0003 | AU15: 0.0003 | AV15: 0.0003 | AW15: 0.0003 | AX15: 0.0003 | AY15: 0.0003 | AZ15: 0.0003 | BA15: 0.0003 | BB15: 0.0003 | BC15: 0.0003 | BD15: 0.0003 | BE15: 0.0003 | BF15: 0.0003 | BG15: 0.0003 | BH15: 0.0003 | BI15: 0.0003 | BJ15: 0.0003 | BK15: 0.0003 | BL15: 0.0003 | BM15: 0.0003 | BN15: 0.0003 | BO15: 0.0003 | BP15: 0.0003 | BQ15: 0.0003 | BR15: 0.0003 | BS15: 0.0003 | BT15: 0.0003 | BU15: 0.0003 | BV15: 0.0003 | BW15: 0.0003 | BX15: 0.0003 | BY15: 0.0003 | BZ15: 0.0003 | CA15: 0.0003 | CB15: 0.0003 | CC15: 0.0003 | CD15: 0.0003 | CE15: 0.0003 | CF15: 0.0003 | CG15: 0.0003 | CH15: 0.0003 | CI15: 0.0003 | CJ15: 0.0003 | CK15: 0.0003 | CL15: 0.0003 | CM15: 0.0003 | CN15: 0.0003 | CO15: 0.0003 | CP15: 0.0003 | CQ15: 0.0003 | CR15: 0.0003 | CS15: 0.0003 | CT15: 0.0003 | CU15: 0.0003 | CV15: 0.0003 | CW15: 0.0003 | CX15: 0.0003
A16: 12 | B16: 0.0003 | C16: 0.0003 | D16: 0.0003 | E16: 0.0003 | F16: 0.0003 | G16: 0.0003 | H16: 0.0003 | I16: 0.0003 | J16: 0.0003 | K16: 0.0003 | L16: 0.0003 | M16: 0.0003 | N16: 0.0003 | O16: 0.0003 | P16: 0.0003 | Q16: 0.0003 | R16: 0.0003 | S16: 0.0003 | T16: 0.0003 | U16: 0.0003 | V16: 0.0003 | W16: 0.0003 | X16: 0.0003 | Y16: 0.0003 | Z16: 0.0003 | AA16: 0.0003 | AB16: 0.0003 | AC16: 0.0003 | AD16: 0.0003 | AE16: 0.0003 | AF16: 0.0003 | AG16: 0.0003 | AH16: 0.0003 | AI16: 0.0003 | AJ16: 0.0003 | AK16: 0.0003 | AL16: 0.0003 | AM16: 0.0003 | AN16: 0.0003 | AO16: 0.0003 | AP16: 0.0003 | AQ16: 0.0003 | AR16: 0.0003 | AS16: 0.0003 | AT16: 0.0003 | AU16: 0.0003 | AV16: 0.0003 | AW16: 0.0003 | AX16: 0.0003 | AY16: 0.0003 | AZ16: 0.0003 | BA16: 0.0003 | BB16: 0.0003 | BC16: 0.0003 | BD16: 0.0003 | BE16: 0.0003 | BF16: 0.0003 | BG16: 0.0003 | BH16: 0.0003 | BI16: 0.0003 | BJ16: 0.0003 | BK16: 0.0003 | BL16: 0.0003 | BM16: 0.0003 | BN16: 0.0003 | BO16: 0.0003 | BP16: 0.0003 | BQ16: 0.0003 | BR16: 0.0003 | BS16: 0.0003 | BT16: 0.0003 | BU16: 0.0003 | BV16: 0.0003 | BW16: 0.0003 | BX16: 0.0003 | BY16: 0.0003 | BZ16: 0.0003 | CA16: 0.0003 | CB16: 0.0003 | CC16: 0.0003 | CD16: 0.0003 | CE16: 0.0003 | CF16: 0.0003 | CG16: 0.0003 | CH16: 0.0003 | CI16: 0.0003 | CJ16: 0.0003 | CK16: 0.0003 | CL16: 0.0003 | CM16: 0.0003 | CN16: 0.0003 | CO16: 0.0003 | CP16: 0.0003 | CQ16: 0.0003 | CR16: 0.0003 | CS16: 0.0003 | CT16: 0.0003 | CU16: 0.0003 | CV16: 0.0003 | CW16: 0.0003 | CX16: 0.0003
A17: 13 | B17: 0.0003 | C17: 0.0003 | D17: 0.0003 | E17: 0.0003 | F17: 0.0003 | G17: 0.0003 | H17: 0.0003 | I17: 0.0003 | J17: 0.0003 | K17: 0.0003 | L17: 0.0003 | M17: 0.0003 | N17: 0.0003 | O17: 0.0003 | P17: 0.0003 | Q17: 0.0003 | R17: 0.0003 | S17: 0.0003 | T17: 0.0003 | U17: 0.0003 | V17: 0.0003 | W17: 0.0003 | X17: 0.0003 | Y17: 0.0003 | Z17: 0.0003 | AA17: 0.0003 | AB17: 0.0003 | AC17: 0.0003 | AD17: 0.0003 | AE17: 0.0003 | AF17: 0.0003 | AG17: 0.0003 | AH17: 0.0003 | AI17: 0.0003 | AJ17: 0.0003 | AK17: 0.0003 | AL17: 0.0003 | AM17: 0.0003 | AN17: 0.0003 | AO17: 0.0003 | AP17: 0.0003 | AQ17: 0.0003 | AR17: 0.0003 | AS17: 0.0003 | AT17: 0.0003 | AU17: 0.0003 | AV17: 0.0003 | AW17: 0.0003 | AX17: 0.0003 | AY17: 0.0003 | AZ17: 0.0003 | BA17: 0.0003 | BB17: 0.0003 | BC17: 0.0003 | BD17: 0.0003 | BE17: 0.0003 | BF17: 0.0003 | BG17: 0.0003 | BH17: 0.0003 | BI17: 0.0003 | BJ17: 0.0003 | BK17: 0.0003 | BL17: 0.0003 | BM17: 0.0003 | BN17: 0.0003 | BO17: 0.0003 | BP17: 0.0003 | BQ17: 0.0003 | BR17: 0.0003 | BS17: 0.0003 | BT17: 0.0003 | BU17: 0.0003 | BV17: 0.0003 | BW17: 0.0003 | BX17: 0.0003 | BY17: 0.0003 | BZ17: 0.0003 | CA17: 0.0003 | CB17: 0.0003 | CC17: 0.0003 | CD17: 0.0003 | CE17: 0.0003 | CF17: 0.0003 | CG17: 0.0003 | CH17: 0.0003 | CI17: 0.0003 | CJ17: 0.0003 | CK17: 0.0003 | CL17: 0.0003 | CM17: 0.0003 | CN17: 0.0003 | CO17: 0.0003 | CP17: 0.0003 | CQ17: 0.0003 | CR17: 0.0003 | CS17: 0.0003 | CT17: 0.0003 | CU17: 0.0003 | CV17: 0.0003 | CW17: 0.0003 | CX17: 0.0003
A18: 14 | B18: 0.0003 | C18: 0.0003 | D18: 0.0003 | E18: 0.0003 | F18: 0.0003 | G18: 0.0003 | H18: 0.0003 | I18: 0.0003 | J18: 0.0003 | K18: 0.0003 | L18: 0.0003 | M18: 0.0003 | N18: 0.0003 | O18: 0.0003 | P18: 0.0003 | Q18: 0.0003 | R18: 0.0003 | S18: 0.0003 | T18: 0.0003 | U18: 0.0003 | V18: 0.0003 | W18: 0.0003 | X18: 0.0003 | Y18: 0.0003 | Z18: 0.0003 | AA18: 0.0003 | AB18: 0.0003 | AC18: 0.0003 | AD18: 0.0003 | AE18: 0.0003 | AF18: 0.0003 | AG18: 0.0003 | AH18: 0.0003 | AI18: 0.0003 | AJ18: 0.0003 | AK18: 0.0003 | AL18: 0.0003 | AM18: 0.0003 | AN18: 0.0003 | AO18: 0.0003 | AP18: 0.0003 | AQ18: 0.0003 | AR18: 0.0003 | AS18: 0.0003 | AT18: 0.0003 | AU18: 0.0003 | AV18: 0.0003 | AW18: 0.0003 | AX18: 0.0003 | AY18: 0.0003 | AZ18: 0.0003 | BA18: 0.0003 | BB18: 0.0003 | BC18: 0.0003 | BD18: 0.0003 | BE18: 0.0003 | BF18: 0.0003 | BG18: 0.0003 | BH18: 0.0003 | BI18: 0.0003 | BJ18: 0.0003 | BK18: 0.0003 | BL18: 0.0003 | BM18: 0.0003 | BN18: 0.0003 | BO18: 0.0003 | BP18: 0.0003 | BQ18: 0.0003 | BR18: 0.0003 | BS18: 0.0003 | BT18: 0.0003 | BU18: 0.0003 | BV18: 0.0003 | BW18: 0.0003 | BX18: 0.0003 | BY18: 0.0003 | BZ18: 0.0003 | CA18: 0.0003 | CB18: 0.0003 | CC18: 0.0003 | CD18: 0.0003 | CE18: 0.0003 | CF18: 0.0003 | CG18: 0.0003 | CH18: 0.0003 | CI18: 0.0003 | CJ18: 0.0003 | CK18: 0.0003 | CL18: 0.0003 | CM18: 0.0003 | CN18: 0.0003 | CO18: 0.0003 | CP18: 0.0003 | CQ18: 0.0003 | CR18: 0.0003 | CS18: 0.0003 | CT18: 0.0003 | CU18: 0.0003 | CV18: 0.0003 | CW18: 0.0003 | CX18: 0.0003
A19: 15 | B19: 0.02075 | C19: 0.02075 | D19: 0.02075 | E19: 0.02075 | F19: 0.02075 | G19: 0.02075 | H19: 0.02075 | I19: 0.02075 | J19: 0.02075 | K19: 0.02075 | L19: 0.02075 | M19: 0.02075 | N19: 0.02075 | O19: 0.02075 | P19: 0.02075 | Q19: 0.02075 | R19: 0.02075 | S19: 0.02075 | T19: 0.02075 | U19: 0.02075 | V19: 0.02075 | W19: 0.02075 | X19: 0.02075 | Y19: 0.02075 | Z19: 0.02075 | AA19: 0.02075 | AB19: 0.02075 | AC19: 0.02075 | AD19: 0.02075 | AE19: 0.02075 | AF19: 0.02075 | AG19: 0.02075 | AH19: 0.02075 | AI19: 0.02075 | AJ19: 0.02075 | AK19: 0.02075 | AL19: 0.02075 | AM19: 0.02075 | AN19: 0.02075 | AO19: 0.02075 | AP19: 0.02075 | AQ19: 0.02075 | AR19: 0.02075 | AS19: 0.02075 | AT19: 0.02075 | AU19: 0.02075 | AV19: 0.02075 | AW19: 0.02075 | AX19: 0.02075 | AY19: 0.02075 | AZ19: 0.02075 | BA19: 0.02075 | BB19: 0.02075 | BC19: 0.02075 | BD19: 0.02075 | BE19: 0.02075 | BF19: 0.02075 | BG19: 0.02075 | BH19: 0.02075 | BI19: 0.02075 | BJ19: 0.02075 | BK19: 0.02075 | BL19: 0.02075 | BM19: 0.02075 | BN19: 0.02075 | BO19: 0.02075 | BP19: 0.02075 | BQ19: 0.02075 | BR19: 0.02075 | BS19: 0.02075 | BT19: 0.02075 | BU19: 0.02075 | BV19: 0.02075 | BW19: 0.02075 | BX19: 0.02075 | BY19: 0.02075 | BZ19: 0.02075 | CA19: 0.02075 | CB19: 0.02075 | CC19: 0.02075 | CD19: 0.02075 | CE19: 0.02075 | CF19: 0.02075 | CG19: 0.02075 | CH19: 0.02075 | CI19: 0.02075 | CJ19: 0.02075 | CK19: 0.02075 | CL19: 0.02075 | CM19: 0.02075 | CN19: 0.02075 | CO19: 0.02075 | CP19: 0.02075 | CQ19: 0.02075 | CR19: 0.02075 | CS19: 0.02075 | CT19: 0.02075 | CU19: 0.02075 | CV19: 0.02075 | CW19: 0.02075 | CX19: 0.02075
A20: 16 | B20: 0.02075 | C20: 0.02075 | D20: 0.02075 | E20: 0.02075 | F20: 0.02075 | G20: 0.02075 | H20: 0.02075 | I20: 0.02075 | J20: 0.02075 | K20: 0.02075 | L20: 0.02075 | M20: 0.02075 | N20: 0.02075 | O20: 0.02075 | P20: 0.02075 | Q20: 0.02075 | R20: 0.02075 | S20: 0.02075 | T20: 0.02075 | U20: 0.02075 | V20: 0.02075 | W20: 0.02075 | X20: 0.02075 | Y20: 0.02075 | Z20: 0.02075 | AA20: 0.02075 | AB20: 0.02075 | AC20: 0.02075 | AD20: 0.02075 | AE20: 0.02075 | AF20: 0.02075 | AG20: 0.02075 | AH20: 0.02075 | AI20: 0.02075 | AJ20: 0.02075 | AK20: 0.02075 | AL20: 0.02075 | AM20: 0.02075 | AN20: 0.02075 | AO20: 0.02075 | AP20: 0.02075 | AQ20: 0.02075 | AR20: 0.02075 | AS20: 0.02075 | AT20: 0.02075 | AU20: 0.02075 | AV20: 0.02075 | AW20: 0.02075 | AX20: 0.02075 | AY20: 0.02075 | AZ20: 0.02075 | BA20: 0.02075 | BB20: 0.02075 | BC20: 0.02075 | BD20: 0.02075 | BE20: 0.02075 | BF20: 0.02075 | BG20: 0.02075 | BH20: 0.02075 | BI20: 0.02075 | BJ20: 0.02075 | BK20: 0.02075 | BL20: 0.02075 | BM20: 0.02075 | BN20: 0.02075 | BO20: 0.02075 | BP20: 0.02075 | BQ20: 0.02075 | BR20: 0.02075 | BS20: 0.02075 | BT20: 0.02075 | BU20: 0.02075 | BV20: 0.02075 | BW20: 0.02075 | BX20: 0.02075 | BY20: 0.02075 | BZ20: 0.02075 | CA20: 0.02075 | CB20: 0.02075 | CC20: 0.02075 | CD20: 0.02075 | CE20: 0.02075 | CF20: 0.02075 | CG20: 0.02075 | CH20: 0.02075 | CI20: 0.02075 | CJ20: 0.02075 | CK20: 0.02075 | CL20: 0.02075 | CM20: 0.02075 | CN20: 0.02075 | CO20: 0.02075 | CP20: 0.02075 | CQ20: 0.02075 | CR20: 0.02075 | CS20: 0.02075 | CT20: 0.02075 | CU20: 0.02075 | CV20: 0.02075 | CW20: 0.02075 | CX20: 0.02075
A21: 17 | B21: 0.02075 | C21: 0.02075 | D21: 0.02075 | E21: 0.02075 | F21: 0.02075 | G21: 0.02075 | H21: 0.02075 | I21: 0.02075 | J21: 0.02075 | K21: 0.02075 | L21: 0.02075 | M21: 0.02075 | N21: 0.02075 | O21: 0.02075 | P21: 0.02075 | Q21: 0.02075 | R21: 0.02075 | S21: 0.02075 | T21: 0.02075 | U21: 0.02075 | V21: 0.02075 | W21: 0.02075 | X21: 0.02075 | Y21: 0.02075 | Z21: 0.02075 | AA21: 0.02075 | AB21: 0.02075 | AC21: 0.02075 | AD21: 0.02075 | AE21: 0.02075 | AF21: 0.02075 | AG21: 0.02075 | AH21: 0.02075 | AI21: 0.02075 | AJ21: 0.02075 | AK21: 0.02075 | AL21: 0.02075 | AM21: 0.02075 | AN21: 0.02075 | AO21: 0.02075 | AP21: 0.02075 | AQ21: 0.02075 | AR21: 0.02075 | AS21: 0.02075 | AT21: 0.02075 | AU21: 0.02075 | AV21: 0.02075 | AW21: 0.02075 | AX21: 0.02075 | AY21: 0.02075 | AZ21: 0.02075 | BA21: 0.02075 | BB21: 0.02075 | BC21: 0.02075 | BD21: 0.02075 | BE21: 0.02075 | BF21: 0.02075 | BG21: 0.02075 | BH21: 0.02075 | BI21: 0.02075 | BJ21: 0.02075 | BK21: 0.02075 | BL21: 0.02075 | BM21: 0.02075 | BN21: 0.02075 | BO21: 0.02075 | BP21: 0.02075 | BQ21: 0.02075 | BR21: 0.02075 | BS21: 0.02075 | BT21: 0.02075 | BU21: 0.02075 | BV21: 0.02075 | BW21: 0.02075 | BX21: 0.02075 | BY21: 0.02075 | BZ21: 0.02075 | CA21: 0.02075 | CB21: 0.02075 | CC21: 0.02075 | CD21: 0.02075 | CE21: 0.02075 | CF21: 0.02075 | CG21: 0.02075 | CH21: 0.02075 | CI21: 0.02075 | CJ21: 0.02075 | CK21: 0.02075 | CL21: 0.02075 | CM21: 0.02075 | CN21: 0.02075 | CO21: 0.02075 | CP21: 0.02075 | CQ21: 0.02075 | CR21: 0.02075 | CS21: 0.02075 | CT21: 0.02075 | CU21: 0.02075 | CV21: 0.02075 | CW21: 0.02075 | CX21: 0.02075
A22: 18 | B22: 0.02075 | C22: 0.02075 | D22: 0.02075 | E22: 0.02075 | F22: 0.02075 | G22: 0.02075 | H22: 0.02075 | I22: 0.02075 | J22: 0.02075 | K22: 0.02075 | L22: 0.02075 | M22: 0.02075 | N22: 0.02075 | O22: 0.02075 | P22: 0.02075 | Q22: 0.02075 | R22: 0.02075 | S22: 0.02075 | T22: 0.02075 | U22: 0.02075 | V22: 0.02075 | W22: 0.02075 | X22: 0.02075 | Y22: 0.02075 | Z22: 0.02075 | AA22: 0.02075 | AB22: 0.02075 | AC22: 0.02075 | AD22: 0.02075 | AE22: 0.02075 | AF22: 0.02075 | AG22: 0.02075 | AH22: 0.02075 | AI22: 0.02075 | AJ22: 0.02075 | AK22: 0.02075 | AL22: 0.02075 | AM22: 0.02075 | AN22: 0.02075 | AO22: 0.02075 | AP22: 0.02075 | AQ22: 0.02075 | AR22: 0.02075 | AS22: 0.02075 | AT22: 0.02075 | AU22: 0.02075 | AV22: 0.02075 | AW22: 0.02075 | AX22: 0.02075 | AY22: 0.02075 | AZ22: 0.02075 | BA22: 0.02075 | BB22: 0.02075 | BC22: 0.02075 | BD22: 0.02075 | BE22: 0.02075 | BF22: 0.02075 | BG22: 0.02075 | BH22: 0.02075 | BI22: 0.02075 | BJ22: 0.02075 | BK22: 0.02075 | BL22: 0.02075 | BM22: 0.02075 | BN22: 0.02075 | BO22: 0.02075 | BP22: 0.02075 | BQ22: 0.02075 | BR22: 0.02075 | BS22: 0.02075 | BT22: 0.02075 | BU22: 0.02075 | BV22: 0.02075 | BW22: 0.02075 | BX22: 0.02075 | BY22: 0.02075 | BZ22: 0.02075 | CA22: 0.02075 | CB22: 0.02075 | CC22: 0.02075 | CD22: 0.02075 | CE22: 0.02075 | CF22: 0.02075 | CG22: 0.02075 | CH22: 0.02075 | CI22: 0.02075 | CJ22: 0.02075 | CK22: 0.02075 | CL22: 0.02075 | CM22: 0.02075 | CN22: 0.02075 | CO22: 0.02075 | CP22: 0.02075 | CQ22: 0.02075 | CR22: 0.02075 | CS22: 0.02075 | CT22: 0.02075 | CU22: 0.02075 | CV22: 0.02075 | CW22: 0.02075 | CX22: 0.02075
A23: 19 | B23: 0.02075 | C23: 0.02075 | D23: 0.02075 | E23: 0.02075 | F23: 0.02075 | G23: 0.02075 | H23: 0.02075 | I23: 0.02075 | J23: 0.02075 | K23: 0.02075 | L23: 0.02075 | M23: 0.02075 | N23: 0.02075 | O23: 0.02075 | P23: 0.02075 | Q23: 0.02075 | R23: 0.02075 | S23: 0.02075 | T23: 0.02075 | U23: 0.02075 | V23: 0.02075 | W23: 0.02075 | X23: 0.02075 | Y23: 0.02075 | Z23: 0.02075 | AA23: 0.02075 | AB23: 0.02075 | AC23: 0.02075 | AD23: 0.02075 | AE23: 0.02075 | AF23: 0.02075 | AG23: 0.02075 | AH23: 0.02075 | AI23: 0.02075 | AJ23: 0.02075 | AK23: 0.02075 | AL23: 0.02075 | AM23: 0.02075 | AN23: 0.02075 | AO23: 0.02075 | AP23: 0.02075 | AQ23: 0.02075 | AR23: 0.02075 | AS23: 0.02075 | AT23: 0.02075 | AU23: 0.02075 | AV23: 0.02075 | AW23: 0.02075 | AX23: 0.02075 | AY23: 0.02075 | AZ23: 0.02075 | BA23: 0.02075 | BB23: 0.02075 | BC23: 0.02075 | BD23: 0.02075 | BE23: 0.02075 | BF23: 0.02075 | BG23: 0.02075 | BH23: 0.02075 | BI23: 0.02075 | BJ23: 0.02075 | BK23: 0.02075 | BL23: 0.02075 | BM23: 0.02075 | BN23: 0.02075 | BO23: 0.02075 | BP23: 0.02075 | BQ23: 0.02075 | BR23: 0.02075 | BS23: 0.02075 | BT23: 0.02075 | BU23: 0.02075 | BV23: 0.02075 | BW23: 0.02075 | BX23: 0.02075 | BY23: 0.02075 | BZ23: 0.02075 | CA23: 0.02075 | CB23: 0.02075 | CC23: 0.02075 | CD23: 0.02075 | CE23: 0.02075 | CF23: 0.02075 | CG23: 0.02075 | CH23: 0.02075 | CI23: 0.02075 | CJ23: 0.02075 | CK23: 0.02075 | CL23: 0.02075 | CM23: 0.02075 | CN23: 0.02075 | CO23: 0.02075 | CP23: 0.02075 | CQ23: 0.02075 | CR23: 0.02075 | CS23: 0.02075 | CT23: 0.02075 | CU23: 0.02075 | CV23: 0.02075 | CW23: 0.02075 | CX23: 0.02075
A24: 20 | B24: 0.0515 | C24: 0.0515 | D24: 0.0515 | E24: 0.0515 | F24: 0.0515 | G24: 0.0515 | H24: 0.0515 | I24: 0.0515 | J24: 0.0515 | K24: 0.0515 | L24: 0.0515 | M24: 0.0515 | N24: 0.0515 | O24: 0.0515 | P24: 0.0515 | Q24: 0.0515 | R24: 0.0515 | S24: 0.0515 | T24: 0.0515 | U24: 0.0515 | V24: 0.0515 | W24: 0.0515 | X24: 0.0515 | Y24: 0.0515 | Z24: 0.0515 | AA24: 0.0515 | AB24: 0.0515 | AC24: 0.0515 | AD24: 0.0515 | AE24: 0.0515 | AF24: 0.0515 | AG24: 0.0515 | AH24: 0.0515 | AI24: 0.0515 | AJ24: 0.0515 | AK24: 0.0515 | AL24: 0.0515 | AM24: 0.0515 | AN24: 0.0515 | AO24: 0.0515 | AP24: 0.0515 | AQ24: 0.0515 | AR24: 0.0515 | AS24: 0.0515 | AT24: 0.0515 | AU24: 0.0515 | AV24: 0.0515 | AW24: 0.0515 | AX24: 0.0515 | AY24: 0.0515 | AZ24: 0.0515 | BA24: 0.0515 | BB24: 0.0515 | BC24: 0.0515 | BD24: 0.0515 | BE24: 0.0515 | BF24: 0.0515 | BG24: 0.0515 | BH24: 0.0515 | BI24: 0.0515 | BJ24: 0.0515 | BK24: 0.0515 | BL24: 0.0515 | BM24: 0.0515 | BN24: 0.0515 | BO24: 0.0515 | BP24: 0.0515 | BQ24: 0.0515 | BR24: 0.0515 | BS24: 0.0515 | BT24: 0.0515 | BU24: 0.0515 | BV24: 0.0515 | BW24: 0.0515 | BX24: 0.0515 | BY24: 0.0515 | BZ24: 0.0515 | CA24: 0.0515 | CB24: 0.0515 | CC24: 0.0515 | CD24: 0.0515 | CE24: 0.0515 | CF24: 0.0515 | CG24: 0.0515 | CH24: 0.0515 | CI24: 0.0515 | CJ24: 0.0515 | CK24: 0.0515 | CL24: 0.0515 | CM24: 0.0515 | CN24: 0.0515 | CO24: 0.0515 | CP24: 0.0515 | CQ24: 0.0515 | CR24: 0.0515 | CS24: 0.0515 | CT24: 0.0515 | CU24: 0.0515 | CV24: 0.0515 | CW24: 0.0515 | CX24: 0.0515
A25: 21 | B25: 0.0515 | C25: 0.0515 | D25: 0.0515 | E25: 0.0515 | F25: 0.0515 | G25: 0.0515 | H25: 0.0515 | I25: 0.0515 | J25: 0.0515 | K25: 0.0515 | L25: 0.0515 | M25: 0.0515 | N25: 0.0515 | O25: 0.0515 | P25: 0.0515 | Q25: 0.0515 | R25: 0.0515 | S25: 0.0515 | T25: 0.0515 | U25: 0.0515 | V25: 0.0515 | W25: 0.0515 | X25: 0.0515 | Y25: 0.0515 | Z25: 0.0515 | AA25: 0.0515 | AB25: 0.0515 | AC25: 0.0515 | AD25: 0.0515 | AE25: 0.0515 | AF25: 0.0515 | AG25: 0.0515 | AH25: 0.0515 | AI25: 0.0515 | AJ25: 0.0515 | AK25: 0.0515 | AL25: 0.0515 | AM25: 0.0515 | AN25: 0.0515 | AO25: 0.0515 | AP25: 0.0515 | AQ25: 0.0515 | AR25: 0.0515 | AS25: 0.0515 | AT25: 0.0515 | AU25: 0.0515 | AV25: 0.0515 | AW25: 0.0515 | AX25: 0.0515 | AY25: 0.0515 | AZ25: 0.0515 | BA25: 0.0515 | BB25: 0.0515 | BC25: 0.0515 | BD25: 0.0515 | BE25: 0.0515 | BF25: 0.0515 | BG25: 0.0515 | BH25: 0.0515 | BI25: 0.0515 | BJ25: 0.0515 | BK25: 0.0515 | BL25: 0.0515 | BM25: 0.0515 | BN25: 0.0515 | BO25: 0.0515 | BP25: 0.0515 | BQ25: 0.0515 | BR25: 0.0515 | BS25: 0.0515 | BT25: 0.0515 | BU25: 0.0515 | BV25: 0.0515 | BW25: 0.0515 | BX25: 0.0515 | BY25: 0.0515 | BZ25: 0.0515 | CA25: 0.0515 | CB25: 0.0515 | CC25: 0.0515 | CD25: 0.0515 | CE25: 0.0515 | CF25: 0.0515 | CG25: 0.0515 | CH25: 0.0515 | CI25: 0.0515 | CJ25: 0.0515 | CK25: 0.0515 | CL25: 0.0515 | CM25: 0.0515 | CN25: 0.0515 | CO25: 0.0515 | CP25: 0.0515 | CQ25: 0.0515 | CR25: 0.0515 | CS25: 0.0515 | CT25: 0.0515 | CU25: 0.0515 | CV25: 0.0515 | CW25: 0.0515 | CX25: 0.0515
A26: 22 | B26: 0.0515 | C26: 0.0515 | D26: 0.0515 | E26: 0.0515 | F26: 0.0515 | G26: 0.0515 | H26: 0.0515 | I26: 0.0515 | J26: 0.0515 | K26: 0.0515 | L26: 0.0515 | M26: 0.0515 | N26: 0.0515 | O26: 0.0515 | P26: 0.0515 | Q26: 0.0515 | R26: 0.0515 | S26: 0.0515 | T26: 0.0515 | U26: 0.0515 | V26: 0.0515 | W26: 0.0515 | X26: 0.0515 | Y26: 0.0515 | Z26: 0.0515 | AA26: 0.0515 | AB26: 0.0515 | AC26: 0.0515 | AD26: 0.0515 | AE26: 0.0515 | AF26: 0.0515 | AG26: 0.0515 | AH26: 0.0515 | AI26: 0.0515 | AJ26: 0.0515 | AK26: 0.0515 | AL26: 0.0515 | AM26: 0.0515 | AN26: 0.0515 | AO26: 0.0515 | AP26: 0.0515 | AQ26: 0.0515 | AR26: 0.0515 | AS26: 0.0515 | AT26: 0.0515 | AU26: 0.0515 | AV26: 0.0515 | AW26: 0.0515 | AX26: 0.0515 | AY26: 0.0515 | AZ26: 0.0515 | BA26: 0.0515 | BB26: 0.0515 | BC26: 0.0515 | BD26: 0.0515 | BE26: 0.0515 | BF26: 0.0515 | BG26: 0.0515 | BH26: 0.0515 | BI26: 0.0515 | BJ26: 0.0515 | BK26: 0.0515 | BL26: 0.0515 | BM26: 0.0515 | BN26: 0.0515 | BO26: 0.0515 | BP26: 0.0515 | BQ26: 0.0515 | BR26: 0.0515 | BS26: 0.0515 | BT26: 0.0515 | BU26: 0.0515 | BV26: 0.0515 | BW26: 0.0515 | BX26: 0.0515 | BY26: 0.0515 | BZ26: 0.0515 | CA26: 0.0515 | CB26: 0.0515 | CC26: 0.0515 | CD26: 0.0515 | CE26: 0.0515 | CF26: 0.0515 | CG26: 0.0515 | CH26: 0.0515 | CI26: 0.0515 | CJ26: 0.0515 | CK26: 0.0515 | CL26: 0.0515 | CM26: 0.0515 | CN26: 0.0515 | CO26: 0.0515 | CP26: 0.0515 | CQ26: 0.0515 | CR26: 0.0515 | CS26: 0.0515 | CT26: 0.0515 | CU26: 0.0515 | CV26: 0.0515 | CW26: 0.0515 | CX26: 0.0515
A27: 23 | B27: 0.0515 | C27: 0.0515 | D27: 0.0515 | E27: 0.0515 | F27: 0.0515 | G27: 0.0515 | H27: 0.0515 | I27: 0.0515 | J27: 0.0515 | K27: =IF(K$2=0,$B$4:$B$124,$B$4:$B$124*K$2) -> 0.0515 | L27: 0.0515 | M27: 0.0515 | N27: 0.0515 | O27: 0.0515 | P27: 0.0515 | Q27: 0.0515 | R27: 0.0515 | S27: 0.0515 | T27: 0.0515 | U27: 0.0515 | V27: 0.0515 | W27: 0.0515 | X27: 0.0515 | Y27: 0.0515 | Z27: 0.0515 | AA27: 0.0515 | AB27: 0.0515 | AC27: 0.0515 | AD27: 0.0515 | AE27: 0.0515 | AF27: 0.0515 | AG27: 0.0515 | AH27: 0.0515 | AI27: 0.0515 | AJ27: 0.0515 | AK27: 0.0515 | AL27: 0.0515 | AM27: 0.0515 | AN27: 0.0515 | AO27: 0.0515 | AP27: 0.0515 | AQ27: 0.0515 | AR27: 0.0515 | AS27: 0.0515 | AT27: 0.0515 | AU27: 0.0515 | AV27: 0.0515 | AW27: 0.0515 | AX27: =IF(AX$2=0,$B$4:$B$124,$B$4:$B$124*AX$2) -> 0.0515 | AY27: 0.0515 | AZ27: 0.0515 | BA27: 0.0515 | BB27: 0.0515 | BC27: 0.0515 | BD27: 0.0515 | BE27: 0.0515 | BF27: 0.0515 | BG27: 0.0515 | BH27: 0.0515 | BI27: 0.0515 | BJ27: 0.0515 | BK27: 0.0515 | BL27: 0.0515 | BM27: 0.0515 | BN27: 0.0515 | BO27: 0.0515 | BP27: 0.0515 | BQ27: 0.0515 | BR27: 0.0515 | BS27: 0.0515 | BT27: 0.0515 | BU27: 0.0515 | BV27: 0.0515 | BW27: 0.0515 | BX27: 0.0515 | BY27: 0.0515 | BZ27: 0.0515 | CA27: 0.0515 | CB27: 0.0515 | CC27: 0.0515 | CD27: 0.0515 | CE27: 0.0515 | CF27: 0.0515 | CG27: 0.0515 | CH27: 0.0515 | CI27: 0.0515 | CJ27: 0.0515 | CK27: 0.0515 | CL27: 0.0515 | CM27: 0.0515 | CN27: 0.0515 | CO27: 0.0515 | CP27: 0.0515 | CQ27: 0.0515 | CR27: 0.0515 | CS27: 0.0515 | CT27: 0.0515 | CU27: 0.0515 | CV27: 0.0515 | CW27: 0.0515 | CX27: 0.0515
A28: 24 | B28: 0.0515 | C28: =IF(C$2=0,$B$4:$B$124,$B$4:$B$124*C$2) -> 0.0515 | D28: 0.0515 | E28: 0.0515 | F28: 0.0515 | G28: 0.0515 | H28: 0.0515 | I28: 0.0515 | J28: 0.0515 | K28: 0.0515 | L28: 0.0515 | M28: 0.0515 | N28: 0.0515 | O28: 0.0515 | P28: 0.0515 | Q28: 0.0515 | R28: 0.0515 | S28: 0.0515 | T28: 0.0515 | U28: 0.0515 | V28: 0.0515 | W28: 0.0515 | X28: 0.0515 | Y28: 0.0515 | Z28: 0.0515 | AA28: 0.0515 | AB28: 0.0515 | AC28: 0.0515 | AD28: 0.0515 | AE28: 0.0515 | AF28: 0.0515 | AG28: 0.0515 | AH28: =IF(AH$2=0,$B$4:$B$124,$B$4:$B$124*AH$2) -> 0.0515 | AI28: 0.0515 | AJ28: 0.0515 | AK28: 0.0515 | AL28: 0.0515 | AM28: 0.0515 | AN28: 0.0515 | AO28: 0.0515 | AP28: 0.0515 | AQ28: 0.0515 | AR28: 0.0515 | AS28: 0.0515 | AT28: 0.0515 | AU28: 0.0515 | AV28: 0.0515 | AW28: 0.0515 | AX28: 0.0515 | AY28: 0.0515 | AZ28: 0.0515 | BA28: 0.0515 | BB28: 0.0515 | BC28: 0.0515 | BD28: 0.0515 | BE28: 0.0515 | BF28: 0.0515 | BG28: 0.0515 | BH28: 0.0515 | BI28: 0.0515 | BJ28: 0.0515 | BK28: 0.0515 | BL28: 0.0515 | BM28: 0.0515 | BN28: 0.0515 | BO28: 0.0515 | BP28: 0.0515 | BQ28: 0.0515 | BR28: 0.0515 | BS28: 0.0515 | BT28: 0.0515 | BU28: 0.0515 | BV28: 0.0515 | BW28: 0.0515 | BX28: 0.0515 | BY28: 0.0515 | BZ28: 0.0515 | CA28: 0.0515 | CB28: =IF(CB$2=0,$B$4:$B$124,$B$4:$B$124*CB$2) -> 0.0515 | CC28: 0.0515 | CD28: 0.0515 | CE28: 0.0515 | CF28: 0.0515 | CG28: 0.0515 | CH28: 0.0515 | CI28: 0.0515 | CJ28: 0.0515 | CK28: 0.0515 | CL28: 0.0515 | CM28: 0.0515 | CN28: 0.0515 | CO28: 0.0515 | CP28: 0.0515 | CQ28: 0.0515 | CR28: 0.0515 | CS28: 0.0515 | CT28: 0.0515 | CU28: 0.0515 | CV28: 0.0515 | CW28: 0.0515 | CX28: 0.0515
A29: 25 | B29: 0.05755 | C29: 0.05755 | D29: 0.05755 | E29: 0.05755 | F29: 0.05755 | G29: 0.05755 | H29: 0.05755 | I29: 0.05755 | J29: 0.05755 | K29: 0.05755 | L29: 0.05755 | M29: 0.05755 | N29: 0.05755 | O29: 0.05755 | P29: 0.05755 | Q29: 0.05755 | R29: 0.05755 | S29: 0.05755 | T29: 0.05755 | U29: 0.05755 | V29: 0.05755 | W29: 0.05755 | X29: 0.05755 | Y29: 0.05755 | Z29: 0.05755 | AA29: =IF(AA$2=0,$B$4:$B$124,$B$4:$B$124*AA$2) -> 0.05755 | AB29: 0.05755 | AC29: 0.05755 | AD29: 0.05755 | AE29: 0.05755 | AF29: 0.05755 | AG29: 0.05755 | AH29: 0.05755 | AI29: 0.05755 | AJ29: 0.05755 | AK29: 0.05755 | AL29: 0.05755 | AM29: 0.05755 | AN29: 0.05755 | AO29: 0.05755 | AP29: 0.05755 | AQ29: 0.05755 | AR29: 0.05755 | AS29: 0.05755 | AT29: 0.05755 | AU29: 0.05755 | AV29: 0.05755 | AW29: 0.05755 | AX29: 0.05755 | AY29: 0.05755 | AZ29: 0.05755 | BA29: 0.05755 | BB29: 0.05755 | BC29: 0.05755 | BD29: 0.05755 | BE29: 0.05755 | BF29: 0.05755 | BG29: 0.05755 | BH29: 0.05755 | BI29: 0.05755 | BJ29: 0.05755 | BK29: 0.05755 | BL29: 0.05755 | BM29: 0.05755 | BN29: 0.05755 | BO29: =IF(BO$2=0,$B$4:$B$124,$B$4:$B$124*BO$2) -> 0.05755 | BP29: 0.05755 | BQ29: 0.05755 | BR29: 0.05755 | BS29: 0.05755 | BT29: 0.05755 | BU29: 0.05755 | BV29: 0.05755 | BW29: 0.05755 | BX29: 0.05755 | BY29: 0.05755 | BZ29: 0.05755 | CA29: 0.05755 | CB29: 0.05755 | CC29: 0.05755 | CD29: 0.05755 | CE29: 0.05755 | CF29: 0.05755 | CG29: 0.05755 | CH29: 0.05755 | CI29: 0.05755 | CJ29: 0.05755 | CK29: 0.05755 | CL29: 0.05755 | CM29: 0.05755 | CN29: 0.05755 | CO29: 0.05755 | CP29: 0.05755 | CQ29: 0.05755 | CR29: 0.05755 | CS29: 0.05755 | CT29: 0.05755 | CU29: 0.05755 | CV29: 0.05755 | CW29: 0.05755 | CX29: 0.05755
A30: 26 | B30: 0.05755 | C30: 0.05755 | D30: 0.05755 | E30: 0.05755 | F30: 0.05755 | G30: 0.05755 | H30: 0.05755 | I30: 0.05755 | J30: 0.05755 | K30: 0.05755 | L30: 0.05755 | M30: 0.05755 | N30: 0.05755 | O30: 0.05755 | P30: 0.05755 | Q30: 0.05755 | R30: 0.05755 | S30: 0.05755 | T30: 0.05755 | U30: 0.05755 | V30: 0.05755 | W30: 0.05755 | X30: 0.05755 | Y30: 0.05755 | Z30: 0.05755 | AA30: 0.05755 | AB30: 0.05755 | AC30: 0.05755 | AD30: 0.05755 | AE30: 0.05755 | AF30: 0.05755 | AG30: 0.05755 | AH30: 0.05755 | AI30: 0.05755 | AJ30: 0.05755 | AK30: 0.05755 | AL30: 0.05755 | AM30: 0.05755 | AN30: 0.05755 | AO30: 0.05755 | AP30: 0.05755 | AQ30: 0.05755 | AR30: 0.05755 | AS30: 0.05755 | AT30: 0.05755 | AU30: 0.05755 | AV30: 0.05755 | AW30: 0.05755 | AX30: 0.05755 | AY30: 0.05755 | AZ30: 0.05755 | BA30: 0.05755 | BB30: 0.05755 | BC30: 0.05755 | BD30: 0.05755 | BE30: 0.05755 | BF30: 0.05755 | BG30: 0.05755 | BH30: 0.05755 | BI30: 0.05755 | BJ30: 0.05755 | BK30: 0.05755 | BL30: 0.05755 | BM30: 0.05755 | BN30: 0.05755 | BO30: 0.05755 | BP30: 0.05755 | BQ30: 0.05755 | BR30: 0.05755 | BS30: 0.05755 | BT30: 0.05755 | BU30: 0.05755 | BV30: 0.05755 | BW30: 0.05755 | BX30: 0.05755 | BY30: 0.05755 | BZ30: 0.05755 | CA30: 0.05755 | CB30: 0.05755 | CC30: 0.05755 | CD30: 0.05755 | CE30: 0.05755 | CF30: 0.05755 | CG30: 0.05755 | CH30: 0.05755 | CI30: 0.05755 | CJ30: 0.05755 | CK30: 0.05755 | CL30: 0.05755 | CM30: 0.05755 | CN30: 0.05755 | CO30: 0.05755 | CP30: 0.05755 | CQ30: 0.05755 | CR30: 0.05755 | CS30: 0.05755 | CT30: 0.05755 | CU30: 0.05755 | CV30: 0.05755 | CW30: 0.05755 | CX30: 0.05755
A31: 27 | B31: 0.05755 | C31: 0.05755 | D31: 0.05755 | E31: 0.05755 | F31: 0.05755 | G31: 0.05755 | H31: 0.05755 | I31: 0.05755 | J31: 0.05755 | K31: 0.05755 | L31: 0.05755 | M31: 0.05755 | N31: 0.05755 | O31: 0.05755 | P31: 0.05755 | Q31: 0.05755 | R31: 0.05755 | S31: 0.05755 | T31: 0.05755 | U31: 0.05755 | V31: 0.05755 | W31: 0.05755 | X31: 0.05755 | Y31: 0.05755 | Z31: 0.05755 | AA31: 0.05755 | AB31: 0.05755 | AC31: 0.05755 | AD31: 0.05755 | AE31: 0.05755 | AF31: 0.05755 | AG31: 0.05755 | AH31: 0.05755 | AI31: 0.05755 | AJ31: 0.05755 | AK31: 0.05755 | AL31: 0.05755 | AM31: 0.05755 | AN31: 0.05755 | AO31: 0.05755 | AP31: 0.05755 | AQ31: 0.05755 | AR31: 0.05755 | AS31: 0.05755 | AT31: 0.05755 | AU31: 0.05755 | AV31: 0.05755 | AW31: 0.05755 | AX31: 0.05755 | AY31: 0.05755 | AZ31: 0.05755 | BA31: 0.05755 | BB31: 0.05755 | BC31: 0.05755 | BD31: 0.05755 | BE31: 0.05755 | BF31: 0.05755 | BG31: 0.05755 | BH31: 0.05755 | BI31: 0.05755 | BJ31: 0.05755 | BK31: 0.05755 | BL31: 0.05755 | BM31: 0.05755 | BN31: 0.05755 | BO31: 0.05755 | BP31: 0.05755 | BQ31: 0.05755 | BR31: 0.05755 | BS31: 0.05755 | BT31: 0.05755 | BU31: 0.05755 | BV31: 0.05755 | BW31: 0.05755 | BX31: 0.05755 | BY31: 0.05755 | BZ31: 0.05755 | CA31: 0.05755 | CB31: 0.05755 | CC31: 0.05755 | CD31: 0.05755 | CE31: 0.05755 | CF31: 0.05755 | CG31: 0.05755 | CH31: 0.05755 | CI31: 0.05755 | CJ31: 0.05755 | CK31: 0.05755 | CL31: 0.05755 | CM31: 0.05755 | CN31: 0.05755 | CO31: 0.05755 | CP31: 0.05755 | CQ31: 0.05755 | CR31: 0.05755 | CS31: 0.05755 | CT31: 0.05755 | CU31: 0.05755 | CV31: 0.05755 | CW31: 0.05755 | CX31: 0.05755
... 38 more rows

Sheet Immigration2 (hidden)
A1: Currently assuming 2011 values remains static
B3: 2012 | C3: 2013 | D3: 2014 | E3: 2015 | F3: 2016 | G3: 2017 | H3: 2018 | I3: 2019 | J3: 2020 | K3: 2021 | L3: 2022 | M3: 2023 | N3: 2024 | O3: 2025 | P3: 2026 | Q3: 2027 | R3: 2028 | S3: 2029 | T3: 2030 | U3: 2031 | V3: 2032 | W3: 2033 | X3: 2034 | Y3: 2035 | Z3: 2036 | AA3: 2037 | AB3: 2038 | AC3: 2039 | AD3: 2040 | AE3: 2041 | AF3: 2042 | AG3: 2043 | AH3: 2044 | AI3: 2045 | AJ3: 2046 | AK3: 2047 | AL3: 2048 | AM3: 2049 | AN3: 2050 | AO3: 2051 | AP3: 2052 | AQ3: 2053 | AR3: 2054 | AS3: 2055 | AT3: 2056 | AU3: 2057 | AV3: 2058 | AW3: 2059 | AX3: 2060 | AY3: 2061 | AZ3: 2062 | BA3: 2063 | BB3: 2064 | BC3: 2065 | BD3: 2066 | BE3: 2067 | BF3: 2068 | BG3: 2069 | BH3: 2070 | BI3: 2071 | BJ3: 2072 | BK3: 2073 | BL3: 2074 | BM3: 2075 | BN3: 2076 | BO3: 2077 | BP3: 2078 | BQ3: 2079 | BR3: 2080 | BS3: 2081 | BT3: 2082 | BU3: 2083 | BV3: 2084 | BW3: 2085 | BX3: 2086 | BY3: 2087 | BZ3: 2088 | CA3: 2089 | CB3: 2090 | CC3: 2091 | CD3: 2092 | CE3: 2093 | CF3: 2094 | CG3: 2095 | CH3: 2096 | CI3: 2097 | CJ3: 2098 | CK3: 2099 | CL3: 2100
A4: 0 | B4: =smorgasbord!F22 -> 4361 | C4: =B4 -> 4361 | D4: =C4 -> 4361 | E4: 4361 | F4: 4361 | G4: 4361 | H4: 4361 | I4: 4361 | J4: 4361 | K4: 4361 | L4: 4361 | M4: 4361 | N4: 4361 | O4: 4361 | P4: 4361 | Q4: 4361 | R4: 4361 | S4: 4361 | T4: 4361 | U4: 4361 | V4: 4361 | W4: 4361 | X4: 4361 | Y4: 4361 | Z4: 4361 | AA4: 4361 | AB4: 4361 | AC4: 4361 | AD4: 4361 | AE4: 4361 | AF4: 4361 | AG4: 4361 | AH4: 4361 | AI4: 4361 | AJ4: 4361 | AK4: 4361 | AL4: 4361 | AM4: 4361 | AN4: 4361 | AO4: 4361 | AP4: 4361 | AQ4: 4361 | AR4: 4361 | AS4: 4361 | AT4: 4361 | AU4: 4361 | AV4: 4361 | AW4: 4361 | AX4: 4361 | AY4: 4361 | AZ4: 4361 | BA4: 4361 | BB4: 4361 | BC4: 4361 | BD4: 4361 | BE4: 4361 | BF4: 4361 | BG4: 4361 | BH4: 4361 | BI4: 4361 | BJ4: 4361 | BK4: 4361 | BL4: 4361 | BM4: 4361 | BN4: 4361 | BO4: 4361 | BP4: =BO4 -> 4361 | BQ4: 4361 | BR4: 4361 | BS4: 4361 | BT4: 4361 | BU4: 4361 | BV4: 4361 | BW4: 4361 | BX4: 4361 | BY4: 4361 | BZ4: 4361 | CA4: 4361 | CB4: 4361 | CC4: 4361 | CD4: 4361 | CE4: 4361 | CF4: 4361 | CG4: 4361 | CH4: 4361 | CI4: 4361 | CJ4: 4361 | CK4: 4361 | CL4: 4361
A5: 1 | B5: =smorgasbord!$F$23/4 -> 8504.25 | C5: =B5 -> 8504.25 | D5: 8504.25 | E5: 8504.25 | F5: 8504.25 | G5: 8504.25 | H5: 8504.25 | I5: 8504.25 | J5: 8504.25 | K5: 8504.25 | L5: 8504.25 | M5: 8504.25 | N5: 8504.25 | O5: 8504.25 | P5: 8504.25 | Q5: 8504.25 | R5: 8504.25 | S5: 8504.25 | T5: 8504.25 | U5: 8504.25 | V5: 8504.25 | W5: 8504.25 | X5: 8504.25 | Y5: 8504.25 | Z5: 8504.25 | AA5: 8504.25 | AB5: 8504.25 | AC5: 8504.25 | AD5: 8504.25 | AE5: 8504.25 | AF5: 8504.25 | AG5: 8504.25 | AH5: 8504.25 | AI5: 8504.25 | AJ5: 8504.25 | AK5: 8504.25 | AL5: 8504.25 | AM5: 8504.25 | AN5: 8504.25 | AO5: 8504.25 | AP5: 8504.25 | AQ5: 8504.25 | AR5: 8504.25 | AS5: 8504.25 | AT5: 8504.25 | AU5: 8504.25 | AV5: 8504.25 | AW5: 8504.25 | AX5: 8504.25 | AY5: 8504.25 | AZ5: 8504.25 | BA5: 8504.25 | BB5: 8504.25 | BC5: 8504.25 | BD5: 8504.25 | BE5: 8504.25 | BF5: 8504.25 | BG5: 8504.25 | BH5: 8504.25 | BI5: 8504.25 | BJ5: 8504.25 | BK5: 8504.25 | BL5: 8504.25 | BM5: 8504.25 | BN5: 8504.25 | BO5: 8504.25 | BP5: 8504.25 | BQ5: 8504.25 | BR5: 8504.25 | BS5: 8504.25 | BT5: 8504.25 | BU5: 8504.25 | BV5: 8504.25 | BW5: 8504.25 | BX5: 8504.25 | BY5: 8504.25 | BZ5: 8504.25 | CA5: 8504.25 | CB5: 8504.25 | CC5: 8504.25 | CD5: 8504.25 | CE5: 8504.25 | CF5: 8504.25 | CG5: 8504.25 | CH5: 8504.25 | CI5: 8504.25 | CJ5: 8504.25 | CK5: 8504.25 | CL5: 8504.25
A6: 2 | B6: =smorgasbord!$F$23/4 -> 8504.25 | C6: 8504.25 | D6: 8504.25 | E6: 8504.25 | F6: 8504.25 | G6: 8504.25 | H6: 8504.25 | I6: 8504.25 | J6: 8504.25 | K6: 8504.25 | L6: 8504.25 | M6: 8504.25 | N6: 8504.25 | O6: 8504.25 | P6: 8504.25 | Q6: 8504.25 | R6: 8504.25 | S6: 8504.25 | T6: 8504.25 | U6: 8504.25 | V6: 8504.25 | W6: 8504.25 | X6: 8504.25 | Y6: 8504.25 | Z6: 8504.25 | AA6: 8504.25 | AB6: 8504.25 | AC6: 8504.25 | AD6: 8504.25 | AE6: 8504.25 | AF6: 8504.25 | AG6: 8504.25 | AH6: 8504.25 | AI6: 8504.25 | AJ6: 8504.25 | AK6: 8504.25 | AL6: 8504.25 | AM6: 8504.25 | AN6: 8504.25 | AO6: 8504.25 | AP6: 8504.25 | AQ6: 8504.25 | AR6: 8504.25 | AS6: 8504.25 | AT6: 8504.25 | AU6: 8504.25 | AV6: 8504.25 | AW6: 8504.25 | AX6: 8504.25 | AY6: 8504.25 | AZ6: 8504.25 | BA6: 8504.25 | BB6: 8504.25 | BC6: 8504.25 | BD6: 8504.25 | BE6: 8504.25 | BF6: 8504.25 | BG6: 8504.25 | BH6: 8504.25 | BI6: 8504.25 | BJ6: 8504.25 | BK6: 8504.25 | BL6: 8504.25 | BM6: 8504.25 | BN6: 8504.25 | BO6: 8504.25 | BP6: 8504.25 | BQ6: 8504.25 | BR6: 8504.25 | BS6: 8504.25 | BT6: 8504.25 | BU6: 8504.25 | BV6: 8504.25 | BW6: 8504.25 | BX6: 8504.25 | BY6: 8504.25 | BZ6: 8504.25 | CA6: 8504.25 | CB6: 8504.25 | CC6: 8504.25 | CD6: 8504.25 | CE6: 8504.25 | CF6: 8504.25 | CG6: 8504.25 | CH6: 8504.25 | CI6: 8504.25 | CJ6: 8504.25 | CK6: 8504.25 | CL6: 8504.25
A7: 3 | B7: =smorgasbord!$F$23/4 -> 8504.25 | C7: 8504.25 | D7: 8504.25 | E7: 8504.25 | F7: 8504.25 | G7: 8504.25 | H7: 8504.25 | I7: 8504.25 | J7: 8504.25 | K7: 8504.25 | L7: 8504.25 | M7: 8504.25 | N7: 8504.25 | O7: 8504.25 | P7: 8504.25 | Q7: 8504.25 | R7: 8504.25 | S7: 8504.25 | T7: 8504.25 | U7: 8504.25 | V7: 8504.25 | W7: 8504.25 | X7: 8504.25 | Y7: 8504.25 | Z7: 8504.25 | AA7: 8504.25 | AB7: 8504.25 | AC7: 8504.25 | AD7: 8504.25 | AE7: 8504.25 | AF7: 8504.25 | AG7: 8504.25 | AH7: 8504.25 | AI7: 8504.25 | AJ7: 8504.25 | AK7: 8504.25 | AL7: 8504.25 | AM7: 8504.25 | AN7: 8504.25 | AO7: 8504.25 | AP7: 8504.25 | AQ7: 8504.25 | AR7: 8504.25 | AS7: 8504.25 | AT7: 8504.25 | AU7: 8504.25 | AV7: 8504.25 | AW7: 8504.25 | AX7: 8504.25 | AY7: 8504.25 | AZ7: 8504.25 | BA7: 8504.25 | BB7: 8504.25 | BC7: 8504.25 | BD7: 8504.25 | BE7: 8504.25 | BF7: 8504.25 | BG7: 8504.25 | BH7: 8504.25 | BI7: 8504.25 | BJ7: 8504.25 | BK7: 8504.25 | BL7: 8504.25 | BM7: 8504.25 | BN7: 8504.25 | BO7: 8504.25 | BP7: 8504.25 | BQ7: 8504.25 | BR7: 8504.25 | BS7: 8504.25 | BT7: 8504.25 | BU7: 8504.25 | BV7: 8504.25 | BW7: 8504.25 | BX7: 8504.25 | BY7: 8504.25 | BZ7: 8504.25 | CA7: 8504.25 | CB7: 8504.25 | CC7: 8504.25 | CD7: 8504.25 | CE7: 8504.25 | CF7: 8504.25 | CG7: 8504.25 | CH7: 8504.25 | CI7: 8504.25 | CJ7: 8504.25 | CK7: 8504.25 | CL7: 8504.25
A8: 4 | B8: =smorgasbord!$F$23/4 -> 8504.25 | C8: 8504.25 | D8: 8504.25 | E8: 8504.25 | F8: 8504.25 | G8: 8504.25 | H8: 8504.25 | I8: 8504.25 | J8: 8504.25 | K8: 8504.25 | L8: 8504.25 | M8: 8504.25 | N8: 8504.25 | O8: 8504.25 | P8: 8504.25 | Q8: 8504.25 | R8: 8504.25 | S8: 8504.25 | T8: 8504.25 | U8: 8504.25 | V8: 8504.25 | W8: 8504.25 | X8: 8504.25 | Y8: 8504.25 | Z8: 8504.25 | AA8: 8504.25 | AB8: 8504.25 | AC8: 8504.25 | AD8: 8504.25 | AE8: 8504.25 | AF8: 8504.25 | AG8: 8504.25 | AH8: 8504.25 | AI8: 8504.25 | AJ8: 8504.25 | AK8: 8504.25 | AL8: 8504.25 | AM8: 8504.25 | AN8: 8504.25 | AO8: 8504.25 | AP8: 8504.25 | AQ8: 8504.25 | AR8: 8504.25 | AS8: 8504.25 | AT8: 8504.25 | AU8: 8504.25 | AV8: 8504.25 | AW8: 8504.25 | AX8: 8504.25 | AY8: 8504.25 | AZ8: 8504.25 | BA8: 8504.25 | BB8: 8504.25 | BC8: 8504.25 | BD8: 8504.25 | BE8: 8504.25 | BF8: 8504.25 | BG8: 8504.25 | BH8: 8504.25 | BI8: 8504.25 | BJ8: 8504.25 | BK8: 8504.25 | BL8: 8504.25 | BM8: 8504.25 | BN8: =BM8 -> 8504.25 | BO8: 8504.25 | BP8: 8504.25 | BQ8: 8504.25 | BR8: 8504.25 | BS8: 8504.25 | BT8: 8504.25 | BU8: 8504.25 | BV8: 8504.25 | BW8: 8504.25 | BX8: 8504.25 | BY8: 8504.25 | BZ8: 8504.25 | CA8: 8504.25 | CB8: 8504.25 | CC8: 8504.25 | CD8: 8504.25 | CE8: 8504.25 | CF8: 8504.25 | CG8: 8504.25 | CH8: 8504.25 | CI8: 8504.25 | CJ8: 8504.25 | CK8: 8504.25 | CL8: 8504.25
A9: 5 | B9: =smorgasbord!$F$24/5 -> 10565.6 | C9: =B9 -> 10565.6 | D9: 10565.6 | E9: 10565.6 | F9: 10565.6 | G9: 10565.6 | H9: 10565.6 | I9: 10565.6 | J9: 10565.6 | K9: 10565.6 | L9: 10565.6 | M9: 10565.6 | N9: 10565.6 | O9: 10565.6 | P9: 10565.6 | Q9: 10565.6 | R9: 10565.6 | S9: 10565.6 | T9: 10565.6 | U9: 10565.6 | V9: 10565.6 | W9: 10565.6 | X9: 10565.6 | Y9: 10565.6 | Z9: 10565.6 | AA9: 10565.6 | AB9: 10565.6 | AC9: 10565.6 | AD9: 10565.6 | AE9: 10565.6 | AF9: 10565.6 | AG9: 10565.6 | AH9: 10565.6 | AI9: 10565.6 | AJ9: 10565.6 | AK9: 10565.6 | AL9: 10565.6 | AM9: 10565.6 | AN9: 10565.6 | AO9: 10565.6 | AP9: 10565.6 | AQ9: 10565.6 | AR9: 10565.6 | AS9: 10565.6 | AT9: 10565.6 | AU9: 10565.6 | AV9: 10565.6 | AW9: 10565.6 | AX9: 10565.6 | AY9: 10565.6 | AZ9: 10565.6 | BA9: 10565.6 | BB9: 10565.6 | BC9: 10565.6 | BD9: 10565.6 | BE9: 10565.6 | BF9: 10565.6 | BG9: 10565.6 | BH9: 10565.6 | BI9: 10565.6 | BJ9: 10565.6 | BK9: 10565.6 | BL9: 10565.6 | BM9: 10565.6 | BN9: 10565.6 | BO9: 10565.6 | BP9: 10565.6 | BQ9: 10565.6 | BR9: 10565.6 | BS9: 10565.6 | BT9: 10565.6 | BU9: 10565.6 | BV9: 10565.6 | BW9: 10565.6 | BX9: 10565.6 | BY9: 10565.6 | BZ9: 10565.6 | CA9: 10565.6 | CB9: 10565.6 | CC9: 10565.6 | CD9: 10565.6 | CE9: 10565.6 | CF9: 10565.6 | CG9: 10565.6 | CH9: 10565.6 | CI9: 10565.6 | CJ9: 10565.6 | CK9: 10565.6 | CL9: 10565.6
A10: 6 | B10: =smorgasbord!$F$24/5 -> 10565.6 | C10: 10565.6 | D10: 10565.6 | E10: 10565.6 | F10: 10565.6 | G10: 10565.6 | H10: 10565.6 | I10: 10565.6 | J10: 10565.6 | K10: 10565.6 | L10: 10565.6 | M10: 10565.6 | N10: 10565.6 | O10: 10565.6 | P10: 10565.6 | Q10: 10565.6 | R10: 10565.6 | S10: 10565.6 | T10: 10565.6 | U10: 10565.6 | V10: 10565.6 | W10: 10565.6 | X10: 10565.6 | Y10: 10565.6 | Z10: 10565.6 | AA10: 10565.6 | AB10: 10565.6 | AC10: 10565.6 | AD10: 10565.6 | AE10: 10565.6 | AF10: 10565.6 | AG10: 10565.6 | AH10: 10565.6 | AI10: 10565.6 | AJ10: 10565.6 | AK10: 10565.6 | AL10: 10565.6 | AM10: 10565.6 | AN10: 10565.6 | AO10: 10565.6 | AP10: 10565.6 | AQ10: 10565.6 | AR10: 10565.6 | AS10: 10565.6 | AT10: 10565.6 | AU10: 10565.6 | AV10: 10565.6 | AW10: 10565.6 | AX10: 10565.6 | AY10: 10565.6 | AZ10: 10565.6 | BA10: 10565.6 | BB10: 10565.6 | BC10: 10565.6 | BD10: 10565.6 | BE10: 10565.6 | BF10: 10565.6 | BG10: 10565.6 | BH10: 10565.6 | BI10: 10565.6 | BJ10: 10565.6 | BK10: 10565.6 | BL10: 10565.6 | BM10: 10565.6 | BN10: 10565.6 | BO10: 10565.6 | BP10: 10565.6 | BQ10: 10565.6 | BR10: 10565.6 | BS10: 10565.6 | BT10: 10565.6 | BU10: 10565.6 | BV10: 10565.6 | BW10: 10565.6 | BX10: 10565.6 | BY10: 10565.6 | BZ10: 10565.6 | CA10: 10565.6 | CB10: 10565.6 | CC10: 10565.6 | CD10: 10565.6 | CE10: 10565.6 | CF10: 10565.6 | CG10: 10565.6 | CH10: 10565.6 | CI10: 10565.6 | CJ10: 10565.6 | CK10: 10565.6 | CL10: 10565.6
A11: 7 | B11: =smorgasbord!$F$24/5 -> 10565.6 | C11: 10565.6 | D11: 10565.6 | E11: 10565.6 | F11: 10565.6 | G11: 10565.6 | H11: 10565.6 | I11: 10565.6 | J11: 10565.6 | K11: 10565.6 | L11: 10565.6 | M11: 10565.6 | N11: 10565.6 | O11: 10565.6 | P11: 10565.6 | Q11: 10565.6 | R11: 10565.6 | S11: 10565.6 | T11: 10565.6 | U11: 10565.6 | V11: 10565.6 | W11: 10565.6 | X11: 10565.6 | Y11: 10565.6 | Z11: 10565.6 | AA11: 10565.6 | AB11: 10565.6 | AC11: 10565.6 | AD11: 10565.6 | AE11: 10565.6 | AF11: 10565.6 | AG11: 10565.6 | AH11: 10565.6 | AI11: 10565.6 | AJ11: 10565.6 | AK11: 10565.6 | AL11: 10565.6 | AM11: 10565.6 | AN11: 10565.6 | AO11: 10565.6 | AP11: 10565.6 | AQ11: 10565.6 | AR11: 10565.6 | AS11: 10565.6 | AT11: 10565.6 | AU11: 10565.6 | AV11: 10565.6 | AW11: 10565.6 | AX11: 10565.6 | AY11: 10565.6 | AZ11: 10565.6 | BA11: 10565.6 | BB11: 10565.6 | BC11: 10565.6 | BD11: 10565.6 | BE11: 10565.6 | BF11: 10565.6 | BG11: 10565.6 | BH11: 10565.6 | BI11: 10565.6 | BJ11: 10565.6 | BK11: 10565.6 | BL11: 10565.6 | BM11: 10565.6 | BN11: 10565.6 | BO11: 10565.6 | BP11: 10565.6 | BQ11: 10565.6 | BR11: 10565.6 | BS11: 10565.6 | BT11: 10565.6 | BU11: 10565.6 | BV11: 10565.6 | BW11: 10565.6 | BX11: 10565.6 | BY11: 10565.6 | BZ11: 10565.6 | CA11: 10565.6 | CB11: 10565.6 | CC11: 10565.6 | CD11: 10565.6 | CE11: 10565.6 | CF11: 10565.6 | CG11: 10565.6 | CH11: 10565.6 | CI11: 10565.6 | CJ11: 10565.6 | CK11: 10565.6 | CL11: 10565.6
A12: 8 | B12: =smorgasbord!$F$24/5 -> 10565.6 | C12: 10565.6 | D12: 10565.6 | E12: 10565.6 | F12: 10565.6 | G12: 10565.6 | H12: 10565.6 | I12: 10565.6 | J12: 10565.6 | K12: 10565.6 | L12: 10565.6 | M12: 10565.6 | N12: 10565.6 | O12: 10565.6 | P12: 10565.6 | Q12: 10565.6 | R12: 10565.6 | S12: 10565.6 | T12: 10565.6 | U12: 10565.6 | V12: 10565.6 | W12: 10565.6 | X12: 10565.6 | Y12: 10565.6 | Z12: 10565.6 | AA12: 10565.6 | AB12: 10565.6 | AC12: 10565.6 | AD12: 10565.6 | AE12: 10565.6 | AF12: 10565.6 | AG12: 10565.6 | AH12: 10565.6 | AI12: 10565.6 | AJ12: 10565.6 | AK12: 10565.6 | AL12: 10565.6 | AM12: 10565.6 | AN12: 10565.6 | AO12: 10565.6 | AP12: 10565.6 | AQ12: 10565.6 | AR12: 10565.6 | AS12: 10565.6 | AT12: 10565.6 | AU12: 10565.6 | AV12: 10565.6 | AW12: 10565.6 | AX12: 10565.6 | AY12: 10565.6 | AZ12: 10565.6 | BA12: 10565.6 | BB12: 10565.6 | BC12: 10565.6 | BD12: 10565.6 | BE12: 10565.6 | BF12: 10565.6 | BG12: 10565.6 | BH12: 10565.6 | BI12: 10565.6 | BJ12: 10565.6 | BK12: 10565.6 | BL12: 10565.6 | BM12: 10565.6 | BN12: =BM12 -> 10565.6 | BO12: 10565.6 | BP12: 10565.6 | BQ12: 10565.6 | BR12: 10565.6 | BS12: 10565.6 | BT12: 10565.6 | BU12: 10565.6 | BV12: 10565.6 | BW12: 10565.6 | BX12: 10565.6 | BY12: 10565.6 | BZ12: 10565.6 | CA12: 10565.6 | CB12: 10565.6 | CC12: 10565.6 | CD12: 10565.6 | CE12: 10565.6 | CF12: 10565.6 | CG12: 10565.6 | CH12: 10565.6 | CI12: 10565.6 | CJ12: 10565.6 | CK12: 10565.6 | CL12: 10565.6
A13: 9 | B13: =smorgasbord!$F$24/5 -> 10565.6 | C13: =B13 -> 10565.6 | D13: 10565.6 | E13: 10565.6 | F13: 10565.6 | G13: 10565.6 | H13: 10565.6 | I13: 10565.6 | J13: 10565.6 | K13: 10565.6 | L13: 10565.6 | M13: 10565.6 | N13: 10565.6 | O13: 10565.6 | P13: 10565.6 | Q13: 10565.6 | R13: 10565.6 | S13: 10565.6 | T13: 10565.6 | U13: 10565.6 | V13: 10565.6 | W13: 10565.6 | X13: 10565.6 | Y13: 10565.6 | Z13: 10565.6 | AA13: 10565.6 | AB13: 10565.6 | AC13: 10565.6 | AD13: 10565.6 | AE13: 10565.6 | AF13: 10565.6 | AG13: 10565.6 | AH13: 10565.6 | AI13: 10565.6 | AJ13: 10565.6 | AK13: 10565.6 | AL13: 10565.6 | AM13: 10565.6 | AN13: 10565.6 | AO13: 10565.6 | AP13: 10565.6 | AQ13: 10565.6 | AR13: 10565.6 | AS13: 10565.6 | AT13: 10565.6 | AU13: 10565.6 | AV13: 10565.6 | AW13: 10565.6 | AX13: 10565.6 | AY13: 10565.6 | AZ13: 10565.6 | BA13: 10565.6 | BB13: 10565.6 | BC13: 10565.6 | BD13: 10565.6 | BE13: 10565.6 | BF13: 10565.6 | BG13: 10565.6 | BH13: 10565.6 | BI13: 10565.6 | BJ13: 10565.6 | BK13: 10565.6 | BL13: 10565.6 | BM13: 10565.6 | BN13: 10565.6 | BO13: 10565.6 | BP13: 10565.6 | BQ13: 10565.6 | BR13: 10565.6 | BS13: 10565.6 | BT13: 10565.6 | BU13: 10565.6 | BV13: 10565.6 | BW13: 10565.6 | BX13: 10565.6 | BY13: 10565.6 | BZ13: 10565.6 | CA13: 10565.6 | CB13: 10565.6 | CC13: 10565.6 | CD13: 10565.6 | CE13: 10565.6 | CF13: 10565.6 | CG13: 10565.6 | CH13: 10565.6 | CI13: 10565.6 | CJ13: 10565.6 | CK13: 10565.6 | CL13: 10565.6
A14: 10 | B14: =smorgasbord!$F$25/5 -> 14059 | C14: 14059 | D14: 14059 | E14: 14059 | F14: 14059 | G14: 14059 | H14: 14059 | I14: 14059 | J14: 14059 | K14: 14059 | L14: 14059 | M14: 14059 | N14: 14059 | O14: 14059 | P14: 14059 | Q14: 14059 | R14: 14059 | S14: 14059 | T14: 14059 | U14: 14059 | V14: 14059 | W14: 14059 | X14: 14059 | Y14: 14059 | Z14: 14059 | AA14: 14059 | AB14: 14059 | AC14: 14059 | AD14: 14059 | AE14: 14059 | AF14: 14059 | AG14: 14059 | AH14: 14059 | AI14: 14059 | AJ14: 14059 | AK14: 14059 | AL14: 14059 | AM14: 14059 | AN14: 14059 | AO14: 14059 | AP14: 14059 | AQ14: 14059 | AR14: 14059 | AS14: 14059 | AT14: 14059 | AU14: 14059 | AV14: 14059 | AW14: 14059 | AX14: 14059 | AY14: 14059 | AZ14: 14059 | BA14: 14059 | BB14: 14059 | BC14: 14059 | BD14: 14059 | BE14: 14059 | BF14: 14059 | BG14: 14059 | BH14: 14059 | BI14: 14059 | BJ14: 14059 | BK14: 14059 | BL14: 14059 | BM14: 14059 | BN14: 14059 | BO14: 14059 | BP14: 14059 | BQ14: 14059 | BR14: 14059 | BS14: 14059 | BT14: 14059 | BU14: 14059 | BV14: 14059 | BW14: 14059 | BX14: 14059 | BY14: 14059 | BZ14: 14059 | CA14: 14059 | CB14: 14059 | CC14: 14059 | CD14: 14059 | CE14: 14059 | CF14: 14059 | CG14: 14059 | CH14: 14059 | CI14: 14059 | CJ14: 14059 | CK14: 14059 | CL14: 14059
A15: 11 | B15: =smorgasbord!$F$25/5 -> 14059 | C15: 14059 | D15: 14059 | E15: 14059 | F15: 14059 | G15: 14059 | H15: 14059 | I15: 14059 | J15: 14059 | K15: 14059 | L15: 14059 | M15: 14059 | N15: 14059 | O15: 14059 | P15: 14059 | Q15: 14059 | R15: 14059 | S15: 14059 | T15: 14059 | U15: 14059 | V15: 14059 | W15: 14059 | X15: 14059 | Y15: 14059 | Z15: 14059 | AA15: 14059 | AB15: 14059 | AC15: 14059 | AD15: 14059 | AE15: 14059 | AF15: 14059 | AG15: 14059 | AH15: 14059 | AI15: 14059 | AJ15: 14059 | AK15: 14059 | AL15: 14059 | AM15: 14059 | AN15: 14059 | AO15: 14059 | AP15: 14059 | AQ15: 14059 | AR15: 14059 | AS15: 14059 | AT15: 14059 | AU15: 14059 | AV15: 14059 | AW15: 14059 | AX15: 14059 | AY15: 14059 | AZ15: 14059 | BA15: 14059 | BB15: 14059 | BC15: 14059 | BD15: 14059 | BE15: 14059 | BF15: 14059 | BG15: 14059 | BH15: 14059 | BI15: 14059 | BJ15: 14059 | BK15: 14059 | BL15: 14059 | BM15: 14059 | BN15: 14059 | BO15: 14059 | BP15: 14059 | BQ15: 14059 | BR15: =BQ15 -> 14059 | BS15: 14059 | BT15: 14059 | BU15: 14059 | BV15: 14059 | BW15: 14059 | BX15: 14059 | BY15: 14059 | BZ15: 14059 | CA15: 14059 | CB15: 14059 | CC15: 14059 | CD15: 14059 | CE15: 14059 | CF15: 14059 | CG15: 14059 | CH15: 14059 | CI15: 14059 | CJ15: 14059 | CK15: 14059 | CL15: 14059
A16: 12 | B16: =smorgasbord!$F$25/5 -> 14059 | C16: 14059 | D16: 14059 | E16: 14059 | F16: 14059 | G16: 14059 | H16: 14059 | I16: 14059 | J16: 14059 | K16: 14059 | L16: 14059 | M16: 14059 | N16: 14059 | O16: 14059 | P16: 14059 | Q16: 14059 | R16: 14059 | S16: 14059 | T16: 14059 | U16: 14059 | V16: 14059 | W16: 14059 | X16: 14059 | Y16: 14059 | Z16: 14059 | AA16: 14059 | AB16: 14059 | AC16: 14059 | AD16: 14059 | AE16: 14059 | AF16: 14059 | AG16: 14059 | AH16: 14059 | AI16: 14059 | AJ16: 14059 | AK16: 14059 | AL16: 14059 | AM16: 14059 | AN16: 14059 | AO16: 14059 | AP16: 14059 | AQ16: 14059 | AR16: 14059 | AS16: 14059 | AT16: 14059 | AU16: 14059 | AV16: 14059 | AW16: 14059 | AX16: 14059 | AY16: 14059 | AZ16: 14059 | BA16: 14059 | BB16: 14059 | BC16: 14059 | BD16: 14059 | BE16: 14059 | BF16: 14059 | BG16: 14059 | BH16: 14059 | BI16: 14059 | BJ16: 14059 | BK16: 14059 | BL16: 14059 | BM16: 14059 | BN16: =BM16 -> 14059 | BO16: 14059 | BP16: =BO16 -> 14059 | BQ16: 14059 | BR16: 14059 | BS16: 14059 | BT16: 14059 | BU16: 14059 | BV16: 14059 | BW16: 14059 | BX16: 14059 | BY16: 14059 | BZ16: 14059 | CA16: 14059 | CB16: 14059 | CC16: 14059 | CD16: 14059 | CE16: 14059 | CF16: 14059 | CG16: 14059 | CH16: 14059 | CI16: 14059 | CJ16: 14059 | CK16: 14059 | CL16: 14059
A17: 13 | B17: =smorgasbord!$F$25/5 -> 14059 | C17: =B17 -> 14059 | D17: 14059 | E17: 14059 | F17: 14059 | G17: 14059 | H17: 14059 | I17: 14059 | J17: 14059 | K17: 14059 | L17: 14059 | M17: 14059 | N17: 14059 | O17: 14059 | P17: 14059 | Q17: 14059 | R17: 14059 | S17: 14059 | T17: 14059 | U17: 14059 | V17: 14059 | W17: 14059 | X17: 14059 | Y17: 14059 | Z17: 14059 | AA17: 14059 | AB17: 14059 | AC17: 14059 | AD17: 14059 | AE17: 14059 | AF17: 14059 | AG17: 14059 | AH17: 14059 | AI17: 14059 | AJ17: 14059 | AK17: 14059 | AL17: 14059 | AM17: 14059 | AN17: 14059 | AO17: 14059 | AP17: 14059 | AQ17: 14059 | AR17: 14059 | AS17: 14059 | AT17: 14059 | AU17: 14059 | AV17: 14059 | AW17: 14059 | AX17: 14059 | AY17: 14059 | AZ17: 14059 | BA17: 14059 | BB17: 14059 | BC17: 14059 | BD17: 14059 | BE17: 14059 | BF17: 14059 | BG17: 14059 | BH17: 14059 | BI17: 14059 | BJ17: 14059 | BK17: 14059 | BL17: 14059 | BM17: 14059 | BN17: 14059 | BO17: 14059 | BP17: 14059 | BQ17: 14059 | BR17: 14059 | BS17: 14059 | BT17: 14059 | BU17: 14059 | BV17: 14059 | BW17: 14059 | BX17: 14059 | BY17: 14059 | BZ17: 14059 | CA17: 14059 | CB17: 14059 | CC17: 14059 | CD17: 14059 | CE17: 14059 | CF17: 14059 | CG17: 14059 | CH17: 14059 | CI17: 14059 | CJ17: 14059 | CK17: 14059 | CL17: 14059
A18: 14 | B18: =smorgasbord!$F$25/5 -> 14059 | C18: 14059 | D18: 14059 | E18: 14059 | F18: 14059 | G18: 14059 | H18: 14059 | I18: 14059 | J18: 14059 | K18: 14059 | L18: 14059 | M18: 14059 | N18: 14059 | O18: 14059 | P18: 14059 | Q18: 14059 | R18: 14059 | S18: 14059 | T18: 14059 | U18: 14059 | V18: 14059 | W18: 14059 | X18: 14059 | Y18: 14059 | Z18: 14059 | AA18: 14059 | AB18: 14059 | AC18: 14059 | AD18: 14059 | AE18: 14059 | AF18: 14059 | AG18: 14059 | AH18: 14059 | AI18: 14059 | AJ18: 14059 | AK18: 14059 | AL18: 14059 | AM18: 14059 | AN18: 14059 | AO18: 14059 | AP18: 14059 | AQ18: 14059 | AR18: 14059 | AS18: 14059 | AT18: 14059 | AU18: 14059 | AV18: 14059 | AW18: 14059 | AX18: 14059 | AY18: 14059 | AZ18: 14059 | BA18: 14059 | BB18: 14059 | BC18: 14059 | BD18: 14059 | BE18: 14059 | BF18: 14059 | BG18: 14059 | BH18: 14059 | BI18: 14059 | BJ18: 14059 | BK18: 14059 | BL18: 14059 | BM18: 14059 | BN18: 14059 | BO18: 14059 | BP18: 14059 | BQ18: 14059 | BR18: 14059 | BS18: 14059 | BT18: 14059 | BU18: 14059 | BV18: 14059 | BW18: 14059 | BX18: 14059 | BY18: 14059 | BZ18: 14059 | CA18: 14059 | CB18: 14059 | CC18: 14059 | CD18: 14059 | CE18: 14059 | CF18: 14059 | CG18: 14059 | CH18: 14059 | CI18: 14059 | CJ18: 14059 | CK18: 14059 | CL18: 14059
A19: 15 | B19: =smorgasbord!$F$26/5 -> 17794 | C19: 17794 | D19: 17794 | E19: 17794 | F19: 17794 | G19: 17794 | H19: 17794 | I19: 17794 | J19: 17794 | K19: 17794 | L19: 17794 | M19: 17794 | N19: 17794 | O19: 17794 | P19: 17794 | Q19: 17794 | R19: 17794 | S19: 17794 | T19: 17794 | U19: 17794 | V19: 17794 | W19: 17794 | X19: 17794 | Y19: 17794 | Z19: 17794 | AA19: 17794 | AB19: 17794 | AC19: 17794 | AD19: 17794 | AE19: 17794 | AF19: 17794 | AG19: 17794 | AH19: 17794 | AI19: 17794 | AJ19: 17794 | AK19: 17794 | AL19: 17794 | AM19: 17794 | AN19: 17794 | AO19: 17794 | AP19: 17794 | AQ19: 17794 | AR19: 17794 | AS19: 17794 | AT19: 17794 | AU19: 17794 | AV19: 17794 | AW19: 17794 | AX19: 17794 | AY19: 17794 | AZ19: 17794 | BA19: 17794 | BB19: 17794 | BC19: 17794 | BD19: 17794 | BE19: 17794 | BF19: 17794 | BG19: 17794 | BH19: 17794 | BI19: 17794 | BJ19: 17794 | BK19: 17794 | BL19: 17794 | BM19: 17794 | BN19: 17794 | BO19: 17794 | BP19: 17794 | BQ19: 17794 | BR19: 17794 | BS19: 17794 | BT19: 17794 | BU19: 17794 | BV19: 17794 | BW19: 17794 | BX19: 17794 | BY19: 17794 | BZ19: 17794 | CA19: 17794 | CB19: 17794 | CC19: 17794 | CD19: 17794 | CE19: 17794 | CF19: 17794 | CG19: 17794 | CH19: 17794 | CI19: 17794 | CJ19: 17794 | CK19: 17794 | CL19: 17794
A20: 16 | B20: =smorgasbord!$F$26/5 -> 17794 | C20: 17794 | D20: 17794 | E20: 17794 | F20: 17794 | G20: 17794 | H20: 17794 | I20: 17794 | J20: 17794 | K20: 17794 | L20: 17794 | M20: 17794 | N20: 17794 | O20: 17794 | P20: 17794 | Q20: 17794 | R20: 17794 | S20: 17794 | T20: 17794 | U20: 17794 | V20: 17794 | W20: 17794 | X20: 17794 | Y20: 17794 | Z20: 17794 | AA20: 17794 | AB20: 17794 | AC20: 17794 | AD20: 17794 | AE20: 17794 | AF20: 17794 | AG20: 17794 | AH20: 17794 | AI20: 17794 | AJ20: 17794 | AK20: 17794 | AL20: 17794 | AM20: 17794 | AN20: 17794 | AO20: 17794 | AP20: 17794 | AQ20: 17794 | AR20: 17794 | AS20: 17794 | AT20: 17794 | AU20: 17794 | AV20: 17794 | AW20: 17794 | AX20: 17794 | AY20: 17794 | AZ20: 17794 | BA20: 17794 | BB20: 17794 | BC20: 17794 | BD20: 17794 | BE20: 17794 | BF20: 17794 | BG20: 17794 | BH20: 17794 | BI20: 17794 | BJ20: 17794 | BK20: 17794 | BL20: 17794 | BM20: 17794 | BN20: =BM20 -> 17794 | BO20: 17794 | BP20: 17794 | BQ20: 17794 | BR20: 17794 | BS20: 17794 | BT20: 17794 | BU20: 17794 | BV20: 17794 | BW20: 17794 | BX20: 17794 | BY20: 17794 | BZ20: 17794 | CA20: 17794 | CB20: 17794 | CC20: 17794 | CD20: 17794 | CE20: 17794 | CF20: 17794 | CG20: 17794 | CH20: 17794 | CI20: 17794 | CJ20: 17794 | CK20: 17794 | CL20: 17794
A21: 17 | B21: =smorgasbord!$F$26/5 -> 17794 | C21: =B21 -> 17794 | D21: 17794 | E21: 17794 | F21: 17794 | G21: 17794 | H21: 17794 | I21: 17794 | J21: 17794 | K21: 17794 | L21: 17794 | M21: 17794 | N21: 17794 | O21: 17794 | P21: 17794 | Q21: 17794 | R21: 17794 | S21: 17794 | T21: 17794 | U21: 17794 | V21: 17794 | W21: 17794 | X21: 17794 | Y21: 17794 | Z21: 17794 | AA21: 17794 | AB21: 17794 | AC21: 17794 | AD21: 17794 | AE21: 17794 | AF21: 17794 | AG21: 17794 | AH21: 17794 | AI21: 17794 | AJ21: 17794 | AK21: 17794 | AL21: 17794 | AM21: 17794 | AN21: 17794 | AO21: 17794 | AP21: 17794 | AQ21: 17794 | AR21: 17794 | AS21: 17794 | AT21: 17794 | AU21: 17794 | AV21: 17794 | AW21: 17794 | AX21: 17794 | AY21: 17794 | AZ21: 17794 | BA21: 17794 | BB21: 17794 | BC21: 17794 | BD21: 17794 | BE21: 17794 | BF21: 17794 | BG21: 17794 | BH21: 17794 | BI21: 17794 | BJ21: 17794 | BK21: 17794 | BL21: 17794 | BM21: 17794 | BN21: 17794 | BO21: 17794 | BP21: 17794 | BQ21: 17794 | BR21: 17794 | BS21: 17794 | BT21: 17794 | BU21: 17794 | BV21: 17794 | BW21: 17794 | BX21: 17794 | BY21: 17794 | BZ21: 17794 | CA21: 17794 | CB21: 17794 | CC21: 17794 | CD21: 17794 | CE21: 17794 | CF21: 17794 | CG21: 17794 | CH21: 17794 | CI21: 17794 | CJ21: 17794 | CK21: 17794 | CL21: 17794
A22: 18 | B22: =smorgasbord!$F$26/5 -> 17794 | C22: 17794 | D22: 17794 | E22: 17794 | F22: 17794 | G22: 17794 | H22: 17794 | I22: 17794 | J22: 17794 | K22: 17794 | L22: 17794 | M22: 17794 | N22: 17794 | O22: 17794 | P22: 17794 | Q22: 17794 | R22: 17794 | S22: 17794 | T22: 17794 | U22: 17794 | V22: 17794 | W22: 17794 | X22: 17794 | Y22: 17794 | Z22: 17794 | AA22: 17794 | AB22: 17794 | AC22: 17794 | AD22: 17794 | AE22: 17794 | AF22: 17794 | AG22: 17794 | AH22: 17794 | AI22: 17794 | AJ22: 17794 | AK22: 17794 | AL22: 17794 | AM22: 17794 | AN22: 17794 | AO22: 17794 | AP22: 17794 | AQ22: 17794 | AR22: 17794 | AS22: 17794 | AT22: 17794 | AU22: 17794 | AV22: 17794 | AW22: 17794 | AX22: 17794 | AY22: 17794 | AZ22: 17794 | BA22: 17794 | BB22: 17794 | BC22: 17794 | BD22: 17794 | BE22: 17794 | BF22: 17794 | BG22: 17794 | BH22: 17794 | BI22: 17794 | BJ22: 17794 | BK22: 17794 | BL22: 17794 | BM22: 17794 | BN22: 17794 | BO22: 17794 | BP22: 17794 | BQ22: 17794 | BR22: 17794 | BS22: 17794 | BT22: 17794 | BU22: 17794 | BV22: 17794 | BW22: 17794 | BX22: 17794 | BY22: 17794 | BZ22: 17794 | CA22: 17794 | CB22: 17794 | CC22: 17794 | CD22: 17794 | CE22: 17794 | CF22: 17794 | CG22: 17794 | CH22: 17794 | CI22: 17794 | CJ22: 17794 | CK22: 17794 | CL22: 17794
A23: 19 | B23: =smorgasbord!$F$26/5 -> 17794 | C23: 17794 | D23: 17794 | E23: 17794 | F23: 17794 | G23: 17794 | H23: 17794 | I23: 17794 | J23: 17794 | K23: 17794 | L23: 17794 | M23: 17794 | N23: 17794 | O23: 17794 | P23: 17794 | Q23: 17794 | R23: 17794 | S23: 17794 | T23: 17794 | U23: 17794 | V23: 17794 | W23: 17794 | X23: 17794 | Y23: 17794 | Z23: 17794 | AA23: 17794 | AB23: 17794 | AC23: 17794 | AD23: 17794 | AE23: 17794 | AF23: 17794 | AG23: 17794 | AH23: 17794 | AI23: 17794 | AJ23: 17794 | AK23: 17794 | AL23: 17794 | AM23: 17794 | AN23: 17794 | AO23: 17794 | AP23: 17794 | AQ23: 17794 | AR23: 17794 | AS23: 17794 | AT23: 17794 | AU23: 17794 | AV23: 17794 | AW23: 17794 | AX23: 17794 | AY23: 17794 | AZ23: 17794 | BA23: 17794 | BB23: 17794 | BC23: 17794 | BD23: 17794 | BE23: 17794 | BF23: 17794 | BG23: 17794 | BH23: 17794 | BI23: 17794 | BJ23: 17794 | BK23: 17794 | BL23: 17794 | BM23: 17794 | BN23: 17794 | BO23: 17794 | BP23: 17794 | BQ23: 17794 | BR23: 17794 | BS23: 17794 | BT23: 17794 | BU23: 17794 | BV23: 17794 | BW23: 17794 | BX23: 17794 | BY23: 17794 | BZ23: 17794 | CA23: 17794 | CB23: 17794 | CC23: 17794 | CD23: 17794 | CE23: 17794 | CF23: 17794 | CG23: 17794 | CH23: 17794 | CI23: 17794 | CJ23: 17794 | CK23: 17794 | CL23: 17794
A24: 20 | B24: =smorgasbord!$F$27/5 -> 22028.8 | C24: 22028.8 | D24: 22028.8 | E24: 22028.8 | F24: 22028.8 | G24: 22028.8 | H24: 22028.8 | I24: 22028.8 | J24: 22028.8 | K24: 22028.8 | L24: 22028.8 | M24: 22028.8 | N24: 22028.8 | O24: 22028.8 | P24: 22028.8 | Q24: 22028.8 | R24: 22028.8 | S24: 22028.8 | T24: 22028.8 | U24: 22028.8 | V24: 22028.8 | W24: 22028.8 | X24: 22028.8 | Y24: 22028.8 | Z24: 22028.8 | AA24: 22028.8 | AB24: 22028.8 | AC24: 22028.8 | AD24: 22028.8 | AE24: 22028.8 | AF24: 22028.8 | AG24: 22028.8 | AH24: 22028.8 | AI24: 22028.8 | AJ24: 22028.8 | AK24: 22028.8 | AL24: 22028.8 | AM24: 22028.8 | AN24: 22028.8 | AO24: 22028.8 | AP24: 22028.8 | AQ24: 22028.8 | AR24: 22028.8 | AS24: 22028.8 | AT24: 22028.8 | AU24: 22028.8 | AV24: 22028.8 | AW24: 22028.8 | AX24: 22028.8 | AY24: 22028.8 | AZ24: 22028.8 | BA24: 22028.8 | BB24: 22028.8 | BC24: 22028.8 | BD24: 22028.8 | BE24: 22028.8 | BF24: 22028.8 | BG24: 22028.8 | BH24: 22028.8 | BI24: 22028.8 | BJ24: 22028.8 | BK24: 22028.8 | BL24: 22028.8 | BM24: 22028.8 | BN24: =BM24 -> 22028.8 | BO24: 22028.8 | BP24: 22028.8 | BQ24: 22028.8 | BR24: 22028.8 | BS24: 22028.8 | BT24: 22028.8 | BU24: 22028.8 | BV24: 22028.8 | BW24: 22028.8 | BX24: 22028.8 | BY24: 22028.8 | BZ24: 22028.8 | CA24: 22028.8 | CB24: 22028.8 | CC24: 22028.8 | CD24: 22028.8 | CE24: 22028.8 | CF24: 22028.8 | CG24: 22028.8 | CH24: 22028.8 | CI24: 22028.8 | CJ24: 22028.8 | CK24: 22028.8 | CL24: 22028.8
A25: 21 | B25: =smorgasbord!$F$27/5 -> 22028.8 | C25: =B25 -> 22028.8 | D25: 22028.8 | E25: 22028.8 | F25: 22028.8 | G25: 22028.8 | H25: 22028.8 | I25: 22028.8 | J25: 22028.8 | K25: 22028.8 | L25: 22028.8 | M25: 22028.8 | N25: 22028.8 | O25: 22028.8 | P25: 22028.8 | Q25: 22028.8 | R25: 22028.8 | S25: 22028.8 | T25: 22028.8 | U25: 22028.8 | V25: 22028.8 | W25: 22028.8 | X25: 22028.8 | Y25: 22028.8 | Z25: 22028.8 | AA25: 22028.8 | AB25: 22028.8 | AC25: 22028.8 | AD25: 22028.8 | AE25: 22028.8 | AF25: 22028.8 | AG25: 22028.8 | AH25: 22028.8 | AI25: 22028.8 | AJ25: 22028.8 | AK25: 22028.8 | AL25: 22028.8 | AM25: 22028.8 | AN25: 22028.8 | AO25: 22028.8 | AP25: 22028.8 | AQ25: 22028.8 | AR25: 22028.8 | AS25: 22028.8 | AT25: 22028.8 | AU25: 22028.8 | AV25: 22028.8 | AW25: 22028.8 | AX25: 22028.8 | AY25: 22028.8 | AZ25: 22028.8 | BA25: 22028.8 | BB25: 22028.8 | BC25: 22028.8 | BD25: 22028.8 | BE25: 22028.8 | BF25: 22028.8 | BG25: 22028.8 | BH25: 22028.8 | BI25: 22028.8 | BJ25: 22028.8 | BK25: 22028.8 | BL25: 22028.8 | BM25: 22028.8 | BN25: 22028.8 | BO25: 22028.8 | BP25: 22028.8 | BQ25: 22028.8 | BR25: 22028.8 | BS25: 22028.8 | BT25: 22028.8 | BU25: 22028.8 | BV25: 22028.8 | BW25: 22028.8 | BX25: 22028.8 | BY25: 22028.8 | BZ25: 22028.8 | CA25: 22028.8 | CB25: 22028.8 | CC25: 22028.8 | CD25: 22028.8 | CE25: 22028.8 | CF25: 22028.8 | CG25: 22028.8 | CH25: 22028.8 | CI25: 22028.8 | CJ25: 22028.8 | CK25: 22028.8 | CL25: 22028.8
A26: 22 | B26: =smorgasbord!$F$27/5 -> 22028.8 | C26: 22028.8 | D26: 22028.8 | E26: 22028.8 | F26: 22028.8 | G26: 22028.8 | H26: 22028.8 | I26: 22028.8 | J26: 22028.8 | K26: 22028.8 | L26: 22028.8 | M26: 22028.8 | N26: 22028.8 | O26: 22028.8 | P26: 22028.8 | Q26: 22028.8 | R26: 22028.8 | S26: 22028.8 | T26: 22028.8 | U26: 22028.8 | V26: 22028.8 | W26: 22028.8 | X26: 22028.8 | Y26: 22028.8 | Z26: 22028.8 | AA26: 22028.8 | AB26: 22028.8 | AC26: 22028.8 | AD26: 22028.8 | AE26: 22028.8 | AF26: 22028.8 | AG26: 22028.8 | AH26: 22028.8 | AI26: 22028.8 | AJ26: 22028.8 | AK26: 22028.8 | AL26: 22028.8 | AM26: 22028.8 | AN26: 22028.8 | AO26: 22028.8 | AP26: 22028.8 | AQ26: 22028.8 | AR26: 22028.8 | AS26: 22028.8 | AT26: 22028.8 | AU26: 22028.8 | AV26: 22028.8 | AW26: 22028.8 | AX26: 22028.8 | AY26: 22028.8 | AZ26: 22028.8 | BA26: 22028.8 | BB26: 22028.8 | BC26: 22028.8 | BD26: 22028.8 | BE26: 22028.8 | BF26: 22028.8 | BG26: 22028.8 | BH26: 22028.8 | BI26: 22028.8 | BJ26: 22028.8 | BK26: 22028.8 | BL26: 22028.8 | BM26: 22028.8 | BN26: 22028.8 | BO26: 22028.8 | BP26: 22028.8 | BQ26: 22028.8 | BR26: 22028.8 | BS26: 22028.8 | BT26: 22028.8 | BU26: 22028.8 | BV26: 22028.8 | BW26: 22028.8 | BX26: 22028.8 | BY26: 22028.8 | BZ26: 22028.8 | CA26: 22028.8 | CB26: 22028.8 | CC26: 22028.8 | CD26: 22028.8 | CE26: 22028.8 | CF26: 22028.8 | CG26: 22028.8 | CH26: 22028.8 | CI26: 22028.8 | CJ26: 22028.8 | CK26: 22028.8 | CL26: 22028.8
A27: 23 | B27: =smorgasbord!$F$27/5 -> 22028.8 | C27: 22028.8 | D27: 22028.8 | E27: 22028.8 | F27: 22028.8 | G27: 22028.8 | H27: 22028.8 | I27: 22028.8 | J27: 22028.8 | K27: 22028.8 | L27: 22028.8 | M27: 22028.8 | N27: 22028.8 | O27: 22028.8 | P27: 22028.8 | Q27: 22028.8 | R27: 22028.8 | S27: 22028.8 | T27: 22028.8 | U27: 22028.8 | V27: 22028.8 | W27: 22028.8 | X27: 22028.8 | Y27: 22028.8 | Z27: 22028.8 | AA27: 22028.8 | AB27: 22028.8 | AC27: 22028.8 | AD27: 22028.8 | AE27: 22028.8 | AF27: 22028.8 | AG27: 22028.8 | AH27: 22028.8 | AI27: 22028.8 | AJ27: 22028.8 | AK27: 22028.8 | AL27: 22028.8 | AM27: 22028.8 | AN27: 22028.8 | AO27: 22028.8 | AP27: 22028.8 | AQ27: 22028.8 | AR27: 22028.8 | AS27: 22028.8 | AT27: 22028.8 | AU27: 22028.8 | AV27: 22028.8 | AW27: 22028.8 | AX27: 22028.8 | AY27: 22028.8 | AZ27: 22028.8 | BA27: 22028.8 | BB27: 22028.8 | BC27: 22028.8 | BD27: 22028.8 | BE27: 22028.8 | BF27: 22028.8 | BG27: 22028.8 | BH27: 22028.8 | BI27: 22028.8 | BJ27: 22028.8 | BK27: 22028.8 | BL27: 22028.8 | BM27: 22028.8 | BN27: 22028.8 | BO27: 22028.8 | BP27: 22028.8 | BQ27: 22028.8 | BR27: 22028.8 | BS27: 22028.8 | BT27: 22028.8 | BU27: 22028.8 | BV27: 22028.8 | BW27: 22028.8 | BX27: 22028.8 | BY27: 22028.8 | BZ27: 22028.8 | CA27: 22028.8 | CB27: 22028.8 | CC27: 22028.8 | CD27: 22028.8 | CE27: 22028.8 | CF27: 22028.8 | CG27: 22028.8 | CH27: 22028.8 | CI27: 22028.8 | CJ27: 22028.8 | CK27: 22028.8 | CL27: 22028.8
A28: 24 | B28: =smorgasbord!$F$27/5 -> 22028.8 | C28: 22028.8 | D28: 22028.8 | E28: 22028.8 | F28: 22028.8 | G28: 22028.8 | H28: 22028.8 | I28: 22028.8 | J28: 22028.8 | K28: 22028.8 | L28: 22028.8 | M28: 22028.8 | N28: 22028.8 | O28: 22028.8 | P28: 22028.8 | Q28: 22028.8 | R28: 22028.8 | S28: 22028.8 | T28: 22028.8 | U28: 22028.8 | V28: 22028.8 | W28: 22028.8 | X28: 22028.8 | Y28: 22028.8 | Z28: 22028.8 | AA28: 22028.8 | AB28: 22028.8 | AC28: 22028.8 | AD28: 22028.8 | AE28: 22028.8 | AF28: 22028.8 | AG28: 22028.8 | AH28: 22028.8 | AI28: 22028.8 | AJ28: 22028.8 | AK28: 22028.8 | AL28: 22028.8 | AM28: 22028.8 | AN28: 22028.8 | AO28: 22028.8 | AP28: 22028.8 | AQ28: 22028.8 | AR28: 22028.8 | AS28: 22028.8 | AT28: 22028.8 | AU28: 22028.8 | AV28: 22028.8 | AW28: 22028.8 | AX28: 22028.8 | AY28: 22028.8 | AZ28: 22028.8 | BA28: 22028.8 | BB28: 22028.8 | BC28: 22028.8 | BD28: 22028.8 | BE28: 22028.8 | BF28: 22028.8 | BG28: 22028.8 | BH28: 22028.8 | BI28: 22028.8 | BJ28: 22028.8 | BK28: 22028.8 | BL28: 22028.8 | BM28: 22028.8 | BN28: =BM28 -> 22028.8 | BO28: 22028.8 | BP28: 22028.8 | BQ28: 22028.8 | BR28: 22028.8 | BS28: 22028.8 | BT28: 22028.8 | BU28: 22028.8 | BV28: 22028.8 | BW28: 22028.8 | BX28: 22028.8 | BY28: 22028.8 | BZ28: 22028.8 | CA28: 22028.8 | CB28: 22028.8 | CC28: 22028.8 | CD28: 22028.8 | CE28: 22028.8 | CF28: 22028.8 | CG28: 22028.8 | CH28: 22028.8 | CI28: 22028.8 | CJ28: 22028.8 | CK28: 22028.8 | CL28: 22028.8
A29: 25 | B29: =smorgasbord!$F$28/5 -> 24425.6 | C29: =B29 -> 24425.6 | D29: 24425.6 | E29: 24425.6 | F29: 24425.6 | G29: 24425.6 | H29: 24425.6 | I29: 24425.6 | J29: 24425.6 | K29: 24425.6 | L29: 24425.6 | M29: 24425.6 | N29: 24425.6 | O29: 24425.6 | P29: 24425.6 | Q29: 24425.6 | R29: 24425.6 | S29: 24425.6 | T29: 24425.6 | U29: 24425.6 | V29: 24425.6 | W29: 24425.6 | X29: 24425.6 | Y29: 24425.6 | Z29: 24425.6 | AA29: 24425.6 | AB29: 24425.6 | AC29: 24425.6 | AD29: 24425.6 | AE29: 24425.6 | AF29: 24425.6 | AG29: 24425.6 | AH29: 24425.6 | AI29: 24425.6 | AJ29: 24425.6 | AK29: 24425.6 | AL29: 24425.6 | AM29: 24425.6 | AN29: 24425.6 | AO29: 24425.6 | AP29: 24425.6 | AQ29: 24425.6 | AR29: 24425.6 | AS29: 24425.6 | AT29: 24425.6 | AU29: 24425.6 | AV29: 24425.6 | AW29: 24425.6 | AX29: 24425.6 | AY29: 24425.6 | AZ29: 24425.6 | BA29: 24425.6 | BB29: 24425.6 | BC29: 24425.6 | BD29: 24425.6 | BE29: 24425.6 | BF29: 24425.6 | BG29: 24425.6 | BH29: 24425.6 | BI29: 24425.6 | BJ29: 24425.6 | BK29: 24425.6 | BL29: 24425.6 | BM29: 24425.6 | BN29: 24425.6 | BO29: 24425.6 | BP29: 24425.6 | BQ29: 24425.6 | BR29: 24425.6 | BS29: 24425.6 | BT29: 24425.6 | BU29: 24425.6 | BV29: 24425.6 | BW29: 24425.6 | BX29: 24425.6 | BY29: 24425.6 | BZ29: 24425.6 | CA29: 24425.6 | CB29: 24425.6 | CC29: 24425.6 | CD29: 24425.6 | CE29: 24425.6 | CF29: 24425.6 | CG29: 24425.6 | CH29: 24425.6 | CI29: 24425.6 | CJ29: 24425.6 | CK29: 24425.6 | CL29: 24425.6
A30: 26 | B30: =smorgasbord!$F$28/5 -> 24425.6 | C30: 24425.6 | D30: 24425.6 | E30: 24425.6 | F30: 24425.6 | G30: 24425.6 | H30: 24425.6 | I30: 24425.6 | J30: 24425.6 | K30: 24425.6 | L30: 24425.6 | M30: 24425.6 | N30: 24425.6 | O30: 24425.6 | P30: 24425.6 | Q30: 24425.6 | R30: 24425.6 | S30: 24425.6 | T30: 24425.6 | U30: 24425.6 | V30: 24425.6 | W30: 24425.6 | X30: 24425.6 | Y30: 24425.6 | Z30: 24425.6 | AA30: 24425.6 | AB30: 24425.6 | AC30: 24425.6 | AD30: 24425.6 | AE30: 24425.6 | AF30: 24425.6 | AG30: 24425.6 | AH30: 24425.6 | AI30: 24425.6 | AJ30: 24425.6 | AK30: 24425.6 | AL30: 24425.6 | AM30: 24425.6 | AN30: 24425.6 | AO30: 24425.6 | AP30: 24425.6 | AQ30: 24425.6 | AR30: 24425.6 | AS30: 24425.6 | AT30: 24425.6 | AU30: 24425.6 | AV30: 24425.6 | AW30: 24425.6 | AX30: 24425.6 | AY30: 24425.6 | AZ30: 24425.6 | BA30: 24425.6 | BB30: 24425.6 | BC30: 24425.6 | BD30: 24425.6 | BE30: 24425.6 | BF30: 24425.6 | BG30: 24425.6 | BH30: 24425.6 | BI30: 24425.6 | BJ30: 24425.6 | BK30: 24425.6 | BL30: 24425.6 | BM30: 24425.6 | BN30: 24425.6 | BO30: 24425.6 | BP30: 24425.6 | BQ30: 24425.6 | BR30: 24425.6 | BS30: 24425.6 | BT30: 24425.6 | BU30: 24425.6 | BV30: 24425.6 | BW30: 24425.6 | BX30: 24425.6 | BY30: 24425.6 | BZ30: 24425.6 | CA30: 24425.6 | CB30: 24425.6 | CC30: =CB30 -> 24425.6 | CD30: 24425.6 | CE30: 24425.6 | CF30: 24425.6 | CG30: 24425.6 | CH30: 24425.6 | CI30: 24425.6 | CJ30: 24425.6 | CK30: 24425.6 | CL30: 24425.6
A31: 27 | B31: =smorgasbord!$F$28/5 -> 24425.6 | C31: 24425.6 | D31: 24425.6 | E31: 24425.6 | F31: 24425.6 | G31: 24425.6 | H31: 24425.6 | I31: 24425.6 | J31: 24425.6 | K31: 24425.6 | L31: 24425.6 | M31: 24425.6 | N31: 24425.6 | O31: 24425.6 | P31: 24425.6 | Q31: 24425.6 | R31: 24425.6 | S31: 24425.6 | T31: 24425.6 | U31: 24425.6 | V31: 24425.6 | W31: 24425.6 | X31: 24425.6 | Y31: 24425.6 | Z31: 24425.6 | AA31: 24425.6 | AB31: 24425.6 | AC31: 24425.6 | AD31: 24425.6 | AE31: 24425.6 | AF31: 24425.6 | AG31: 24425.6 | AH31: 24425.6 | AI31: 24425.6 | AJ31: 24425.6 | AK31: 24425.6 | AL31: 24425.6 | AM31: 24425.6 | AN31: 24425.6 | AO31: 24425.6 | AP31: 24425.6 | AQ31: 24425.6 | AR31: 24425.6 | AS31: 24425.6 | AT31: 24425.6 | AU31: 24425.6 | AV31: 24425.6 | AW31: 24425.6 | AX31: 24425.6 | AY31: 24425.6 | AZ31: 24425.6 | BA31: 24425.6 | BB31: 24425.6 | BC31: 24425.6 | BD31: 24425.6 | BE31: 24425.6 | BF31: 24425.6 | BG31: 24425.6 | BH31: 24425.6 | BI31: 24425.6 | BJ31: 24425.6 | BK31: 24425.6 | BL31: 24425.6 | BM31: 24425.6 | BN31: 24425.6 | BO31: =BN31 -> 24425.6 | BP31: 24425.6 | BQ31: 24425.6 | BR31: 24425.6 | BS31: 24425.6 | BT31: 24425.6 | BU31: 24425.6 | BV31: 24425.6 | BW31: 24425.6 | BX31: 24425.6 | BY31: 24425.6 | BZ31: 24425.6 | CA31: 24425.6 | CB31: 24425.6 | CC31: 24425.6 | CD31: 24425.6 | CE31: 24425.6 | CF31: 24425.6 | CG31: 24425.6 | CH31: 24425.6 | CI31: 24425.6 | CJ31: 24425.6 | CK31: 24425.6 | CL31: 24425.6
... 38 more rows

Sheet Immigration (hidden)
A1: Currently assuming 2011 values remains static
B3: 2012 | C3: 2013 | D3: 2014 | E3: 2015 | F3: 2016 | G3: 2017 | H3: 2018 | I3: 2019 | J3: 2020 | K3: 2021 | L3: 2022 | M3: 2023 | N3: 2024 | O3: 2025 | P3: 2026 | Q3: 2027 | R3: 2028 | S3: 2029 | T3: 2030 | U3: 2031 | V3: 2032 | W3: 2033 | X3: 2034 | Y3: 2035 | Z3: 2036 | AA3: 2037 | AB3: 2038 | AC3: 2039 | AD3: 2040 | AE3: 2041 | AF3: 2042 | AG3: 2043 | AH3: 2044 | AI3: 2045 | AJ3: 2046 | AK3: 2047 | AL3: 2048 | AM3: 2049 | AN3: 2050 | AO3: 2051 | AP3: 2052 | AQ3: 2053 | AR3: 2054 | AS3: 2055 | AT3: 2056 | AU3: 2057 | AV3: 2058 | AW3: 2059 | AX3: 2060 | AY3: 2061 | AZ3: 2062 | BA3: 2063 | BB3: 2064 | BC3: 2065 | BD3: 2066 | BE3: 2067 | BF3: 2068 | BG3: 2069 | BH3: 2070 | BI3: 2071 | BJ3: 2072 | BK3: 2073 | BL3: 2074 | BM3: 2075 | BN3: 2076 | BO3: 2077 | BP3: 2078 | BQ3: 2079 | BR3: 2080 | BS3: 2081 | BT3: 2082 | BU3: 2083 | BV3: 2084 | BW3: 2085 | BX3: 2086 | BY3: 2087 | BZ3: 2088 | CA3: 2089 | CB3: 2090 | CC3: 2091 | CD3: 2092 | CE3: 2093 | CF3: 2094 | CG3: 2095 | CH3: 2096 | CI3: 2097 | CJ3: 2098 | CK3: 2099 | CL3: 2100
A4: 0 | B4: =smorgasbord!F22 -> 4361 | C4: =B4 -> 4361 | D4: =C4 -> 4361 | E4: 4361 | F4: 4361 | G4: 4361 | H4: 4361 | I4: 4361 | J4: 4361 | K4: 4361 | L4: 4361 | M4: 4361 | N4: 4361 | O4: 4361 | P4: 4361 | Q4: 4361 | R4: 4361 | S4: 4361 | T4: 4361 | U4: 4361 | V4: 4361 | W4: 4361 | X4: 4361 | Y4: 4361 | Z4: 4361 | AA4: 4361 | AB4: 4361 | AC4: 4361 | AD4: 4361 | AE4: 4361 | AF4: 4361 | AG4: 4361 | AH4: 4361 | AI4: 4361 | AJ4: 4361 | AK4: 4361 | AL4: 4361 | AM4: 4361 | AN4: 4361 | AO4: 4361 | AP4: 4361 | AQ4: 4361 | AR4: 4361 | AS4: 4361 | AT4: 4361 | AU4: 4361 | AV4: 4361 | AW4: 4361 | AX4: 4361 | AY4: 4361 | AZ4: 4361 | BA4: 4361 | BB4: 4361 | BC4: 4361 | BD4: 4361 | BE4: 4361 | BF4: 4361 | BG4: 4361 | BH4: 4361 | BI4: 4361 | BJ4: 4361 | BK4: 4361 | BL4: 4361 | BM4: 4361 | BN4: 4361 | BO4: 4361 | BP4: =BO4 -> 4361 | BQ4: 4361 | BR4: 4361 | BS4: 4361 | BT4: 4361 | BU4: 4361 | BV4: 4361 | BW4: 4361 | BX4: 4361 | BY4: 4361 | BZ4: 4361 | CA4: 4361 | CB4: 4361 | CC4: 4361 | CD4: 4361 | CE4: 4361 | CF4: 4361 | CG4: 4361 | CH4: 4361 | CI4: 4361 | CJ4: 4361 | CK4: 4361 | CL4: 4361
A5: 1 | B5: =smorgasbord!$F$23/4 -> 8504.25 | C5: =B5 -> 8504.25 | D5: 8504.25 | E5: 8504.25 | F5: 8504.25 | G5: 8504.25 | H5: 8504.25 | I5: 8504.25 | J5: 8504.25 | K5: 8504.25 | L5: 8504.25 | M5: 8504.25 | N5: 8504.25 | O5: 8504.25 | P5: 8504.25 | Q5: 8504.25 | R5: 8504.25 | S5: 8504.25 | T5: 8504.25 | U5: 8504.25 | V5: 8504.25 | W5: 8504.25 | X5: 8504.25 | Y5: 8504.25 | Z5: 8504.25 | AA5: 8504.25 | AB5: 8504.25 | AC5: 8504.25 | AD5: 8504.25 | AE5: 8504.25 | AF5: 8504.25 | AG5: 8504.25 | AH5: 8504.25 | AI5: 8504.25 | AJ5: 8504.25 | AK5: 8504.25 | AL5: 8504.25 | AM5: 8504.25 | AN5: 8504.25 | AO5: 8504.25 | AP5: 8504.25 | AQ5: 8504.25 | AR5: 8504.25 | AS5: 8504.25 | AT5: 8504.25 | AU5: 8504.25 | AV5: 8504.25 | AW5: 8504.25 | AX5: 8504.25 | AY5: 8504.25 | AZ5: 8504.25 | BA5: 8504.25 | BB5: 8504.25 | BC5: 8504.25 | BD5: 8504.25 | BE5: 8504.25 | BF5: 8504.25 | BG5: 8504.25 | BH5: 8504.25 | BI5: 8504.25 | BJ5: 8504.25 | BK5: 8504.25 | BL5: 8504.25 | BM5: 8504.25 | BN5: 8504.25 | BO5: =BN5 -> 8504.25 | BP5: 8504.25 | BQ5: 8504.25 | BR5: 8504.25 | BS5: 8504.25 | BT5: 8504.25 | BU5: 8504.25 | BV5: 8504.25 | BW5: 8504.25 | BX5: 8504.25 | BY5: 8504.25 | BZ5: 8504.25 | CA5: 8504.25 | CB5: 8504.25 | CC5: 8504.25 | CD5: 8504.25 | CE5: 8504.25 | CF5: 8504.25 | CG5: 8504.25 | CH5: 8504.25 | CI5: 8504.25 | CJ5: 8504.25 | CK5: 8504.25 | CL5: 8504.25
A6: 2 | B6: =smorgasbord!$F$23/4 -> 8504.25 | C6: =B6 -> 8504.25 | D6: 8504.25 | E6: 8504.25 | F6: 8504.25 | G6: 8504.25 | H6: 8504.25 | I6: 8504.25 | J6: 8504.25 | K6: 8504.25 | L6: 8504.25 | M6: 8504.25 | N6: 8504.25 | O6: 8504.25 | P6: 8504.25 | Q6: 8504.25 | R6: 8504.25 | S6: 8504.25 | T6: 8504.25 | U6: 8504.25 | V6: 8504.25 | W6: 8504.25 | X6: 8504.25 | Y6: 8504.25 | Z6: 8504.25 | AA6: 8504.25 | AB6: 8504.25 | AC6: 8504.25 | AD6: 8504.25 | AE6: 8504.25 | AF6: 8504.25 | AG6: 8504.25 | AH6: 8504.25 | AI6: 8504.25 | AJ6: 8504.25 | AK6: 8504.25 | AL6: 8504.25 | AM6: 8504.25 | AN6: 8504.25 | AO6: 8504.25 | AP6: 8504.25 | AQ6: 8504.25 | AR6: 8504.25 | AS6: 8504.25 | AT6: 8504.25 | AU6: 8504.25 | AV6: 8504.25 | AW6: 8504.25 | AX6: 8504.25 | AY6: 8504.25 | AZ6: 8504.25 | BA6: 8504.25 | BB6: 8504.25 | BC6: 8504.25 | BD6: 8504.25 | BE6: 8504.25 | BF6: 8504.25 | BG6: 8504.25 | BH6: 8504.25 | BI6: 8504.25 | BJ6: 8504.25 | BK6: 8504.25 | BL6: 8504.25 | BM6: 8504.25 | BN6: 8504.25 | BO6: =BN6 -> 8504.25 | BP6: 8504.25 | BQ6: 8504.25 | BR6: 8504.25 | BS6: 8504.25 | BT6: 8504.25 | BU6: 8504.25 | BV6: 8504.25 | BW6: 8504.25 | BX6: 8504.25 | BY6: 8504.25 | BZ6: 8504.25 | CA6: 8504.25 | CB6: 8504.25 | CC6: 8504.25 | CD6: 8504.25 | CE6: 8504.25 | CF6: 8504.25 | CG6: 8504.25 | CH6: 8504.25 | CI6: 8504.25 | CJ6: 8504.25 | CK6: 8504.25 | CL6: 8504.25
A7: 3 | B7: =smorgasbord!$F$23/4 -> 8504.25 | C7: =B7 -> 8504.25 | D7: 8504.25 | E7: 8504.25 | F7: 8504.25 | G7: 8504.25 | H7: 8504.25 | I7: 8504.25 | J7: 8504.25 | K7: 8504.25 | L7: 8504.25 | M7: 8504.25 | N7: 8504.25 | O7: 8504.25 | P7: 8504.25 | Q7: 8504.25 | R7: 8504.25 | S7: 8504.25 | T7: 8504.25 | U7: 8504.25 | V7: 8504.25 | W7: 8504.25 | X7: 8504.25 | Y7: 8504.25 | Z7: 8504.25 | AA7: 8504.25 | AB7: 8504.25 | AC7: 8504.25 | AD7: 8504.25 | AE7: 8504.25 | AF7: 8504.25 | AG7: 8504.25 | AH7: 8504.25 | AI7: 8504.25 | AJ7: 8504.25 | AK7: 8504.25 | AL7: 8504.25 | AM7: 8504.25 | AN7: 8504.25 | AO7: 8504.25 | AP7: 8504.25 | AQ7: 8504.25 | AR7: 8504.25 | AS7: 8504.25 | AT7: 8504.25 | AU7: 8504.25 | AV7: 8504.25 | AW7: 8504.25 | AX7: 8504.25 | AY7: 8504.25 | AZ7: 8504.25 | BA7: 8504.25 | BB7: 8504.25 | BC7: 8504.25 | BD7: 8504.25 | BE7: 8504.25 | BF7: 8504.25 | BG7: 8504.25 | BH7: 8504.25 | BI7: 8504.25 | BJ7: 8504.25 | BK7: 8504.25 | BL7: 8504.25 | BM7: 8504.25 | BN7: 8504.25 | BO7: =BN7 -> 8504.25 | BP7: 8504.25 | BQ7: 8504.25 | BR7: 8504.25 | BS7: 8504.25 | BT7: 8504.25 | BU7: 8504.25 | BV7: 8504.25 | BW7: 8504.25 | BX7: 8504.25 | BY7: 8504.25 | BZ7: 8504.25 | CA7: 8504.25 | CB7: 8504.25 | CC7: 8504.25 | CD7: 8504.25 | CE7: 8504.25 | CF7: 8504.25 | CG7: 8504.25 | CH7: 8504.25 | CI7: 8504.25 | CJ7: 8504.25 | CK7: 8504.25 | CL7: 8504.25
A8: 4 | B8: =smorgasbord!$F$23/4 -> 8504.25 | C8: =B8 -> 8504.25 | D8: 8504.25 | E8: 8504.25 | F8: 8504.25 | G8: 8504.25 | H8: 8504.25 | I8: 8504.25 | J8: 8504.25 | K8: 8504.25 | L8: 8504.25 | M8: 8504.25 | N8: 8504.25 | O8: 8504.25 | P8: 8504.25 | Q8: 8504.25 | R8: 8504.25 | S8: 8504.25 | T8: 8504.25 | U8: 8504.25 | V8: 8504.25 | W8: 8504.25 | X8: 8504.25 | Y8: 8504.25 | Z8: 8504.25 | AA8: 8504.25 | AB8: 8504.25 | AC8: 8504.25 | AD8: 8504.25 | AE8: 8504.25 | AF8: 8504.25 | AG8: 8504.25 | AH8: 8504.25 | AI8: 8504.25 | AJ8: 8504.25 | AK8: 8504.25 | AL8: 8504.25 | AM8: 8504.25 | AN8: 8504.25 | AO8: 8504.25 | AP8: 8504.25 | AQ8: 8504.25 | AR8: 8504.25 | AS8: 8504.25 | AT8: 8504.25 | AU8: 8504.25 | AV8: 8504.25 | AW8: 8504.25 | AX8: 8504.25 | AY8: 8504.25 | AZ8: 8504.25 | BA8: 8504.25 | BB8: 8504.25 | BC8: 8504.25 | BD8: 8504.25 | BE8: 8504.25 | BF8: 8504.25 | BG8: 8504.25 | BH8: 8504.25 | BI8: 8504.25 | BJ8: 8504.25 | BK8: 8504.25 | BL8: 8504.25 | BM8: 8504.25 | BN8: 8504.25 | BO8: =BN8 -> 8504.25 | BP8: 8504.25 | BQ8: 8504.25 | BR8: 8504.25 | BS8: 8504.25 | BT8: 8504.25 | BU8: 8504.25 | BV8: 8504.25 | BW8: 8504.25 | BX8: 8504.25 | BY8: 8504.25 | BZ8: 8504.25 | CA8: 8504.25 | CB8: 8504.25 | CC8: 8504.25 | CD8: 8504.25 | CE8: 8504.25 | CF8: 8504.25 | CG8: 8504.25 | CH8: 8504.25 | CI8: 8504.25 | CJ8: 8504.25 | CK8: 8504.25 | CL8: 8504.25
A9: 5 | B9: =smorgasbord!$F$24/5 -> 10565.6 | C9: =B9 -> 10565.6 | D9: 10565.6 | E9: 10565.6 | F9: 10565.6 | G9: 10565.6 | H9: 10565.6 | I9: 10565.6 | J9: 10565.6 | K9: 10565.6 | L9: 10565.6 | M9: 10565.6 | N9: 10565.6 | O9: 10565.6 | P9: 10565.6 | Q9: 10565.6 | R9: 10565.6 | S9: 10565.6 | T9: 10565.6 | U9: 10565.6 | V9: 10565.6 | W9: 10565.6 | X9: 10565.6 | Y9: 10565.6 | Z9: 10565.6 | AA9: 10565.6 | AB9: 10565.6 | AC9: 10565.6 | AD9: 10565.6 | AE9: 10565.6 | AF9: 10565.6 | AG9: 10565.6 | AH9: 10565.6 | AI9: 10565.6 | AJ9: 10565.6 | AK9: 10565.6 | AL9: 10565.6 | AM9: 10565.6 | AN9: 10565.6 | AO9: 10565.6 | AP9: 10565.6 | AQ9: 10565.6 | AR9: 10565.6 | AS9: 10565.6 | AT9: 10565.6 | AU9: 10565.6 | AV9: 10565.6 | AW9: 10565.6 | AX9: 10565.6 | AY9: 10565.6 | AZ9: 10565.6 | BA9: 10565.6 | BB9: 10565.6 | BC9: 10565.6 | BD9: 10565.6 | BE9: 10565.6 | BF9: 10565.6 | BG9: 10565.6 | BH9: 10565.6 | BI9: 10565.6 | BJ9: 10565.6 | BK9: 10565.6 | BL9: 10565.6 | BM9: 10565.6 | BN9: 10565.6 | BO9: =BN9 -> 10565.6 | BP9: 10565.6 | BQ9: 10565.6 | BR9: 10565.6 | BS9: 10565.6 | BT9: 10565.6 | BU9: 10565.6 | BV9: 10565.6 | BW9: 10565.6 | BX9: 10565.6 | BY9: 10565.6 | BZ9: 10565.6 | CA9: 10565.6 | CB9: 10565.6 | CC9: 10565.6 | CD9: 10565.6 | CE9: 10565.6 | CF9: 10565.6 | CG9: 10565.6 | CH9: 10565.6 | CI9: 10565.6 | CJ9: 10565.6 | CK9: 10565.6 | CL9: 10565.6
A10: 6 | B10: =smorgasbord!$F$24/5 -> 10565.6 | C10: =B10 -> 10565.6 | D10: 10565.6 | E10: 10565.6 | F10: 10565.6 | G10: 10565.6 | H10: 10565.6 | I10: 10565.6 | J10: 10565.6 | K10: 10565.6 | L10: 10565.6 | M10: 10565.6 | N10: 10565.6 | O10: 10565.6 | P10: 10565.6 | Q10: 10565.6 | R10: 10565.6 | S10: 10565.6 | T10: 10565.6 | U10: 10565.6 | V10: 10565.6 | W10: 10565.6 | X10: 10565.6 | Y10: 10565.6 | Z10: 10565.6 | AA10: 10565.6 | AB10: 10565.6 | AC10: 10565.6 | AD10: 10565.6 | AE10: 10565.6 | AF10: 10565.6 | AG10: 10565.6 | AH10: 10565.6 | AI10: 10565.6 | AJ10: 10565.6 | AK10: 10565.6 | AL10: 10565.6 | AM10: 10565.6 | AN10: 10565.6 | AO10: 10565.6 | AP10: 10565.6 | AQ10: 10565.6 | AR10: 10565.6 | AS10: 10565.6 | AT10: 10565.6 | AU10: 10565.6 | AV10: 10565.6 | AW10: 10565.6 | AX10: 10565.6 | AY10: 10565.6 | AZ10: 10565.6 | BA10: 10565.6 | BB10: 10565.6 | BC10: 10565.6 | BD10: 10565.6 | BE10: 10565.6 | BF10: 10565.6 | BG10: 10565.6 | BH10: 10565.6 | BI10: 10565.6 | BJ10: 10565.6 | BK10: 10565.6 | BL10: 10565.6 | BM10: 10565.6 | BN10: 10565.6 | BO10: =BN10 -> 10565.6 | BP10: 10565.6 | BQ10: 10565.6 | BR10: 10565.6 | BS10: 10565.6 | BT10: 10565.6 | BU10: 10565.6 | BV10: 10565.6 | BW10: 10565.6 | BX10: 10565.6 | BY10: 10565.6 | BZ10: 10565.6 | CA10: 10565.6 | CB10: 10565.6 | CC10: 10565.6 | CD10: 10565.6 | CE10: 10565.6 | CF10: 10565.6 | CG10: 10565.6 | CH10: 10565.6 | CI10: 10565.6 | CJ10: 10565.6 | CK10: 10565.6 | CL10: 10565.6
A11: 7 | B11: =smorgasbord!$F$24/5 -> 10565.6 | C11: =B11 -> 10565.6 | D11: 10565.6 | E11: 10565.6 | F11: 10565.6 | G11: 10565.6 | H11: 10565.6 | I11: 10565.6 | J11: 10565.6 | K11: 10565.6 | L11: 10565.6 | M11: 10565.6 | N11: 10565.6 | O11: 10565.6 | P11: 10565.6 | Q11: 10565.6 | R11: 10565.6 | S11: 10565.6 | T11: 10565.6 | U11: 10565.6 | V11: 10565.6 | W11: 10565.6 | X11: 10565.6 | Y11: 10565.6 | Z11: 10565.6 | AA11: 10565.6 | AB11: 10565.6 | AC11: 10565.6 | AD11: 10565.6 | AE11: 10565.6 | AF11: 10565.6 | AG11: 10565.6 | AH11: 10565.6 | AI11: 10565.6 | AJ11: 10565.6 | AK11: 10565.6 | AL11: 10565.6 | AM11: 10565.6 | AN11: 10565.6 | AO11: 10565.6 | AP11: 10565.6 | AQ11: 10565.6 | AR11: 10565.6 | AS11: 10565.6 | AT11: 10565.6 | AU11: 10565.6 | AV11: 10565.6 | AW11: 10565.6 | AX11: 10565.6 | AY11: 10565.6 | AZ11: 10565.6 | BA11: 10565.6 | BB11: 10565.6 | BC11: 10565.6 | BD11: 10565.6 | BE11: 10565.6 | BF11: 10565.6 | BG11: 10565.6 | BH11: 10565.6 | BI11: 10565.6 | BJ11: 10565.6 | BK11: 10565.6 | BL11: 10565.6 | BM11: 10565.6 | BN11: 10565.6 | BO11: =BN11 -> 10565.6 | BP11: 10565.6 | BQ11: 10565.6 | BR11: 10565.6 | BS11: 10565.6 | BT11: 10565.6 | BU11: 10565.6 | BV11: 10565.6 | BW11: 10565.6 | BX11: 10565.6 | BY11: 10565.6 | BZ11: 10565.6 | CA11: 10565.6 | CB11: 10565.6 | CC11: 10565.6 | CD11: 10565.6 | CE11: 10565.6 | CF11: 10565.6 | CG11: 10565.6 | CH11: 10565.6 | CI11: 10565.6 | CJ11: 10565.6 | CK11: 10565.6 | CL11: 10565.6
A12: 8 | B12: =smorgasbord!$F$24/5 -> 10565.6 | C12: =B12 -> 10565.6 | D12: 10565.6 | E12: 10565.6 | F12: 10565.6 | G12: 10565.6 | H12: 10565.6 | I12: 10565.6 | J12: 10565.6 | K12: 10565.6 | L12: 10565.6 | M12: 10565.6 | N12: 10565.6 | O12: 10565.6 | P12: 10565.6 | Q12: 10565.6 | R12: 10565.6 | S12: 10565.6 | T12: 10565.6 | U12: 10565.6 | V12: 10565.6 | W12: 10565.6 | X12: 10565.6 | Y12: 10565.6 | Z12: 10565.6 | AA12: 10565.6 | AB12: 10565.6 | AC12: 10565.6 | AD12: 10565.6 | AE12: 10565.6 | AF12: 10565.6 | AG12: 10565.6 | AH12: 10565.6 | AI12: 10565.6 | AJ12: 10565.6 | AK12: 10565.6 | AL12: 10565.6 | AM12: 10565.6 | AN12: 10565.6 | AO12: 10565.6 | AP12: 10565.6 | AQ12: 10565.6 | AR12: 10565.6 | AS12: 10565.6 | AT12: 10565.6 | AU12: 10565.6 | AV12: 10565.6 | AW12: 10565.6 | AX12: 10565.6 | AY12: 10565.6 | AZ12: 10565.6 | BA12: 10565.6 | BB12: 10565.6 | BC12: 10565.6 | BD12: 10565.6 | BE12: 10565.6 | BF12: 10565.6 | BG12: 10565.6 | BH12: 10565.6 | BI12: 10565.6 | BJ12: 10565.6 | BK12: 10565.6 | BL12: 10565.6 | BM12: 10565.6 | BN12: 10565.6 | BO12: =BN12 -> 10565.6 | BP12: 10565.6 | BQ12: 10565.6 | BR12: 10565.6 | BS12: 10565.6 | BT12: 10565.6 | BU12: 10565.6 | BV12: 10565.6 | BW12: 10565.6 | BX12: 10565.6 | BY12: 10565.6 | BZ12: 10565.6 | CA12: 10565.6 | CB12: 10565.6 | CC12: 10565.6 | CD12: 10565.6 | CE12: 10565.6 | CF12: 10565.6 | CG12: 10565.6 | CH12: 10565.6 | CI12: 10565.6 | CJ12: 10565.6 | CK12: 10565.6 | CL12: 10565.6
A13: 9 | B13: =smorgasbord!$F$24/5 -> 10565.6 | C13: =B13 -> 10565.6 | D13: 10565.6 | E13: 10565.6 | F13: 10565.6 | G13: 10565.6 | H13: 10565.6 | I13: 10565.6 | J13: 10565.6 | K13: 10565.6 | L13: 10565.6 | M13: 10565.6 | N13: 10565.6 | O13: 10565.6 | P13: 10565.6 | Q13: 10565.6 | R13: 10565.6 | S13: 10565.6 | T13: 10565.6 | U13: 10565.6 | V13: 10565.6 | W13: 10565.6 | X13: 10565.6 | Y13: 10565.6 | Z13: 10565.6 | AA13: 10565.6 | AB13: 10565.6 | AC13: 10565.6 | AD13: 10565.6 | AE13: 10565.6 | AF13: 10565.6 | AG13: 10565.6 | AH13: 10565.6 | AI13: 10565.6 | AJ13: 10565.6 | AK13: 10565.6 | AL13: 10565.6 | AM13: 10565.6 | AN13: 10565.6 | AO13: 10565.6 | AP13: 10565.6 | AQ13: 10565.6 | AR13: 10565.6 | AS13: 10565.6 | AT13: 10565.6 | AU13: 10565.6 | AV13: 10565.6 | AW13: 10565.6 | AX13: 10565.6 | AY13: 10565.6 | AZ13: 10565.6 | BA13: 10565.6 | BB13: 10565.6 | BC13: 10565.6 | BD13: 10565.6 | BE13: 10565.6 | BF13: 10565.6 | BG13: 10565.6 | BH13: 10565.6 | BI13: 10565.6 | BJ13: 10565.6 | BK13: 10565.6 | BL13: 10565.6 | BM13: 10565.6 | BN13: 10565.6 | BO13: =BN13 -> 10565.6 | BP13: 10565.6 | BQ13: 10565.6 | BR13: 10565.6 | BS13: 10565.6 | BT13: 10565.6 | BU13: 10565.6 | BV13: 10565.6 | BW13: 10565.6 | BX13: 10565.6 | BY13: 10565.6 | BZ13: 10565.6 | CA13: 10565.6 | CB13: 10565.6 | CC13: 10565.6 | CD13: 10565.6 | CE13: 10565.6 | CF13: 10565.6 | CG13: 10565.6 | CH13: 10565.6 | CI13: 10565.6 | CJ13: 10565.6 | CK13: 10565.6 | CL13: 10565.6
A14: 10 | B14: =smorgasbord!$F$25/5 -> 14059 | C14: =B14 -> 14059 | D14: 14059 | E14: 14059 | F14: 14059 | G14: 14059 | H14: 14059 | I14: 14059 | J14: 14059 | K14: 14059 | L14: 14059 | M14: 14059 | N14: 14059 | O14: 14059 | P14: 14059 | Q14: 14059 | R14: 14059 | S14: 14059 | T14: 14059 | U14: 14059 | V14: 14059 | W14: 14059 | X14: 14059 | Y14: 14059 | Z14: 14059 | AA14: 14059 | AB14: 14059 | AC14: 14059 | AD14: 14059 | AE14: 14059 | AF14: 14059 | AG14: 14059 | AH14: 14059 | AI14: 14059 | AJ14: 14059 | AK14: 14059 | AL14: 14059 | AM14: 14059 | AN14: 14059 | AO14: 14059 | AP14: 14059 | AQ14: 14059 | AR14: 14059 | AS14: 14059 | AT14: 14059 | AU14: 14059 | AV14: 14059 | AW14: 14059 | AX14: 14059 | AY14: 14059 | AZ14: 14059 | BA14: 14059 | BB14: 14059 | BC14: 14059 | BD14: 14059 | BE14: 14059 | BF14: 14059 | BG14: 14059 | BH14: 14059 | BI14: 14059 | BJ14: 14059 | BK14: 14059 | BL14: 14059 | BM14: 14059 | BN14: 14059 | BO14: =BN14 -> 14059 | BP14: 14059 | BQ14: 14059 | BR14: 14059 | BS14: 14059 | BT14: 14059 | BU14: 14059 | BV14: 14059 | BW14: 14059 | BX14: 14059 | BY14: 14059 | BZ14: 14059 | CA14: 14059 | CB14: 14059 | CC14: 14059 | CD14: 14059 | CE14: 14059 | CF14: 14059 | CG14: 14059 | CH14: 14059 | CI14: 14059 | CJ14: 14059 | CK14: 14059 | CL14: 14059
A15: 11 | B15: =smorgasbord!$F$25/5 -> 14059 | C15: =B15 -> 14059 | D15: 14059 | E15: 14059 | F15: 14059 | G15: 14059 | H15: 14059 | I15: 14059 | J15: 14059 | K15: 14059 | L15: 14059 | M15: 14059 | N15: 14059 | O15: 14059 | P15: 14059 | Q15: 14059 | R15: 14059 | S15: 14059 | T15: 14059 | U15: 14059 | V15: 14059 | W15: 14059 | X15: 14059 | Y15: 14059 | Z15: 14059 | AA15: 14059 | AB15: 14059 | AC15: 14059 | AD15: 14059 | AE15: 14059 | AF15: 14059 | AG15: 14059 | AH15: 14059 | AI15: 14059 | AJ15: 14059 | AK15: 14059 | AL15: 14059 | AM15: 14059 | AN15: 14059 | AO15: 14059 | AP15: 14059 | AQ15: 14059 | AR15: 14059 | AS15: 14059 | AT15: 14059 | AU15: 14059 | AV15: 14059 | AW15: 14059 | AX15: 14059 | AY15: 14059 | AZ15: 14059 | BA15: 14059 | BB15: 14059 | BC15: 14059 | BD15: 14059 | BE15: 14059 | BF15: 14059 | BG15: 14059 | BH15: 14059 | BI15: 14059 | BJ15: 14059 | BK15: 14059 | BL15: 14059 | BM15: 14059 | BN15: 14059 | BO15: =BN15 -> 14059 | BP15: 14059 | BQ15: 14059 | BR15: 14059 | BS15: 14059 | BT15: 14059 | BU15: 14059 | BV15: 14059 | BW15: 14059 | BX15: 14059 | BY15: 14059 | BZ15: 14059 | CA15: 14059 | CB15: 14059 | CC15: 14059 | CD15: 14059 | CE15: 14059 | CF15: 14059 | CG15: 14059 | CH15: 14059 | CI15: 14059 | CJ15: 14059 | CK15: 14059 | CL15: 14059
A16: 12 | B16: =smorgasbord!$F$25/5 -> 14059 | C16: =B16 -> 14059 | D16: 14059 | E16: 14059 | F16: 14059 | G16: 14059 | H16: 14059 | I16: 14059 | J16: 14059 | K16: 14059 | L16: 14059 | M16: 14059 | N16: 14059 | O16: 14059 | P16: 14059 | Q16: 14059 | R16: 14059 | S16: 14059 | T16: 14059 | U16: 14059 | V16: 14059 | W16: 14059 | X16: 14059 | Y16: 14059 | Z16: 14059 | AA16: 14059 | AB16: 14059 | AC16: 14059 | AD16: 14059 | AE16: 14059 | AF16: 14059 | AG16: 14059 | AH16: 14059 | AI16: 14059 | AJ16: 14059 | AK16: 14059 | AL16: 14059 | AM16: 14059 | AN16: 14059 | AO16: 14059 | AP16: 14059 | AQ16: 14059 | AR16: 14059 | AS16: 14059 | AT16: 14059 | AU16: 14059 | AV16: 14059 | AW16: 14059 | AX16: 14059 | AY16: 14059 | AZ16: 14059 | BA16: 14059 | BB16: 14059 | BC16: 14059 | BD16: 14059 | BE16: 14059 | BF16: 14059 | BG16: 14059 | BH16: 14059 | BI16: 14059 | BJ16: 14059 | BK16: 14059 | BL16: 14059 | BM16: 14059 | BN16: 14059 | BO16: =BN16 -> 14059 | BP16: 14059 | BQ16: 14059 | BR16: 14059 | BS16: 14059 | BT16: 14059 | BU16: 14059 | BV16: 14059 | BW16: 14059 | BX16: 14059 | BY16: 14059 | BZ16: 14059 | CA16: 14059 | CB16: 14059 | CC16: 14059 | CD16: 14059 | CE16: 14059 | CF16: 14059 | CG16: 14059 | CH16: 14059 | CI16: 14059 | CJ16: 14059 | CK16: 14059 | CL16: 14059
A17: 13 | B17: =smorgasbord!$F$25/5 -> 14059 | C17: =B17 -> 14059 | D17: 14059 | E17: 14059 | F17: 14059 | G17: 14059 | H17: 14059 | I17: 14059 | J17: 14059 | K17: 14059 | L17: 14059 | M17: 14059 | N17: 14059 | O17: 14059 | P17: 14059 | Q17: 14059 | R17: 14059 | S17: 14059 | T17: 14059 | U17: 14059 | V17: 14059 | W17: 14059 | X17: 14059 | Y17: 14059 | Z17: 14059 | AA17: 14059 | AB17: 14059 | AC17: 14059 | AD17: 14059 | AE17: 14059 | AF17: 14059 | AG17: 14059 | AH17: 14059 | AI17: 14059 | AJ17: 14059 | AK17: 14059 | AL17: 14059 | AM17: 14059 | AN17: 14059 | AO17: 14059 | AP17: 14059 | AQ17: 14059 | AR17: 14059 | AS17: 14059 | AT17: 14059 | AU17: 14059 | AV17: 14059 | AW17: 14059 | AX17: 14059 | AY17: 14059 | AZ17: 14059 | BA17: 14059 | BB17: 14059 | BC17: 14059 | BD17: 14059 | BE17: 14059 | BF17: 14059 | BG17: 14059 | BH17: 14059 | BI17: 14059 | BJ17: 14059 | BK17: 14059 | BL17: 14059 | BM17: 14059 | BN17: 14059 | BO17: =BN17 -> 14059 | BP17: 14059 | BQ17: 14059 | BR17: 14059 | BS17: 14059 | BT17: 14059 | BU17: 14059 | BV17: 14059 | BW17: 14059 | BX17: 14059 | BY17: 14059 | BZ17: 14059 | CA17: 14059 | CB17: 14059 | CC17: 14059 | CD17: 14059 | CE17: 14059 | CF17: 14059 | CG17: 14059 | CH17: 14059 | CI17: 14059 | CJ17: 14059 | CK17: 14059 | CL17: 14059
A18: 14 | B18: =smorgasbord!$F$25/5 -> 14059 | C18: =B18 -> 14059 | D18: 14059 | E18: 14059 | F18: 14059 | G18: 14059 | H18: 14059 | I18: 14059 | J18: 14059 | K18: 14059 | L18: 14059 | M18: 14059 | N18: 14059 | O18: 14059 | P18: 14059 | Q18: 14059 | R18: 14059 | S18: 14059 | T18: 14059 | U18: 14059 | V18: 14059 | W18: 14059 | X18: 14059 | Y18: 14059 | Z18: 14059 | AA18: 14059 | AB18: 14059 | AC18: 14059 | AD18: 14059 | AE18: 14059 | AF18: 14059 | AG18: 14059 | AH18: 14059 | AI18: 14059 | AJ18: 14059 | AK18: 14059 | AL18: 14059 | AM18: 14059 | AN18: 14059 | AO18: 14059 | AP18: 14059 | AQ18: 14059 | AR18: 14059 | AS18: 14059 | AT18: 14059 | AU18: 14059 | AV18: 14059 | AW18: 14059 | AX18: 14059 | AY18: 14059 | AZ18: 14059 | BA18: 14059 | BB18: 14059 | BC18: 14059 | BD18: 14059 | BE18: 14059 | BF18: 14059 | BG18: 14059 | BH18: 14059 | BI18: 14059 | BJ18: 14059 | BK18: 14059 | BL18: 14059 | BM18: 14059 | BN18: 14059 | BO18: =BN18 -> 14059 | BP18: 14059 | BQ18: 14059 | BR18: 14059 | BS18: 14059 | BT18: 14059 | BU18: 14059 | BV18: 14059 | BW18: 14059 | BX18: 14059 | BY18: 14059 | BZ18: 14059 | CA18: 14059 | CB18: 14059 | CC18: 14059 | CD18: 14059 | CE18: 14059 | CF18: 14059 | CG18: 14059 | CH18: 14059 | CI18: 14059 | CJ18: 14059 | CK18: 14059 | CL18: 14059
A19: 15 | B19: =smorgasbord!$F$26/5 -> 17794 | C19: =B19 -> 17794 | D19: 17794 | E19: 17794 | F19: 17794 | G19: 17794 | H19: 17794 | I19: 17794 | J19: 17794 | K19: 17794 | L19: 17794 | M19: 17794 | N19: 17794 | O19: 17794 | P19: 17794 | Q19: 17794 | R19: 17794 | S19: 17794 | T19: 17794 | U19: 17794 | V19: 17794 | W19: 17794 | X19: 17794 | Y19: 17794 | Z19: 17794 | AA19: 17794 | AB19: 17794 | AC19: 17794 | AD19: 17794 | AE19: 17794 | AF19: 17794 | AG19: 17794 | AH19: 17794 | AI19: 17794 | AJ19: 17794 | AK19: 17794 | AL19: 17794 | AM19: 17794 | AN19: 17794 | AO19: 17794 | AP19: 17794 | AQ19: 17794 | AR19: 17794 | AS19: 17794 | AT19: 17794 | AU19: 17794 | AV19: 17794 | AW19: 17794 | AX19: 17794 | AY19: 17794 | AZ19: 17794 | BA19: 17794 | BB19: 17794 | BC19: 17794 | BD19: 17794 | BE19: 17794 | BF19: 17794 | BG19: 17794 | BH19: 17794 | BI19: 17794 | BJ19: 17794 | BK19: 17794 | BL19: 17794 | BM19: 17794 | BN19: 17794 | BO19: =BN19 -> 17794 | BP19: 17794 | BQ19: 17794 | BR19: 17794 | BS19: 17794 | BT19: 17794 | BU19: 17794 | BV19: 17794 | BW19: 17794 | BX19: 17794 | BY19: 17794 | BZ19: 17794 | CA19: 17794 | CB19: 17794 | CC19: 17794 | CD19: 17794 | CE19: 17794 | CF19: 17794 | CG19: 17794 | CH19: 17794 | CI19: 17794 | CJ19: 17794 | CK19: 17794 | CL19: 17794
A20: 16 | B20: =smorgasbord!$F$26/5 -> 17794 | C20: =B20 -> 17794 | D20: 17794 | E20: 17794 | F20: 17794 | G20: 17794 | H20: 17794 | I20: 17794 | J20: 17794 | K20: 17794 | L20: 17794 | M20: 17794 | N20: 17794 | O20: 17794 | P20: 17794 | Q20: 17794 | R20: 17794 | S20: 17794 | T20: 17794 | U20: 17794 | V20: 17794 | W20: 17794 | X20: 17794 | Y20: 17794 | Z20: 17794 | AA20: 17794 | AB20: 17794 | AC20: 17794 | AD20: 17794 | AE20: 17794 | AF20: 17794 | AG20: 17794 | AH20: 17794 | AI20: 17794 | AJ20: 17794 | AK20: 17794 | AL20: 17794 | AM20: 17794 | AN20: 17794 | AO20: 17794 | AP20: 17794 | AQ20: 17794 | AR20: 17794 | AS20: 17794 | AT20: 17794 | AU20: 17794 | AV20: 17794 | AW20: 17794 | AX20: 17794 | AY20: 17794 | AZ20: 17794 | BA20: 17794 | BB20: 17794 | BC20: 17794 | BD20: 17794 | BE20: 17794 | BF20: 17794 | BG20: 17794 | BH20: 17794 | BI20: 17794 | BJ20: 17794 | BK20: 17794 | BL20: 17794 | BM20: 17794 | BN20: 17794 | BO20: =BN20 -> 17794 | BP20: 17794 | BQ20: 17794 | BR20: 17794 | BS20: 17794 | BT20: 17794 | BU20: 17794 | BV20: 17794 | BW20: 17794 | BX20: 17794 | BY20: 17794 | BZ20: 17794 | CA20: 17794 | CB20: 17794 | CC20: 17794 | CD20: 17794 | CE20: 17794 | CF20: 17794 | CG20: 17794 | CH20: 17794 | CI20: 17794 | CJ20: 17794 | CK20: 17794 | CL20: 17794
A21: 17 | B21: =smorgasbord!$F$26/5 -> 17794 | C21: =B21 -> 17794 | D21: 17794 | E21: 17794 | F21: 17794 | G21: 17794 | H21: 17794 | I21: 17794 | J21: 17794 | K21: 17794 | L21: 17794 | M21: 17794 | N21: 17794 | O21: 17794 | P21: 17794 | Q21: 17794 | R21: 17794 | S21: 17794 | T21: 17794 | U21: 17794 | V21: 17794 | W21: 17794 | X21: 17794 | Y21: 17794 | Z21: 17794 | AA21: 17794 | AB21: 17794 | AC21: 17794 | AD21: 17794 | AE21: 17794 | AF21: 17794 | AG21: 17794 | AH21: 17794 | AI21: 17794 | AJ21: 17794 | AK21: 17794 | AL21: 17794 | AM21: 17794 | AN21: 17794 | AO21: 17794 | AP21: 17794 | AQ21: 17794 | AR21: 17794 | AS21: 17794 | AT21: 17794 | AU21: 17794 | AV21: 17794 | AW21: 17794 | AX21: 17794 | AY21: 17794 | AZ21: 17794 | BA21: 17794 | BB21: 17794 | BC21: 17794 | BD21: 17794 | BE21: 17794 | BF21: 17794 | BG21: 17794 | BH21: 17794 | BI21: 17794 | BJ21: 17794 | BK21: 17794 | BL21: 17794 | BM21: 17794 | BN21: 17794 | BO21: =BN21 -> 17794 | BP21: 17794 | BQ21: 17794 | BR21: 17794 | BS21: 17794 | BT21: 17794 | BU21: 17794 | BV21: 17794 | BW21: 17794 | BX21: 17794 | BY21: 17794 | BZ21: 17794 | CA21: 17794 | CB21: 17794 | CC21: 17794 | CD21: 17794 | CE21: 17794 | CF21: 17794 | CG21: 17794 | CH21: 17794 | CI21: 17794 | CJ21: 17794 | CK21: 17794 | CL21: 17794
A22: 18 | B22: =smorgasbord!$F$26/5 -> 17794 | C22: =B22 -> 17794 | D22: 17794 | E22: 17794 | F22: 17794 | G22: 17794 | H22: 17794 | I22: 17794 | J22: 17794 | K22: 17794 | L22: 17794 | M22: 17794 | N22: 17794 | O22: 17794 | P22: 17794 | Q22: 17794 | R22: 17794 | S22: 17794 | T22: 17794 | U22: 17794 | V22: 17794 | W22: 17794 | X22: 17794 | Y22: 17794 | Z22: 17794 | AA22: 17794 | AB22: 17794 | AC22: 17794 | AD22: 17794 | AE22: 17794 | AF22: 17794 | AG22: 17794 | AH22: 17794 | AI22: 17794 | AJ22: 17794 | AK22: 17794 | AL22: 17794 | AM22: 17794 | AN22: 17794 | AO22: 17794 | AP22: 17794 | AQ22: 17794 | AR22: 17794 | AS22: 17794 | AT22: 17794 | AU22: 17794 | AV22: 17794 | AW22: 17794 | AX22: 17794 | AY22: 17794 | AZ22: 17794 | BA22: 17794 | BB22: 17794 | BC22: 17794 | BD22: 17794 | BE22: 17794 | BF22: 17794 | BG22: 17794 | BH22: 17794 | BI22: 17794 | BJ22: 17794 | BK22: 17794 | BL22: 17794 | BM22: 17794 | BN22: 17794 | BO22: =BN22 -> 17794 | BP22: 17794 | BQ22: 17794 | BR22: 17794 | BS22: 17794 | BT22: 17794 | BU22: 17794 | BV22: 17794 | BW22: 17794 | BX22: 17794 | BY22: 17794 | BZ22: 17794 | CA22: 17794 | CB22: 17794 | CC22: 17794 | CD22: 17794 | CE22: 17794 | CF22: 17794 | CG22: 17794 | CH22: 17794 | CI22: 17794 | CJ22: 17794 | CK22: 17794 | CL22: 17794
A23: 19 | B23: =smorgasbord!$F$26/5 -> 17794 | C23: =B23 -> 17794 | D23: 17794 | E23: 17794 | F23: 17794 | G23: 17794 | H23: 17794 | I23: 17794 | J23: 17794 | K23: 17794 | L23: 17794 | M23: 17794 | N23: 17794 | O23: 17794 | P23: 17794 | Q23: 17794 | R23: 17794 | S23: 17794 | T23: 17794 | U23: 17794 | V23: 17794 | W23: 17794 | X23: 17794 | Y23: 17794 | Z23: 17794 | AA23: 17794 | AB23: 17794 | AC23: 17794 | AD23: 17794 | AE23: 17794 | AF23: 17794 | AG23: 17794 | AH23: 17794 | AI23: 17794 | AJ23: 17794 | AK23: 17794 | AL23: 17794 | AM23: 17794 | AN23: 17794 | AO23: 17794 | AP23: 17794 | AQ23: 17794 | AR23: 17794 | AS23: 17794 | AT23: 17794 | AU23: 17794 | AV23: 17794 | AW23: 17794 | AX23: 17794 | AY23: 17794 | AZ23: 17794 | BA23: 17794 | BB23: 17794 | BC23: 17794 | BD23: 17794 | BE23: 17794 | BF23: 17794 | BG23: 17794 | BH23: 17794 | BI23: 17794 | BJ23: 17794 | BK23: 17794 | BL23: 17794 | BM23: 17794 | BN23: 17794 | BO23: =BN23 -> 17794 | BP23: 17794 | BQ23: 17794 | BR23: 17794 | BS23: 17794 | BT23: 17794 | BU23: 17794 | BV23: 17794 | BW23: 17794 | BX23: 17794 | BY23: 17794 | BZ23: 17794 | CA23: 17794 | CB23: 17794 | CC23: 17794 | CD23: 17794 | CE23: 17794 | CF23: 17794 | CG23: 17794 | CH23: 17794 | CI23: 17794 | CJ23: 17794 | CK23: 17794 | CL23: 17794
A24: 20 | B24: =smorgasbord!$F$27/5 -> 22028.8 | C24: =B24 -> 22028.8 | D24: 22028.8 | E24: 22028.8 | F24: 22028.8 | G24: 22028.8 | H24: 22028.8 | I24: 22028.8 | J24: 22028.8 | K24: 22028.8 | L24: 22028.8 | M24: 22028.8 | N24: 22028.8 | O24: 22028.8 | P24: 22028.8 | Q24: 22028.8 | R24: 22028.8 | S24: 22028.8 | T24: 22028.8 | U24: 22028.8 | V24: 22028.8 | W24: 22028.8 | X24: 22028.8 | Y24: 22028.8 | Z24: 22028.8 | AA24: 22028.8 | AB24: 22028.8 | AC24: 22028.8 | AD24: 22028.8 | AE24: 22028.8 | AF24: 22028.8 | AG24: 22028.8 | AH24: 22028.8 | AI24: 22028.8 | AJ24: 22028.8 | AK24: 22028.8 | AL24: 22028.8 | AM24: 22028.8 | AN24: 22028.8 | AO24: 22028.8 | AP24: 22028.8 | AQ24: 22028.8 | AR24: 22028.8 | AS24: 22028.8 | AT24: 22028.8 | AU24: 22028.8 | AV24: 22028.8 | AW24: 22028.8 | AX24: 22028.8 | AY24: 22028.8 | AZ24: 22028.8 | BA24: 22028.8 | BB24: 22028.8 | BC24: 22028.8 | BD24: 22028.8 | BE24: 22028.8 | BF24: 22028.8 | BG24: 22028.8 | BH24: 22028.8 | BI24: 22028.8 | BJ24: 22028.8 | BK24: 22028.8 | BL24: 22028.8 | BM24: 22028.8 | BN24: 22028.8 | BO24: =BN24 -> 22028.8 | BP24: 22028.8 | BQ24: 22028.8 | BR24: 22028.8 | BS24: 22028.8 | BT24: 22028.8 | BU24: 22028.8 | BV24: 22028.8 | BW24: 22028.8 | BX24: 22028.8 | BY24: 22028.8 | BZ24: 22028.8 | CA24: 22028.8 | CB24: 22028.8 | CC24: 22028.8 | CD24: 22028.8 | CE24: 22028.8 | CF24: 22028.8 | CG24: 22028.8 | CH24: 22028.8 | CI24: 22028.8 | CJ24: 22028.8 | CK24: 22028.8 | CL24: 22028.8
A25: 21 | B25: =smorgasbord!$F$27/5 -> 22028.8 | C25: =B25 -> 22028.8 | D25: 22028.8 | E25: 22028.8 | F25: 22028.8 | G25: 22028.8 | H25: 22028.8 | I25: 22028.8 | J25: 22028.8 | K25: 22028.8 | L25: 22028.8 | M25: 22028.8 | N25: 22028.8 | O25: 22028.8 | P25: 22028.8 | Q25: 22028.8 | R25: 22028.8 | S25: 22028.8 | T25: 22028.8 | U25: 22028.8 | V25: 22028.8 | W25: 22028.8 | X25: 22028.8 | Y25: 22028.8 | Z25: 22028.8 | AA25: 22028.8 | AB25: 22028.8 | AC25: 22028.8 | AD25: 22028.8 | AE25: 22028.8 | AF25: 22028.8 | AG25: 22028.8 | AH25: 22028.8 | AI25: 22028.8 | AJ25: 22028.8 | AK25: 22028.8 | AL25: 22028.8 | AM25: 22028.8 | AN25: 22028.8 | AO25: 22028.8 | AP25: 22028.8 | AQ25: 22028.8 | AR25: 22028.8 | AS25: 22028.8 | AT25: 22028.8 | AU25: 22028.8 | AV25: 22028.8 | AW25: 22028.8 | AX25: 22028.8 | AY25: 22028.8 | AZ25: 22028.8 | BA25: 22028.8 | BB25: 22028.8 | BC25: 22028.8 | BD25: 22028.8 | BE25: 22028.8 | BF25: 22028.8 | BG25: 22028.8 | BH25: 22028.8 | BI25: 22028.8 | BJ25: 22028.8 | BK25: 22028.8 | BL25: 22028.8 | BM25: 22028.8 | BN25: 22028.8 | BO25: =BN25 -> 22028.8 | BP25: 22028.8 | BQ25: 22028.8 | BR25: 22028.8 | BS25: 22028.8 | BT25: 22028.8 | BU25: 22028.8 | BV25: 22028.8 | BW25: 22028.8 | BX25: 22028.8 | BY25: 22028.8 | BZ25: 22028.8 | CA25: 22028.8 | CB25: 22028.8 | CC25: 22028.8 | CD25: 22028.8 | CE25: 22028.8 | CF25: 22028.8 | CG25: 22028.8 | CH25: 22028.8 | CI25: 22028.8 | CJ25: 22028.8 | CK25: 22028.8 | CL25: 22028.8
A26: 22 | B26: =smorgasbord!$F$27/5 -> 22028.8 | C26: =B26 -> 22028.8 | D26: 22028.8 | E26: 22028.8 | F26: 22028.8 | G26: 22028.8 | H26: 22028.8 | I26: 22028.8 | J26: 22028.8 | K26: 22028.8 | L26: 22028.8 | M26: 22028.8 | N26: 22028.8 | O26: 22028.8 | P26: 22028.8 | Q26: 22028.8 | R26: 22028.8 | S26: 22028.8 | T26: 22028.8 | U26: 22028.8 | V26: 22028.8 | W26: 22028.8 | X26: 22028.8 | Y26: 22028.8 | Z26: 22028.8 | AA26: 22028.8 | AB26: 22028.8 | AC26: 22028.8 | AD26: 22028.8 | AE26: 22028.8 | AF26: 22028.8 | AG26: 22028.8 | AH26: 22028.8 | AI26: 22028.8 | AJ26: 22028.8 | AK26: 22028.8 | AL26: 22028.8 | AM26: 22028.8 | AN26: 22028.8 | AO26: 22028.8 | AP26: 22028.8 | AQ26: 22028.8 | AR26: 22028.8 | AS26: 22028.8 | AT26: 22028.8 | AU26: 22028.8 | AV26: 22028.8 | AW26: 22028.8 | AX26: 22028.8 | AY26: 22028.8 | AZ26: 22028.8 | BA26: 22028.8 | BB26: 22028.8 | BC26: 22028.8 | BD26: 22028.8 | BE26: 22028.8 | BF26: 22028.8 | BG26: 22028.8 | BH26: 22028.8 | BI26: 22028.8 | BJ26: 22028.8 | BK26: 22028.8 | BL26: 22028.8 | BM26: 22028.8 | BN26: 22028.8 | BO26: =BN26 -> 22028.8 | BP26: 22028.8 | BQ26: 22028.8 | BR26: 22028.8 | BS26: 22028.8 | BT26: 22028.8 | BU26: 22028.8 | BV26: 22028.8 | BW26: 22028.8 | BX26: 22028.8 | BY26: 22028.8 | BZ26: 22028.8 | CA26: 22028.8 | CB26: 22028.8 | CC26: 22028.8 | CD26: 22028.8 | CE26: 22028.8 | CF26: 22028.8 | CG26: 22028.8 | CH26: 22028.8 | CI26: 22028.8 | CJ26: 22028.8 | CK26: 22028.8 | CL26: 22028.8
A27: 23 | B27: =smorgasbord!$F$27/5 -> 22028.8 | C27: =B27 -> 22028.8 | D27: 22028.8 | E27: 22028.8 | F27: 22028.8 | G27: 22028.8 | H27: 22028.8 | I27: 22028.8 | J27: 22028.8 | K27: 22028.8 | L27: 22028.8 | M27: 22028.8 | N27: 22028.8 | O27: 22028.8 | P27: 22028.8 | Q27: 22028.8 | R27: 22028.8 | S27: 22028.8 | T27: 22028.8 | U27: 22028.8 | V27: 22028.8 | W27: 22028.8 | X27: 22028.8 | Y27: 22028.8 | Z27: 22028.8 | AA27: 22028.8 | AB27: 22028.8 | AC27: 22028.8 | AD27: 22028.8 | AE27: 22028.8 | AF27: 22028.8 | AG27: 22028.8 | AH27: 22028.8 | AI27: 22028.8 | AJ27: 22028.8 | AK27: 22028.8 | AL27: 22028.8 | AM27: 22028.8 | AN27: 22028.8 | AO27: 22028.8 | AP27: 22028.8 | AQ27: 22028.8 | AR27: 22028.8 | AS27: 22028.8 | AT27: 22028.8 | AU27: 22028.8 | AV27: 22028.8 | AW27: 22028.8 | AX27: 22028.8 | AY27: 22028.8 | AZ27: 22028.8 | BA27: 22028.8 | BB27: 22028.8 | BC27: 22028.8 | BD27: 22028.8 | BE27: 22028.8 | BF27: 22028.8 | BG27: 22028.8 | BH27: 22028.8 | BI27: 22028.8 | BJ27: 22028.8 | BK27: 22028.8 | BL27: 22028.8 | BM27: 22028.8 | BN27: 22028.8 | BO27: =BN27 -> 22028.8 | BP27: 22028.8 | BQ27: 22028.8 | BR27: 22028.8 | BS27: 22028.8 | BT27: 22028.8 | BU27: 22028.8 | BV27: 22028.8 | BW27: 22028.8 | BX27: 22028.8 | BY27: 22028.8 | BZ27: 22028.8 | CA27: 22028.8 | CB27: 22028.8 | CC27: 22028.8 | CD27: 22028.8 | CE27: 22028.8 | CF27: 22028.8 | CG27: 22028.8 | CH27: 22028.8 | CI27: 22028.8 | CJ27: 22028.8 | CK27: 22028.8 | CL27: 22028.8
A28: 24 | B28: =smorgasbord!$F$27/5 -> 22028.8 | C28: =B28 -> 22028.8 | D28: 22028.8 | E28: 22028.8 | F28: 22028.8 | G28: 22028.8 | H28: 22028.8 | I28: 22028.8 | J28: 22028.8 | K28: 22028.8 | L28: 22028.8 | M28: 22028.8 | N28: 22028.8 | O28: 22028.8 | P28: 22028.8 | Q28: 22028.8 | R28: 22028.8 | S28: 22028.8 | T28: 22028.8 | U28: 22028.8 | V28: 22028.8 | W28: 22028.8 | X28: 22028.8 | Y28: 22028.8 | Z28: 22028.8 | AA28: 22028.8 | AB28: 22028.8 | AC28: 22028.8 | AD28: 22028.8 | AE28: 22028.8 | AF28: 22028.8 | AG28: 22028.8 | AH28: 22028.8 | AI28: 22028.8 | AJ28: 22028.8 | AK28: 22028.8 | AL28: 22028.8 | AM28: 22028.8 | AN28: 22028.8 | AO28: 22028.8 | AP28: 22028.8 | AQ28: 22028.8 | AR28: 22028.8 | AS28: 22028.8 | AT28: 22028.8 | AU28: 22028.8 | AV28: 22028.8 | AW28: 22028.8 | AX28: 22028.8 | AY28: 22028.8 | AZ28: 22028.8 | BA28: 22028.8 | BB28: 22028.8 | BC28: 22028.8 | BD28: 22028.8 | BE28: 22028.8 | BF28: 22028.8 | BG28: 22028.8 | BH28: 22028.8 | BI28: 22028.8 | BJ28: 22028.8 | BK28: 22028.8 | BL28: 22028.8 | BM28: 22028.8 | BN28: 22028.8 | BO28: =BN28 -> 22028.8 | BP28: 22028.8 | BQ28: 22028.8 | BR28: 22028.8 | BS28: 22028.8 | BT28: 22028.8 | BU28: 22028.8 | BV28: 22028.8 | BW28: 22028.8 | BX28: 22028.8 | BY28: 22028.8 | BZ28: 22028.8 | CA28: 22028.8 | CB28: 22028.8 | CC28: 22028.8 | CD28: 22028.8 | CE28: 22028.8 | CF28: 22028.8 | CG28: 22028.8 | CH28: 22028.8 | CI28: 22028.8 | CJ28: 22028.8 | CK28: 22028.8 | CL28: 22028.8
A29: 25 | B29: =smorgasbord!$F$28/5 -> 24425.6 | C29: =B29 -> 24425.6 | D29: 24425.6 | E29: 24425.6 | F29: 24425.6 | G29: 24425.6 | H29: 24425.6 | I29: 24425.6 | J29: 24425.6 | K29: 24425.6 | L29: 24425.6 | M29: 24425.6 | N29: 24425.6 | O29: 24425.6 | P29: 24425.6 | Q29: 24425.6 | R29: 24425.6 | S29: 24425.6 | T29: 24425.6 | U29: 24425.6 | V29: 24425.6 | W29: 24425.6 | X29: 24425.6 | Y29: 24425.6 | Z29: 24425.6 | AA29: 24425.6 | AB29: 24425.6 | AC29: 24425.6 | AD29: 24425.6 | AE29: 24425.6 | AF29: 24425.6 | AG29: 24425.6 | AH29: 24425.6 | AI29: 24425.6 | AJ29: 24425.6 | AK29: 24425.6 | AL29: 24425.6 | AM29: 24425.6 | AN29: 24425.6 | AO29: 24425.6 | AP29: 24425.6 | AQ29: 24425.6 | AR29: 24425.6 | AS29: 24425.6 | AT29: 24425.6 | AU29: 24425.6 | AV29: 24425.6 | AW29: 24425.6 | AX29: 24425.6 | AY29: 24425.6 | AZ29: 24425.6 | BA29: 24425.6 | BB29: 24425.6 | BC29: 24425.6 | BD29: 24425.6 | BE29: 24425.6 | BF29: 24425.6 | BG29: 24425.6 | BH29: 24425.6 | BI29: 24425.6 | BJ29: 24425.6 | BK29: 24425.6 | BL29: 24425.6 | BM29: 24425.6 | BN29: 24425.6 | BO29: =BN29 -> 24425.6 | BP29: 24425.6 | BQ29: 24425.6 | BR29: 24425.6 | BS29: 24425.6 | BT29: 24425.6 | BU29: 24425.6 | BV29: 24425.6 | BW29: 24425.6 | BX29: 24425.6 | BY29: 24425.6 | BZ29: 24425.6 | CA29: 24425.6 | CB29: 24425.6 | CC29: 24425.6 | CD29: 24425.6 | CE29: 24425.6 | CF29: 24425.6 | CG29: 24425.6 | CH29: 24425.6 | CI29: 24425.6 | CJ29: 24425.6 | CK29: 24425.6 | CL29: 24425.6
A30: 26 | B30: =smorgasbord!$F$28/5 -> 24425.6 | C30: =B30 -> 24425.6 | D30: 24425.6 | E30: 24425.6 | F30: 24425.6 | G30: 24425.6 | H30: 24425.6 | I30: 24425.6 | J30: 24425.6 | K30: 24425.6 | L30: 24425.6 | M30: 24425.6 | N30: 24425.6 | O30: 24425.6 | P30: 24425.6 | Q30: 24425.6 | R30: 24425.6 | S30: 24425.6 | T30: 24425.6 | U30: 24425.6 | V30: 24425.6 | W30: 24425.6 | X30: 24425.6 | Y30: 24425.6 | Z30: 24425.6 | AA30: 24425.6 | AB30: 24425.6 | AC30: 24425.6 | AD30: 24425.6 | AE30: 24425.6 | AF30: 24425.6 | AG30: 24425.6 | AH30: 24425.6 | AI30: 24425.6 | AJ30: 24425.6 | AK30: 24425.6 | AL30: 24425.6 | AM30: 24425.6 | AN30: 24425.6 | AO30: 24425.6 | AP30: 24425.6 | AQ30: 24425.6 | AR30: 24425.6 | AS30: 24425.6 | AT30: 24425.6 | AU30: 24425.6 | AV30: 24425.6 | AW30: 24425.6 | AX30: 24425.6 | AY30: 24425.6 | AZ30: 24425.6 | BA30: 24425.6 | BB30: 24425.6 | BC30: 24425.6 | BD30: 24425.6 | BE30: 24425.6 | BF30: 24425.6 | BG30: 24425.6 | BH30: 24425.6 | BI30: 24425.6 | BJ30: 24425.6 | BK30: 24425.6 | BL30: 24425.6 | BM30: 24425.6 | BN30: 24425.6 | BO30: =BN30 -> 24425.6 | BP30: 24425.6 | BQ30: 24425.6 | BR30: 24425.6 | BS30: 24425.6 | BT30: 24425.6 | BU30: 24425.6 | BV30: 24425.6 | BW30: 24425.6 | BX30: 24425.6 | BY30: 24425.6 | BZ30: 24425.6 | CA30: 24425.6 | CB30: 24425.6 | CC30: 24425.6 | CD30: 24425.6 | CE30: 24425.6 | CF30: 24425.6 | CG30: 24425.6 | CH30: 24425.6 | CI30: 24425.6 | CJ30: 24425.6 | CK30: 24425.6 | CL30: 24425.6
A31: 27 | B31: =smorgasbord!$F$28/5 -> 24425.6 | C31: =B31 -> 24425.6 | D31: 24425.6 | E31: 24425.6 | F31: 24425.6 | G31: 24425.6 | H31: 24425.6 | I31: 24425.6 | J31: 24425.6 | K31: 24425.6 | L31: 24425.6 | M31: 24425.6 | N31: 24425.6 | O31: 24425.6 | P31: 24425.6 | Q31: 24425.6 | R31: 24425.6 | S31: 24425.6 | T31: 24425.6 | U31: 24425.6 | V31: 24425.6 | W31: 24425.6 | X31: 24425.6 | Y31: 24425.6 | Z31: 24425.6 | AA31: 24425.6 | AB31: 24425.6 | AC31: 24425.6 | AD31: 24425.6 | AE31: 24425.6 | AF31: 24425.6 | AG31: 24425.6 | AH31: 24425.6 | AI31: 24425.6 | AJ31: 24425.6 | AK31: 24425.6 | AL31: 24425.6 | AM31: 24425.6 | AN31: 24425.6 | AO31: 24425.6 | AP31: 24425.6 | AQ31: 24425.6 | AR31: 24425.6 | AS31: 24425.6 | AT31: 24425.6 | AU31: 24425.6 | AV31: 24425.6 | AW31: 24425.6 | AX31: 24425.6 | AY31: 24425.6 | AZ31: 24425.6 | BA31: 24425.6 | BB31: 24425.6 | BC31: 24425.6 | BD31: 24425.6 | BE31: 24425.6 | BF31: 24425.6 | BG31: 24425.6 | BH31: 24425.6 | BI31: 24425.6 | BJ31: 24425.6 | BK31: 24425.6 | BL31: 24425.6 | BM31: 24425.6 | BN31: 24425.6 | BO31: =BN31 -> 24425.6 | BP31: 24425.6 | BQ31: 24425.6 | BR31: 24425.6 | BS31: 24425.6 | BT31: 24425.6 | BU31: 24425.6 | BV31: 24425.6 | BW31: 24425.6 | BX31: 24425.6 | BY31: 24425.6 | BZ31: 24425.6 | CA31: 24425.6 | CB31: 24425.6 | CC31: 24425.6 | CD31: 24425.6 | CE31: 24425.6 | CF31: 24425.6 | CG31: 24425.6 | CH31: 24425.6 | CI31: 24425.6 | CJ31: 24425.6 | CK31: 24425.6 | CL31: 24425.6
... 38 more rows

Sheet New Lives
BR1: =BR2/BQ2 -> 1.000639062 | BS1: =BS2/BR2 -> 1.000648046 | BT1: 1.000658016 | BU1: 1.000669027 | BV1: 1.00068102 | BW1: 1.000693757 | BX1: 1.000707479 | BY1: 1.000721871 | BZ1: 1.000736551 | CA1: 1.000751047 | CB1: 1.00076469 | CC1: 1.000777698 | CD1: 1.000789394 | CE1: 1.000799213 | CF1: 1.000806679 | CG1: 1.000811274 | CH1: 1.000813257 | CI1: 1.000812492 | CJ1: 1.000809065 | CK1: 1.000803202 | CL1: 1.000795229 | CM1: 1.000785694
C2: Year | BQ2: =SUM(BQ4:BQ124) -> 340940858.5 | BR2: 341158741 | BS2: 341379827.7 | BT2: 341604461.1 | BU2: 341833003.8 | BV2: 342065799 | BW2: 342303109.6 | BX2: 342545282 | BY2: 342792555.5 | BZ2: 343045039.7 | CA2: 343302682.5 | CB2: 343565202.5 | CC2: 343832392.4 | CD2: 344103811.8 | CE2: 344378824.2 | CF2: 344656627.2 | CG2: 344936238.2 | CH2: 345216759.9 | CI2: 345497245.6 | CJ2: =SUM(CJ4:CJ124) -> 345776775.3 | CK2: =SUM(CK4:CK124) -> 346054504 | CL2: 346329696.5 | CM2: 346601805.8
B3: Age | C3: 2012 | D3: 2013 | E3: 2014 | F3: 2015 | G3: 2016 | H3: 2017 | I3: 2018 | J3: 2019 | K3: 2020 | L3: 2021 | M3: 2022 | N3: 2023 | O3: 2024 | P3: 2025 | Q3: 2026 | R3: 2027 | S3: 2028 | T3: 2029 | U3: 2030 | V3: 2031 | W3: 2032 | X3: 2033 | Y3: 2034 | Z3: 2035 | AA3: 2036 | AB3: 2037 | AC3: 2038 | AD3: 2039 | AE3: 2040 | AF3: 2041 | AG3: 2042 | AH3: 2043 | AI3: 2044 | AJ3: 2045 | AK3: 2046 | AL3: 2047 | AM3: 2048 | AN3: 2049 | AO3: 2050 | AP3: 2051 | AQ3: 2052 | AR3: 2053 | AS3: 2054 | AT3: 2055 | AU3: 2056 | AV3: 2057 | AW3: 2058 | AX3: 2059 | AY3: 2060 | AZ3: 2061 | BA3: 2062 | BB3: 2063 | BC3: 2064 | BD3: 2065 | BE3: 2066 | BF3: 2067 | BG3: 2068 | BH3: 2069 | BI3: 2070 | BJ3: 2071 | BK3: 2072 | BL3: 2073 | BM3: 2074 | BN3: 2075 | BO3: 2076 | BP3: 2077 | BQ3: 2078 | BR3: 2079 | BS3: 2080 | BT3: 2081 | BU3: 2082 | BV3: 2083 | BW3: 2084 | BX3: 2085 | BY3: 2086 | BZ3: 2087 | CA3: 2088 | CB3: 2089 | CC3: 2090 | CD3: 2091 | CE3: 2092 | CF3: 2093 | CG3: 2094 | CH3: 2095 | CI3: 2096 | CJ3: 2097 | CK3: 2098 | CL3: 2099 | CM3: 2100
B4: 0 | C4: =MortalityFertility!J3 -> 4042958.225 | D4: =SUMPRODUCT(Fertility!B4:B124,'New Lives'!C$4:C$124) -> 4364275.185 | E4: =SUMPRODUCT(Fertility!C4:C124,'New Lives'!D$4:D$124) -> 4374279.018 | F4: =SUMPRODUCT(Fertility!D4:D124,'New Lives'!E$4:E$124) -> 4384268.318 | G4: =SUMPRODUCT(Fertility!E4:E124,'New Lives'!F$4:F$124) -> 4394246.623 | H4: =SUMPRODUCT(Fertility!F4:F124,'New Lives'!G$4:G$124) -> 4404216.612 | I4: =SUMPRODUCT(Fertility!G4:G124,'New Lives'!H$4:H$124) -> 4414180.091 | J4: =SUMPRODUCT(Fertility!H4:H124,'New Lives'!I$4:I$124) -> 4410806.475 | K4: =SUMPRODUCT(Fertility!I4:I124,'New Lives'!J$4:J$124) -> 4407436.562 | L4: =SUMPRODUCT(Fertility!J4:J124,'New Lives'!K$4:K$124) -> 4404069.811 | M4: =SUMPRODUCT(Fertility!K4:K124,'New Lives'!L$4:L$124) -> 4400703.448 | N4: =SUMPRODUCT(Fertility!L4:L124,'New Lives'!M$4:M$124) -> 4397326.847 | O4: =SUMPRODUCT(Fertility!M4:M124,'New Lives'!N$4:N$124) -> 4383644.997 | P4: =SUMPRODUCT(Fertility!N4:N124,'New Lives'!O$4:O$124) -> 4369969.401 | Q4: =SUMPRODUCT(Fertility!O4:O124,'New Lives'!P$4:P$124) -> 4356295.37 | R4: =SUMPRODUCT(Fertility!P4:P124,'New Lives'!Q$4:Q$124) -> 4342610.289 | S4: =SUMPRODUCT(Fertility!Q4:Q124,'New Lives'!R$4:R$124) -> 4328408.203 | T4: =SUMPRODUCT(Fertility!R4:R124,'New Lives'!S$4:S$124) -> 4317344.782 | U4: =SUMPRODUCT(Fertility!S4:S124,'New Lives'!T$4:T$124) -> 4306479.425 | V4: =SUMPRODUCT(Fertility!T4:T124,'New Lives'!U$4:U$124) -> 4295806.004 | W4: =SUMPRODUCT(Fertility!U4:U124,'New Lives'!V$4:V$124) -> 4285308.266 | X4: =SUMPRODUCT(Fertility!V4:V124,'New Lives'!W$4:W$124) -> 4274230.826 | Y4: =SUMPRODUCT(Fertility!W4:W124,'New Lives'!X$4:X$124) -> 4278967.513 | Z4: =SUMPRODUCT(Fertility!X4:X124,'New Lives'!Y$4:Y$124) -> 4283917.741 | AA4: =SUMPRODUCT(Fertility!Y4:Y124,'New Lives'!Z$4:Z$124) -> 4289081.064 | AB4: =SUMPRODUCT(Fertility!Z4:Z124,'New Lives'!AA$4:AA$124) -> 4294456.504 | AC4: =SUMPRODUCT(Fertility!AA4:AA124,'New Lives'!AB$4:AB$124) -> 4299898.873 | AD4: =SUMPRODUCT(Fertility!AB4:AB124,'New Lives'!AC$4:AC$124) -> 4314234.105 | AE4: =SUMPRODUCT(Fertility!AC4:AC124,'New Lives'!AD$4:AD$124) -> 4328227.428 | AF4: =SUMPRODUCT(Fertility!AD4:AD124,'New Lives'!AE$4:AE$124) -> 4341882.054 | AG4: =SUMPRODUCT(Fertility!AE4:AE124,'New Lives'!AF$4:AF$124) -> 4355204.405 | AH4: =SUMPRODUCT(Fertility!AF4:AF124,'New Lives'!AG$4:AG$124) -> 4368388.83 | AI4: =SUMPRODUCT(Fertility!AG4:AG124,'New Lives'!AH$4:AH$124) -> 4382042.386 | AJ4: =SUMPRODUCT(Fertility!AH4:AH124,'New Lives'!AI$4:AI$124) -> 4394950.063 | AK4: =SUMPRODUCT(Fertility!AI4:AI124,'New Lives'!AJ$4:AJ$124) -> 4407119.718 | AL4: =SUMPRODUCT(Fertility!AJ4:AJ124,'New Lives'!AK$4:AK$124) -> 4418567.356 | AM4: =SUMPRODUCT(Fertility!AK4:AK124,'New Lives'!AL$4:AL$124) -> 4429929.436 | AN4: =SUMPRODUCT(Fertility!AL4:AL124,'New Lives'!AM$4:AM$124) -> 4433330.496 | AO4: =SUMPRODUCT(Fertility!AM4:AM124,'New Lives'!AN$4:AN$124) -> 4436182.973 | AP4: =SUMPRODUCT(Fertility!AN4:AN124,'New Lives'!AO$4:AO$124) -> 4438499.671 | AQ4: =SUMPRODUCT(Fertility!AO4:AO124,'New Lives'!AP$4:AP$124) -> 4440298.787 | AR4: =SUMPRODUCT(Fertility!AP4:AP124,'New Lives'!AQ$4:AQ$124) -> 4442034.321 | AS4: =SUMPRODUCT(Fertility!AQ4:AQ124,'New Lives'!AR$4:AR$124) -> 4437641.725 | AT4: =SUMPRODUCT(Fertility!AR4:AR124,'New Lives'!AS$4:AS$124) -> 4433637.823 | AU4: =SUMPRODUCT(Fertility!AS4:AS124,'New Lives'!AT$4:AT$124) -> 4430023.396 | AV4: =SUMPRODUCT(Fertility!AT4:AT124,'New Lives'!AU$4:AU$124) -> 4426800.571 | AW4: =SUMPRODUCT(Fertility!AU4:AU124,'New Lives'!AV$4:AV$124) -> 4424077.459 | AX4: =SUMPRODUCT(Fertility!AV4:AV124,'New Lives'!AW$4:AW$124) -> 4420357.487 | AY4: =SUMPRODUCT(Fertility!AW4:AW124,'New Lives'!AX$4:AX$124) -> 4417834.174 | AZ4: =SUMPRODUCT(Fertility!AX4:AX124,'New Lives'!AY$4:AY$124) -> 4416480.433 | BA4: =SUMPRODUCT(Fertility!AY4:AY124,'New Lives'!AZ$4:AZ$124) -> 4416269.715 | BB4: =SUMPRODUCT(Fertility!AZ4:AZ124,'New Lives'!BA$4:BA$124) -> 4417184.509 | BC4: =SUMPRODUCT(Fertility!BA4:BA124,'New Lives'!BB$4:BB$124) -> 4419122.181 | BD4: =SUMPRODUCT(Fertility!BB4:BB124,'New Lives'!BC$4:BC$124) -> 4422128.867 | BE4: =SUMPRODUCT(Fertility!BC4:BC124,'New Lives'!BD$4:BD$124) -> 4426160.897 | BF4: =SUMPRODUCT(Fertility!BD4:BD124,'New Lives'!BE$4:BE$124) -> 4431175.405 | BG4: =SUMPRODUCT(Fertility!BE4:BE124,'New Lives'!BF$4:BF$124) -> 4437131.105 | BH4: =SUMPRODUCT(Fertility!BF4:BF124,'New Lives'!BG$4:BG$124) -> 4444045.926 | BI4: =SUMPRODUCT(Fertility!BG4:BG124,'New Lives'!BH$4:BH$124) -> 4451076.549 | BJ4: =SUMPRODUCT(Fertility!BH4:BH124,'New Lives'!BI$4:BI$124) -> 4458203.351 | BK4: =SUMPRODUCT(Fertility!BI4:BI124,'New Lives'!BJ$4:BJ$124) -> 4465407.301 | BL4: =SUMPRODUCT(Fertility!BJ4:BJ124,'New Lives'!BK$4:BK$124) -> 4472670.379 | BM4: =SUMPRODUCT(Fertility!BK4:BK124,'New Lives'!BL$4:BL$124) -> 4480012.235 | BN4: =SUMPRODUCT(Fertility!BL4:BL124,'New Lives'!BM$4:BM$124) -> 4486655.362 | BO4: =SUMPRODUCT(Fertility!BM4:BM124,'New Lives'!BN$4:BN$124) -> 4492643.178 | BP4: =SUMPRODUCT(Fertility!BN4:BN124,'New Lives'!BO$4:BO$124) -> 4498018.499 | BQ4: =SUMPRODUCT(Fertility!BO4:BO124,'New Lives'!BP$4:BP$124) -> 4502823.525 | BR4: =SUMPRODUCT(Fertility!BP4:BP124,'New Lives'!BQ$4:BQ$124) -> 4507102.194 | BS4: =SUMPRODUCT(Fertility!BQ4:BQ124,'New Lives'!BR$4:BR$124) -> 4510629.669 | BT4: =SUMPRODUCT(Fertility!BR4:BR124,'New Lives'!BS$4:BS$124) -> 4513495.448 | BU4: =SUMPRODUCT(Fertility!BS4:BS124,'New Lives'!BT$4:BT$124) -> 4515786.89 | BV4: =SUMPRODUCT(Fertility!BT4:BT124,'New Lives'!BU$4:BU$124) -> 4517588.955 | BW4: =SUMPRODUCT(Fertility!BU4:BU124,'New Lives'!BV$4:BV$124) -> 4518963.472 | BX4: =SUMPRODUCT(Fertility!BV4:BV124,'New Lives'!BW$4:BW$124) -> 4520153.528 | BY4: =SUMPRODUCT(Fertility!BW4:BW124,'New Lives'!BX$4:BX$124) -> 4521226.928 | BZ4: =SUMPRODUCT(Fertility!BX4:BX124,'New Lives'!BY$4:BY$124) -> 4522249.057 | CA4: =SUMPRODUCT(Fertility!BY4:BY124,'New Lives'!BZ$4:BZ$124) -> 4523282.618 | CB4: =SUMPRODUCT(Fertility!BZ4:BZ124,'New Lives'!CA$4:CA$124) -> 4524363.956 | CC4: =SUMPRODUCT(Fertility!CA4:CA124,'New Lives'!CB$4:CB$124) -> 4525831.383 | CD4: =SUMPRODUCT(Fertility!CB4:CB124,'New Lives'!CC$4:CC$124) -> 4527674.147 | CE4: =SUMPRODUCT(Fertility!CC4:CC124,'New Lives'!CD$4:CD$124) -> 4529881.48 | CF4: =SUMPRODUCT(Fertility!CD4:CD124,'New Lives'!CE$4:CE$124) -> 4532442.433 | CG4: =SUMPRODUCT(Fertility!CE4:CE124,'New Lives'!CF$4:CF$124) -> 4535332.58 | CH4: =SUMPRODUCT(Fertility!CF4:CF124,'New Lives'!CG$4:CG$124) -> 4538710.71 | CI4: =SUMPRODUCT(Fertility!CG4:CG124,'New Lives'!CH$4:CH$124) -> 4542497.42 | CJ4: =SUMPRODUCT(Fertility!CH4:CH124,'New Lives'!CI$4:CI$124) -> 4546617.37 | CK4: =SUMPRODUCT(Fertility!CI4:CI124,'New Lives'!CJ$4:CJ$124) -> 4550999.152 | CL4: =SUMPRODUCT(Fertility!CJ4:CJ124,'New Lives'!CK$4:CK$124) -> 4555570.986 | CM4: =SUMPRODUCT(Fertility!CK4:CK124,'New Lives'!CL$4:CL$124) -> 4560322.096
B5: 1 | C5: =MortalityFertility!J4 -> 4041082.292 | D5: =C4*(1-Mortality!B4) -> 4015718.794 | E5: =D4*(1-Mortality!C4) -> 4334870.881 | F5: =E4*(1-Mortality!D4) -> 4344807.313 | G5: =F4*(1-Mortality!E4) -> 4354729.31 | H5: =G4*(1-Mortality!F4) -> 4364640.386 | I5: =H4*(1-Mortality!G4) -> 4374543.202 | J5: =I4*(1-Mortality!H4) -> 4384439.552 | K5: =J4*(1-Mortality!I4) -> 4381088.666 | L5: =K4*(1-Mortality!J4) -> 4377741.458 | M5: =L4*(1-Mortality!K4) -> 4374397.39 | N5: =M4*(1-Mortality!L4) -> 4371053.709 | O5: =N4*(1-Mortality!M4) -> 4367699.857 | P5: =O4*(1-Mortality!N4) -> 4354110.189 | Q5: =P4*(1-Mortality!O4) -> 4340526.732 | R5: =Q4*(1-Mortality!P4) -> 4326944.83 | S5: =R4*(1-Mortality!Q4) -> 4313351.953 | T5: =S4*(1-Mortality!R4) -> 4299245.552 | U5: =T4*(1-Mortality!S4) -> 4288256.672 | V5: =U4*(1-Mortality!T4) -> 4277464.52 | W5: =V4*(1-Mortality!U4) -> 4266863.011 | X5: =W4*(1-Mortality!V4) -> 4256436.001 | Y5: =X4*(1-Mortality!W4) -> 4245433.196 | Z5: =Y4*(1-Mortality!X4) -> 4250137.97 | AA5: =Z4*(1-Mortality!Y4) -> 4255054.845 | AB5: =AA4*(1-Mortality!Z4) -> 4260183.381 | AC5: =AB4*(1-Mortality!AA4) -> 4265522.603 | AD5: =AC4*(1-Mortality!AB4) -> 4270928.304 | AE5: =AD4*(1-Mortality!AC4) -> 4285166.952 | AF5: =AE4*(1-Mortality!AD4) -> 4299065.996 | AG5: =AF4*(1-Mortality!AE4) -> 4312628.623 | AH5: =AG4*(1-Mortality!AF4) -> 4325861.216 | AI5: =AH4*(1-Mortality!AG4) -> 4338956.81 | AJ5: =AI4*(1-Mortality!AH4) -> 4352518.375 | AK5: =AJ4*(1-Mortality!AI4) -> 4365339.087 | AL5: =AK4*(1-Mortality!AJ4) -> 4377426.749 | AM5: =AL4*(1-Mortality!AK4) -> 4388797.258 | AN5: =AM4*(1-Mortality!AL4) -> 4400082.786 | AO5: =AN4*(1-Mortality!AM4) -> 4403460.932 | AP5: =AO4*(1-Mortality!AN4) -> 4406294.191 | AQ5: =AP4*(1-Mortality!AO4) -> 4408595.28 | AR5: =AQ4*(1-Mortality!AP4) -> 4410382.274 | AS5: =AR4*(1-Mortality!AQ4) -> 4412106.115 | AT5: =AS4*(1-Mortality!AR4) -> 4407743.114 | AU5: =AT4*(1-Mortality!AS4) -> 4403766.188 | AV5: =AU4*(1-Mortality!AT4) -> 4400176.113 | AW5: =AV4*(1-Mortality!AU4) -> 4396975.002 | AX5: =AW4*(1-Mortality!AV4) -> 4394270.237 | AY5: =AX4*(1-Mortality!AW4) -> 4390575.328 | AZ5: =AY4*(1-Mortality!AX4) -> 4388069.016 | BA5: =AZ4*(1-Mortality!AY4) -> 4386724.396 | BB5: =BA4*(1-Mortality!AZ4) -> 4386515.098 | BC5: =BB4*(1-Mortality!BA4) -> 4387423.728 | BD5: =BC4*(1-Mortality!BB4) -> 4389348.345 | BE5: =BD4*(1-Mortality!BC4) -> 4392334.774 | BF5: =BE4*(1-Mortality!BD4) -> 4396339.638 | BG5: =BF4*(1-Mortality!BE4) -> 4401320.36 | BH5: =BG4*(1-Mortality!BF4) -> 4407235.935 | BI5: =BH4*(1-Mortality!BG4) -> 4414104.167 | BJ5: =BI4*(1-Mortality!BH4) -> 4421087.421 | BK5: =BJ4*(1-Mortality!BI4) -> 4428166.206 | BL5: =BK4*(1-Mortality!BJ4) -> 4435321.619 | BM5: =BL4*(1-Mortality!BK4) -> 4442535.762 | BN5: =BM4*(1-Mortality!BL4) -> 4449828.153 | BO5: =BN4*(1-Mortality!BM4) -> 4456426.522 | BP5: =BO4*(1-Mortality!BN4) -> 4462373.994 | BQ5: =BP4*(1-Mortality!BO4) -> 4467713.099 | BR5: =BQ4*(1-Mortality!BP4) -> 4472485.751 | BS5: =BR4*(1-Mortality!BQ4) -> 4476735.593 | BT5: =BS4*(1-Mortality!BR4) -> 4480239.302 | BU5: =BT4*(1-Mortality!BS4) -> 4483085.772 | BV5: =BU4*(1-Mortality!BT4) -> 4485361.775 | BW5: =BV4*(1-Mortality!BU4) -> 4487151.699 | BX5: =BW4*(1-Mortality!BV4) -> 4488516.956 | BY5: =BX4*(1-Mortality!BW4) -> 4489698.994 | BZ5: =BY4*(1-Mortality!BX4) -> 4490765.162 | CA5: =BZ4*(1-Mortality!BY4) -> 4491780.404 | CB5: =CA4*(1-Mortality!BZ4) -> 4492807.001 | CC5: =CB4*(1-Mortality!CA4) -> 4493881.054 | CD5: =CC4*(1-Mortality!CB4) -> 4495338.594 | CE5: =CD4*(1-Mortality!CC4) -> 4497168.943 | CF5: =CE4*(1-Mortality!CD4) -> 4499361.403 | CG5: =CF4*(1-Mortality!CE4) -> 4501905.102 | CH5: =CG4*(1-Mortality!CF4) -> 4504775.777 | CI5: =CH4*(1-Mortality!CG4) -> 4508131.146 | CJ5: =CI4*(1-Mortality!CH4) -> 4511892.343 | CK5: =CJ4*(1-Mortality!CI4) -> 4515984.536 | CL5: =CK4*(1-Mortality!CJ4) -> 4520336.795 | CM5: =CL4*(1-Mortality!CK4) -> 4524877.826
B6: 2 | C6: =MortalityFertility!J5 -> 4039924.522 | D6: =C5*(1-Mortality!B5) -> 4039207.23 | E6: =D5*(1-Mortality!C5) -> 4013855.5 | F6: =E5*(1-Mortality!D5) -> 4332859.5 | G6: =F5*(1-Mortality!E5) -> 4342791.322 | H6: =G5*(1-Mortality!F5) -> 4352708.716 | I6: =H5*(1-Mortality!G5) -> 4362615.193 | J6: =I5*(1-Mortality!H5) -> 4372513.414 | K6: =J5*(1-Mortality!I5) -> 4382405.173 | L6: =K5*(1-Mortality!J5) -> 4379055.841 | M6: =L5*(1-Mortality!K5) -> 4375710.186 | N6: =M5*(1-Mortality!L5) -> 4372367.67 | O6: =N5*(1-Mortality!M5) -> 4369025.54 | P6: =O5*(1-Mortality!N5) -> 4365673.245 | Q6: =P5*(1-Mortality!O5) -> 4352089.882 | R6: =Q5*(1-Mortality!P5) -> 4338512.728 | S6: =R5*(1-Mortality!Q5) -> 4324937.128 | T6: =S5*(1-Mortality!R5) -> 4311350.557 | U6: =T5*(1-Mortality!S5) -> 4297250.703 | V6: =U5*(1-Mortality!T5) -> 4286266.921 | W6: =V5*(1-Mortality!U5) -> 4275479.776 | X6: =W5*(1-Mortality!V5) -> 4264883.186 | Y6: =X5*(1-Mortality!W5) -> 4254461.015 | Z6: =Y5*(1-Mortality!X5) -> 4243463.315 | AA6: =Z5*(1-Mortality!Y5) -> 4248165.906 | AB6: =AA5*(1-Mortality!Z5) -> 4253080.5 | AC6: =AB5*(1-Mortality!AA5) -> 4258206.655 | AD6: =AC5*(1-Mortality!AB5) -> 4263543.4 | AE6: =AD5*(1-Mortality!AC5) -> 4268946.593 | AF6: =AE5*(1-Mortality!AD5) -> 4283178.635 | AG6: =AF5*(1-Mortality!AE5) -> 4297071.23 | AH6: =AG5*(1-Mortality!AF5) -> 4310627.564 | AI6: =AH5*(1-Mortality!AG5) -> 4323854.016 | AJ6: =AI5*(1-Mortality!AH5) -> 4336943.534 | AK6: =AJ5*(1-Mortality!AI5) -> 4350498.807 | AL6: =AK5*(1-Mortality!AJ5) -> 4363313.569 | AM6: =AL5*(1-Mortality!AK5) -> 4375395.623 | AN6: =AM5*(1-Mortality!AL5) -> 4386760.856 | AO6: =AN5*(1-Mortality!AM5) -> 4398041.148 | AP6: =AO5*(1-Mortality!AN5) -> 4401417.726 | AQ6: =AP5*(1-Mortality!AO5) -> 4404249.67 | AR6: =AQ5*(1-Mortality!AP5) -> 4406549.691 | AS6: =AR5*(1-Mortality!AQ5) -> 4408335.857 | AT6: =AS5*(1-Mortality!AR5) -> 4410058.898 | AU6: =AT5*(1-Mortality!AS5) -> 4405697.921 | AV6: =AU5*(1-Mortality!AT5) -> 4401722.84 | AW6: =AV5*(1-Mortality!AU5) -> 4398134.431 | AX6: =AW5*(1-Mortality!AV5) -> 4394934.806 | AY6: =AX5*(1-Mortality!AW5) -> 4392231.295 | AZ6: =AY5*(1-Mortality!AX5) -> 4388538.101 | BA6: =AZ5*(1-Mortality!AY5) -> 4386032.952 | BB6: =BA5*(1-Mortality!AZ5) -> 4384688.956 | BC6: =BB5*(1-Mortality!BA5) -> 4384479.755 | BD6: =BC5*(1-Mortality!BB5) -> 4385387.963 | BE6: =BD5*(1-Mortality!BC5) -> 4387311.688 | BF6: =BE5*(1-Mortality!BD5) -> 4390296.73 | BG6: =BF5*(1-Mortality!BE5) -> 4394299.737 | BH6: =BG5*(1-Mortality!BF5) -> 4399278.148 | BI6: =BH5*(1-Mortality!BG5) -> 4405190.977 | BJ6: =BI5*(1-Mortality!BH5) -> 4412056.023 | BK6: =BJ5*(1-Mortality!BI5) -> 4419036.036 | BL6: =BK5*(1-Mortality!BJ5) -> 4426111.537 | BM6: =BL5*(1-Mortality!BK5) -> 4433263.63 | BN6: =BM5*(1-Mortality!BL5) -> 4440474.426 | BO6: =BN5*(1-Mortality!BM5) -> 4447763.433 | BP6: =BO5*(1-Mortality!BN5) -> 4454358.74 | BQ6: =BP5*(1-Mortality!BO5) -> 4460303.453 | BR6: =BQ5*(1-Mortality!BP5) -> 4465640.08 | BS6: =BR5*(1-Mortality!BQ5) -> 4470410.518 | BT6: =BS5*(1-Mortality!BR5) -> 4474658.388 | BU6: =BT5*(1-Mortality!BS5) -> 4478160.471 | BV6: =BU5*(1-Mortality!BT5) -> 4481005.621 | BW6: =BV5*(1-Mortality!BU5) -> 4483280.567 | BX6: =BW5*(1-Mortality!BV5) -> 4485069.661 | BY6: =BX5*(1-Mortality!BW5) -> 4486434.284 | BZ6: =BY5*(1-Mortality!BX5) -> 4487615.774 | CA6: =BZ5*(1-Mortality!BY5) -> 4488681.447 | CB6: =CA5*(1-Mortality!BZ5) -> 4489696.218 | CC6: =CB5*(1-Mortality!CA5) -> 4490722.338 | CD6: =CC5*(1-Mortality!CB5) -> 4491795.894 | CE6: =CD5*(1-Mortality!CC5) -> 4493252.757 | CF6: =CE5*(1-Mortality!CD5) -> 4495082.256 | CG6: =CF5*(1-Mortality!CE5) -> 4497273.7 | CH6: =CG5*(1-Mortality!CF5) -> 4499816.218 | CI6: =CH5*(1-Mortality!CG5) -> 4502685.561 | CJ6: =CI5*(1-Mortality!CH5) -> 4506039.373 | CK6: =CJ5*(1-Mortality!CI5) -> 4509798.825 | CL6: =CK5*(1-Mortality!CJ5) -> 4513889.119 | CM6: =CL5*(1-Mortality!CK5) -> 4518239.359
B7: 3 | C7: =MortalityFertility!J6 -> 4039049.878 | D7: =C6*(1-Mortality!B6) -> 4038767.083 | E7: =D6*(1-Mortality!C6) -> 4038049.997 | F7: =E6*(1-Mortality!D6) -> 4012705.53 | G7: =F6*(1-Mortality!E6) -> 4331618.136 | H7: =G6*(1-Mortality!F6) -> 4341547.112 | I7: =H6*(1-Mortality!G6) -> 4351461.665 | J7: =I6*(1-Mortality!H6) -> 4361365.304 | K7: =J6*(1-Mortality!I6) -> 4371260.689 | L7: =K6*(1-Mortality!J6) -> 4381149.613 | M7: =L6*(1-Mortality!K6) -> 4377801.241 | N7: =M6*(1-Mortality!L6) -> 4374456.545 | O7: =N6*(1-Mortality!M6) -> 4371114.986 | P7: =O6*(1-Mortality!N6) -> 4367773.814 | Q7: =P6*(1-Mortality!O6) -> 4364422.479 | R7: =Q6*(1-Mortality!P6) -> 4350843.008 | S7: =R6*(1-Mortality!Q6) -> 4337269.744 | T7: =S6*(1-Mortality!R6) -> 4323698.033 | U7: =T6*(1-Mortality!S6) -> 4310115.355 | V7: =U6*(1-Mortality!T6) -> 4296019.54 | W7: =V6*(1-Mortality!U6) -> 4285038.905 | X7: =W6*(1-Mortality!V6) -> 4274254.851 | Y7: =X6*(1-Mortality!W6) -> 4263661.297 | Z7: =Y6*(1-Mortality!X6) -> 4253242.112 | AA7: =Z6*(1-Mortality!Y6) -> 4242247.563 | AB7: =AA6*(1-Mortality!Z6) -> 4246948.806 | AC7: =AB6*(1-Mortality!AA6) -> 4251861.992 | AD7: =AC6*(1-Mortality!AB6) -> 4256986.679 | AE7: =AD6*(1-Mortality!AC6) -> 4262321.895 | AF7: =AE6*(1-Mortality!AD6) -> 4267723.54 | AG7: =AF6*(1-Mortality!AE6) -> 4281951.504 | AH7: =AG6*(1-Mortality!AF6) -> 4295840.119 | AI7: =AH6*(1-Mortality!AG6) -> 4309392.569 | AJ7: =AI6*(1-Mortality!AH6) -> 4322615.232 | AK7: =AJ6*(1-Mortality!AI6) -> 4335701 | AL7: =AK6*(1-Mortality!AJ6) -> 4349252.389 | AM7: =AL6*(1-Mortality!AK6) -> 4362063.48 | AN7: =AM6*(1-Mortality!AL6) -> 4374142.072 | AO7: =AN6*(1-Mortality!AM6) -> 4385504.049 | AP7: =AO6*(1-Mortality!AN6) -> 4396781.109 | AQ7: =AP6*(1-Mortality!AO6) -> 4400156.72 | AR7: =AQ6*(1-Mortality!AP6) -> 4402987.853 | AS7: =AR6*(1-Mortality!AQ6) -> 4405287.215 | AT7: =AS6*(1-Mortality!AR6) -> 4407072.869 | AU7: =AT6*(1-Mortality!AS6) -> 4408795.416 | AV7: =AU6*(1-Mortality!AT6) -> 4404435.688 | AW7: =AV6*(1-Mortality!AU6) -> 4400461.747 | AX7: =AW6*(1-Mortality!AV6) -> 4396874.366 | AY7: =AX6*(1-Mortality!AW6) -> 4393675.657 | AZ7: =AY6*(1-Mortality!AX6) -> 4390972.921 | BA7: =AZ6*(1-Mortality!AY6) -> 4387280.785 | BB7: =BA6*(1-Mortality!AZ6) -> 4384776.354 | BC7: =BB6*(1-Mortality!BA6) -> 4383432.742 | BD7: =BC6*(1-Mortality!BB6) -> 4383223.601 | BE7: =BD6*(1-Mortality!BC6) -> 4384131.55 | BF7: =BE6*(1-Mortality!BD6) -> 4386054.723 | BG7: =BF6*(1-Mortality!BE6) -> 4389038.91 | BH7: =BG6*(1-Mortality!BF6) -> 4393040.77 | BI7: =BH6*(1-Mortality!BG6) -> 4398017.755 | BJ7: =BI6*(1-Mortality!BH6) -> 4403928.89 | BK7: =BJ6*(1-Mortality!BI6) -> 4410791.969 | BL7: =BK6*(1-Mortality!BJ6) -> 4417769.982 | BM7: =BL6*(1-Mortality!BK6) -> 4424843.456 | BN7: =BM6*(1-Mortality!BL6) -> 4431993.5 | BO7: =BN6*(1-Mortality!BM6) -> 4439202.23 | BP7: =BO6*(1-Mortality!BN6) -> 4446489.148 | BQ7: =BP6*(1-Mortality!BO6) -> 4453082.566 | BR7: =BQ6*(1-Mortality!BP6) -> 4459025.576 | BS7: =BR6*(1-Mortality!BQ6) -> 4464360.674 | BT7: =BS6*(1-Mortality!BR6) -> 4469129.745 | BU7: =BT6*(1-Mortality!BS6) -> 4473376.398 | BV7: =BU6*(1-Mortality!BT6) -> 4476877.478 | BW7: =BV6*(1-Mortality!BU6) -> 4479721.812 | BX7: =BW6*(1-Mortality!BV6) -> 4481996.108 | BY7: =BX6*(1-Mortality!BW6) -> 4483784.688 | BZ7: =BY6*(1-Mortality!BX6) -> 4485148.921 | CA7: =BZ6*(1-Mortality!BY6) -> 4486330.072 | CB7: =CA6*(1-Mortality!BZ6) -> 4487395.44 | CC7: =CB6*(1-Mortality!CA6) -> 4488409.92 | CD7: =CC6*(1-Mortality!CB6) -> 4489435.746 | CE7: =CD6*(1-Mortality!CC6) -> 4490508.994 | CF7: =CE6*(1-Mortality!CD6) -> 4491965.44 | CG7: =CF6*(1-Mortality!CE6) -> 4493794.415 | CH7: =CG6*(1-Mortality!CF6) -> 4495985.231 | CI7: =CH6*(1-Mortality!CG6) -> 4498527.021 | CJ7: =CI6*(1-Mortality!CH6) -> 4501395.542 | CK7: =CJ6*(1-Mortality!CI6) -> 4504748.393 | CL7: =CK6*(1-Mortality!CJ6) -> 4508506.768 | CM7: =CL6*(1-Mortality!CK6) -> 4512595.89
B8: 4 | C8: =MortalityFertility!J7 -> 4038347.084 | D8: =C7*(1-Mortality!B7) -> 4038175.424 | E8: =D7*(1-Mortality!C7) -> 4037892.69 | F8: =E7*(1-Mortality!D7) -> 4037175.759 | G8: =F7*(1-Mortality!E7) -> 4011836.78 | H8: =G7*(1-Mortality!F7) -> 4330680.341 | I8: =H7*(1-Mortality!G7) -> 4340607.168 | J8: =I7*(1-Mortality!H7) -> 4350519.573 | K8: =J7*(1-Mortality!I7) -> 4360421.068 | L8: =K7*(1-Mortality!J7) -> 4370314.311 | M8: =L7*(1-Mortality!K7) -> 4380201.095 | N8: =M7*(1-Mortality!L7) -> 4376853.447 | O8: =N7*(1-Mortality!M7) -> 4373509.475 | P8: =O7*(1-Mortality!N7) -> 4370168.64 | Q8: =P7*(1-Mortality!O7) -> 4366828.191 | R8: =Q7*(1-Mortality!P7) -> 4363477.582 | S8: =R7*(1-Mortality!Q7) -> 4349901.05 | T8: =S7*(1-Mortality!R7) -> 4336330.725 | U8: =T7*(1-Mortality!S7) -> 4322761.953 | V8: =U7*(1-Mortality!T7) -> 4309182.215 | W8: =V7*(1-Mortality!U7) -> 4295089.452 | X8: =W7*(1-Mortality!V7) -> 4284111.194 | Y8: =X7*(1-Mortality!W7) -> 4273329.475 | Z8: =Y7*(1-Mortality!X7) -> 4262738.214 | AA8: =Z7*(1-Mortality!Y7) -> 4252321.285 | AB8: =AA7*(1-Mortality!Z7) -> 4241329.116 | AC8: =AB7*(1-Mortality!AA7) -> 4246029.342 | AD8: =AC7*(1-Mortality!AB7) -> 4250941.464 | AE8: =AD7*(1-Mortality!AC7) -> 4256065.042 | AF8: =AE7*(1-Mortality!AD7) -> 4261399.102 | AG8: =AF7*(1-Mortality!AE7) -> 4266799.578 | AH8: =AG7*(1-Mortality!AF7) -> 4281024.462 | AI8: =AH7*(1-Mortality!AG7) -> 4294910.069 | AJ8: =AI7*(1-Mortality!AH7) -> 4308459.585 | AK8: =AJ7*(1-Mortality!AI7) -> 4321679.386 | AL8: =AK7*(1-Mortality!AJ7) -> 4334762.321 | AM8: =AL7*(1-Mortality!AK7) -> 4348310.776 | AN8: =AM7*(1-Mortality!AL7) -> 4361119.093 | AO8: =AN7*(1-Mortality!AM7) -> 4373195.07 | AP8: =AO7*(1-Mortality!AN7) -> 4384554.588 | AQ8: =AP7*(1-Mortality!AO7) -> 4395829.206 | AR8: =AQ7*(1-Mortality!AP7) -> 4399204.086 | AS8: =AR7*(1-Mortality!AQ7) -> 4402034.606 | AT8: =AS7*(1-Mortality!AR7) -> 4404333.47 | AU8: =AT7*(1-Mortality!AS7) -> 4406118.738 | AV8: =AU7*(1-Mortality!AT7) -> 4407840.912 | AW8: =AV7*(1-Mortality!AU7) -> 4403482.128 | AX8: =AW7*(1-Mortality!AV7) -> 4399509.047 | AY8: =AX7*(1-Mortality!AW7) -> 4395922.443 | AZ8: =AY7*(1-Mortality!AX7) -> 4392724.426 | BA8: =AZ7*(1-Mortality!AY7) -> 4390022.276 | BB8: =BA7*(1-Mortality!AZ7) -> 4386330.939 | BC8: =BB7*(1-Mortality!BA7) -> 4383827.05 | BD8: =BC7*(1-Mortality!BB7) -> 4382483.729 | BE8: =BD7*(1-Mortality!BC7) -> 4382274.633 | BF8: =BE7*(1-Mortality!BD7) -> 4383182.385 | BG8: =BF7*(1-Mortality!BE7) -> 4385105.142 | BH8: =BG7*(1-Mortality!BF7) -> 4388088.684 | BI8: =BH7*(1-Mortality!BG7) -> 4392089.677 | BJ8: =BI7*(1-Mortality!BH7) -> 4397065.584 | BK8: =BJ7*(1-Mortality!BI7) -> 4402975.439 | BL8: =BK7*(1-Mortality!BJ7) -> 4409837.032 | BM8: =BL7*(1-Mortality!BK7) -> 4416813.535 | BN8: =BM7*(1-Mortality!BL7) -> 4423885.478 | BO8: =BN7*(1-Mortality!BM7) -> 4431033.973 | BP8: =BO7*(1-Mortality!BN7) -> 4438241.142 | BQ8: =BP7*(1-Mortality!BO7) -> 4445526.483 | BR8: =BQ7*(1-Mortality!BP7) -> 4452118.474 | BS8: =BR7*(1-Mortality!BQ7) -> 4458060.197 | BT8: =BS7*(1-Mortality!BR7) -> 4463394.14 | BU8: =BT7*(1-Mortality!BS7) -> 4468162.179 | BV8: =BU7*(1-Mortality!BT7) -> 4472407.912 | BW8: =BV7*(1-Mortality!BU7) -> 4475908.234 | BX8: =BW7*(1-Mortality!BV7) -> 4478751.953 | BY8: =BX7*(1-Mortality!BW7) -> 4481025.755 | BZ8: =BY7*(1-Mortality!BX7) -> 4482813.949 | CA8: =BZ7*(1-Mortality!BY7) -> 4484177.886 | CB8: =CA7*(1-Mortality!BZ7) -> 4485358.781 | CC8: =CB7*(1-Mortality!CA7) -> 4486423.919 | CD8: =CC7*(1-Mortality!CB7) -> 4487438.179 | CE8: =CD7*(1-Mortality!CC7) -> 4488463.784 | CF8: =CE7*(1-Mortality!CD7) -> 4489536.799 | CG8: =CF7*(1-Mortality!CE7) -> 4490992.929 | CH8: =CG7*(1-Mortality!CF7) -> 4492821.509 | CI8: =CH7*(1-Mortality!CG7) -> 4495011.85 | CJ8: =CI7*(1-Mortality!CH7) -> 4497553.09 | CK8: =CJ7*(1-Mortality!CI7) -> 4500420.99 | CL8: =CK7*(1-Mortality!CJ7) -> 4503773.115 | CM8: =CL7*(1-Mortality!CK7) -> 4507530.676
B9: 5 | C9: =MortalityFertility!J8 -> 4070833.64 | D9: =C8*(1-Mortality!B8) -> 4037644.411 | E9: =D8*(1-Mortality!C8) -> 4037472.781 | F9: =E8*(1-Mortality!D8) -> 4037190.097 | G9: =F8*(1-Mortality!E8) -> 4036473.29 | H9: =G8*(1-Mortality!F8) -> 4011138.72 | I9: =H8*(1-Mortality!G8) -> 4329926.803 | J9: =I8*(1-Mortality!H8) -> 4339851.902 | K9: =J8*(1-Mortality!I8) -> 4349762.583 | L9: =K8*(1-Mortality!J8) -> 4359662.355 | M9: =L8*(1-Mortality!K8) -> 4369553.877 | N9: =M8*(1-Mortality!L8) -> 4379438.94 | O9: =N8*(1-Mortality!M8) -> 4376091.875 | P9: =O8*(1-Mortality!N8) -> 4372748.484 | Q9: =P8*(1-Mortality!O8) -> 4369408.231 | R9: =Q8*(1-Mortality!P8) -> 4366068.363 | S9: =R8*(1-Mortality!Q8) -> 4362718.337 | T9: =S8*(1-Mortality!R8) -> 4349144.168 | U9: =T8*(1-Mortality!S8) -> 4335576.203 | V9: =U8*(1-Mortality!T8) -> 4322009.792 | W9: =V8*(1-Mortality!U8) -> 4308432.418 | X9: =W8*(1-Mortality!V8) -> 4294342.106 | Y9: =X8*(1-Mortality!W8) -> 4283365.759 | Z9: =Y8*(1-Mortality!X8) -> 4272585.916 | AA9: =Z8*(1-Mortality!Y8) -> 4261996.498 | AB9: =AA8*(1-Mortality!Z8) -> 4251581.381 | AC9: =AB8*(1-Mortality!AA8) -> 4240591.125 | AD9: =AC8*(1-Mortality!AB8) -> 4245290.533 | AE9: =AD8*(1-Mortality!AC8) -> 4250201.8 | AF9: =AE8*(1-Mortality!AD8) -> 4255324.486 | AG9: =AF8*(1-Mortality!AE8) -> 4260657.619 | AH9: =AG8*(1-Mortality!AF8) -> 4266057.155 | AI9: =AH8*(1-Mortality!AG8) -> 4280279.564 | AJ9: =AI8*(1-Mortality!AH8) -> 4294162.755 | AK9: =AJ8*(1-Mortality!AI8) -> 4307709.914 | AL9: =AK8*(1-Mortality!AJ8) -> 4320927.414 | AM9: =AL8*(1-Mortality!AK8) -> 4334008.072 | AN9: =AM8*(1-Mortality!AL8) -> 4347554.169 | AO9: =AN8*(1-Mortality!AM8) -> 4360360.258 | AP9: =AO8*(1-Mortality!AN8) -> 4372434.134 | AQ9: =AP8*(1-Mortality!AO8) -> 4383791.675 | AR9: =AQ8*(1-Mortality!AP8) -> 4395064.331 | AS9: =AR8*(1-Mortality!AQ8) -> 4398438.625 | AT9: =AS8*(1-Mortality!AR8) -> 4401268.652 | AU9: =AT8*(1-Mortality!AS8) -> 4403567.116 | AV9: =AU8*(1-Mortality!AT8) -> 4405352.073 | AW9: =AV8*(1-Mortality!AU8) -> 4407073.947 | AX9: =AW8*(1-Mortality!AV8) -> 4402715.922 | AY9: =AX8*(1-Mortality!AW8) -> 4398743.532 | AZ9: =AY8*(1-Mortality!AX8) -> 4395157.552 | BA9: =AZ8*(1-Mortality!AY8) -> 4391960.092 | BB9: =BA8*(1-Mortality!AZ8) -> 4389258.412 | BC9: =BB8*(1-Mortality!BA8) -> 4385567.717 | BD9: =BC8*(1-Mortality!BB8) -> 4383064.264 | BE9: =BD8*(1-Mortality!BC8) -> 4381721.177 | BF9: =BE8*(1-Mortality!BD8) -> 4381512.117 | BG9: =BF8*(1-Mortality!BE8) -> 4382419.712 | BH9: =BG8*(1-Mortality!BF8) -> 4384342.134 | BI9: =BH8*(1-Mortality!BG8) -> 4387325.156 | BJ9: =BI8*(1-Mortality!BH8) -> 4391325.453 | BK9: =BJ8*(1-Mortality!BI8) -> 4396300.494 | BL9: =BK8*(1-Mortality!BJ8) -> 4402209.322 | BM9: =BL8*(1-Mortality!BK8) -> 4409069.721 | BN9: =BM8*(1-Mortality!BL8) -> 4416045.01 | BO9: =BN8*(1-Mortality!BM8) -> 4423115.722 | BP9: =BO8*(1-Mortality!BN8) -> 4430262.973 | BQ9: =BP8*(1-Mortality!BO8) -> 4437468.888 | BR9: =BQ8*(1-Mortality!BP8) -> 4444752.962 | BS9: =BR8*(1-Mortality!BQ8) -> 4451343.805 | BT9: =BS8*(1-Mortality!BR8) -> 4457284.494 | BU9: =BT8*(1-Mortality!BS8) -> 4462617.51 | BV9: =BU8*(1-Mortality!BT8) -> 4467384.719 | BW9: =BV8*(1-Mortality!BU8) -> 4471629.713 | BX9: =BW8*(1-Mortality!BV8) -> 4475129.426 | BY9: =BX8*(1-Mortality!BW8) -> 4477972.65 | BZ9: =BY8*(1-Mortality!BX8) -> 4480246.057 | CA9: =BZ8*(1-Mortality!BY8) -> 4482033.939 | CB9: =CA8*(1-Mortality!BZ8) -> 4483397.639 | CC9: =CB8*(1-Mortality!CA8) -> 4484578.329 | CD9: =CC8*(1-Mortality!CB8) -> 4485643.281 | CE9: =CD8*(1-Mortality!CC8) -> 4486657.365 | CF9: =CE8*(1-Mortality!CD8) -> 4487682.791 | CG9: =CF8*(1-Mortality!CE8) -> 4488755.619 | CH9: =CG8*(1-Mortality!CF8) -> 4490211.496 | CI9: =CH8*(1-Mortality!CG8) -> 4492039.758 | CJ9: =CI8*(1-Mortality!CH8) -> 4494229.718 | CK9: =CJ8*(1-Mortality!CI8) -> 4496770.516 | CL9: =CK8*(1-Mortality!CJ8) -> 4499637.916 | CM9: =CL8*(1-Mortality!CK8) -> 4502989.459
B10: 6 | C10: =MortalityFertility!J9 -> 4070235.227 | D10: =C9*(1-Mortality!B9) -> 4070192.483 | E10: =D9*(1-Mortality!C9) -> 4037008.482 | F10: =E9*(1-Mortality!D9) -> 4036836.879 | G10: =F9*(1-Mortality!E9) -> 4036554.24 | H10: =G9*(1-Mortality!F9) -> 4035837.546 | I10: =H9*(1-Mortality!G9) -> 4010506.966 | J10: =I9*(1-Mortality!H9) -> 4329244.839 | K10: =J9*(1-Mortality!I9) -> 4339168.375 | L10: =K9*(1-Mortality!J9) -> 4349077.495 | M10: =L9*(1-Mortality!K9) -> 4358975.708 | N10: =M9*(1-Mortality!L9) -> 4368865.672 | O10: =N9*(1-Mortality!M9) -> 4378749.178 | P10: =O9*(1-Mortality!N9) -> 4375402.64 | Q10: =P9*(1-Mortality!O9) -> 4372059.777 | R10: =Q9*(1-Mortality!P9) -> 4368720.049 | S10: =R9*(1-Mortality!Q9) -> 4365380.707 | T10: =S9*(1-Mortality!R9) -> 4362031.209 | U10: =T9*(1-Mortality!S9) -> 4348459.177 | V10: =U9*(1-Mortality!T9) -> 4334893.35 | W10: =V9*(1-Mortality!U9) -> 4321329.075 | X10: =W9*(1-Mortality!V9) -> 4307753.84 | Y10: =X9*(1-Mortality!W9) -> 4293665.747 | Z10: =Y9*(1-Mortality!X9) -> 4282691.129 | AA10: =Z9*(1-Mortality!Y9) -> 4271912.984 | AB10: =AA9*(1-Mortality!Z9) -> 4261325.234 | AC10: =AB9*(1-Mortality!AA9) -> 4250911.757 | AD10: =AC9*(1-Mortality!AB9) -> 4239923.232 | AE10: =AD9*(1-Mortality!AC9) -> 4244621.899 | AF10: =AE9*(1-Mortality!AD9) -> 4249532.394 | AG10: =AF9*(1-Mortality!AE9) -> 4254654.273 | AH10: =AG9*(1-Mortality!AF9) -> 4259986.565 | AI10: =AH9*(1-Mortality!AG9) -> 4265385.251 | AJ10: =AI9*(1-Mortality!AH9) -> 4279605.419 | AK10: =AJ9*(1-Mortality!AI9) -> 4293486.424 | AL10: =AK9*(1-Mortality!AJ9) -> 4307031.449 | AM10: =AL9*(1-Mortality!AK9) -> 4320246.868 | AN10: =AM9*(1-Mortality!AL9) -> 4333325.466 | AO10: =AN9*(1-Mortality!AM9) -> 4346869.43 | AP10: =AO9*(1-Mortality!AN9) -> 4359673.502 | AQ10: =AP9*(1-Mortality!AO9) -> 4371745.476 | AR10: =AQ9*(1-Mortality!AP9) -> 4383101.228 | AS10: =AR9*(1-Mortality!AQ9) -> 4394372.109 | AT10: =AS9*(1-Mortality!AR9) -> 4397745.871 | AU10: =AT9*(1-Mortality!AS9) -> 4400575.452 | AV10: =AU9*(1-Mortality!AT9) -> 4402873.554 | AW10: =AV9*(1-Mortality!AU9) -> 4404658.23 | AX10: =AW9*(1-Mortality!AV9) -> 4406379.833 | AY10: =AX9*(1-Mortality!AW9) -> 4402022.495 | AZ10: =AY9*(1-Mortality!AX9) -> 4398050.73 | BA10: =AZ9*(1-Mortality!AY9) -> 4394465.315 | BB10: =BA9*(1-Mortality!AZ9) -> 4391268.359 | BC10: =BB9*(1-Mortality!BA9) -> 4388567.103 | BD10: =BC9*(1-Mortality!BB9) -> 4384876.99 | BE10: =BD9*(1-Mortality!BC9) -> 4382373.931 | BF10: =BE9*(1-Mortality!BD9) -> 4381031.056 | BG10: =BF9*(1-Mortality!BE9) -> 4380822.029 | BH10: =BG9*(1-Mortality!BF9) -> 4381729.48 | BI10: =BH9*(1-Mortality!BG9) -> 4383651.6 | BJ10: =BI9*(1-Mortality!BH9) -> 4386634.152 | BK10: =BJ9*(1-Mortality!BI9) -> 4390633.819 | BL10: =BK9*(1-Mortality!BJ9) -> 4395608.077 | BM10: =BL9*(1-Mortality!BK9) -> 4401515.974 | BN10: =BM9*(1-Mortality!BL9) -> 4408375.292 | BO10: =BN9*(1-Mortality!BM9) -> 4415349.483 | BP10: =BO9*(1-Mortality!BN9) -> 4422419.081 | BQ10: =BP9*(1-Mortality!BO9) -> 4429565.207 | BR10: =BQ9*(1-Mortality!BP9) -> 4436769.987 | BS10: =BR9*(1-Mortality!BQ9) -> 4444052.913 | BT10: =BS9*(1-Mortality!BR9) -> 4450642.718 | BU10: =BT9*(1-Mortality!BS9) -> 4456582.472 | BV10: =BU9*(1-Mortality!BT9) -> 4461914.647 | BW10: =BV9*(1-Mortality!BU9) -> 4466681.106 | BX10: =BW9*(1-Mortality!BV9) -> 4470925.432 | BY10: =BX9*(1-Mortality!BW9) -> 4474424.593 | BZ10: =BY9*(1-Mortality!BX9) -> 4477267.369 | CA10: =BZ9*(1-Mortality!BY9) -> 4479540.418 | CB10: =CA9*(1-Mortality!BZ9) -> 4481328.019 | CC10: =CB9*(1-Mortality!CA9) -> 4482691.504 | CD10: =CC9*(1-Mortality!CB9) -> 4483872.008 | CE10: =CD9*(1-Mortality!CC9) -> 4484936.792 | CF10: =CE9*(1-Mortality!CD9) -> 4485950.716 | CG10: =CF9*(1-Mortality!CE9) -> 4486975.981 | CH10: =CG9*(1-Mortality!CF9) -> 4488048.64 | CI10: =CH9*(1-Mortality!CG9) -> 4489504.288 | CJ10: =CI9*(1-Mortality!CH9) -> 4491332.261 | CK10: =CJ9*(1-Mortality!CI9) -> 4493521.877 | CL10: =CK9*(1-Mortality!CJ9) -> 4496062.274 | CM10: =CL9*(1-Mortality!CK9) -> 4498929.223
B11: 7 | C11: =MortalityFertility!J10 -> 4069677.605 | D11: =C10*(1-Mortality!B10) -> 4069636.903 | E11: =D10*(1-Mortality!C10) -> 4069594.165 | F11: =E10*(1-Mortality!D10) -> 4036415.042 | G11: =F10*(1-Mortality!E10) -> 4036243.464 | H11: =G10*(1-Mortality!F10) -> 4035960.866 | I11: =H10*(1-Mortality!G10) -> 4035244.278 | J11: =I10*(1-Mortality!H10) -> 4009917.421 | K11: =J10*(1-Mortality!I10) -> 4328608.44 | L11: =K10*(1-Mortality!J10) -> 4338530.517 | M11: =L10*(1-Mortality!K10) -> 4348438.181 | N11: =M10*(1-Mortality!L10) -> 4358334.939 | O11: =N10*(1-Mortality!M10) -> 4368223.449 | P11: =O10*(1-Mortality!N10) -> 4378105.502 | Q11: =P10*(1-Mortality!O10) -> 4374759.456 | R11: =Q10*(1-Mortality!P10) -> 4371417.084 | S11: =R10*(1-Mortality!Q10) -> 4368077.847 | T11: =S10*(1-Mortality!R10) -> 4364738.996 | U11: =T10*(1-Mortality!S10) -> 4361389.99 | V11: =U10*(1-Mortality!T10) -> 4347819.954 | W11: =V10*(1-Mortality!U10) -> 4334256.121 | X11: =W10*(1-Mortality!V10) -> 4320693.84 | Y11: =X10*(1-Mortality!W10) -> 4307120.6 | Z11: =Y10*(1-Mortality!X10) -> 4293034.579 | AA11: =Z10*(1-Mortality!Y10) -> 4282061.573 | AB11: =AA10*(1-Mortality!Z10) -> 4271285.012 | AC11: =AB10*(1-Mortality!AA10) -> 4260698.819 | AD11: =AC10*(1-Mortality!AB10) -> 4250286.873 | AE11: =AD10*(1-Mortality!AC10) -> 4239299.963 | AF11: =AE10*(1-Mortality!AD10) -> 4243997.94 | AG11: =AF10*(1-Mortality!AE10) -> 4248907.712 | AH11: =AG10*(1-Mortality!AF10) -> 4254028.839 | AI11: =AH10*(1-Mortality!AG10) -> 4259360.347 | AJ11: =AI10*(1-Mortality!AH10) -> 4264758.239 | AK11: =AJ10*(1-Mortality!AI10) -> 4278976.317 | AL11: =AK10*(1-Mortality!AJ10) -> 4292855.282 | AM11: =AL10*(1-Mortality!AK10) -> 4306398.316 | AN11: =AM10*(1-Mortality!AL10) -> 4319611.791 | AO11: =AN10*(1-Mortality!AM10) -> 4332688.467 | AP11: =AO10*(1-Mortality!AN10) -> 4346230.44 | AQ11: =AP10*(1-Mortality!AO10) -> 4359032.63 | AR11: =AQ10*(1-Mortality!AP10) -> 4371102.829 | AS11: =AR10*(1-Mortality!AQ10) -> 4382456.912 | AT11: =AS10*(1-Mortality!AR10) -> 4393726.136 | AU11: =AT10*(1-Mortality!AS10) -> 4397099.402 | AV11: =AU10*(1-Mortality!AT10) -> 4399928.567 | AW11: =AV10*(1-Mortality!AU10) -> 4402226.332 | AX11: =AW10*(1-Mortality!AV10) -> 4404010.745 | AY11: =AX10*(1-Mortality!AW10) -> 4405732.095 | AZ11: =AY10*(1-Mortality!AX10) -> 4401375.397 | BA11: =AZ10*(1-Mortality!AY10) -> 4397404.217 | BB11: =BA10*(1-Mortality!AZ10) -> 4393819.328 | BC11: =BB10*(1-Mortality!BA10) -> 4390622.842 | BD11: =BC10*(1-Mortality!BB10) -> 4387921.984 | BE11: =BD10*(1-Mortality!BC10) -> 4384232.414 | BF11: =BE10*(1-Mortality!BD10) -> 4381729.722 | BG11: =BF10*(1-Mortality!BE10) -> 4380387.044 | BH11: =BG10*(1-Mortality!BF10) -> 4380178.048 | BI11: =BH10*(1-Mortality!BG10) -> 4381085.366 | BJ11: =BI10*(1-Mortality!BH10) -> 4383007.203 | BK11: =BJ10*(1-Mortality!BI10) -> 4385989.317 | BL11: =BK10*(1-Mortality!BJ10) -> 4389988.396 | BM11: =BL10*(1-Mortality!BK10) -> 4394961.923 | BN11: =BM10*(1-Mortality!BL10) -> 4400868.951 | BO11: =BN10*(1-Mortality!BM10) -> 4407727.261 | BP11: =BO10*(1-Mortality!BN10) -> 4414700.426 | BQ11: =BP10*(1-Mortality!BO10) -> 4421768.985 | BR11: =BQ10*(1-Mortality!BP10) -> 4428914.061 | BS11: =BR10*(1-Mortality!BQ10) -> 4436117.782 | BT11: =BS10*(1-Mortality!BR10) -> 4443399.637 | BU11: =BT10*(1-Mortality!BS10) -> 4449988.474 | BV11: =BU10*(1-Mortality!BT10) -> 4455927.354 | BW11: =BV10*(1-Mortality!BU10) -> 4461258.746 | BX11: =BW10*(1-Mortality!BV10) -> 4466024.503 | BY11: =BX10*(1-Mortality!BW10) -> 4470268.205 | BZ11: =BY10*(1-Mortality!BX10) -> 4473766.852 | CA11: =BZ10*(1-Mortality!BY10) -> 4476609.211 | CB11: =CA10*(1-Mortality!BZ10) -> 4478881.926 | CC11: =CB10*(1-Mortality!CA10) -> 4480669.264 | CD11: =CC10*(1-Mortality!CB10) -> 4482032.548 | CE11: =CD10*(1-Mortality!CC10) -> 4483212.879 | CF11: =CE10*(1-Mortality!CD10) -> 4484277.506 | CG11: =CF10*(1-Mortality!CE10) -> 4485291.282 | CH11: =CG10*(1-Mortality!CF10) -> 4486316.395 | CI11: =CH10*(1-Mortality!CG10) -> 4487388.897 | CJ11: =CI10*(1-Mortality!CH10) -> 4488844.331 | CK11: =CJ10*(1-Mortality!CI10) -> 4490672.036 | CL11: =CK10*(1-Mortality!CJ10) -> 4492861.329 | CM11: =CL10*(1-Mortality!CK10) -> 4495401.353
B12: 8 | C12: =MortalityFertility!J11 -> 4069172.965 | D12: =C11*(1-Mortality!B11) -> 4069120.059 | E12: =D11*(1-Mortality!C11) -> 4069079.362 | F12: =E11*(1-Mortality!D11) -> 4069036.631 | G12: =F11*(1-Mortality!E11) -> 4035862.053 | H12: =G11*(1-Mortality!F11) -> 4035690.499 | I12: =H11*(1-Mortality!G11) -> 4035407.94 | J12: =I11*(1-Mortality!H11) -> 4034691.449 | K12: =J11*(1-Mortality!I11) -> 4009368.062 | L12: =K11*(1-Mortality!J11) -> 4328015.421 | M12: =L11*(1-Mortality!K11) -> 4337936.139 | N12: =M11*(1-Mortality!L11) -> 4347842.445 | O12: =N11*(1-Mortality!M11) -> 4357737.847 | P12: =O11*(1-Mortality!N11) -> 4367625.002 | Q12: =P11*(1-Mortality!O11) -> 4377505.701 | R12: =Q11*(1-Mortality!P11) -> 4374160.114 | S12: =R11*(1-Mortality!Q11) -> 4370818.2 | T12: =S11*(1-Mortality!R11) -> 4367479.42 | U12: =T11*(1-Mortality!S11) -> 4364141.027 | V12: =U11*(1-Mortality!T11) -> 4360792.48 | W12: =V11*(1-Mortality!U11) -> 4347224.303 | X12: =W11*(1-Mortality!V11) -> 4333662.328 | Y12: =X11*(1-Mortality!W11) -> 4320101.905 | Z12: =Y11*(1-Mortality!X11) -> 4306530.524 | AA12: =Z11*(1-Mortality!Y11) -> 4292446.433 | AB12: =AA11*(1-Mortality!Z11) -> 4281474.931 | AC12: =AB11*(1-Mortality!AA11) -> 4270699.846 | AD12: =AC11*(1-Mortality!AB11) -> 4260115.103 | AE12: =AD11*(1-Mortality!AC11) -> 4249704.584 | AF12: =AE11*(1-Mortality!AD11) -> 4238719.179 | AG12: =AF11*(1-Mortality!AE11) -> 4243416.512 | AH12: =AG11*(1-Mortality!AF11) -> 4248325.612 | AI12: =AH11*(1-Mortality!AG11) -> 4253446.037 | AJ12: =AI11*(1-Mortality!AH11) -> 4258776.815 | AK12: =AJ11*(1-Mortality!AI11) -> 4264173.967 | AL12: =AK11*(1-Mortality!AJ11) -> 4278390.098 | AM12: =AL11*(1-Mortality!AK11) -> 4292267.161 | AN12: =AM11*(1-Mortality!AL11) -> 4305808.339 | AO12: =AN11*(1-Mortality!AM11) -> 4319020.004 | AP12: =AO11*(1-Mortality!AN11) -> 4332094.889 | AQ12: =AP11*(1-Mortality!AO11) -> 4345635.006 | AR12: =AQ11*(1-Mortality!AP11) -> 4358435.442 | AS12: =AR11*(1-Mortality!AQ11) -> 4370503.988 | AT12: =AS11*(1-Mortality!AR11) -> 4381856.516 | AU12: =AT11*(1-Mortality!AS11) -> 4393124.196 | AV12: =AU11*(1-Mortality!AT11) -> 4396496.999 | AW12: =AV11*(1-Mortality!AU11) -> 4399325.777 | AX12: =AW11*(1-Mortality!AV11) -> 4401623.227 | AY12: =AX11*(1-Mortality!AW11) -> 4403407.396 | AZ12: =AY11*(1-Mortality!AX11) -> 4405128.51 | BA12: =AZ11*(1-Mortality!AY11) -> 4400772.409 | BB12: =BA11*(1-Mortality!AZ11) -> 4396801.772 | BC12: =BB11*(1-Mortality!BA11) -> 4393217.375 | BD12: =BC11*(1-Mortality!BB11) -> 4390021.327 | BE12: =BD11*(1-Mortality!BC11) -> 4387320.839 | BF12: =BE11*(1-Mortality!BD11) -> 4383631.774 | BG12: =BF11*(1-Mortality!BE11) -> 4381129.425 | BH12: =BG11*(1-Mortality!BF11) -> 4379786.931 | BI12: =BH11*(1-Mortality!BG11) -> 4379577.964 | BJ12: =BI11*(1-Mortality!BH11) -> 4380485.158 | BK12: =BJ11*(1-Mortality!BI11) -> 4382406.731 | BL12: =BK11*(1-Mortality!BJ11) -> 4385388.437 | BM12: =BL11*(1-Mortality!BK11) -> 4389386.968 | BN12: =BM11*(1-Mortality!BL11) -> 4394359.813 | BO12: =BN11*(1-Mortality!BM11) -> 4400266.032 | BP12: =BO11*(1-Mortality!BN11) -> 4407123.402 | BQ12: =BP11*(1-Mortality!BO11) -> 4414095.612 | BR12: =BQ11*(1-Mortality!BP11) -> 4421163.203 | BS12: =BR11*(1-Mortality!BQ11) -> 4428307.3 | BT12: =BS11*(1-Mortality!BR11) -> 4435510.034 | BU12: =BT11*(1-Mortality!BS11) -> 4442790.892 | BV12: =BU11*(1-Mortality!BT11) -> 4449378.825 | BW12: =BV11*(1-Mortality!BU11) -> 4455316.892 | BX12: =BW11*(1-Mortality!BV11) -> 4460647.553 | BY12: =BX11*(1-Mortality!BW11) -> 4465412.658 | BZ12: =BY11*(1-Mortality!BX11) -> 4469655.779 | CA12: =BZ11*(1-Mortality!BY11) -> 4473153.946 | CB12: =CA11*(1-Mortality!BZ11) -> 4475995.915 | CC12: =CB11*(1-Mortality!CA11) -> 4478268.319 | CD12: =CC11*(1-Mortality!CB11) -> 4480055.412 | CE12: =CD11*(1-Mortality!CC11) -> 4481418.51 | CF12: =CE11*(1-Mortality!CD11) -> 4482598.678 | CG12: =CF11*(1-Mortality!CE11) -> 4483663.16 | CH12: =CG11*(1-Mortality!CF11) -> 4484676.797 | CI12: =CH11*(1-Mortality!CG11) -> 4485701.77 | CJ12: =CI11*(1-Mortality!CH11) -> 4486774.125 | CK12: =CJ11*(1-Mortality!CI11) -> 4488229.359 | CL12: =CK11*(1-Mortality!CJ11) -> 4490056.814 | CM12: =CL11*(1-Mortality!CK11) -> 4492245.807
B13: 9 | C13: =MortalityFertility!J12 -> 4068737.563 | D13: =C12*(1-Mortality!B12) -> 4068668.387 | E13: =D12*(1-Mortality!C12) -> 4068615.488 | F13: =E12*(1-Mortality!D12) -> 4068574.796 | G13: =F12*(1-Mortality!E12) -> 4068532.07 | H13: =G12*(1-Mortality!F12) -> 4035361.606 | I13: =H12*(1-Mortality!G12) -> 4035190.073 | J13: =I12*(1-Mortality!H12) -> 4034907.549 | K13: =J12*(1-Mortality!I12) -> 4034191.148 | L13: =K12*(1-Mortality!J12) -> 4008870.901 | M13: =L12*(1-Mortality!K12) -> 4327478.747 | N13: =M12*(1-Mortality!L12) -> 4337398.235 | O13: =N12*(1-Mortality!M12) -> 4347303.312 | P13: =O12*(1-Mortality!N12) -> 4357197.488 | Q13: =P12*(1-Mortality!O12) -> 4367083.416 | R13: =Q12*(1-Mortality!P12) -> 4376962.891 | S13: =R12*(1-Mortality!Q12) -> 4373617.718 | T13: =S12*(1-Mortality!R12) -> 4370276.218 | U13: =T12*(1-Mortality!S12) -> 4366937.853 | V13: =U12*(1-Mortality!T12) -> 4363599.873 | W13: =V12*(1-Mortality!U12) -> 4360251.741 | X13: =W12*(1-Mortality!V12) -> 4346685.247 | Y13: =X12*(1-Mortality!W12) -> 4333124.954 | Z13: =Y12*(1-Mortality!X12) -> 4319566.212 | AA13: =Z12*(1-Mortality!Y12) -> 4305996.514 | AB13: =AA12*(1-Mortality!Z12) -> 4291914.17 | AC13: =AB12*(1-Mortality!AA12) -> 4280944.028 | AD13: =AC12*(1-Mortality!AB12) -> 4270170.28 | AE13: =AD12*(1-Mortality!AC12) -> 4259586.849 | AF13: =AE12*(1-Mortality!AD12) -> 4249177.62 | AG13: =AF12*(1-Mortality!AE12) -> 4238193.578 | AH13: =AG12*(1-Mortality!AF12) -> 4242890.329 | AI13: =AH12*(1-Mortality!AG12) -> 4247798.82 | AJ13: =AI12*(1-Mortality!AH12) -> 4252918.609 | AK13: =AJ12*(1-Mortality!AI12) -> 4258248.727 | AL13: =AK12*(1-Mortality!AJ12) -> 4263645.21 | AM13: =AL12*(1-Mortality!AK12) -> 4277859.577 | AN13: =AM12*(1-Mortality!AL12) -> 4291734.919 | AO13: =AN12*(1-Mortality!AM12) -> 4305274.419 | AP13: =AO12*(1-Mortality!AN12) -> 4318484.446 | AQ13: =AP12*(1-Mortality!AO12) -> 4331557.709 | AR13: =AQ12*(1-Mortality!AP12) -> 4345096.148 | AS13: =AR12*(1-Mortality!AQ12) -> 4357894.996 | AT13: =AS12*(1-Mortality!AR12) -> 4369962.045 | AU13: =AT12*(1-Mortality!AS12) -> 4381313.165 | AV13: =AU12*(1-Mortality!AT12) -> 4392579.448 | AW13: =AV12*(1-Mortality!AU12) -> 4395951.834 | AX13: =AW12*(1-Mortality!AV12) -> 4398780.261 | AY13: =AX12*(1-Mortality!AW12) -> 4401077.426 | AZ13: =AY12*(1-Mortality!AX12) -> 4402861.373 | BA13: =AZ12*(1-Mortality!AY12) -> 4404582.274 | BB13: =BA12*(1-Mortality!AZ12) -> 4400226.713 | BC13: =BB12*(1-Mortality!BA12) -> 4396256.569 | BD13: =BC12*(1-Mortality!BB12) -> 4392672.616 | BE13: =BD12*(1-Mortality!BC12) -> 4389476.964 | BF13: =BE12*(1-Mortality!BD12) -> 4386776.811 | BG13: =BF12*(1-Mortality!BE12) -> 4383088.203 | BH13: =BG12*(1-Mortality!BF12) -> 4380586.165 | BI13: =BH12*(1-Mortality!BG12) -> 4379243.838 | BJ13: =BI12*(1-Mortality!BH12) -> 4379034.896 | BK13: =BJ12*(1-Mortality!BI12) -> 4379941.977 | BL13: =BK12*(1-Mortality!BJ12) -> 4381863.313 | BM13: =BL12*(1-Mortality!BK12) -> 4384844.648 | BN13: =BM12*(1-Mortality!BL12) -> 4388842.684 | BO13: =BN12*(1-Mortality!BM12) -> 4393814.912 | BP13: =BO12*(1-Mortality!BN12) -> 4399720.399 | BQ13: =BP12*(1-Mortality!BO12) -> 4406576.919 | BR13: =BQ12*(1-Mortality!BP12) -> 4413548.264 | BS13: =BR12*(1-Mortality!BQ12) -> 4420614.979 | BT13: =BS12*(1-Mortality!BR12) -> 4427758.19 | BU13: =BT12*(1-Mortality!BS12) -> 4434960.03 | BV13: =BU12*(1-Mortality!BT12) -> 4442239.986 | BW13: =BV12*(1-Mortality!BU12) -> 4448827.102 | BX13: =BW12*(1-Mortality!BV12) -> 4454764.433 | BY13: =BX12*(1-Mortality!BW12) -> 4460094.433 | BZ13: =BY12*(1-Mortality!BX12) -> 4464858.947 | CA13: =BZ12*(1-Mortality!BY12) -> 4469101.541 | CB13: =CA12*(1-Mortality!BZ12) -> 4472599.275 | CC13: =CB12*(1-Mortality!CA12) -> 4475440.892 | CD13: =CC12*(1-Mortality!CB12) -> 4477713.014 | CE13: =CD12*(1-Mortality!CC12) -> 4479499.885 | CF13: =CE12*(1-Mortality!CD12) -> 4480862.814 | CG13: =CF12*(1-Mortality!CE12) -> 4482042.836 | CH13: =CG12*(1-Mortality!CF12) -> 4483107.186 | CI13: =CH12*(1-Mortality!CG12) -> 4484120.697 | CJ13: =CI12*(1-Mortality!CH12) -> 4485145.543 | CK13: =CJ12*(1-Mortality!CI12) -> 4486217.765 | CL13: =CK12*(1-Mortality!CJ12) -> 4487672.819 | CM13: =CL12*(1-Mortality!CK12) -> 4489500.046
B14: 10 | C14: =MortalityFertility!J13 -> 4136682.48 | D14: =C13*(1-Mortality!B13) -> 4068302.208 | E14: =D13*(1-Mortality!C13) -> 4068233.04 | F14: =E13*(1-Mortality!D13) -> 4068180.146 | G14: =F13*(1-Mortality!E13) -> 4068139.459 | H14: =G13*(1-Mortality!F13) -> 4068096.737 | I14: =H13*(1-Mortality!G13) -> 4034929.822 | J14: =I13*(1-Mortality!H13) -> 4034758.308 | K14: =J13*(1-Mortality!I13) -> 4034475.814 | L14: =K13*(1-Mortality!J13) -> 4033759.489 | M14: =L13*(1-Mortality!K13) -> 4008441.952 | N14: =M13*(1-Mortality!L13) -> 4327015.707 | O14: =N13*(1-Mortality!M13) -> 4336934.133 | P14: =O13*(1-Mortality!N13) -> 4346838.151 | Q14: =P13*(1-Mortality!O13) -> 4356731.267 | R14: =Q13*(1-Mortality!P13) -> 4366616.139 | S14: =R13*(1-Mortality!Q13) -> 4376494.556 | T14: =S13*(1-Mortality!R13) -> 4373149.741 | U14: =T13*(1-Mortality!S13) -> 4369808.599 | V14: =U13*(1-Mortality!T13) -> 4366470.591 | W14: =V13*(1-Mortality!U13) -> 4363132.968 | X14: =W13*(1-Mortality!V13) -> 4359785.194 | Y14: =X13*(1-Mortality!W13) -> 4346220.152 | Z14: =Y13*(1-Mortality!X13) -> 4332661.309 | AA14: =Z13*(1-Mortality!Y13) -> 4319104.019 | AB14: =AA13*(1-Mortality!Z13) -> 4305535.773 | AC14: =AB13*(1-Mortality!AA13) -> 4291454.935 | AD14: =AC13*(1-Mortality!AB13) -> 4280485.967 | AE14: =AD13*(1-Mortality!AC13) -> 4269713.371 | AF14: =AE13*(1-Mortality!AD13) -> 4259131.073 | AG14: =AF13*(1-Mortality!AE13) -> 4248722.958 | AH14: =AG13*(1-Mortality!AF13) -> 4237740.091 | AI14: =AH13*(1-Mortality!AG13) -> 4242436.339 | AJ14: =AI13*(1-Mortality!AH13) -> 4247344.305 | AK14: =AJ13*(1-Mortality!AI13) -> 4252463.547 | AL14: =AK13*(1-Mortality!AJ13) -> 4257793.094 | AM14: =AL13*(1-Mortality!AK13) -> 4263189 | AN14: =AM13*(1-Mortality!AL13) -> 4277401.846 | AO14: =AN13*(1-Mortality!AM13) -> 4291275.704 | AP14: =AO13*(1-Mortality!AN13) -> 4304813.754 | AQ14: =AP13*(1-Mortality!AO13) -> 4318022.368 | AR14: =AQ13*(1-Mortality!AP13) -> 4331094.232 | AS14: =AR13*(1-Mortality!AQ13) -> 4344631.222 | AT14: =AS13*(1-Mortality!AR13) -> 4357428.701 | AU14: =AT13*(1-Mortality!AS13) -> 4369494.46 | AV14: =AU13*(1-Mortality!AT13) -> 4380844.365 | AW14: =AV13*(1-Mortality!AU13) -> 4392109.442 | AX14: =AW13*(1-Mortality!AV13) -> 4395481.467 | AY14: =AX13*(1-Mortality!AW13) -> 4398309.591 | AZ14: =AY13*(1-Mortality!AX13) -> 4400606.51 | BA14: =AZ13*(1-Mortality!AY13) -> 4402390.267 | BB14: =BA13*(1-Mortality!AZ13) -> 4404110.984 | BC14: =BB13*(1-Mortality!BA13) -> 4399755.889 | BD14: =BC13*(1-Mortality!BB13) -> 4395786.169 | BE14: =BD13*(1-Mortality!BC13) -> 4392202.6 | BF14: =BE13*(1-Mortality!BD13) -> 4389007.29 | BG14: =BF13*(1-Mortality!BE13) -> 4386307.426 | BH14: =BG13*(1-Mortality!BF13) -> 4382619.213 | BI14: =BH13*(1-Mortality!BG13) -> 4380117.443 | BJ14: =BI13*(1-Mortality!BH13) -> 4378775.259 | BK14: =BJ13*(1-Mortality!BI13) -> 4378566.34 | BL14: =BK13*(1-Mortality!BJ13) -> 4379473.324 | BM14: =BL13*(1-Mortality!BK13) -> 4381394.453 | BN14: =BM13*(1-Mortality!BL13) -> 4384375.47 | BO14: =BN13*(1-Mortality!BM13) -> 4388373.077 | BP14: =BO13*(1-Mortality!BN13) -> 4393344.774 | BQ14: =BP13*(1-Mortality!BO13) -> 4399249.629 | BR14: =BQ13*(1-Mortality!BP13) -> 4406105.415 | BS14: =BR13*(1-Mortality!BQ13) -> 4413076.015 | BT14: =BS13*(1-Mortality!BR13) -> 4420141.973 | BU14: =BT13*(1-Mortality!BS13) -> 4427284.419 | BV14: =BU13*(1-Mortality!BT13) -> 4434485.49 | BW14: =BV13*(1-Mortality!BU13) -> 4441764.666 | BX14: =BW13*(1-Mortality!BV13) -> 4448351.078 | BY14: =BX13*(1-Mortality!BW13) -> 4454287.773 | BZ14: =BY13*(1-Mortality!BX13) -> 4459617.203 | CA14: =BZ13*(1-Mortality!BY13) -> 4464381.207 | CB14: =CA13*(1-Mortality!BZ13) -> 4468623.348 | CC14: =CB13*(1-Mortality!CA13) -> 4472120.707 | CD14: =CC13*(1-Mortality!CB13) -> 4474962.02 | CE14: =CD13*(1-Mortality!CC13) -> 4477233.898 | CF14: =CE13*(1-Mortality!CD13) -> 4479020.579 | CG14: =CF13*(1-Mortality!CE13) -> 4480383.361 | CH14: =CG13*(1-Mortality!CF13) -> 4481563.258 | CI14: =CH13*(1-Mortality!CG13) -> 4482627.494 | CJ14: =CI13*(1-Mortality!CH13) -> 4483640.896 | CK14: =CJ13*(1-Mortality!CI13) -> 4484665.632 | CL14: =CK13*(1-Mortality!CJ13) -> 4485737.74 | CM14: =CL13*(1-Mortality!CK13) -> 4487192.638
B15: 11 | C15: =MortalityFertility!J14 -> 4136277.086 | D15: =C14*(1-Mortality!B14) -> 4136291.564 | E15: =D14*(1-Mortality!C14) -> 4067917.754 | F15: =E14*(1-Mortality!D14) -> 4067848.592 | G15: =F14*(1-Mortality!E14) -> 4067795.703 | H15: =G14*(1-Mortality!F14) -> 4067755.02 | I15: =H14*(1-Mortality!G14) -> 4067712.302 | J15: =I14*(1-Mortality!H14) -> 4034548.522 | K15: =J14*(1-Mortality!I14) -> 4034377.023 | L15: =K14*(1-Mortality!J14) -> 4034094.556 | M15: =L14*(1-Mortality!K14) -> 4033378.299 | N15: =M14*(1-Mortality!L14) -> 4008063.154 | O15: =N14*(1-Mortality!M14) -> 4326606.804 | P15: =O14*(1-Mortality!N14) -> 4336524.293 | Q15: =P14*(1-Mortality!O14) -> 4346427.375 | R15: =Q14*(1-Mortality!P14) -> 4356319.556 | S15: =R14*(1-Mortality!Q14) -> 4366203.493 | T15: =S14*(1-Mortality!R14) -> 4376080.977 | U15: =T14*(1-Mortality!S14) -> 4372736.479 | V15: =U14*(1-Mortality!T14) -> 4369395.652 | W15: =V14*(1-Mortality!U14) -> 4366057.959 | X15: =W14*(1-Mortality!V14) -> 4362720.652 | Y15: =X14*(1-Mortality!W14) -> 4359373.195 | Z15: =Y14*(1-Mortality!X14) -> 4345809.434 | AA15: =Z14*(1-Mortality!Y14) -> 4332251.873 | AB15: =AA14*(1-Mortality!Z14) -> 4318695.863 | AC15: =AB14*(1-Mortality!AA14) -> 4305128.9 | AD15: =AC14*(1-Mortality!AB14) -> 4291049.392 | AE15: =AD14*(1-Mortality!AC14) -> 4280081.461 | AF15: =AE14*(1-Mortality!AD14) -> 4269309.883 | AG15: =AF14*(1-Mortality!AE14) -> 4258728.585 | AH15: =AG14*(1-Mortality!AF14) -> 4248321.454 | AI15: =AH14*(1-Mortality!AG14) -> 4237339.624 | AJ15: =AI14*(1-Mortality!AH14) -> 4242035.429 | AK15: =AJ14*(1-Mortality!AI14) -> 4246942.931 | AL15: =AK14*(1-Mortality!AJ14) -> 4252061.689 | AM15: =AL14*(1-Mortality!AK14) -> 4257390.733 | AN15: =AM14*(1-Mortality!AL14) -> 4262786.128 | AO15: =AN14*(1-Mortality!AM14) -> 4276997.632 | AP15: =AO14*(1-Mortality!AN14) -> 4290870.178 | AQ15: =AP14*(1-Mortality!AO14) -> 4304406.95 | AR15: =AQ14*(1-Mortality!AP14) -> 4317614.315 | AS15: =AR14*(1-Mortality!AQ14) -> 4330684.944 | AT15: =AS14*(1-Mortality!AR14) -> 4344220.655 | AU15: =AT14*(1-Mortality!AS14) -> 4357016.924 | AV15: =AU14*(1-Mortality!AT14) -> 4369081.542 | AW15: =AV14*(1-Mortality!AU14) -> 4380430.375 | AX15: =AW14*(1-Mortality!AV14) -> 4391694.388 | AY15: =AX14*(1-Mortality!AW14) -> 4395066.094 | AZ15: =AY14*(1-Mortality!AX14) -> 4397893.951 | BA15: =AZ14*(1-Mortality!AY14) -> 4400190.653 | BB15: =BA14*(1-Mortality!AZ14) -> 4401974.241 | BC15: =BB14*(1-Mortality!BA14) -> 4403694.795 | BD15: =BC14*(1-Mortality!BB14) -> 4399340.112 | BE15: =BD14*(1-Mortality!BC14) -> 4395370.768 | BF15: =BE14*(1-Mortality!BD14) -> 4391787.537 | BG15: =BF14*(1-Mortality!BE14) -> 4388592.529 | BH15: =BG14*(1-Mortality!BF14) -> 4385892.92 | BI15: =BH14*(1-Mortality!BG14) -> 4382205.055 | BJ15: =BI14*(1-Mortality!BH14) -> 4379703.521 | BK15: =BJ14*(1-Mortality!BI14) -> 4378361.464 | BL15: =BK14*(1-Mortality!BJ14) -> 4378152.565 | BM15: =BL14*(1-Mortality!BK14) -> 4379059.463 | BN15: =BM14*(1-Mortality!BL14) -> 4380980.411 | BO15: =BN14*(1-Mortality!BM14) -> 4383961.147 | BP15: =BO14*(1-Mortality!BN14) -> 4387958.376 | BQ15: =BP14*(1-Mortality!BO14) -> 4392929.603 | BR15: =BQ14*(1-Mortality!BP14) -> 4398833.9 | BS15: =BR14*(1-Mortality!BQ14) -> 4405689.038 | BT15: =BS14*(1-Mortality!BR14) -> 4412658.979 | BU15: =BT14*(1-Mortality!BS14) -> 4419724.269 | BV15: =BU14*(1-Mortality!BT14) -> 4426866.041 | BW15: =BV14*(1-Mortality!BU14) -> 4434066.431 | BX15: =BW14*(1-Mortality!BV14) -> 4441344.919 | BY15: =BX14*(1-Mortality!BW14) -> 4447930.709 | BZ15: =BY14*(1-Mortality!BX14) -> 4453866.843 | CA15: =BZ14*(1-Mortality!BY14) -> 4459195.769 | CB15: =CA14*(1-Mortality!BZ14) -> 4463959.323 | CC15: =CB14*(1-Mortality!CA14) -> 4468201.063 | CD15: =CC14*(1-Mortality!CB14) -> 4471698.092 | CE15: =CD14*(1-Mortality!CC14) -> 4474539.136 | CF15: =CE14*(1-Mortality!CD14) -> 4476810.8 | CG15: =CF14*(1-Mortality!CE14) -> 4478597.311 | CH15: =CG14*(1-Mortality!CF14) -> 4479959.965 | CI15: =CH14*(1-Mortality!CG14) -> 4481139.75 | CJ15: =CI14*(1-Mortality!CH14) -> 4482203.885 | CK15: =CJ14*(1-Mortality!CI14) -> 4483217.192 | CL15: =CK14*(1-Mortality!CJ14) -> 4484241.832 | CM15: =CL14*(1-Mortality!CK14) -> 4485313.837
B16: 12 | C16: =MortalityFertility!J15 -> 4135729.029 | D16: =C15*(1-Mortality!B15) -> 4135871.73 | E16: =D15*(1-Mortality!C15) -> 4135886.207 | F16: =E15*(1-Mortality!D15) -> 4067519.098 | G16: =F15*(1-Mortality!E15) -> 4067449.943 | H16: =G15*(1-Mortality!F15) -> 4067397.059 | I16: =H15*(1-Mortality!G15) -> 4067356.38 | J16: =I15*(1-Mortality!H15) -> 4067313.666 | K16: =J15*(1-Mortality!I15) -> 4034153.136 | L16: =K15*(1-Mortality!J15) -> 4033981.654 | M16: =L15*(1-Mortality!K15) -> 4033699.215 | N16: =M15*(1-Mortality!L15) -> 4032983.028 | O16: =N15*(1-Mortality!M15) -> 4007670.364 | P16: =O15*(1-Mortality!N15) -> 4326182.796 | Q16: =P15*(1-Mortality!O15) -> 4336099.313 | R16: =Q15*(1-Mortality!P15) -> 4346001.425 | S16: =R15*(1-Mortality!Q15) -> 4355892.637 | T16: =S15*(1-Mortality!R15) -> 4365775.605 | U16: =T15*(1-Mortality!S15) -> 4375652.121 | V16: =U15*(1-Mortality!T15) -> 4372307.95 | W16: =V15*(1-Mortality!U15) -> 4368967.451 | X16: =W15*(1-Mortality!V15) -> 4365630.085 | Y16: =X15*(1-Mortality!W15) -> 4362293.106 | Z16: =Y15*(1-Mortality!X15) -> 4358945.976 | AA16: =Z15*(1-Mortality!Y15) -> 4345383.544 | AB16: =AA15*(1-Mortality!Z15) -> 4331827.312 | AC16: =AB15*(1-Mortality!AA15) -> 4318272.631 | AD16: =AC15*(1-Mortality!AB15) -> 4304706.997 | AE16: =AD15*(1-Mortality!AC15) -> 4290628.869 | AF16: =AE15*(1-Mortality!AD15) -> 4279662.013 | AG16: =AF15*(1-Mortality!AE15) -> 4268891.491 | AH16: =AG15*(1-Mortality!AF15) -> 4258311.23 | AI16: =AH15*(1-Mortality!AG15) -> 4247905.119 | AJ16: =AI15*(1-Mortality!AH15) -> 4236924.365 | AK16: =AJ15*(1-Mortality!AI15) -> 4241619.71 | AL16: =AK15*(1-Mortality!AJ15) -> 4246526.731 | AM16: =AL15*(1-Mortality!AK15) -> 4251644.987 | AN16: =AM15*(1-Mortality!AL15) -> 4256973.508 | AO16: =AN15*(1-Mortality!AM15) -> 4262368.375 | AP16: =AO15*(1-Mortality!AN15) -> 4276578.486 | AQ16: =AP15*(1-Mortality!AO15) -> 4290449.673 | AR16: =AQ15*(1-Mortality!AP15) -> 4303985.118 | AS16: =AR15*(1-Mortality!AQ15) -> 4317191.189 | AT16: =AS15*(1-Mortality!AR15) -> 4330260.537 | AU16: =AT15*(1-Mortality!AS15) -> 4343794.921 | AV16: =AU15*(1-Mortality!AT15) -> 4356589.937 | AW16: =AV15*(1-Mortality!AU15) -> 4368653.372 | AX16: =AW15*(1-Mortality!AV15) -> 4380001.093 | AY16: =AX15*(1-Mortality!AW15) -> 4391264.002 | AZ16: =AY15*(1-Mortality!AX15) -> 4394635.377 | BA16: =AZ15*(1-Mortality!AY15) -> 4397462.957 | BB16: =BA15*(1-Mortality!AZ15) -> 4399759.434 | BC16: =BB15*(1-Mortality!BA15) -> 4401542.848 | BD16: =BC15*(1-Mortality!BB15) -> 4403263.233 | BE16: =BD15*(1-Mortality!BC15) -> 4398908.976 | BF16: =BE15*(1-Mortality!BD15) -> 4394940.021 | BG16: =BF15*(1-Mortality!BE15) -> 4391357.142 | BH16: =BG15*(1-Mortality!BF15) -> 4388162.447 | BI16: =BH15*(1-Mortality!BG15) -> 4385463.102 | BJ16: =BI15*(1-Mortality!BH15) -> 4381775.599 | BK16: =BJ15*(1-Mortality!BI15) -> 4379274.311 | BL16: =BK15*(1-Mortality!BJ15) -> 4377932.385 | BM16: =BL15*(1-Mortality!BK15) -> 4377723.506 | BN16: =BM15*(1-Mortality!BL15) -> 4378630.316 | BO16: =BN15*(1-Mortality!BM15) -> 4380551.075 | BP16: =BO15*(1-Mortality!BN15) -> 4383531.518 | BQ16: =BP15*(1-Mortality!BO15) -> 4387528.356 | BR16: =BQ15*(1-Mortality!BP15) -> 4392499.096 | BS16: =BR15*(1-Mortality!BQ15) -> 4398402.814 | BT16: =BS15*(1-Mortality!BR15) -> 4405257.281 | BU16: =BT15*(1-Mortality!BS15) -> 4412226.538 | BV16: =BU15*(1-Mortality!BT15) -> 4419291.136 | BW16: =BV15*(1-Mortality!BU15) -> 4426432.208 | BX16: =BW15*(1-Mortality!BV15) -> 4433631.892 | BY16: =BX15*(1-Mortality!BW15) -> 4440909.667 | BZ16: =BY15*(1-Mortality!BX15) -> 4447494.812 | CA16: =BZ15*(1-Mortality!BY15) -> 4453430.364 | CB16: =CA15*(1-Mortality!BZ15) -> 4458758.768 | CC16: =CB15*(1-Mortality!CA15) -> 4463521.855 | CD16: =CC15*(1-Mortality!CB15) -> 4467763.179 | CE16: =CD15*(1-Mortality!CC15) -> 4471259.865 | CF16: =CE15*(1-Mortality!CD15) -> 4474100.631 | CG16: =CF15*(1-Mortality!CE15) -> 4476372.072 | CH16: =CG15*(1-Mortality!CF15) -> 4478158.409 | CI16: =CH15*(1-Mortality!CG15) -> 4479520.929 | CJ16: =CI15*(1-Mortality!CH15) -> 4480700.598 | CK16: =CJ15*(1-Mortality!CI15) -> 4481764.629 | CL16: =CK15*(1-Mortality!CJ15) -> 4482777.837 | CM16: =CL15*(1-Mortality!CK15) -> 4483802.376
B17: 13 | C17: =MortalityFertility!J16 -> 4134883.272 | D17: =C16*(1-Mortality!B16) -> 4135181.045 | E17: =D16*(1-Mortality!C16) -> 4135323.727 | F17: =E16*(1-Mortality!D16) -> 4135338.202 | G17: =F16*(1-Mortality!E16) -> 4066980.152 | H17: =G16*(1-Mortality!F16) -> 4066911.006 | I17: =H16*(1-Mortality!G16) -> 4066858.129 | J17: =I16*(1-Mortality!H16) -> 4066817.455 | K17: =J16*(1-Mortality!I16) -> 4066774.747 | L17: =K16*(1-Mortality!J16) -> 4033618.611 | M17: =L16*(1-Mortality!K16) -> 4033447.152 | N17: =M16*(1-Mortality!L16) -> 4033164.749 | O17: =N16*(1-Mortality!M16) -> 4032448.658 | P17: =O16*(1-Mortality!N16) -> 4007139.347 | Q17: =P16*(1-Mortality!O16) -> 4325609.577 | R17: =Q16*(1-Mortality!P16) -> 4335524.78 | S17: =R16*(1-Mortality!Q16) -> 4345425.579 | T17: =S16*(1-Mortality!R16) -> 4355315.481 | U17: =T16*(1-Mortality!S16) -> 4365197.14 | V17: =U16*(1-Mortality!T16) -> 4375072.347 | W17: =V16*(1-Mortality!U16) -> 4371728.62 | X17: =W16*(1-Mortality!V16) -> 4368388.563 | Y17: =X16*(1-Mortality!W16) -> 4365051.639 | Z17: =Y16*(1-Mortality!X16) -> 4361715.102 | AA17: =Z16*(1-Mortality!Y16) -> 4358368.416 | AB17: =AA16*(1-Mortality!Z16) -> 4344807.781 | AC17: =AB16*(1-Mortality!AA16) -> 4331253.345 | AD17: =AC16*(1-Mortality!AB16) -> 4317700.46 | AE17: =AD16*(1-Mortality!AC16) -> 4304136.623 | AF17: =AE16*(1-Mortality!AD16) -> 4290060.361 | AG17: =AF16*(1-Mortality!AE16) -> 4279094.958 | AH17: =AG16*(1-Mortality!AF16) -> 4268325.863 | AI17: =AH16*(1-Mortality!AG16) -> 4257747.003 | AJ17: =AI16*(1-Mortality!AH16) -> 4247342.271 | AK17: =AJ16*(1-Mortality!AI16) -> 4236362.973 | AL17: =AK16*(1-Mortality!AJ16) -> 4241057.695 | AM17: =AL16*(1-Mortality!AK16) -> 4245964.066 | AN17: =AM16*(1-Mortality!AL16) -> 4251081.644 | AO17: =AN16*(1-Mortality!AM16) -> 4256409.459 | AP17: =AO16*(1-Mortality!AN16) -> 4261803.611 | AQ17: =AP16*(1-Mortality!AO16) -> 4276011.84 | AR17: =AQ16*(1-Mortality!AP16) -> 4289881.188 | AS17: =AR16*(1-Mortality!AQ16) -> 4303414.84 | AT17: =AS16*(1-Mortality!AR16) -> 4316619.161 | AU17: =AT16*(1-Mortality!AS16) -> 4329686.777 | AV17: =AU16*(1-Mortality!AT16) -> 4343219.368 | AW17: =AV16*(1-Mortality!AU16) -> 4356012.689 | AX17: =AW16*(1-Mortality!AV16) -> 4368074.526 | AY17: =AX16*(1-Mortality!AW16) -> 4379420.743 | AZ17: =AY16*(1-Mortality!AX16) -> 4390682.159 | BA17: =AZ16*(1-Mortality!AY16) -> 4394053.088 | BB17: =BA16*(1-Mortality!AZ16) -> 4396880.293 | BC17: =BB16*(1-Mortality!BA16) -> 4399176.466 | BD17: =BC16*(1-Mortality!BB16) -> 4400959.643 | BE17: =BD16*(1-Mortality!BC16) -> 4402679.801 | BF17: =BE16*(1-Mortality!BD16) -> 4398326.121 | BG17: =BF16*(1-Mortality!BE16) -> 4394357.692 | BH17: =BG16*(1-Mortality!BF16) -> 4390775.287 | BI17: =BH16*(1-Mortality!BG16) -> 4387581.015 | BJ17: =BI16*(1-Mortality!BH16) -> 4384882.028 | BK17: =BJ16*(1-Mortality!BI16) -> 4381195.014 | BL17: =BK16*(1-Mortality!BJ16) -> 4378694.057 | BM17: =BL16*(1-Mortality!BK16) -> 4377352.309 | BN17: =BM16*(1-Mortality!BL16) -> 4377143.458 | BO17: =BN16*(1-Mortality!BM16) -> 4378050.147 | BP17: =BO16*(1-Mortality!BN16) -> 4379970.652 | BQ17: =BP16*(1-Mortality!BO16) -> 4382950.7 | BR17: =BQ16*(1-Mortality!BP16) -> 4386947.009 | BS17: =BR16*(1-Mortality!BQ16) -> 4391917.09 | BT17: =BS16*(1-Mortality!BR16) -> 4397820.025 | BU17: =BT16*(1-Mortality!BS16) -> 4404673.584 | BV17: =BU16*(1-Mortality!BT16) -> 4411641.918 | BW17: =BV16*(1-Mortality!BU16) -> 4418705.58 | BX17: =BW16*(1-Mortality!BV16) -> 4425845.706 | BY17: =BX16*(1-Mortality!BW16) -> 4433044.436 | BZ17: =BY16*(1-Mortality!BX16) -> 4440321.247 | CA17: =BZ16*(1-Mortality!BY16) -> 4446905.518 | CB17: =CA16*(1-Mortality!BZ16) -> 4452840.284 | CC17: =CB16*(1-Mortality!CA16) -> 4458167.982 | CD17: =CC16*(1-Mortality!CB16) -> 4462930.438 | CE17: =CD16*(1-Mortality!CC16) -> 4467171.2 | CF17: =CE16*(1-Mortality!CD16) -> 4470667.423 | CG17: =CF16*(1-Mortality!CE16) -> 4473507.813 | CH17: =CG16*(1-Mortality!CF16) -> 4475778.953 | CI17: =CH16*(1-Mortality!CG16) -> 4477565.053 | CJ17: =CI16*(1-Mortality!CH16) -> 4478927.393 | CK17: =CJ16*(1-Mortality!CI16) -> 4480106.905 | CL17: =CK16*(1-Mortality!CJ16) -> 4481170.796 | CM17: =CL16*(1-Mortality!CK16) -> 4482183.869
B18: 14 | C18: =MortalityFertility!J17 -> 4133622.133 | D18: =C17*(1-Mortality!B17) -> 4134037.689 | E18: =D17*(1-Mortality!C17) -> 4134335.4 | F18: =E17*(1-Mortality!D17) -> 4134478.054 | G18: =F17*(1-Mortality!E17) -> 4134492.526 | H18: =G17*(1-Mortality!F17) -> 4066148.454 | I18: =H17*(1-Mortality!G17) -> 4066079.322 | J18: =I17*(1-Mortality!H17) -> 4066026.457 | K18: =J17*(1-Mortality!I17) -> 4065985.791 | L18: =K17*(1-Mortality!J17) -> 4065943.092 | M18: =L17*(1-Mortality!K17) -> 4032793.736 | N18: =M17*(1-Mortality!L17) -> 4032622.312 | O18: =N17*(1-Mortality!M17) -> 4032339.967 | P18: =O17*(1-Mortality!N17) -> 4031624.022 | Q18: =P17*(1-Mortality!O17) -> 4006319.887 | R18: =Q17*(1-Mortality!P17) -> 4324724.99 | S18: =R17*(1-Mortality!Q17) -> 4334638.165 | T18: =S17*(1-Mortality!R17) -> 4344536.94 | U18: =T17*(1-Mortality!S17) -> 4354424.819 | V18: =U17*(1-Mortality!T17) -> 4364304.457 | W18: =V17*(1-Mortality!U17) -> 4374177.645 | X18: =W17*(1-Mortality!V17) -> 4370834.601 | Y18: =X17*(1-Mortality!W17) -> 4367495.227 | Z18: =Y17*(1-Mortality!X17) -> 4364158.986 | AA18: =Z17*(1-Mortality!Y17) -> 4360823.131 | AB18: =AA17*(1-Mortality!Z17) -> 4357477.129 | AC18: =AB17*(1-Mortality!AA17) -> 4343919.268 | AD18: =AC17*(1-Mortality!AB17) -> 4330367.604 | AE18: =AD17*(1-Mortality!AC17) -> 4316817.49 | AF18: =AE17*(1-Mortality!AD17) -> 4303256.427 | AG18: =AF17*(1-Mortality!AE17) -> 4289183.044 | AH18: =AG17*(1-Mortality!AF17) -> 4278219.883 | AI18: =AH17*(1-Mortality!AG17) -> 4267452.99 | AJ18: =AI17*(1-Mortality!AH17) -> 4256876.294 | AK18: =AJ17*(1-Mortality!AI17) -> 4246473.69 | AL18: =AK17*(1-Mortality!AJ17) -> 4235496.636 | AM18: =AL17*(1-Mortality!AK17) -> 4240190.399 | AN18: =AM17*(1-Mortality!AL17) -> 4245095.766 | AO18: =AN17*(1-Mortality!AM17) -> 4250212.298 | AP18: =AO17*(1-Mortality!AN17) -> 4255539.024 | AQ18: =AP17*(1-Mortality!AO17) -> 4260932.073 | AR18: =AQ17*(1-Mortality!AP17) -> 4275137.395 | AS18: =AR17*(1-Mortality!AQ17) -> 4289003.908 | AT18: =AS17*(1-Mortality!AR17) -> 4302534.791 | AU18: =AT17*(1-Mortality!AS17) -> 4315736.412 | AV18: =AU17*(1-Mortality!AT17) -> 4328801.356 | AW18: =AV17*(1-Mortality!AU17) -> 4342331.18 | AX18: =AW17*(1-Mortality!AV17) -> 4355121.884 | AY18: =AX17*(1-Mortality!AW17) -> 4367181.255 | AZ18: =AY17*(1-Mortality!AX17) -> 4378525.151 | BA18: =AZ17*(1-Mortality!AY17) -> 4389784.265 | BB18: =BA17*(1-Mortality!AZ17) -> 4393154.504 | BC18: =BB17*(1-Mortality!BA17) -> 4395981.131 | BD18: =BC17*(1-Mortality!BB17) -> 4398276.835 | BE18: =BD17*(1-Mortality!BC17) -> 4400059.647 | BF18: =BE17*(1-Mortality!BD17) -> 4401779.453 | BG18: =BF17*(1-Mortality!BE17) -> 4397426.663 | BH18: =BG17*(1-Mortality!BF17) -> 4393459.045 | BI18: =BH17*(1-Mortality!BG17) -> 4389877.373 | BJ18: =BI17*(1-Mortality!BH17) -> 4386683.755 | BK18: =BJ17*(1-Mortality!BI17) -> 4383985.32 | BL18: =BK17*(1-Mortality!BJ17) -> 4380299.06 | BM18: =BL17*(1-Mortality!BK17) -> 4377798.614 | BN18: =BM17*(1-Mortality!BL17) -> 4376457.14 | BO18: =BN17*(1-Mortality!BM17) -> 4376248.332 | BP18: =BO17*(1-Mortality!BN17) -> 4377154.836 | BQ18: =BP17*(1-Mortality!BO17) -> 4379074.948 | BR18: =BQ17*(1-Mortality!BP17) -> 4382054.387 | BS18: =BR17*(1-Mortality!BQ17) -> 4386049.878 | BT18: =BS17*(1-Mortality!BR17) -> 4391018.943 | BU18: =BT17*(1-Mortality!BS17) -> 4396920.671 | BV18: =BU17*(1-Mortality!BT17) -> 4403772.828 | BW18: =BV17*(1-Mortality!BU17) -> 4410739.738 | BX18: =BW17*(1-Mortality!BV17) -> 4417801.955 | BY18: =BX17*(1-Mortality!BW17) -> 4424940.621 | BZ18: =BY17*(1-Mortality!BX17) -> 4432137.878 | CA18: =BZ17*(1-Mortality!BY17) -> 4439413.201 | CB18: =CA17*(1-Mortality!BZ17) -> 4445996.126 | CC18: =CB17*(1-Mortality!CA17) -> 4451929.679 | CD18: =CC17*(1-Mortality!CB17) -> 4457256.287 | CE18: =CD17*(1-Mortality!CC17) -> 4462017.769 | CF18: =CE17*(1-Mortality!CD17) -> 4466257.664 | CG18: =CF17*(1-Mortality!CE17) -> 4469753.172 | CH18: =CG17*(1-Mortality!CF17) -> 4472592.98 | CI18: =CH17*(1-Mortality!CG17) -> 4474863.656 | CJ18: =CI17*(1-Mortality!CH17) -> 4476649.39 | CK18: =CJ17*(1-Mortality!CI17) -> 4478011.452 | CL18: =CK17*(1-Mortality!CJ17) -> 4479190.723 | CM18: =CL17*(1-Mortality!CK17) -> 4480254.396
B19: 15 | C19: =MortalityFertility!J18 -> 4413493.63 | D19: =C18*(1-Mortality!B18) -> 4132361.378 | E19: =D18*(1-Mortality!C18) -> 4132776.807 | F19: =E18*(1-Mortality!D18) -> 4133074.428 | G19: =F18*(1-Mortality!E18) -> 4133217.038 | H19: =G18*(1-Mortality!F18) -> 4133231.506 | I19: =H18*(1-Mortality!G18) -> 4064908.279 | J19: =I18*(1-Mortality!H18) -> 4064839.168 | K19: =J18*(1-Mortality!I18) -> 4064786.319 | L19: =K18*(1-Mortality!J18) -> 4064745.665 | M19: =L18*(1-Mortality!K18) -> 4064702.979 | N19: =M18*(1-Mortality!L18) -> 4031563.733 | O19: =N18*(1-Mortality!M18) -> 4031392.362 | P19: =O18*(1-Mortality!N18) -> 4031110.104 | Q19: =P18*(1-Mortality!O18) -> 4030394.376 | R19: =Q18*(1-Mortality!P18) -> 4005097.96 | S19: =R18*(1-Mortality!Q18) -> 4323405.949 | T19: =S18*(1-Mortality!R18) -> 4333316.101 | U19: =T18*(1-Mortality!S18) -> 4343211.856 | V19: =U18*(1-Mortality!T18) -> 4353096.72 | W19: =V18*(1-Mortality!U18) -> 4362973.344 | X19: =W18*(1-Mortality!V18) -> 4372843.521 | Y19: =X18*(1-Mortality!W18) -> 4369501.497 | Z19: =Y18*(1-Mortality!X18) -> 4366163.141 | AA19: =Z18*(1-Mortality!Y18) -> 4362827.918 | AB19: =AA18*(1-Mortality!Z18) -> 4359493.08 | AC19: =AB18*(1-Mortality!AA18) -> 4356148.099 | AD19: =AC18*(1-Mortality!AB18) -> 4342594.373 | AE19: =AD18*(1-Mortality!AC18) -> 4329046.842 | AF19: =AE18*(1-Mortality!AD18) -> 4315500.861 | AG19: =AF18*(1-Mortality!AE18) -> 4301943.934 | AH19: =AG18*(1-Mortality!AF18) -> 4287874.843 | AI19: =AH18*(1-Mortality!AG18) -> 4276915.026 | AJ19: =AI18*(1-Mortality!AH18) -> 4266151.417 | AK19: =AJ18*(1-Mortality!AI18) -> 4255577.947 | AL19: =AK18*(1-Mortality!AJ18) -> 4245178.515 | AM19: =AL18*(1-Mortality!AK18) -> 4234204.81 | AN19: =AM18*(1-Mortality!AL18) -> 4238897.141 | AO19: =AN18*(1-Mortality!AM18) -> 4243801.012 | AP19: =AO18*(1-Mortality!AN18) -> 4248915.983 | AQ19: =AP18*(1-Mortality!AO18) -> 4254241.084 | AR19: =AQ18*(1-Mortality!AP18) -> 4259632.488 | AS19: =AR18*(1-Mortality!AQ18) -> 4273833.478 | AT19: =AS18*(1-Mortality!AR18) -> 4287695.762 | AU19: =AT18*(1-Mortality!AS18) -> 4301222.518 | AV19: =AU18*(1-Mortality!AT18) -> 4314420.113 | AW19: =AV18*(1-Mortality!AU18) -> 4327481.072 | AX19: =AW18*(1-Mortality!AV18) -> 4341006.769 | AY19: =AX18*(1-Mortality!AW18) -> 4353793.572 | AZ19: =AY18*(1-Mortality!AX18) -> 4365849.264 | BA19: =AZ18*(1-Mortality!AY18) -> 4377189.701 | BB19: =BA18*(1-Mortality!AZ18) -> 4388445.381 | BC19: =BB18*(1-Mortality!BA18) -> 4391814.592 | BD19: =BC18*(1-Mortality!BB18) -> 4394640.357 | BE19: =BD18*(1-Mortality!BC18) -> 4396935.36 | BF19: =BE18*(1-Mortality!BD18) -> 4398717.629 | BG19: =BF18*(1-Mortality!BE18) -> 4400436.91 | BH19: =BG18*(1-Mortality!BF18) -> 4396085.448 | BI19: =BH18*(1-Mortality!BG18) -> 4392119.04 | BJ19: =BI18*(1-Mortality!BH18) -> 4388538.461 | BK19: =BJ18*(1-Mortality!BI18) -> 4385345.816 | BL19: =BK18*(1-Mortality!BJ18) -> 4382648.205 | BM19: =BL18*(1-Mortality!BK18) -> 4378963.068 | BN19: =BM18*(1-Mortality!BL18) -> 4376463.385 | BO19: =BN18*(1-Mortality!BM18) -> 4375122.321 | BP19: =BO18*(1-Mortality!BN18) -> 4374913.576 | BQ19: =BP18*(1-Mortality!BO18) -> 4375819.804 | BR19: =BQ18*(1-Mortality!BP18) -> 4377739.331 | BS19: =BR18*(1-Mortality!BQ18) -> 4380717.86 | BT19: =BS18*(1-Mortality!BR18) -> 4384712.133 | BU19: =BT18*(1-Mortality!BS18) -> 4389679.682 | BV19: =BU18*(1-Mortality!BT18) -> 4395579.61 | BW19: =BV18*(1-Mortality!BU18) -> 4402429.678 | BX19: =BW18*(1-Mortality!BV18) -> 4409394.462 | BY19: =BX18*(1-Mortality!BW18) -> 4416454.525 | BZ19: =BY18*(1-Mortality!BX18) -> 4423591.014 | CA19: =BZ18*(1-Mortality!BY18) -> 4430786.076 | CB19: =CA18*(1-Mortality!BZ18) -> 4438059.18 | CC19: =CB18*(1-Mortality!CA18) -> 4444640.097 | CD19: =CC18*(1-Mortality!CB18) -> 4450571.84 | CE19: =CD18*(1-Mortality!CC18) -> 4455896.824 | CF19: =CE18*(1-Mortality!CD18) -> 4460656.854 | CG19: =CF18*(1-Mortality!CE18) -> 4464895.455 | CH19: =CG18*(1-Mortality!CF18) -> 4468389.897 | CI19: =CH18*(1-Mortality!CG18) -> 4471228.839 | CJ19: =CI18*(1-Mortality!CH18) -> 4473498.823 | CK19: =CJ18*(1-Mortality!CI18) -> 4475284.012 | CL19: =CK18*(1-Mortality!CJ18) -> 4476645.659 | CM19: =CL18*(1-Mortality!CK18) -> 4477824.57
B20: 16 | C20: =MortalityFertility!J19 -> 4411194.199 | D20: =C19*(1-Mortality!B19) -> 4411662.03 | E20: =D19*(1-Mortality!C19) -> 4130646.448 | F20: =E19*(1-Mortality!D19) -> 4131061.705 | G20: =F19*(1-Mortality!E19) -> 4131359.202 | H20: =G19*(1-Mortality!F19) -> 4131501.753 | I20: =H19*(1-Mortality!G19) -> 4131516.215 | J20: =I19*(1-Mortality!H19) -> 4063221.342 | K20: =J19*(1-Mortality!I19) -> 4063152.26 | L20: =K19*(1-Mortality!J19) -> 4063099.432 | M20: =L19*(1-Mortality!K19) -> 4063058.796 | N20: =M19*(1-Mortality!L19) -> 4063016.127 | O20: =N19*(1-Mortality!M19) -> 4029890.634 | P20: =O19*(1-Mortality!N19) -> 4029719.334 | Q20: =P19*(1-Mortality!O19) -> 4029437.193 | R20: =Q19*(1-Mortality!P19) -> 4028721.763 | S20: =R19*(1-Mortality!Q19) -> 4003435.844 | T20: =S19*(1-Mortality!R19) -> 4321611.735 | U20: =T19*(1-Mortality!S19) -> 4331517.775 | V20: =U19*(1-Mortality!T19) -> 4341409.423 | W20: =V19*(1-Mortality!U19) -> 4351290.185 | X20: =W19*(1-Mortality!V19) -> 4361162.71 | Y20: =X19*(1-Mortality!W19) -> 4371028.791 | Z20: =Y19*(1-Mortality!X19) -> 4367688.153 | AA20: =Z19*(1-Mortality!Y19) -> 4364351.184 | AB20: =AA19*(1-Mortality!Z19) -> 4361017.344 | AC20: =AB19*(1-Mortality!AA19) -> 4357683.89 | AD20: =AC19*(1-Mortality!AB19) -> 4354340.297 | AE20: =AD19*(1-Mortality!AC19) -> 4340792.196 | AF20: =AE19*(1-Mortality!AD19) -> 4327250.287 | AG20: =AF19*(1-Mortality!AE19) -> 4313709.928 | AH20: =AG19*(1-Mortality!AF19) -> 4300158.627 | AI20: =AH19*(1-Mortality!AG19) -> 4286095.375 | AJ20: =AI19*(1-Mortality!AH19) -> 4275140.106 | AK20: =AJ19*(1-Mortality!AI19) -> 4264380.964 | AL20: =AK19*(1-Mortality!AJ19) -> 4253811.882 | AM20: =AL19*(1-Mortality!AK19) -> 4243416.766 | AN20: =AM19*(1-Mortality!AL19) -> 4232447.615 | AO20: =AN19*(1-Mortality!AM19) -> 4237137.998 | AP20: =AO19*(1-Mortality!AN19) -> 4242039.835 | AQ20: =AP19*(1-Mortality!AO19) -> 4247152.683 | AR20: =AQ19*(1-Mortality!AP19) -> 4252475.574 | AS20: =AR19*(1-Mortality!AQ19) -> 4257864.741 | AT20: =AS19*(1-Mortality!AR19) -> 4272059.837 | AU20: =AT19*(1-Mortality!AS19) -> 4285916.368 | AV20: =AU19*(1-Mortality!AT19) -> 4299437.511 | AW20: =AV19*(1-Mortality!AU19) -> 4312629.628 | AX20: =AW19*(1-Mortality!AV19) -> 4325685.167 | AY20: =AX19*(1-Mortality!AW19) -> 4339205.251 | AZ20: =AY19*(1-Mortality!AX19) -> 4351986.747 | BA20: =AZ19*(1-Mortality!AY19) -> 4364037.437 | BB20: =BA19*(1-Mortality!AZ19) -> 4375373.167 | BC20: =BB19*(1-Mortality!BA19) -> 4386624.176 | BD20: =BC19*(1-Mortality!BB19) -> 4389991.989 | BE20: =BD19*(1-Mortality!BC19) -> 4392816.581 | BF20: =BE19*(1-Mortality!BD19) -> 4395110.632 | BG20: =BF19*(1-Mortality!BE19) -> 4396892.161 | BH20: =BG19*(1-Mortality!BF19) -> 4398610.729 | BI20: =BH19*(1-Mortality!BG19) -> 4394261.073 | BJ20: =BI19*(1-Mortality!BH19) -> 4390296.311 | BK20: =BJ19*(1-Mortality!BI19) -> 4386717.217 | BL20: =BK19*(1-Mortality!BJ19) -> 4383525.898 | BM20: =BL19*(1-Mortality!BK19) -> 4380829.406 | BN20: =BM19*(1-Mortality!BL19) -> 4377145.799 | BO20: =BN19*(1-Mortality!BM19) -> 4374647.153 | BP20: =BO19*(1-Mortality!BN19) -> 4373306.645 | BQ20: =BP19*(1-Mortality!BO19) -> 4373097.987 | BR20: =BQ19*(1-Mortality!BP19) -> 4374003.838 | BS20: =BR19*(1-Mortality!BQ19) -> 4375922.569 | BT20: =BS19*(1-Mortality!BR19) -> 4378899.863 | BU20: =BT19*(1-Mortality!BS19) -> 4382892.477 | BV20: =BU19*(1-Mortality!BT19) -> 4387857.965 | BW20: =BV19*(1-Mortality!BU19) -> 4393755.445 | BX20: =BW19*(1-Mortality!BV19) -> 4400602.669 | BY20: =BX19*(1-Mortality!BW19) -> 4407564.563 | BZ20: =BY19*(1-Mortality!BX19) -> 4414621.697 | CA20: =BZ19*(1-Mortality!BY19) -> 4421755.223 | CB20: =CA19*(1-Mortality!BZ19) -> 4428947.3 | CC20: =CB19*(1-Mortality!CA19) -> 4436217.386 | CD20: =CC19*(1-Mortality!CB19) -> 4442795.572 | CE20: =CD19*(1-Mortality!CC19) -> 4448724.853 | CF20: =CE19*(1-Mortality!CD19) -> 4454047.627 | CG20: =CF19*(1-Mortality!CE19) -> 4458805.681 | CH20: =CG19*(1-Mortality!CF19) -> 4463042.524 | CI20: =CH19*(1-Mortality!CG19) -> 4466535.515 | CJ20: =CI19*(1-Mortality!CH19) -> 4469373.279 | CK20: =CJ19*(1-Mortality!CI19) -> 4471642.321 | CL20: =CK19*(1-Mortality!CJ19) -> 4473426.77 | CM20: =CL19*(1-Mortality!CK19) -> 4474787.851
B21: 17 | C21: =MortalityFertility!J20 -> 4408454.848 | D21: =C20*(1-Mortality!B20) -> 4408895.967 | E21: =D20*(1-Mortality!C20) -> 4409363.554 | F21: =E20*(1-Mortality!D20) -> 4128494.381 | G21: =F20*(1-Mortality!E20) -> 4128909.422 | H21: =G20*(1-Mortality!F20) -> 4129206.764 | I21: =H20*(1-Mortality!G20) -> 4129349.24 | J21: =I20*(1-Mortality!H20) -> 4129363.695 | K21: =J20*(1-Mortality!I20) -> 4061104.404 | L21: =K20*(1-Mortality!J20) -> 4061035.358 | M21: =L20*(1-Mortality!K20) -> 4060982.558 | N21: =M20*(1-Mortality!L20) -> 4060941.942 | O21: =N20*(1-Mortality!M20) -> 4060899.296 | P21: =O20*(1-Mortality!N20) -> 4027791.061 | Q21: =P20*(1-Mortality!O20) -> 4027619.851 | R21: =Q20*(1-Mortality!P20) -> 4027337.856 | S21: =R20*(1-Mortality!Q20) -> 4026622.799 | T21: =S20*(1-Mortality!R20) -> 4001350.054 | U21: =T20*(1-Mortality!S20) -> 4319360.175 | V21: =U20*(1-Mortality!T20) -> 4329261.054 | W21: =V20*(1-Mortality!U20) -> 4339147.549 | X21: =W20*(1-Mortality!V20) -> 4349023.162 | Y21: =X20*(1-Mortality!W20) -> 4358890.545 | Z21: =Y20*(1-Mortality!X20) -> 4368751.485 | AA21: =Z20*(1-Mortality!Y20) -> 4365412.588 | AB21: =AA20*(1-Mortality!Z20) -> 4362077.357 | AC21: =AB20*(1-Mortality!AA20) -> 4358745.254 | AD21: =AC20*(1-Mortality!AB20) -> 4355413.537 | AE21: =AD20*(1-Mortality!AC20) -> 4352071.686 | AF21: =AE20*(1-Mortality!AD20) -> 4338530.643 | AG21: =AF20*(1-Mortality!AE20) -> 4324995.79 | AH21: =AG20*(1-Mortality!AF20) -> 4311462.485 | AI21: =AH20*(1-Mortality!AG20) -> 4297918.245 | AJ21: =AI20*(1-Mortality!AH20) -> 4283862.319 | AK21: =AJ20*(1-Mortality!AI20) -> 4272912.758 | AL21: =AK20*(1-Mortality!AJ20) -> 4262159.222 | AM21: =AL20*(1-Mortality!AK20) -> 4251595.646 | AN21: =AM20*(1-Mortality!AL20) -> 4241205.946 | AO21: =AN20*(1-Mortality!AM20) -> 4230242.51 | AP21: =AO20*(1-Mortality!AN20) -> 4234930.449 | AQ21: =AP20*(1-Mortality!AO20) -> 4239829.732 | AR21: =AQ20*(1-Mortality!AP20) -> 4244939.917 | AS21: =AR20*(1-Mortality!AQ20) -> 4250260.034 | AT21: =AS20*(1-Mortality!AR20) -> 4255646.393 | AU21: =AT20*(1-Mortality!AS20) -> 4269834.094 | AV21: =AU20*(1-Mortality!AT20) -> 4283683.405 | AW21: =AV20*(1-Mortality!AU20) -> 4297197.504 | AX21: =AW20*(1-Mortality!AV20) -> 4310382.748 | AY21: =AX20*(1-Mortality!AW20) -> 4323431.485 | AZ21: =AY20*(1-Mortality!AX20) -> 4336944.525 | BA21: =AZ20*(1-Mortality!AY20) -> 4349719.362 | BB21: =BA20*(1-Mortality!AZ20) -> 4361763.773 | BC21: =BB20*(1-Mortality!BA20) -> 4373093.598 | BD21: =BC20*(1-Mortality!BB20) -> 4384338.745 | BE21: =BD20*(1-Mortality!BC20) -> 4387704.803 | BF21: =BE20*(1-Mortality!BD20) -> 4390527.924 | BG21: =BF20*(1-Mortality!BE20) -> 4392820.78 | BH21: =BG20*(1-Mortality!BF20) -> 4394601.38 | BI21: =BH20*(1-Mortality!BG20) -> 4396319.052 | BJ21: =BI20*(1-Mortality!BH20) -> 4391971.663 | BK21: =BJ20*(1-Mortality!BI20) -> 4388008.967 | BL21: =BK20*(1-Mortality!BJ20) -> 4384431.738 | BM21: =BL20*(1-Mortality!BK20) -> 4381242.081 | BN21: =BM20*(1-Mortality!BL20) -> 4378546.993 | BO21: =BN20*(1-Mortality!BM20) -> 4374865.306 | BP21: =BO20*(1-Mortality!BN20) -> 4372367.962 | BQ21: =BP20*(1-Mortality!BO20) -> 4371028.152 | BR21: =BQ20*(1-Mortality!BP20) -> 4370819.603 | BS21: =BR20*(1-Mortality!BQ20) -> 4371724.982 | BT21: =BS20*(1-Mortality!BR20) -> 4373642.713 | BU21: =BT20*(1-Mortality!BS20) -> 4376618.456 | BV21: =BU20*(1-Mortality!BT20) -> 4380608.99 | BW21: =BV20*(1-Mortality!BU20) -> 4385571.891 | BX21: =BW20*(1-Mortality!BV20) -> 4391466.298 | BY21: =BX20*(1-Mortality!BW20) -> 4398309.955 | BZ21: =BY20*(1-Mortality!BX20) -> 4405268.222 | CA21: =BZ20*(1-Mortality!BY20) -> 4412321.679 | CB21: =CA20*(1-Mortality!BZ20) -> 4419451.489 | CC21: =CB20*(1-Mortality!CA20) -> 4426639.819 | CD21: =CC20*(1-Mortality!CB20) -> 4433906.116 | CE21: =CD20*(1-Mortality!CC20) -> 4440480.875 | CF21: =CE20*(1-Mortality!CD20) -> 4446407.067 | CG21: =CF20*(1-Mortality!CE20) -> 4451727.068 | CH21: =CG20*(1-Mortality!CF20) -> 4456482.643 | CI21: =CH20*(1-Mortality!CG20) -> 4460717.278 | CJ21: =CI20*(1-Mortality!CH20) -> 4464208.45 | CK21: =CJ20*(1-Mortality!CI20) -> 4467044.736 | CL21: =CK20*(1-Mortality!CJ20) -> 4469312.595 | CM21: =CL20*(1-Mortality!CK20) -> 4471096.114
B22: 18 | C22: =MortalityFertility!J21 -> 4405329.253 | D22: =C21*(1-Mortality!B21) -> 4405717.197 | E22: =D21*(1-Mortality!C21) -> 4406158.043 | F22: =E21*(1-Mortality!D21) -> 4406625.339 | G22: =F21*(1-Mortality!E21) -> 4125930.586 | H22: =G21*(1-Mortality!F21) -> 4126345.369 | I22: =H21*(1-Mortality!G21) -> 4126642.527 | J22: =I21*(1-Mortality!H21) -> 4126784.915 | K22: =J21*(1-Mortality!I21) -> 4126799.36 | L22: =K21*(1-Mortality!J21) -> 4058582.458 | M22: =L21*(1-Mortality!K21) -> 4058513.455 | N22: =M21*(1-Mortality!L21) -> 4058460.687 | O22: =N21*(1-Mortality!M21) -> 4058420.097 | P22: =O21*(1-Mortality!N21) -> 4058377.478 | Q22: =P21*(1-Mortality!O21) -> 4025289.803 | R22: =Q21*(1-Mortality!P21) -> 4025118.699 | S22: =R21*(1-Mortality!Q21) -> 4024836.879 | T22: =S21*(1-Mortality!R21) -> 4024122.266 | U22: =T21*(1-Mortality!S21) -> 3998865.216 | V22: =U21*(1-Mortality!T21) -> 4316677.853 | W22: =V21*(1-Mortality!U21) -> 4326572.583 | X22: =W21*(1-Mortality!V21) -> 4336452.938 | Y22: =X21*(1-Mortality!W21) -> 4346322.419 | Z22: =Y21*(1-Mortality!X21) -> 4356183.674 | AA22: =Z21*(1-Mortality!Y21) -> 4366038.49 | AB22: =AA21*(1-Mortality!Z21) -> 4362701.667 | AC22: =AB21*(1-Mortality!AA21) -> 4359368.507 | AD22: =AC21*(1-Mortality!AB21) -> 4356038.473 | AE22: =AD21*(1-Mortality!AC21) -> 4352708.825 | AF22: =AE21*(1-Mortality!AD21) -> 4349369.05 | AG22: =AF21*(1-Mortality!AE21) -> 4335836.416 | AH22: =AG21*(1-Mortality!AF21) -> 4322309.967 | AI22: =AH21*(1-Mortality!AG21) -> 4308785.067 | AJ22: =AI21*(1-Mortality!AH21) -> 4295249.238 | AK22: =AJ21*(1-Mortality!AI21) -> 4281202.041 | AL22: =AK21*(1-Mortality!AJ21) -> 4270259.279 | AM22: =AL21*(1-Mortality!AK21) -> 4259512.421 | AN22: =AM21*(1-Mortality!AL21) -> 4248955.405 | AO22: =AN21*(1-Mortality!AM21) -> 4238572.157 | AP22: =AO21*(1-Mortality!AN21) -> 4227615.529 | AQ22: =AP21*(1-Mortality!AO21) -> 4232300.558 | AR22: =AQ21*(1-Mortality!AP21) -> 4237196.798 | AS22: =AR21*(1-Mortality!AQ21) -> 4242303.809 | AT22: =AS21*(1-Mortality!AR21) -> 4247620.623 | AU22: =AT21*(1-Mortality!AS21) -> 4253003.637 | AV22: =AU21*(1-Mortality!AT21) -> 4267182.527 | AW22: =AV21*(1-Mortality!AU21) -> 4281023.238 | AX22: =AW21*(1-Mortality!AV21) -> 4294528.944 | AY22: =AX21*(1-Mortality!AW21) -> 4307706.001 | AZ22: =AY21*(1-Mortality!AX21) -> 4320746.634 | BA22: =AZ21*(1-Mortality!AY21) -> 4334251.282 | BB22: =BA21*(1-Mortality!AZ21) -> 4347018.187 | BC22: =BB21*(1-Mortality!BA21) -> 4359055.118 | BD22: =BC21*(1-Mortality!BB21) -> 4370377.907 | BE22: =BD21*(1-Mortality!BC21) -> 4381616.07 | BF22: =BE21*(1-Mortality!BD21) -> 4384980.039 | BG22: =BF21*(1-Mortality!BE21) -> 4387801.406 | BH22: =BG21*(1-Mortality!BF21) -> 4390092.838 | BI22: =BH21*(1-Mortality!BG21) -> 4391872.333 | BJ22: =BI21*(1-Mortality!BH21) -> 4393588.938 | BK22: =BJ21*(1-Mortality!BI21) -> 4389244.248 | BL22: =BK21*(1-Mortality!BJ21) -> 4385284.013 | BM22: =BL21*(1-Mortality!BK21) -> 4381709.006 | BN22: =BM21*(1-Mortality!BL21) -> 4378521.33 | BO22: =BN21*(1-Mortality!BM21) -> 4375827.916 | BP22: =BO21*(1-Mortality!BN21) -> 4372148.514 | BQ22: =BP21*(1-Mortality!BO21) -> 4369652.721 | BR22: =BQ21*(1-Mortality!BP21) -> 4368313.744 | BS22: =BR21*(1-Mortality!BQ21) -> 4368105.324 | BT22: =BS21*(1-Mortality!BR21) -> 4369010.141 | BU22: =BT21*(1-Mortality!BS21) -> 4370926.681 | BV22: =BU21*(1-Mortality!BT21) -> 4373900.576 | BW22: =BV21*(1-Mortality!BU21) -> 4377888.632 | BX22: =BW21*(1-Mortality!BV21) -> 4382848.451 | BY22: =BX21*(1-Mortality!BW21) -> 4388739.198 | BZ22: =BY21*(1-Mortality!BX21) -> 4395578.605 | CA22: =BZ21*(1-Mortality!BY21) -> 4402532.551 | CB22: =CA21*(1-Mortality!BZ21) -> 4409581.627 | CC22: =CB21*(1-Mortality!CA21) -> 4416707.01 | CD22: =CC21*(1-Mortality!CB21) -> 4423890.875 | CE22: =CD21*(1-Mortality!CC21) -> 4431152.661 | CF22: =CE21*(1-Mortality!CD21) -> 4437723.337 | CG22: =CF21*(1-Mortality!CE21) -> 4443645.848 | CH22: =CG21*(1-Mortality!CF21) -> 4448962.545 | CI22: =CH21*(1-Mortality!CG21) -> 4453715.168 | CJ22: =CI21*(1-Mortality!CH21) -> 4457947.173 | CK22: =CJ21*(1-Mortality!CI21) -> 4461436.177 | CL22: =CK21*(1-Mortality!CJ21) -> 4464270.701 | CM22: =CL21*(1-Mortality!CK21) -> 4466537.152
B23: 19 | C23: =MortalityFertility!J22 -> 4401871.07 | D23: =C22*(1-Mortality!B22) -> 4402205.875 | E23: =D22*(1-Mortality!C22) -> 4402593.544 | F23: =E22*(1-Mortality!D22) -> 4403034.077 | G23: =F22*(1-Mortality!E22) -> 4403501.042 | H23: =G22*(1-Mortality!F22) -> 4123005.302 | I23: =H22*(1-Mortality!G22) -> 4123419.79 | J23: =I22*(1-Mortality!H22) -> 4123716.737 | K23: =J22*(1-Mortality!I22) -> 4123859.024 | L23: =K22*(1-Mortality!J22) -> 4123873.459 | M23: =L22*(1-Mortality!K22) -> 4055704.923 | N23: =M22*(1-Mortality!L22) -> 4055635.969 | O23: =N22*(1-Mortality!M22) -> 4055583.239 | P23: =O22*(1-Mortality!N22) -> 4055542.677 | Q23: =P22*(1-Mortality!O22) -> 4055500.088 | R23: =Q22*(1-Mortality!P22) -> 4022435.873 | S23: =R22*(1-Mortality!Q22) -> 4022264.889 | T23: =S22*(1-Mortality!R22) -> 4021983.27 | U23: =T22*(1-Mortality!S22) -> 4021269.163 | V23: =U22*(1-Mortality!T22) -> 3996030.02 | W23: =V22*(1-Mortality!U22) -> 4313617.328 | X23: =W22*(1-Mortality!V22) -> 4323505.043 | Y23: =X22*(1-Mortality!W22) -> 4333378.393 | Z23: =Y22*(1-Mortality!X22) -> 4343240.876 | AA23: =Z22*(1-Mortality!Y22) -> 4353095.139 | AB23: =AA22*(1-Mortality!Z22) -> 4362942.969 | AC23: =AB22*(1-Mortality!AA22) -> 4359608.511 | AD23: =AC22*(1-Mortality!AB22) -> 4356277.714 | AE23: =AD22*(1-Mortality!AC22) -> 4352950.042 | AF23: =AE22*(1-Mortality!AD22) -> 4349622.755 | AG23: =AF22*(1-Mortality!AE22) -> 4346285.347 | AH23: =AG22*(1-Mortality!AF22) -> 4332762.308 | AI23: =AH22*(1-Mortality!AG22) -> 4319245.45 | AJ23: =AI22*(1-Mortality!AH22) -> 4305730.138 | AK23: =AJ22*(1-Mortality!AI22) -> 4292203.906 | AL23: =AK22*(1-Mortality!AJ22) -> 4278166.668 | AM23: =AL22*(1-Mortality!AK22) -> 4267231.666 | AN23: =AM22*(1-Mortality!AL22) -> 4256492.427 | AO23: =AN22*(1-Mortality!AM22) -> 4245942.896 | AP23: =AO22*(1-Mortality!AN22) -> 4235567.009 | AQ23: =AP22*(1-Mortality!AO22) -> 4224618.15 | AR23: =AQ22*(1-Mortality!AP22) -> 4229299.857 | AS23: =AR22*(1-Mortality!AQ22) -> 4234192.625 | AT23: =AS22*(1-Mortality!AR22) -> 4239296.015 | AU23: =AT22*(1-Mortality!AS22) -> 4244609.06 | AV23: =AU22*(1-Mortality!AT22) -> 4249988.257 | AW23: =AV22*(1-Mortality!AU22) -> 4264157.095 | AX23: =AW22*(1-Mortality!AV22) -> 4277987.993 | AY23: =AX22*(1-Mortality!AW22) -> 4291484.123 | AZ23: =AY22*(1-Mortality!AX22) -> 4304651.837 | BA23: =AZ22*(1-Mortality!AY22) -> 4317683.225 | BB23: =BA22*(1-Mortality!AZ22) -> 4331178.298 | BC23: =BB22*(1-Mortality!BA22) -> 4343936.151 | BD23: =BC22*(1-Mortality!BB22) -> 4355964.548 | BE23: =BD22*(1-Mortality!BC22) -> 4367279.309 | BF23: =BE22*(1-Mortality!BD22) -> 4378509.504 | BG23: =BF22*(1-Mortality!BE22) -> 4381871.088 | BH23: =BG22*(1-Mortality!BF22) -> 4384690.455 | BI23: =BH22*(1-Mortality!BG22) -> 4386980.262 | BJ23: =BI22*(1-Mortality!BH22) -> 4388758.495 | BK23: =BJ22*(1-Mortality!BI22) -> 4390473.884 | BL23: =BK22*(1-Mortality!BJ22) -> 4386132.274 | BM23: =BL22*(1-Mortality!BK22) -> 4382174.847 | BN23: =BM22*(1-Mortality!BL22) -> 4378602.374 | BO23: =BN22*(1-Mortality!BM22) -> 4375416.958 | BP23: =BO22*(1-Mortality!BN22) -> 4372725.454 | BQ23: =BP22*(1-Mortality!BO22) -> 4369048.661 | BR23: =BQ22*(1-Mortality!BP22) -> 4366554.637 | BS23: =BR22*(1-Mortality!BQ22) -> 4365216.609 | BT23: =BS22*(1-Mortality!BR22) -> 4365008.337 | BU23: =BT22*(1-Mortality!BS22) -> 4365912.513 | BV23: =BU22*(1-Mortality!BT22) -> 4367827.694 | BW23: =BV22*(1-Mortality!BU22) -> 4370799.48 | BX23: =BW22*(1-Mortality!BV22) -> 4374784.709 | BY23: =BX22*(1-Mortality!BW22) -> 4379741.011 | BZ23: =BY22*(1-Mortality!BX22) -> 4385627.582 | CA23: =BZ22*(1-Mortality!BY22) -> 4392462.14 | CB23: =CA22*(1-Mortality!BZ22) -> 4399411.155 | CC23: =CB22*(1-Mortality!CA22) -> 4406455.234 | CD23: =CC22*(1-Mortality!CB22) -> 4413575.564 | CE23: =CD22*(1-Mortality!CC22) -> 4420754.337 | CF23: =CE22*(1-Mortality!CD22) -> 4428010.973 | CG23: =CF22*(1-Mortality!CE22) -> 4434576.991 | CH23: =CG22*(1-Mortality!CF22) -> 4440495.303 | CI23: =CH22*(1-Mortality!CG22) -> 4445808.231 | CJ23: =CI22*(1-Mortality!CH22) -> 4450557.483 | CK23: =CJ22*(1-Mortality!CI22) -> 4454786.488 | CL23: =CK22*(1-Mortality!CJ22) -> 4458273.019 | CM23: =CL22*(1-Mortality!CK22) -> 4461105.533
B24: 20 | C24: =MortalityFertility!J23 -> 4325605.681 | D24: =C23*(1-Mortality!B23) -> 4398415.601 | E24: =D23*(1-Mortality!C23) -> 4398750.143 | F24: =E23*(1-Mortality!D23) -> 4399137.508 | G24: =F23*(1-Mortality!E23) -> 4399577.695 | H24: =G23*(1-Mortality!F23) -> 4400044.293 | I24: =H23*(1-Mortality!G23) -> 4119768.742 | J24: =I23*(1-Mortality!H23) -> 4120182.905 | K24: =J23*(1-Mortality!I23) -> 4120479.619 | L24: =K23*(1-Mortality!J23) -> 4120621.795 | M24: =L23*(1-Mortality!K23) -> 4120636.218 | N24: =M23*(1-Mortality!L23) -> 4052521.195 | O24: =N23*(1-Mortality!M23) -> 4052452.294 | P24: =O23*(1-Mortality!N23) -> 4052399.606 | Q24: =P23*(1-Mortality!O23) -> 4052359.076 | R24: =Q23*(1-Mortality!P23) -> 4052316.52 | S24: =R23*(1-Mortality!Q23) -> 4019278.261 | T24: =S23*(1-Mortality!R23) -> 4019107.412 | U24: =T23*(1-Mortality!S23) -> 4018826.013 | V24: =U23*(1-Mortality!T23) -> 4018112.467 | W24: =V23*(1-Mortality!U23) -> 3992893.137 | X24: =W23*(1-Mortality!V23) -> 4310231.139 | Y24: =X23*(1-Mortality!W23) -> 4320111.091 | Z24: =Y23*(1-Mortality!X23) -> 4329976.691 | AA24: =Z23*(1-Mortality!Y23) -> 4339831.432 | AB24: =AA23*(1-Mortality!Z23) -> 4349677.96 | AC24: =AB23*(1-Mortality!AA23) -> 4359518.058 | AD24: =AC23*(1-Mortality!AB23) -> 4356186.218 | AE24: =AD23*(1-Mortality!AC23) -> 4352858.036 | AF24: =AE23*(1-Mortality!AD23) -> 4349532.976 | AG24: =AF23*(1-Mortality!AE23) -> 4346208.301 | AH24: =AG23*(1-Mortality!AF23) -> 4342873.513 | AI24: =AH23*(1-Mortality!AG23) -> 4329361.089 | AJ24: =AI23*(1-Mortality!AH23) -> 4315854.842 | AK24: =AJ23*(1-Mortality!AI23) -> 4302350.14 | AL24: =AK23*(1-Mortality!AJ23) -> 4288834.526 | AM24: =AL23*(1-Mortality!AK23) -> 4274808.308 | AN24: =AM23*(1-Mortality!AL23) -> 4263881.889 | AO24: =AN23*(1-Mortality!AM23) -> 4253151.08 | AP24: =AO23*(1-Mortality!AN23) -> 4242609.831 | AQ24: =AP23*(1-Mortality!AO23) -> 4232242.089 | AR24: =AQ23*(1-Mortality!AP23) -> 4221301.825 | AS24: =AR23*(1-Mortality!AQ23) -> 4225979.856 | AT24: =AS23*(1-Mortality!AR23) -> 4230868.784 | AU24: =AT23*(1-Mortality!AS23) -> 4235968.168 | AV24: =AU23*(1-Mortality!AT23) -> 4241277.042 | AW24: =AV23*(1-Mortality!AU23) -> 4246652.016 | AX24: =AW23*(1-Mortality!AV23) -> 4260809.731 | AY24: =AX23*(1-Mortality!AW23) -> 4274629.772 | AZ24: =AY23*(1-Mortality!AX23) -> 4288115.308 | BA24: =AZ23*(1-Mortality!AY23) -> 4301272.685 | BB24: =BA23*(1-Mortality!AZ23) -> 4314293.844 | BC24: =BB23*(1-Mortality!BA23) -> 4327778.323 | BD24: =BC23*(1-Mortality!BB23) -> 4340526.161 | BE24: =BD23*(1-Mortality!BC23) -> 4352545.116 | BF24: =BE23*(1-Mortality!BD23) -> 4363850.995 | BG24: =BF23*(1-Mortality!BE23) -> 4375072.374 | BH24: =BG23*(1-Mortality!BF23) -> 4378431.319 | BI24: =BH23*(1-Mortality!BG23) -> 4381248.473 | BJ24: =BI23*(1-Mortality!BH23) -> 4383536.482 | BK24: =BJ23*(1-Mortality!BI23) -> 4385313.32 | BL24: =BK23*(1-Mortality!BJ23) -> 4387027.362 | BM24: =BL23*(1-Mortality!BK23) -> 4382689.16 | BN24: =BM23*(1-Mortality!BL23) -> 4378734.839 | BO24: =BN23*(1-Mortality!BM23) -> 4375165.171 | BP24: =BO23*(1-Mortality!BN23) -> 4371982.256 | BQ24: =BP23*(1-Mortality!BO23) -> 4369292.864 | BR24: =BQ23*(1-Mortality!BP23) -> 4365618.958 | BS24: =BR23*(1-Mortality!BQ23) -> 4363126.892 | BT24: =BS23*(1-Mortality!BR23) -> 4361789.914 | BU24: =BT23*(1-Mortality!BS23) -> 4361581.806 | BV24: =BU23*(1-Mortality!BT23) -> 4362485.272 | BW24: =BV23*(1-Mortality!BU23) -> 4364398.949 | BX24: =BW23*(1-Mortality!BV23) -> 4367368.403 | BY24: =BX23*(1-Mortality!BW23) -> 4371350.503 | BZ24: =BY23*(1-Mortality!BX23) -> 4376302.914 | CA24: =BZ23*(1-Mortality!BY23) -> 4382184.864 | CB24: =CA23*(1-Mortality!BZ23) -> 4389014.057 | CC24: =CB23*(1-Mortality!CA23) -> 4395957.617 | CD24: =CC23*(1-Mortality!CB23) -> 4402996.166 | CE24: =CD23*(1-Mortality!CC23) -> 4410110.907 | CF24: =CE23*(1-Mortality!CD23) -> 4417284.045 | CG24: =CF23*(1-Mortality!CE23) -> 4424534.985 | CH24: =CG23*(1-Mortality!CF23) -> 4431095.848 | CI24: =CH23*(1-Mortality!CG23) -> 4437009.515 | CJ24: =CI23*(1-Mortality!CH23) -> 4442318.272 | CK24: =CJ23*(1-Mortality!CI23) -> 4447063.796 | CL24: =CK23*(1-Mortality!CJ23) -> 4451289.481 | CM24: =CL23*(1-Mortality!CK23) -> 4454773.274
B25: 21 | C25: =MortalityFertility!J24 -> 4321550.425 | D25: =C24*(1-Mortality!B24) -> 4321872.683 | E25: =D24*(1-Mortality!C24) -> 4394619.768 | F25: =E24*(1-Mortality!D24) -> 4394954.022 | G25: =F24*(1-Mortality!E24) -> 4395341.052 | H25: =G24*(1-Mortality!F24) -> 4395780.859 | I25: =H24*(1-Mortality!G24) -> 4396247.055 | J25: =I24*(1-Mortality!H24) -> 4116213.382 | K25: =J24*(1-Mortality!I24) -> 4116627.188 | L25: =K24*(1-Mortality!J24) -> 4116923.645 | M25: =L24*(1-Mortality!K24) -> 4117065.698 | N25: =M24*(1-Mortality!L24) -> 4117080.109 | O25: =N24*(1-Mortality!M24) -> 4049023.869 | P25: =O24*(1-Mortality!N24) -> 4048955.028 | Q25: =P24*(1-Mortality!O24) -> 4048902.385 | R25: =Q24*(1-Mortality!P24) -> 4048861.89 | S25: =R24*(1-Mortality!Q24) -> 4048819.371 | T25: =S24*(1-Mortality!R24) -> 4015809.623 | U25: =T24*(1-Mortality!S24) -> 4015638.922 | V25: =U24*(1-Mortality!T24) -> 4015357.766 | W25: =V24*(1-Mortality!U24) -> 4014644.836 | X25: =W24*(1-Mortality!V24) -> 3989447.27 | Y25: =X24*(1-Mortality!W24) -> 4306511.409 | Z25: =Y24*(1-Mortality!X24) -> 4316382.835 | AA25: =Z24*(1-Mortality!Y24) -> 4326239.921 | AB25: =AA24*(1-Mortality!Z24) -> 4336086.158 | AC25: =AB24*(1-Mortality!AA24) -> 4345924.188 | AD25: =AC24*(1-Mortality!AB24) -> 4355755.794 | AE25: =AD24*(1-Mortality!AC24) -> 4352426.83 | AF25: =AE24*(1-Mortality!AD24) -> 4349101.52 | AG25: =AF24*(1-Mortality!AE24) -> 4345779.329 | AH25: =AG24*(1-Mortality!AF24) -> 4342457.523 | AI25: =AH24*(1-Mortality!AG24) -> 4339125.613 | AJ25: =AI24*(1-Mortality!AH24) -> 4325624.851 | AK25: =AJ24*(1-Mortality!AI24) -> 4312130.259 | AL25: =AK24*(1-Mortality!AJ24) -> 4298637.212 | AM25: =AL24*(1-Mortality!AK24) -> 4285133.262 | AN25: =AM24*(1-Mortality!AL24) -> 4271119.148 | AO25: =AN24*(1-Mortality!AM24) -> 4260202.159 | AP25: =AO24*(1-Mortality!AN24) -> 4249480.611 | AQ25: =AP24*(1-Mortality!AO24) -> 4238948.458 | AR25: =AQ24*(1-Mortality!AP24) -> 4228589.664 | AS25: =AR24*(1-Mortality!AQ24) -> 4217658.841 | AT25: =AS24*(1-Mortality!AR24) -> 4222332.836 | AU25: =AT24*(1-Mortality!AS24) -> 4227217.544 | AV25: =AU24*(1-Mortality!AT24) -> 4232312.528 | AW25: =AV24*(1-Mortality!AU24) -> 4237616.82 | AX25: =AW24*(1-Mortality!AV24) -> 4242987.156 | AY25: =AX24*(1-Mortality!AW24) -> 4257132.653 | AZ25: =AY24*(1-Mortality!AX24) -> 4270940.766 | BA25: =AZ24*(1-Mortality!AY24) -> 4284414.665 | BB25: =BA24*(1-Mortality!AZ24) -> 4297560.687 | BC25: =BB24*(1-Mortality!BA24) -> 4310570.608 | BD25: =BC24*(1-Mortality!BB24) -> 4324043.451 | BE25: =BD24*(1-Mortality!BC24) -> 4336780.287 | BF25: =BE24*(1-Mortality!BD24) -> 4348788.869 | BG25: =BF24*(1-Mortality!BE24) -> 4360084.991 | BH25: =BG24*(1-Mortality!BF24) -> 4371296.687 | BI25: =BH24*(1-Mortality!BG24) -> 4374652.733 | BJ25: =BI24*(1-Mortality!BH24) -> 4377467.456 | BK25: =BJ24*(1-Mortality!BI24) -> 4379753.49 | BL25: =BK24*(1-Mortality!BJ24) -> 4381528.794 | BM25: =BL24*(1-Mortality!BK24) -> 4383241.357 | BN25: =BM24*(1-Mortality!BL24) -> 4378906.9 | BO25: =BN24*(1-Mortality!BM24) -> 4374955.991 | BP25: =BO24*(1-Mortality!BN24) -> 4371389.404 | BQ25: =BP24*(1-Mortality!BO24) -> 4368209.235 | BR25: =BQ24*(1-Mortality!BP24) -> 4365522.165 | BS25: =BR24*(1-Mortality!BQ24) -> 4361851.429 | BT25: =BS24*(1-Mortality!BR24) -> 4359361.513 | BU25: =BT24*(1-Mortality!BS24) -> 4358025.69 | BV25: =BU24*(1-Mortality!BT24) -> 4357817.761 | BW25: =BV24*(1-Mortality!BU24) -> 4358720.447 | BX25: =BW24*(1-Mortality!BV24) -> 4360632.473 | BY25: =BX24*(1-Mortality!BW24) -> 4363599.364 | BZ25: =BY24*(1-Mortality!BX24) -> 4367578.028 | CA25: =BZ24*(1-Mortality!BY24) -> 4372526.165 | CB25: =CA24*(1-Mortality!BZ24) -> 4378403.038 | CC25: =CB24*(1-Mortality!CA24) -> 4385226.338 | CD25: =CC24*(1-Mortality!CB24) -> 4392163.906 | CE25: =CD24*(1-Mortality!CC24) -> 4399196.381 | CF25: =CE24*(1-Mortality!CD24) -> 4406304.982 | CG25: =CF24*(1-Mortality!CE24) -> 4413471.928 | CH25: =CG24*(1-Mortality!CF24) -> 4420716.611 | CI25: =CH24*(1-Mortality!CG24) -> 4427271.812 | CJ25: =CI24*(1-Mortality!CH24) -> 4433180.375 | CK25: =CJ24*(1-Mortality!CI24) -> 4438484.551 | CL25: =CK24*(1-Mortality!CJ24) -> 4443225.98 | CM25: =CL24*(1-Mortality!CK24) -> 4447448.018
B26: 22 | C26: =MortalityFertility!J25 -> 4317280.733 | D26: =C25*(1-Mortality!B25) -> 4317498.972 | E26: =D25*(1-Mortality!C25) -> 4317820.927 | F26: =E25*(1-Mortality!D25) -> 4390499.812 | G26: =F25*(1-Mortality!E25) -> 4390833.753 | H26: =G25*(1-Mortality!F25) -> 4391220.42 | I26: =H25*(1-Mortality!G25) -> 4391659.815 | J26: =I25*(1-Mortality!H25) -> 4392125.574 | K26: =J25*(1-Mortality!I25) -> 4112354.432 | L26: =K25*(1-Mortality!J25) -> 4112767.85 | M26: =L25*(1-Mortality!K25) -> 4113064.029 | N26: =M25*(1-Mortality!L25) -> 4113205.949 | O26: =N25*(1-Mortality!M25) -> 4113220.347 | P26: =O25*(1-Mortality!N25) -> 4045227.909 | Q26: =P25*(1-Mortality!O25) -> 4045159.133 | R26: =Q25*(1-Mortality!P25) -> 4045106.539 | S26: =R25*(1-Mortality!Q25) -> 4045066.082 | T26: =S25*(1-Mortality!R25) -> 4045023.603 | U26: =T25*(1-Mortality!S25) -> 4012044.802 | V26: =U25*(1-Mortality!T25) -> 4011874.26 | W26: =V25*(1-Mortality!U25) -> 4011593.368 | X26: =W25*(1-Mortality!V25) -> 4010881.106 | Y26: =X25*(1-Mortality!W25) -> 3985707.163 | Z26: =Y25*(1-Mortality!X25) -> 4302474.055 | AA26: =Z25*(1-Mortality!Y25) -> 4312336.227 | AB26: =AA25*(1-Mortality!Z25) -> 4322184.071 | AC26: =AB25*(1-Mortality!AA25) -> 4332021.077 | AD26: =AC25*(1-Mortality!AB25) -> 4341849.884 | AE26: =AD25*(1-Mortality!AC25) -> 4351672.273 | AF26: =AE25*(1-Mortality!AD25) -> 4348346.43 | AG26: =AF25*(1-Mortality!AE25) -> 4345024.237 | AH26: =AG25*(1-Mortality!AF25) -> 4341705.161 | AI26: =AH25*(1-Mortality!AG25) -> 4338386.469 | AJ26: =AI25*(1-Mortality!AH25) -> 4335057.683 | AK26: =AJ25*(1-Mortality!AI25) -> 4321569.577 | AL26: =AK25*(1-Mortality!AJ25) -> 4308087.637 | AM26: =AL25*(1-Mortality!AK25) -> 4294607.24 | AN26: =AM25*(1-Mortality!AL25) -> 4281115.949 | AO26: =AN25*(1-Mortality!AM25) -> 4267114.974 | AP26: =AO25*(1-Mortality!AN25) -> 4256208.219 | AQ26: =AP25*(1-Mortality!AO25) -> 4245496.723 | AR26: =AQ25*(1-Mortality!AP25) -> 4234974.444 | AS26: =AR25*(1-Mortality!AQ25) -> 4224625.362 | AT26: =AS25*(1-Mortality!AR25) -> 4213704.786 | AU26: =AT25*(1-Mortality!AS25) -> 4218374.398 | AV26: =AU25*(1-Mortality!AT25) -> 4223254.528 | AW26: =AV25*(1-Mortality!AU25) -> 4228344.735 | AX26: =AW25*(1-Mortality!AV25) -> 4233644.054 | AY26: =AX25*(1-Mortality!AW25) -> 4239009.355 | AZ26: =AY25*(1-Mortality!AX25) -> 4253141.591 | BA26: =AZ25*(1-Mortality!AY25) -> 4266936.759 | BB26: =BA25*(1-Mortality!AZ25) -> 4280398.026 | BC26: =BB25*(1-Mortality!BA25) -> 4293531.724 | BD26: =BC25*(1-Mortality!BB25) -> 4306529.448 | BE26: =BD25*(1-Mortality!BC25) -> 4319989.66 | BF26: =BE25*(1-Mortality!BD25) -> 4332714.555 | BG26: =BF25*(1-Mortality!BE25) -> 4344711.88 | BH26: =BG25*(1-Mortality!BF25) -> 4355997.412 | BI26: =BH25*(1-Mortality!BG25) -> 4367198.596 | BJ26: =BI25*(1-Mortality!BH25) -> 4370551.496 | BK26: =BJ25*(1-Mortality!BI25) -> 4373363.58 | BL26: =BK25*(1-Mortality!BJ25) -> 4375647.472 | BM26: =BL25*(1-Mortality!BK25) -> 4377421.111 | BN26: =BM25*(1-Mortality!BL25) -> 4379132.068 | BO26: =BN25*(1-Mortality!BM25) -> 4374801.674 | BP26: =BO25*(1-Mortality!BN25) -> 4370854.47 | BQ26: =BP25*(1-Mortality!BO25) -> 4367291.226 | BR26: =BQ25*(1-Mortality!BP25) -> 4364114.039 | BS26: =BR25*(1-Mortality!BQ25) -> 4361429.488 | BT26: =BS25*(1-Mortality!BR25) -> 4357762.193 | BU26: =BT25*(1-Mortality!BS25) -> 4355274.612 | BV26: =BU25*(1-Mortality!BT25) -> 4353940.041 | BW26: =BV25*(1-Mortality!BU25) -> 4353732.307 | BX26: =BW25*(1-Mortality!BV25) -> 4354634.146 | BY26: =BX25*(1-Mortality!BW25) -> 4356544.38 | BZ26: =BY25*(1-Mortality!BX25) -> 4359508.489 | CA26: =BZ25*(1-Mortality!BY25) -> 4363483.423 | CB26: =CA25*(1-Mortality!BZ25) -> 4368426.922 | CC26: =CB25*(1-Mortality!CA25) -> 4374298.286 | CD26: =CC25*(1-Mortality!CB25) -> 4381115.188 | CE26: =CD25*(1-Mortality!CC25) -> 4388046.252 | CF26: =CE25*(1-Mortality!CD25) -> 4395072.134 | CG26: =CF25*(1-Mortality!CE25) -> 4402174.071 | CH26: =CG25*(1-Mortality!CF25) -> 4409334.299 | CI26: =CH25*(1-Mortality!CG25) -> 4416572.189 | CJ26: =CI25*(1-Mortality!CH25) -> 4423121.245 | CK26: =CJ25*(1-Mortality!CI25) -> 4429024.269 | CL26: =CK25*(1-Mortality!CJ25) -> 4434323.472 | CM26: =CL25*(1-Mortality!CK25) -> 4439060.455
B27: 23 | C27: =MortalityFertility!J26 -> 4312937.549 | D27: =C26*(1-Mortality!B26) -> 4313015.26 | E27: =D26*(1-Mortality!C26) -> 4313233.283 | F27: =E26*(1-Mortality!D26) -> 4313554.92 | G27: =F26*(1-Mortality!E26) -> 4386161.999 | H27: =G26*(1-Mortality!F26) -> 4386495.609 | I27: =H26*(1-Mortality!G26) -> 4386881.894 | J27: =I26*(1-Mortality!H26) -> 4387320.855 | K27: =J26*(1-Mortality!I26) -> 4387786.153 | L27: =K26*(1-Mortality!J26) -> 4108291.426 | M27: =L26*(1-Mortality!K26) -> 4108704.435 | N27: =M26*(1-Mortality!L26) -> 4109000.322 | O27: =N26*(1-Mortality!M26) -> 4109142.102 | P27: =O26*(1-Mortality!N26) -> 4109156.485 | Q27: =P26*(1-Mortality!O26) -> 4041231.224 | R27: =Q26*(1-Mortality!P26) -> 4041162.515 | S27: =R26*(1-Mortality!Q26) -> 4041109.974 | T27: =S26*(1-Mortality!R26) -> 4041069.557 | U27: =T26*(1-Mortality!S26) -> 4041027.12 | V27: =U26*(1-Mortality!T26) -> 4008080.902 | W27: =V26*(1-Mortality!U26) -> 4007910.529 | X27: =W26*(1-Mortality!V26) -> 4007629.914 | Y27: =X26*(1-Mortality!W26) -> 4006918.356 | Z27: =Y26*(1-Mortality!X26) -> 3981769.284 | AA27: =Z26*(1-Mortality!Y26) -> 4298223.21 | AB27: =AA26*(1-Mortality!Z26) -> 4308075.638 | AC27: =AB26*(1-Mortality!AA26) -> 4317913.753 | AD27: =AC26*(1-Mortality!AB26) -> 4327741.04 | AE27: =AD26*(1-Mortality!AC26) -> 4337560.136 | AF27: =AE26*(1-Mortality!AD26) -> 4347372.821 | AG27: =AF26*(1-Mortality!AE26) -> 4344050.263 | AH27: =AG26*(1-Mortality!AF26) -> 4340731.353 | AI27: =AH26*(1-Mortality!AG26) -> 4337415.557 | AJ27: =AI26*(1-Mortality!AH26) -> 4334100.143 | AK27: =AJ26*(1-Mortality!AI26) -> 4330774.646 | AL27: =AK26*(1-Mortality!AJ26) -> 4317299.866 | AM27: =AL26*(1-Mortality!AK26) -> 4303831.246 | AN27: =AM26*(1-Mortality!AL26) -> 4290364.168 | AO27: =AN26*(1-Mortality!AM26) -> 4276886.207 | AP27: =AO26*(1-Mortality!AN26) -> 4262899.064 | AQ27: =AP26*(1-Mortality!AO26) -> 4252003.085 | AR27: =AQ26*(1-Mortality!AP26) -> 4241302.172 | AS27: =AR26*(1-Mortality!AQ26) -> 4230790.289 | AT27: =AS26*(1-Mortality!AR26) -> 4220451.432 | AU27: =AT26*(1-Mortality!AS26) -> 4209541.646 | AV27: =AU26*(1-Mortality!AT26) -> 4214206.645 | AW27: =AV26*(1-Mortality!AU26) -> 4219081.952 | AX27: =AW26*(1-Mortality!AV26) -> 4224167.13 | AY27: =AX26*(1-Mortality!AW26) -> 4229461.214 | AZ27: =AY26*(1-Mortality!AX26) -> 4234821.214 | BA27: =AZ26*(1-Mortality!AY26) -> 4248939.487 | BB27: =BA26*(1-Mortality!AZ26) -> 4262721.026 | BC27: =BB26*(1-Mortality!BA26) -> 4276168.993 | BD27: =BC26*(1-Mortality!BB26) -> 4289289.715 | BE27: =BD26*(1-Mortality!BC26) -> 4302274.597 | BF27: =BE26*(1-Mortality!BD26) -> 4315721.51 | BG27: =BF26*(1-Mortality!BE26) -> 4328433.833 | BH27: =BG26*(1-Mortality!BF26) -> 4340419.304 | BI27: =BH26*(1-Mortality!BG26) -> 4351693.686 | BJ27: =BI26*(1-Mortality!BH26) -> 4362883.804 | BK27: =BJ26*(1-Mortality!BI26) -> 4366233.391 | BL27: =BK26*(1-Mortality!BJ26) -> 4369042.697 | BM27: =BL26*(1-Mortality!BK26) -> 4371324.332 | BN27: =BM26*(1-Mortality!BL26) -> 4373096.219 | BO27: =BN26*(1-Mortality!BM26) -> 4374805.486 | BP27: =BO26*(1-Mortality!BN26) -> 4370479.37 | BQ27: =BP26*(1-Mortality!BO26) -> 4366536.066 | BR27: =BQ26*(1-Mortality!BP26) -> 4362976.342 | BS27: =BR26*(1-Mortality!BQ26) -> 4359802.294 | BT27: =BS26*(1-Mortality!BR26) -> 4357120.395 | BU27: =BT26*(1-Mortality!BS26) -> 4353456.724 | BV27: =BU26*(1-Mortality!BT26) -> 4350971.601 | BW27: =BV26*(1-Mortality!BU26) -> 4349638.348 | BX27: =BW26*(1-Mortality!BV26) -> 4349430.819 | BY27: =BX26*(1-Mortality!BW26) -> 4350331.768 | BZ27: =BY26*(1-Mortality!BX26) -> 4352240.114 | CA27: =BZ26*(1-Mortality!BY26) -> 4355201.295 | CB27: =CA26*(1-Mortality!BZ26) -> 4359172.302 | CC27: =CB26*(1-Mortality!CA26) -> 4364110.916 | CD27: =CC26*(1-Mortality!CB26) -> 4369976.479 | CE27: =CD26*(1-Mortality!CC26) -> 4376786.646 | CF27: =CE26*(1-Mortality!CD26) -> 4383710.863 | CG27: =CF26*(1-Mortality!CE26) -> 4390729.803 | CH27: =CG26*(1-Mortality!CF26) -> 4397824.723 | CI27: =CH26*(1-Mortality!CG26) -> 4404977.876 | CJ27: =CI26*(1-Mortality!CH26) -> 4412208.616 | CK27: =CJ26*(1-Mortality!CI26) -> 4418751.201 | CL27: =CK26*(1-Mortality!CJ26) -> 4424648.393 | CM27: =CL26*(1-Mortality!CK26) -> 4429942.36
B28: 24 | C28: =MortalityFertility!J27 -> 4308624.612 | D28: =C27*(1-Mortality!B27) -> 4308598.734 | E28: =D27*(1-Mortality!C27) -> 4308676.367 | F28: =E27*(1-Mortality!D27) -> 4308894.17 | G28: =F27*(1-Mortality!E27) -> 4309215.484 | H28: =G27*(1-Mortality!F27) -> 4381749.52 | I28: =H27*(1-Mortality!G27) -> 4382082.794 | J28: =I27*(1-Mortality!H27) -> 4382468.691 | K28: =J27*(1-Mortality!I27) -> 4382907.21 | L28: =K27*(1-Mortality!J27) -> 4383372.041 | M28: =L27*(1-Mortality!K27) -> 4104158.485 | N28: =M27*(1-Mortality!L27) -> 4104571.078 | O28: =N27*(1-Mortality!M27) -> 4104866.668 | P28: =O27*(1-Mortality!N27) -> 4105008.305 | Q28: =P27*(1-Mortality!O27) -> 4105022.674 | R28: =Q27*(1-Mortality!P27) -> 4037165.745 | S28: =R27*(1-Mortality!Q27) -> 4037097.106 | T28: =S27*(1-Mortality!R27) -> 4037044.617 | U28: =T27*(1-Mortality!S27) -> 4037004.241 | V28: =U27*(1-Mortality!T27) -> 4036961.846 | W28: =V27*(1-Mortality!U27) -> 4004048.772 | X28: =W27*(1-Mortality!V27) -> 4003878.571 | Y28: =X27*(1-Mortality!W27) -> 4003598.238 | Z28: =Y27*(1-Mortality!X27) -> 4002887.396 | AA28: =Z27*(1-Mortality!Y27) -> 3977763.625 | AB28: =AA27*(1-Mortality!Z27) -> 4293899.198 | AC28: =AB27*(1-Mortality!AA27) -> 4303741.714 | AD28: =AC27*(1-Mortality!AB27) -> 4313569.932 | AE28: =AD27*(1-Mortality!AC27) -> 4323387.333 | AF28: =AE27*(1-Mortality!AD27) -> 4333196.551 | AG28: =AF27*(1-Mortality!AE27) -> 4342999.364 | AH28: =AG27*(1-Mortality!AF27) -> 4339680.149 | AI28: =AH27*(1-Mortality!AG27) -> 4336364.577 | AJ28: =AI27*(1-Mortality!AH27) -> 4333052.117 | AK28: =AJ27*(1-Mortality!AI27) -> 4329740.039 | AL28: =AK27*(1-Mortality!AJ27) -> 4326417.887 | AM28: =AL27*(1-Mortality!AK27) -> 4312956.663 | AN28: =AM27*(1-Mortality!AL27) -> 4299501.592 | AO28: =AN27*(1-Mortality!AM27) -> 4286048.061 | AP28: =AO27*(1-Mortality!AN27) -> 4272583.659 | AQ28: =AP27*(1-Mortality!AO27) -> 4258610.588 | AR28: =AQ27*(1-Mortality!AP27) -> 4247725.57 | AS28: =AR27*(1-Mortality!AQ27) -> 4237035.422 | AT28: =AS27*(1-Mortality!AR27) -> 4226534.114 | AU28: =AT27*(1-Mortality!AS27) -> 4216205.658 | AV28: =AU27*(1-Mortality!AT27) -> 4205306.847 | AW28: =AV27*(1-Mortality!AU27) -> 4209967.153 | AX28: =AW27*(1-Mortality!AV27) -> 4214837.556 | AY28: =AX27*(1-Mortality!AW27) -> 4219917.618 | AZ28: =AY27*(1-Mortality!AX27) -> 4225206.376 | BA28: =AZ27*(1-Mortality!AY27) -> 4230560.984 | BB28: =BA27*(1-Mortality!AZ27) -> 4244665.054 | BC28: =BB27*(1-Mortality!BA27) -> 4258432.729 | BD28: =BC27*(1-Mortality!BB27) -> 4271867.167 | BE28: =BD27*(1-Mortality!BC27) -> 4284974.689 | BF28: =BE27*(1-Mortality!BD27) -> 4297946.509 | BG28: =BF27*(1-Mortality!BE27) -> 4311379.894 | BH28: =BG27*(1-Mortality!BF27) -> 4324079.429 | BI28: =BH27*(1-Mortality!BG27) -> 4336052.843 | BJ28: =BI27*(1-Mortality!BH27) -> 4347315.882 | BK28: =BJ27*(1-Mortality!BI27) -> 4358494.743 | BL28: =BK27*(1-Mortality!BJ27) -> 4361840.96 | BM28: =BL27*(1-Mortality!BK27) -> 4364647.44 | BN28: =BM27*(1-Mortality!BL27) -> 4366926.78 | BO28: =BN27*(1-Mortality!BM27) -> 4368696.884 | BP28: =BO27*(1-Mortality!BN27) -> 4370404.432 | BQ28: =BP27*(1-Mortality!BO27) -> 4366082.668 | BR28: =BQ27*(1-Mortality!BP27) -> 4362143.331 | BS28: =BR27*(1-Mortality!BQ27) -> 4358587.188 | BT28: =BS27*(1-Mortality!BR27) -> 4355416.333 | BU28: =BT27*(1-Mortality!BS27) -> 4352737.132 | BV28: =BU27*(1-Mortality!BT27) -> 4349077.147 | BW28: =BV27*(1-Mortality!BU27) -> 4346594.523 | BX28: =BW27*(1-Mortality!BV27) -> 4345262.612 | BY28: =BX27*(1-Mortality!BW27) -> 4345055.292 | BZ28: =BY27*(1-Mortality!BX27) -> 4345955.334 | CA28: =BZ27*(1-Mortality!BY27) -> 4347861.761 | CB28: =CA27*(1-Mortality!BZ27) -> 4350819.962 | CC28: =CB27*(1-Mortality!CA27) -> 4354786.974 | CD28: =CC27*(1-Mortality!CB27) -> 4359720.62 | CE28: =CD27*(1-Mortality!CC27) -> 4365580.283 | CF28: =CE27*(1-Mortality!CD27) -> 4372383.599 | CG28: =CF27*(1-Mortality!CE27) -> 4379300.849 | CH28: =CG27*(1-Mortality!CF27) -> 4386312.729 | CI28: =CH27*(1-Mortality!CG27) -> 4393400.511 | CJ28: =CI27*(1-Mortality!CH27) -> 4400546.468 | CK28: =CJ27*(1-Mortality!CI27) -> 4407769.934 | CL28: =CK27*(1-Mortality!CJ27) -> 4414305.937 | CM28: =CL27*(1-Mortality!CK27) -> 4420197.197
B29: 25 | C29: =MortalityFertility!J28 -> 4228667.986 | D29: =C28*(1-Mortality!B28) -> 4304315.987 | E29: =D28*(1-Mortality!C28) -> 4304290.135 | F29: =E28*(1-Mortality!D28) -> 4304367.69 | G29: =F28*(1-Mortality!E28) -> 4304585.276 | H29: =G28*(1-Mortality!F28) -> 4304906.268 | I29: =H28*(1-Mortality!G28) -> 4377367.77 | J29: =I28*(1-Mortality!H28) -> 4377700.711 | K29: =J28*(1-Mortality!I28) -> 4378086.222 | L29: =K28*(1-Mortality!J28) -> 4378524.303 | M29: =L28*(1-Mortality!K28) -> 4378988.669 | N29: =M28*(1-Mortality!L28) -> 4100054.326 | O29: =N28*(1-Mortality!M28) -> 4100466.507 | P29: =O28*(1-Mortality!N28) -> 4100761.801 | Q29: =P28*(1-Mortality!O28) -> 4100903.296 | R29: =Q28*(1-Mortality!P28) -> 4100917.651 | S29: =R28*(1-Mortality!Q28) -> 4033128.579 | T29: =S28*(1-Mortality!R28) -> 4033060.009 | U29: =T28*(1-Mortality!S28) -> 4033007.573 | V29: =U28*(1-Mortality!T28) -> 4032967.237 | W29: =V28*(1-Mortality!U28) -> 4032924.885 | X29: =W28*(1-Mortality!V28) -> 4000044.723 | Y29: =X28*(1-Mortality!W28) -> 3999874.692 | Z29: =Y28*(1-Mortality!X28) -> 3999594.64 | AA29: =Z28*(1-Mortality!Y28) -> 3998884.509 | AB29: =AA28*(1-Mortality!Z28) -> 3973785.861 | AC29: =AB28*(1-Mortality!AA28) -> 4289605.299 | AD29: =AC28*(1-Mortality!AB28) -> 4299437.973 | AE29: =AD28*(1-Mortality!AC28) -> 4309256.362 | AF29: =AE28*(1-Mortality!AD28) -> 4319063.945 | AG29: =AF28*(1-Mortality!AE28) -> 4328863.354 | AH29: =AG28*(1-Mortality!AF28) -> 4338656.365 | AI29: =AH28*(1-Mortality!AG28) -> 4335340.469 | AJ29: =AI28*(1-Mortality!AH28) -> 4332028.213 | AK29: =AJ28*(1-Mortality!AI28) -> 4328719.064 | AL29: =AK28*(1-Mortality!AJ28) -> 4325410.299 | AM29: =AL28*(1-Mortality!AK28) -> 4322091.469 | AN29: =AM28*(1-Mortality!AL28) -> 4308643.706 | AO29: =AN28*(1-Mortality!AM28) -> 4295202.091 | AP29: =AO28*(1-Mortality!AN28) -> 4281762.013 | AQ29: =AP28*(1-Mortality!AO28) -> 4268311.075 | AR29: =AQ28*(1-Mortality!AP28) -> 4254351.977 | AS29: =AR28*(1-Mortality!AQ28) -> 4243477.845 | AT29: =AS28*(1-Mortality!AR28) -> 4232798.386 | AU29: =AT28*(1-Mortality!AS28) -> 4222307.58 | AV29: =AU28*(1-Mortality!AT28) -> 4211989.452 | AW29: =AV28*(1-Mortality!AU28) -> 4201101.54 | AX29: =AW28*(1-Mortality!AV28) -> 4205757.186 | AY29: =AX28*(1-Mortality!AW28) -> 4210622.718 | AZ29: =AY28*(1-Mortality!AX28) -> 4215697.7 | BA29: =AZ28*(1-Mortality!AY28) -> 4220981.169 | BB29: =BA28*(1-Mortality!AZ28) -> 4226330.423 | BC29: =BB28*(1-Mortality!BA28) -> 4240420.389 | BD29: =BC28*(1-Mortality!BB28) -> 4254174.296 | BE29: =BD28*(1-Mortality!BC28) -> 4267595.299 | BF29: =BE28*(1-Mortality!BD28) -> 4280689.714 | BG29: =BF28*(1-Mortality!BE28) -> 4293648.562 | BH29: =BG28*(1-Mortality!BF28) -> 4307068.514 | BI29: =BH28*(1-Mortality!BG28) -> 4319755.349 | BJ29: =BI28*(1-Mortality!BH28) -> 4331716.79 | BK29: =BJ28*(1-Mortality!BI28) -> 4342968.566 | BL29: =BK28*(1-Mortality!BJ28) -> 4354136.248 | BM29: =BL28*(1-Mortality!BK28) -> 4357479.119 | BN29: =BM28*(1-Mortality!BL28) -> 4360282.792 | BO29: =BN28*(1-Mortality!BM28) -> 4362559.853 | BP29: =BO28*(1-Mortality!BN28) -> 4364328.187 | BQ29: =BP28*(1-Mortality!BO28) -> 4366034.027 | BR29: =BQ28*(1-Mortality!BP28) -> 4361716.585 | BS29: =BR28*(1-Mortality!BQ28) -> 4357781.187 | BT29: =BS28*(1-Mortality!BR28) -> 4354228.601 | BU29: =BT28*(1-Mortality!BS28) -> 4351060.917 | BV29: =BU28*(1-Mortality!BT28) -> 4348384.395 | BW29: =BV28*(1-Mortality!BU28) -> 4344728.069 | BX29: =BW28*(1-Mortality!BV28) -> 4342247.929 | BY29: =BX28*(1-Mortality!BW28) -> 4340917.349 | BZ29: =BY28*(1-Mortality!BX28) -> 4340710.236 | CA29: =BZ28*(1-Mortality!BY28) -> 4341609.379 | CB29: =CA28*(1-Mortality!BZ28) -> 4343513.899 | CC29: =CB28*(1-Mortality!CA28) -> 4346469.142 | CD29: =CC28*(1-Mortality!CB28) -> 4350432.187 | CE29: =CD28*(1-Mortality!CC28) -> 4355360.9 | CF29: =CE28*(1-Mortality!CD28) -> 4361214.702 | CG29: =CF28*(1-Mortality!CE28) -> 4368011.215 | CH29: =CG28*(1-Mortality!CF28) -> 4374921.549 | CI29: =CH28*(1-Mortality!CG28) -> 4381926.416 | CJ29: =CI28*(1-Mortality!CH28) -> 4389007.111 | CK29: =CJ28*(1-Mortality!CI28) -> 4396145.922 | CL29: =CK28*(1-Mortality!CJ28) -> 4403362.164 | CM29: =CL28*(1-Mortality!CK28) -> 4409891.631
B30: 26 | C30: =MortalityFertility!J29 -> 4224532.349 | D30: =C29*(1-Mortality!B29) -> 4224494.291 | E30: =D29*(1-Mortality!C29) -> 4300067.627 | F30: =E29*(1-Mortality!D29) -> 4300041.801 | G30: =F29*(1-Mortality!E29) -> 4300119.279 | H30: =G29*(1-Mortality!F29) -> 4300336.65 | I30: =H29*(1-Mortality!G29) -> 4300657.326 | J30: =I29*(1-Mortality!H29) -> 4373047.308 | K30: =J29*(1-Mortality!I29) -> 4373379.921 | L30: =K29*(1-Mortality!J29) -> 4373765.051 | M30: =L29*(1-Mortality!K29) -> 4374202.7 | N30: =M29*(1-Mortality!L29) -> 4374666.607 | O30: =N29*(1-Mortality!M29) -> 4096007.572 | P30: =O29*(1-Mortality!N29) -> 4096419.347 | Q30: =P29*(1-Mortality!O29) -> 4096714.349 | R30: =Q29*(1-Mortality!P29) -> 4096855.705 | S30: =R29*(1-Mortality!Q29) -> 4096870.045 | T30: =S29*(1-Mortality!R29) -> 4029147.881 | U30: =T29*(1-Mortality!S29) -> 4029079.379 | V30: =U29*(1-Mortality!T29) -> 4029026.994 | W30: =V29*(1-Mortality!U29) -> 4028986.698 | X30: =W29*(1-Mortality!V29) -> 4028944.388 | Y30: =X29*(1-Mortality!W29) -> 3996096.679 | Z30: =Y29*(1-Mortality!X29) -> 3995926.816 | AA30: =Z29*(1-Mortality!Y29) -> 3995647.04 | AB30: =AA29*(1-Mortality!Z29) -> 3994937.61 | AC30: =AB29*(1-Mortality!AA29) -> 3969863.734 | AD30: =AC29*(1-Mortality!AB29) -> 4285371.458 | AE30: =AD29*(1-Mortality!AC29) -> 4295194.427 | AF30: =AE29*(1-Mortality!AD29) -> 4305003.126 | AG30: =AF29*(1-Mortality!AE29) -> 4314801.029 | AH30: =AG29*(1-Mortality!AF29) -> 4324590.766 | AI30: =AH29*(1-Mortality!AG29) -> 4334374.111 | AJ30: =AI29*(1-Mortality!AH29) -> 4331061.488 | AK30: =AJ29*(1-Mortality!AI29) -> 4327752.501 | AL30: =AK29*(1-Mortality!AJ29) -> 4324446.619 | AM30: =AL29*(1-Mortality!AK29) -> 4321141.119 | AN30: =AM29*(1-Mortality!AL29) -> 4317825.564 | AO30: =AN29*(1-Mortality!AM29) -> 4304391.075 | AP30: =AO29*(1-Mortality!AN29) -> 4290962.726 | AQ30: =AP29*(1-Mortality!AO29) -> 4277535.914 | AR30: =AQ29*(1-Mortality!AP29) -> 4264098.252 | AS30: =AR29*(1-Mortality!AQ29) -> 4250152.932 | AT30: =AS29*(1-Mortality!AR29) -> 4239289.532 | AU30: =AT29*(1-Mortality!AS29) -> 4228620.614 | AV30: =AU29*(1-Mortality!AT29) -> 4218140.163 | AW30: =AV29*(1-Mortality!AU29) -> 4207832.218 | AX30: =AW29*(1-Mortality!AV29) -> 4196955.053 | AY30: =AX29*(1-Mortality!AW29) -> 4201606.103 | AZ30: =AY29*(1-Mortality!AX29) -> 4206466.834 | BA30: =AZ29*(1-Mortality!AY29) -> 4211536.807 | BB30: =BA29*(1-Mortality!AZ29) -> 4216815.061 | BC30: =BB29*(1-Mortality!BA29) -> 4222159.035 | BD30: =BC29*(1-Mortality!BB29) -> 4236235.094 | BE30: =BD29*(1-Mortality!BC29) -> 4249975.426 | BF30: =BE29*(1-Mortality!BD29) -> 4263383.183 | BG30: =BF29*(1-Mortality!BE29) -> 4276464.674 | BH30: =BG29*(1-Mortality!BF29) -> 4289410.731 | BI30: =BH29*(1-Mortality!BG29) -> 4302817.438 | BJ30: =BI29*(1-Mortality!BH29) -> 4315491.751 | BK30: =BJ29*(1-Mortality!BI29) -> 4327441.385 | BL30: =BK29*(1-Mortality!BJ29) -> 4338682.056 | BM30: =BL29*(1-Mortality!BK29) -> 4349838.716 | BN30: =BM29*(1-Mortality!BL29) -> 4353178.287 | BO30: =BN29*(1-Mortality!BM29) -> 4355979.193 | BP30: =BO29*(1-Mortality!BN29) -> 4358254.006 | BQ30: =BP29*(1-Mortality!BO29) -> 4360020.596 | BR30: =BQ29*(1-Mortality!BP29) -> 4361724.752 | BS30: =BR29*(1-Mortality!BQ29) -> 4357411.571 | BT30: =BS29*(1-Mortality!BR29) -> 4353480.057 | BU30: =BT29*(1-Mortality!BS29) -> 4349930.977 | BV30: =BU29*(1-Mortality!BT29) -> 4346766.42 | BW30: =BV29*(1-Mortality!BU29) -> 4344092.54 | BX30: =BW29*(1-Mortality!BV29) -> 4340439.823 | BY30: =BX29*(1-Mortality!BW29) -> 4337962.13 | BZ30: =BY29*(1-Mortality!BX29) -> 4336632.864 | CA30: =BZ29*(1-Mortality!BY29) -> 4336425.955 | CB30: =CA29*(1-Mortality!BZ29) -> 4337324.21 | CC30: =CB29*(1-Mortality!CA29) -> 4339226.851 | CD30: =CC29*(1-Mortality!CB29) -> 4342179.177 | CE30: =CD29*(1-Mortality!CC29) -> 4346138.311 | CF30: =CE29*(1-Mortality!CD29) -> 4351062.159 | CG30: =CF29*(1-Mortality!CE29) -> 4356910.183 | CH30: =CG29*(1-Mortality!CF29) -> 4363699.988 | CI30: =CH29*(1-Mortality!CG29) -> 4370603.501 | CJ30: =CI29*(1-Mortality!CH29) -> 4377601.455 | CK30: =CJ29*(1-Mortality!CI29) -> 4384675.161 | CL30: =CK29*(1-Mortality!CJ29) -> 4391806.926 | CM30: =CL29*(1-Mortality!CK29) -> 4399016.046
B31: 27 | C31: =MortalityFertility!J30 -> 4220409.205 | D31: =C30*(1-Mortality!B30) -> 4220400.756 | E31: =D30*(1-Mortality!C30) -> 4220362.736 | F31: =E30*(1-Mortality!D30) -> 4295862.161 | G31: =F30*(1-Mortality!E30) -> 4295836.36 | H31: =G30*(1-Mortality!F30) -> 4295913.763 | I31: =H30*(1-Mortality!G30) -> 4296130.921 | J31: =I30*(1-Mortality!H30) -> 4296451.283 | K31: =J30*(1-Mortality!I30) -> 4368770.468 | L31: =K30*(1-Mortality!J30) -> 4369102.755 | M31: =L30*(1-Mortality!K30) -> 4369487.509 | N31: =M30*(1-Mortality!L30) -> 4369924.729 | O31: =N30*(1-Mortality!M30) -> 4370388.183 | P31: =O30*(1-Mortality!N30) -> 4092001.677 | Q31: =P30*(1-Mortality!O30) -> 4092413.049 | R31: =Q30*(1-Mortality!P30) -> 4092707.763 | S31: =R30*(1-Mortality!Q30) -> 4092848.98 | T31: =S30*(1-Mortality!R30) -> 4092863.306 | U31: =T30*(1-Mortality!S30) -> 4025207.375 | V31: =U30*(1-Mortality!T30) -> 4025138.939 | W31: =V30*(1-Mortality!U30) -> 4025086.606 | X31: =W30*(1-Mortality!V30) -> 4025046.349 | Y31: =X30*(1-Mortality!W30) -> 4025004.08 | Z31: =Y30*(1-Mortality!X30) -> 3992188.497 | AA31: =Z30*(1-Mortality!Y30) -> 3992018.799 | AB31: =AA30*(1-Mortality!Z30) -> 3991739.297 | AC31: =AB30*(1-Mortality!AA30) -> 3991030.561 | AD31: =AC30*(1-Mortality!AB30) -> 3965981.208 | AE31: =AD30*(1-Mortality!AC30) -> 4281180.365 | AF31: =AE30*(1-Mortality!AD30) -> 4290993.727 | AG31: =AF30*(1-Mortality!AE30) -> 4300792.833 | AH31: =AG30*(1-Mortality!AF30) -> 4310581.154 | AI31: =AH30*(1-Mortality!AG30) -> 4320361.316 | AJ31: =AI30*(1-Mortality!AH30) -> 4330135.093 | AK31: =AJ30*(1-Mortality!AI30) -> 4326825.709 | AL31: =AK30*(1-Mortality!AJ30) -> 4323519.959 | AM31: =AL30*(1-Mortality!AK30) -> 4320217.31 | AN31: =AM30*(1-Mortality!AL30) -> 4316915.043 | AO31: =AN30*(1-Mortality!AM30) -> 4313602.731 | AP31: =AO30*(1-Mortality!AN30) -> 4300181.38 | AQ31: =AP30*(1-Mortality!AO30) -> 4286766.165 | AR31: =AQ30*(1-Mortality!AP30) -> 4273352.484 | AS31: =AR30*(1-Mortality!AQ30) -> 4259927.964 | AT31: =AS30*(1-Mortality!AR30) -> 4245996.282 | AU31: =AT30*(1-Mortality!AS30) -> 4235143.507 | AV31: =AU30*(1-Mortality!AT30) -> 4224485.023 | AW31: =AV30*(1-Mortality!AU30) -> 4214014.822 | AX31: =AW30*(1-Mortality!AV30) -> 4203716.958 | AY31: =AX30*(1-Mortality!AW30) -> 4192850.431 | AZ31: =AY30*(1-Mortality!AX30) -> 4197496.932 | BA31: =AZ30*(1-Mortality!AY30) -> 4202352.909 | BB31: =BA30*(1-Mortality!AZ30) -> 4207417.924 | BC31: =BB30*(1-Mortality!BA30) -> 4212691.016 | BD31: =BC30*(1-Mortality!BB30) -> 4218029.763 | BE31: =BD30*(1-Mortality!BC30) -> 4232092.056 | BF31: =BE30*(1-Mortality!BD30) -> 4245818.95 | BG31: =BF30*(1-Mortality!BE30) -> 4259213.594 | BH31: =BG30*(1-Mortality!BF30) -> 4272282.291 | BI31: =BH30*(1-Mortality!BG30) -> 4285215.687 | BJ31: =BI30*(1-Mortality!BH30) -> 4298609.282 | BK31: =BJ30*(1-Mortality!BI30) -> 4311271.2 | BL31: =BK30*(1-Mortality!BJ30) -> 4323209.148 | BM31: =BL30*(1-Mortality!BK30) -> 4334438.825 | BN31: =BM30*(1-Mortality!BL30) -> 4345584.574 | BO31: =BN30*(1-Mortality!BM30) -> 4348920.879 | BP31: =BO30*(1-Mortality!BN30) -> 4351719.045 | BQ31: =BP30*(1-Mortality!BO30) -> 4353991.634 | BR31: =BQ30*(1-Mortality!BP30) -> 4355756.495 | BS31: =BR30*(1-Mortality!BQ30) -> 4357458.985 | BT31: =BS30*(1-Mortality!BR30) -> 4353150.023 | BU31: =BT30*(1-Mortality!BS30) -> 4349222.354 | BV31: =BU30*(1-Mortality!BT30) -> 4345676.745 | BW31: =BV30*(1-Mortality!BU30) -> 4342515.282 | BX31: =BW30*(1-Mortality!BV30) -> 4339844.017 | BY31: =BX30*(1-Mortality!BW30) -> 4336194.873 | BZ31: =BY30*(1-Mortality!BX30) -> 4333719.603 | CA31: =BZ30*(1-Mortality!BY30) -> 4332391.637 | CB31: =CA30*(1-Mortality!BZ30) -> 4332184.931 | CC31: =CB30*(1-Mortality!CA30) -> 4333082.307 | CD31: =CC30*(1-Mortality!CB30) -> 4334983.087 | CE31: =CD30*(1-Mortality!CC30) -> 4337932.526 | CF31: =CE30*(1-Mortality!CD30) -> 4341887.788 | CG31: =CF30*(1-Mortality!CE30) -> 4346806.82 | CH31: =CG30*(1-Mortality!CF30) -> 4352649.125 | CI31: =CH30*(1-Mortality!CG30) -> 4359432.29 | CJ31: =CI30*(1-Mortality!CH30) -> 4366329.051 | CK31: =CJ30*(1-Mortality!CI30) -> 4373320.16 | CL31: =CK30*(1-Mortality!CJ30) -> 4380386.948 | CM31: =CL30*(1-Mortality!CK30) -> 4387511.739
... 38 more rows

Sheet NewWorkLives
B1: Year
A2: Age | B2: 2012 | C2: 2013 | D2: 2014 | E2: 2015 | F2: 2016 | G2: 2017 | H2: 2018 | I2: 2019 | J2: 2020 | K2: 2021 | L2: 2022 | M2: 2023 | N2: 2024 | O2: 2025 | P2: 2026 | Q2: 2027 | R2: 2028 | S2: 2029 | T2: 2030 | U2: 2031 | V2: 2032 | W2: 2033 | X2: 2034 | Y2: 2035 | Z2: 2036 | AA2: 2037 | AB2: 2038 | AC2: 2039 | AD2: 2040 | AE2: 2041 | AF2: 2042 | AG2: 2043 | AH2: 2044 | AI2: 2045 | AJ2: 2046 | AK2: 2047 | AL2: 2048 | AM2: 2049 | AN2: 2050 | AO2: 2051 | AP2: 2052 | AQ2: 2053 | AR2: 2054 | AS2: 2055 | AT2: 2056 | AU2: 2057 | AV2: 2058 | AW2: 2059 | AX2: 2060 | AY2: 2061 | AZ2: 2062 | BA2: 2063 | BB2: 2064 | BC2: 2065 | BD2: 2066 | BE2: 2067 | BF2: 2068 | BG2: 2069 | BH2: 2070 | BI2: 2071 | BJ2: 2072 | BK2: 2073 | BL2: 2074 | BM2: 2075 | BN2: 2076 | BO2: 2077 | BP2: 2078 | BQ2: 2079 | BR2: 2080 | BS2: 2081 | BT2: 2082 | BU2: 2083 | BV2: 2084 | BW2: 2085 | BX2: 2086 | BY2: 2087 | BZ2: 2088 | CA2: 2089 | CB2: 2090 | CC2: 2091 | CD2: 2092 | CE2: 2093 | CF2: 2094 | CG2: 2095 | CH2: 2096 | CI2: 2097 | CJ2: 2098 | CK2: 2099 | CL2: 2100
